Workbook

Sheet ACCUEILPRO
A1: Accueil
F7: =ACCUEIL!F7 -> 2022-11-13

Sheet ACCUEILPREM
A1: Accueil
F7: =ACCUEIL!F7 -> 2022-11-13

Sheet ACCUEILGP
A1: Accueil
F7: =ACCUEIL!F7 -> 2022-11-13

Sheet ACCUEIL
F7: 2022-11-13

Sheet Accueilagence
A1: Accueil
E7: =ACCUEIL!F7 -> 2022-11-13

Sheet Accueilsecteur
A1: Accueil
E7: =ACCUEIL!F7 -> 2022-11-13

Sheet AccueilDircom
A1: Accueil
E7: =ACCUEIL!F7 -> 2022-11-13

Sheet DC_FICHE
A1: Accueil
A2: BAROMETRE BDD
A4: UNITE: | B4: DIRECTION REGIONALE | E4: ETP perf : | F4: =VLOOKUP(A5,'RECAP DIRCOM'!$G$6:$I$12,3,FALSE) -> 219.00
A5: =VLOOKUP(B5,LISTES!$M$6:$N$12,2,FALSE) -> 262 | B5: BAS-RHIN
C6: Coefficient du critére | E6: Résultats | I6: Ecart au 1ier | M6: Evolution | O6: Rang
E7: du 1ier | G7: DIRECTION | I7: Du mois | K7: Au 31/12/2019
A9: RANG au CLASSEMENT GENERAL | K9: =VLOOKUP($A$5,#REF!,168,FALSE) ->  | M9: =+K9-O9 ->  | O9: =VLOOKUP($A$5,'RECAP DIRCOM'!$G$6:$CY$312,168,FALSE) -> 
A11: CRITERE CLIENTS | C11: 15% | O11: =VLOOKUP($A$5,'RECAP DIRCOM'!$G$6:$CY$312,23,FALSE) -> 51.93607306
B12: PNB Evolution nette Clients BP | C12: 4% | E12: ='RECAP DIRCOM'!#REF! ->  | G12: =VLOOKUP($A$5,'RECAP DIRCOM'!$G$6:$CY$312,6,FALSE) -> 0.8 | I12: =VLOOKUP($A$5,'RECAP DIRCOM'!$G$6:$CY$312,7,FALSE) -> 500% | K12: =VLOOKUP($A$5,#REF!,7,FALSE) ->  | M12: =+K12-I12 ->  | O12: =VLOOKUP($A$5,'RECAP DIRCOM'!$G$6:$CY$312,8,FALSE) -> 0.6171998828
B13: PNB Evolution nette Clients PREMIUM | C13: 5% | E13: ='RECAP DIRCOM'!#REF! ->  | G13: =VLOOKUP($A$5,'RECAP DIRCOM'!$G$6:$CY$312,10,FALSE) -> 4.0 | I13: =VLOOKUP($A$5,'RECAP DIRCOM'!$G$6:$CY$312,11,FALSE) -> 43% | K13: =VLOOKUP($A$5,#REF!,11,FALSE) ->  | M13: =+K13-I13 ->  | O13: =VLOOKUP($A$5,'RECAP DIRCOM'!$G$6:$CY$312,12,FALSE) -> 0.4310158997
B14: PNB Evolution nette Clients Jeunes Equipés | C14: 3% | E14: ='RECAP DIRCOM'!#REF! ->  | G14: =VLOOKUP($A$5,'RECAP DIRCOM'!$G$6:$CY$312,14,FALSE) -> 0.0 | I14: =VLOOKUP($A$5,'RECAP DIRCOM'!$G$6:$CY$312,15,FALSE) -> 0% | K14: =VLOOKUP($A$5,#REF!,15,FALSE) ->  | M14: =+K14-I14 ->  | O14: =VLOOKUP($A$5,'RECAP DIRCOM'!$G$6:$CY$312,16,FALSE) -> 0
B15: PNB Evolution nette Clients Pro Actifs Equipés | C15: 3% | E15: ='RECAP DIRCOM'!W4 -> 0.0 | G15: =VLOOKUP($A$5,'RECAP DIRCOM'!$G$6:$CY$312,18,FALSE) -> 3608.8 | I15: =VLOOKUP($A$5,'RECAP DIRCOM'!$G$6:$CY$312,19,FALSE) -> 1648% | K15: =VLOOKUP($A$5,#REF!,19,FALSE) ->  | M15: =+K15-I15 ->  | O15: =VLOOKUP($A$5,'RECAP DIRCOM'!$G$6:$CY$312,20,FALSE) -> 0.3327839912
A17: CRITERE BANCARISATION | C17: 15% | O17: =VLOOKUP($A$5,'RECAP DIRCOM'!$G$6:$CY$312,48,FALSE) -> 45282.75612
B18: PNB Ventes nettes forfaits | C18: 4% | E18: ='RECAP DIRCOM'!X4 -> 24.7 | G18: =VLOOKUP($A$5,'RECAP DIRCOM'!$G$6:$CY$312,31,FALSE) -> 0.0 | I18: =VLOOKUP($A$5,'RECAP DIRCOM'!$G$6:$CY$312,32,FALSE) -> 0% | K18: =VLOOKUP($A$5,#REF!,32,FALSE) ->  | M18: =+K18-I18 ->  | O18: =VLOOKUP($A$5,'RECAP DIRCOM'!$G$6:$CY$312,33,FALSE) -> 62375.95214
B19: PNB Ventes nettes IZICARTES Débit Différé | C19: 4% | E19: ='RECAP DIRCOM'!AB4 -> 65.1 | G19: =VLOOKUP($A$5,'RECAP DIRCOM'!$G$6:$CY$312,35,FALSE) -> 0.1 | I19: =VLOOKUP($A$5,'RECAP DIRCOM'!$G$6:$CY$312,36,FALSE) -> 200% | K19: =VLOOKUP($A$5,#REF!,36,FALSE) ->  | M19: =+K19-I19 ->  | O19: =VLOOKUP($A$5,'RECAP DIRCOM'!$G$6:$CY$312,37,FALSE) -> 11485
B20: PNB Ventes nettes cartes HDG Débit Différé | C20: 4% | E20: ='RECAP DIRCOM'!#REF! ->  | G20: =VLOOKUP($A$5,'RECAP DIRCOM'!$G$6:$CY$312,39,FALSE) -> 0.2 | I20: =VLOOKUP($A$5,'RECAP DIRCOM'!$G$6:$CY$312,40,FALSE) -> 300% | K20: =VLOOKUP($A$5,#REF!,40,FALSE) ->  | M20: =+K20-I20 ->  | O20: =VLOOKUP($A$5,'RECAP DIRCOM'!$G$6:$CY$312,41,FALSE) -> 0.1409191428
B21: PNB Ventes nettes Forfaits Pro, Carte pro | C21: 3% | E21: ='RECAP DIRCOM'!#REF! ->  | G21: =VLOOKUP($A$5,'RECAP DIRCOM'!$G$6:$CY$312,43,FALSE) -> 4.0 | I21: =VLOOKUP($A$5,'RECAP DIRCOM'!$G$6:$CY$312,44,FALSE) -> 0% | K21: =VLOOKUP($A$5,#REF!,44,FALSE) ->  | M21: =+K21-I21 ->  | O21: =VLOOKUP($A$5,'RECAP DIRCOM'!$G$6:$CY$312,45,FALSE) -> 0
A23: CRITERE EPARGNE | C23: 10% | O23: =VLOOKUP($A$5,'RECAP DIRCOM'!$G$6:$CY$312,69,FALSE) -> 0.4236357945
B24: PNB Epargne Liquide | C24: 3% | E24: ='RECAP DIRCOM'!AM4 -> 307.6 | G24: =VLOOKUP($A$5,'RECAP DIRCOM'!$G$6:$CY$312,56,FALSE) -> 3956.0 | I24: =VLOOKUP($A$5,'RECAP DIRCOM'!$G$6:$CY$312,57,FALSE) -> 1806% | K24: =VLOOKUP($A$5,#REF!,57,FALSE) ->  | M24: =+K24-I24 ->  | O24: =VLOOKUP($A$5,'RECAP DIRCOM'!$G$6:$CY$312,58,FALSE) -> 0.4151682256
B25: PNB CA UC + arbitrage | C25: 4% | E25: ='RECAP DIRCOM'!AQ4 -> 69.1 | G25: =VLOOKUP($A$5,'RECAP DIRCOM'!$G$6:$CY$312,60,FALSE) -> 0.4 | I25: =VLOOKUP($A$5,'RECAP DIRCOM'!$G$6:$CY$312,61,FALSE) -> 37% | K25: =VLOOKUP($A$5,#REF!,61,FALSE) ->  | M25: =+K25-I25 ->  | O25: =VLOOKUP($A$5,'RECAP DIRCOM'!$G$6:$CY$312,62,FALSE) -> 6
B26: PNB Excédent assurance vie | C26: 3% | E26: ='RECAP DIRCOM'!#REF! ->  | G26: =VLOOKUP($A$5,'RECAP DIRCOM'!$G$6:$CY$312,64,FALSE) -> 0.0 | I26: =VLOOKUP($A$5,'RECAP DIRCOM'!$G$6:$CY$312,65,FALSE) -> 0% | K26: =VLOOKUP($A$5,#REF!,65,FALSE) ->  | M26: =+K26-I26 ->  | O26: =VLOOKUP($A$5,'RECAP DIRCOM'!$G$6:$CY$312,66,FALSE) -> 0
A28: CRITERE CREDITS | C28: 15% | O28: =VLOOKUP($A$5,'RECAP DIRCOM'!$G$6:$CY$312,102,FALSE) -> 
B29: PNB crédit conso | C29: 4% | E29: ='RECAP DIRCOM'!BB4 -> 424.2 | G29: =VLOOKUP($A$5,'RECAP DIRCOM'!$G$6:$CY$312,77,FALSE) -> 5.0 | I29: =VLOOKUP($A$5,'RECAP DIRCOM'!$G$6:$CY$312,78,FALSE) -> 0% | K29: =VLOOKUP($A$5,#REF!,78,FALSE) ->  | M29: =+K29-I29 ->  | O29: =VLOOKUP($A$5,'RECAP DIRCOM'!$G$6:$CY$312,79,FALSE) -> 0
B30: PNB ADE crédit conso | C30: 1% | E30: ='RECAP DIRCOM'!#REF! ->  | G30: =VLOOKUP($A$5,'RECAP DIRCOM'!$G$6:$CY$312,81,FALSE) -> 0.0 | I30: =VLOOKUP($A$5,'RECAP DIRCOM'!$G$6:$CY$312,82,FALSE) -> 0% | K30: =VLOOKUP($A$5,#REF!,82,FALSE) ->  | O30: =VLOOKUP($A$5,'RECAP DIRCOM'!$G$6:$CY$312,83,FALSE) -> 0
B31: PNB crédit immo | C31: 4% | E31: ='RECAP DIRCOM'!BF4 -> 52.4 | G31: =VLOOKUP($A$5,'RECAP DIRCOM'!$G$6:$CY$312,85,FALSE) -> 0.0 | I31: =VLOOKUP($A$5,'RECAP DIRCOM'!$G$6:$CY$312,86,FALSE) -> 0% | K31: =VLOOKUP($A$5,#REF!,86,FALSE) ->  | O31: =VLOOKUP($A$5,'RECAP DIRCOM'!$G$6:$CY$312,87,FALSE) -> 0
B32: PNB ADE crédit immo | C32: 2% | E32: ='RECAP DIRCOM'!#REF! ->  | G32: =VLOOKUP($A$5,'RECAP DIRCOM'!$G$6:$CY$312,89,FALSE) -> 0.0 | I32: =VLOOKUP($A$5,'RECAP DIRCOM'!$G$6:$CY$312,90,FALSE) -> 0% | K32: =VLOOKUP($A$5,#REF!,90,FALSE) ->  | O32: =VLOOKUP($A$5,'RECAP DIRCOM'!$G$6:$CY$312,91,FALSE) -> 0
B33: PNB SACCEF | C33: 2% | E33: ='RECAP DIRCOM'!#REF! ->  | G33: =VLOOKUP($A$5,'RECAP DIRCOM'!$G$6:$CY$312,93,FALSE) -> 0.0 | I33: =VLOOKUP($A$5,'RECAP DIRCOM'!$G$6:$CY$312,94,FALSE) -> 29% | K33: =VLOOKUP($A$5,#REF!,94,FALSE) ->  | O33: =VLOOKUP($A$5,'RECAP DIRCOM'!$G$6:$CY$312,95,FALSE) -> 0.2639868661
B34: PNB Crédit MLT + Crédit Bail | C34: 2% | E34: ='RECAP DIRCOM'!BJ4 -> 30.9 | G34: =VLOOKUP($A$5,'RECAP DIRCOM'!$G$6:$CY$312,97,FALSE) -> 0.0 | I34: =VLOOKUP($A$5,'RECAP DIRCOM'!$G$6:$CY$312,98,FALSE) ->  | K34: =VLOOKUP($A$5,#REF!,98,FALSE) ->  | O34: =VLOOKUP($A$5,'RECAP DIRCOM'!$G$6:$CY$312,99,FALSE) -> 
A36: CRITERE IARD PREVOYANCE | C36: 15% | O36: =VLOOKUP($A$5,'RECAP DIRCOM'!$G$6:$CY$312,119,FALSE) -> 
B37: PNB Ventes nettes IARD | C37: 9% | E37: ='RECAP DIRCOM'!BU4 -> 149.2 | G37: =VLOOKUP($A$5,'RECAP DIRCOM'!$G$6:$CY$312,110,FALSE) ->  | I37: =VLOOKUP($A$5,'RECAP DIRCOM'!$G$6:$CY$312,111,FALSE) ->  | K37: =VLOOKUP($A$5,#REF!,111,FALSE) ->  | M37: =+K37-I37 ->  | O37: =VLOOKUP($A$5,'RECAP DIRCOM'!$G$6:$CY$312,112,FALSE) -> 
B38: PNB Ventes nettes Prévoyance | C38: 6% | E38: ='RECAP DIRCOM'!BY4 -> 44.1 | G38: =VLOOKUP($A$5,'RECAP DIRCOM'!$G$6:$CY$312,114,FALSE) ->  | I38: =VLOOKUP($A$5,'RECAP DIRCOM'!$G$6:$CY$312,115,FALSE) ->  | K38: =VLOOKUP($A$5,#REF!,115,FALSE) ->  | M38: =+K38-I38 ->  | O38: =VLOOKUP($A$5,'RECAP DIRCOM'!$G$6:$CY$312,116,FALSE) -> 
A40: CRITERE ACCELERATEURS PNB | C40: 15% | O40: =VLOOKUP($A$5,'RECAP DIRCOM'!$G$6:$CY$312,144,FALSE) -> 
B41: PNB Ventes brutes SED Finalisées | C41: 6% | E41: ='RECAP DIRCOM'!#REF! ->  | G41: =VLOOKUP($A$5,'RECAP DIRCOM'!$G$6:$CY$312,127,FALSE) ->  | I41: =VLOOKUP($A$5,'RECAP DIRCOM'!$G$6:$CY$312,128,FALSE) ->  | K41: =VLOOKUP($A$5,#REF!,128,FALSE) ->  | M41: =+K41-I41 ->  | O41: =VLOOKUP($A$5,'RECAP DIRCOM'!$G$6:$CY$312,129,FALSE) -> 
B42: PNB clients équipés E documents | C42: 3% | E42: ='RECAP DIRCOM'!#REF! ->  | G42: =VLOOKUP($A$5,'RECAP DIRCOM'!$G$6:$CY$312,131,FALSE) ->  | I42: =VLOOKUP($A$5,'RECAP DIRCOM'!$G$6:$CY$312,132,FALSE) ->  | K42: =VLOOKUP($A$5,#REF!,132,FALSE) ->  | M42: =+K42-I42 ->  | O42: =VLOOKUP($A$5,'RECAP DIRCOM'!$G$6:$CY$312,133,FALSE) -> 
B43: Economie opt'in | C43: 3% | E43: ='RECAP DIRCOM'!#REF! ->  | G43: =VLOOKUP($A$5,'RECAP DIRCOM'!$G$6:$CY$312,135,FALSE) ->  | I43: =VLOOKUP($A$5,'RECAP DIRCOM'!$G$6:$CY$312,136,FALSE) ->  | K43: =VLOOKUP($A$5,#REF!,136,FALSE) ->  | M43: =+K43-I43 ->  | O43: =VLOOKUP($A$5,'RECAP DIRCOM'!$G$6:$CY$312,137,FALSE) -> 
B44: Remises commerciales | C44: 3% | E44: ='RECAP DIRCOM'!#REF! ->  | G44: =VLOOKUP($A$5,'RECAP DIRCOM'!$G$6:$CY$312,139,FALSE) ->  | I44: =VLOOKUP($A$5,'RECAP DIRCOM'!$G$6:$CY$312,140,FALSE) ->  | K44: =VLOOKUP($A$5,#REF!,140,FALSE) ->  | M44: =+K44-I44 ->  | O44: =VLOOKUP($A$5,'RECAP DIRCOM'!$G$6:$CY$312,141,FALSE) -> 
A46: CRITERE Qualité-Satisfaction Clients | C46: 15% | O46: =VLOOKUP($A$5,'RECAP DIRCOM'!$G$6:$CY$312,159,FALSE) -> 
B47: Objectifs NPS* | C47: 8% | E47: ='RECAP DIRCOM'!K4 -> 23 | G47: =VLOOKUP($A$5,'RECAP DIRCOM'!$G$6:$CY$312,151,FALSE) ->  | I47: =VLOOKUP($A$5,'RECAP DIRCOM'!$G$6:$CY$312,152,FALSE) ->  | K47: =VLOOKUP($A$5,#REF!,152,FALSE) ->  | M47: =+K47-I47 ->  | O47: =VLOOKUP($A$5,'RECAP DIRCOM'!$G$6:$CY$312,153,FALSE) -> 
B48: Enquête Qualité Haute Définition | C48: 7% | E48: ='RECAP DIRCOM'!N4 -> 69% | G48: =VLOOKUP($A$5,'RECAP DIRCOM'!$G$6:$CY$312,154,FALSE) ->  | I48: =VLOOKUP($A$5,'RECAP DIRCOM'!$G$6:$CY$312,155,FALSE) ->  | K48: =VLOOKUP($A$5,#REF!,155,FALSE) ->  | M48: =+K48-I48 ->  | O48: =VLOOKUP($A$5,'RECAP DIRCOM'!$G$6:$CY$312,156,FALSE) -> 

Sheet DC_TOTAL
B1: Accueil | D1: BAROMETRE BDD - DIRECTIONS REGIONALES
D2: TOTAL GENERAL
D3: =ACCUEIL!F7 -> 2022-11-13
D7: TOTAL GENERAL | G7: Total Satisfaction Clients | J7: Total Bancarisation | M7: Total Epargne | P7: Total IARD Prévoyance | S7: Total Crédits
E8: coef | F8: =+I8+L8+O8+R8+U8 -> 100% | H8: coef | I8: =DC_SATISFACTION!L8 -> 20% | K8: coef | L8: =DC_BANCA!N8 -> 20% | N8: coef | O8: =DC_EPARGNE!N8 -> 20% | Q8: coef | R8: =DC_IARD!N8 -> 20% | T8: coef | U8: =DC_CREDIT!R8 -> 20%
A9: eds | B9: Direction | C9: ="ETP perf "&DATEMAJ!$C$28 -> ETP perf 13-nov | D9: Moyenne ecart au 1er | E9: % Ecart au 1er | F9: Rang CEGEE | G9: Moyenne ecart au 1er | H9: % Ecart au 1er | I9: Rang CEGEE | J9: Moyenne ecart au 1er | K9: % Ecart au 1er | L9: Rang CEGEE | M9: Moyenne ecart au 1er | N9: % Ecart au 1er | O9: Rang CEGEE | P9: Moyenne ecart au 1er | Q9: % Ecart au 1er | R9: Rang CEGEE | S9: Moyenne ecart au 1er | T9: % Ecart au 1er | U9: Rang CEGEE
A10: 50 | B10: Marne-Ardennes | C10: 193 | D10: 3% | E10: 0% | F10: 1 | G10: 15% | H10: 15% | I10: 2 | J10: 0% | K10: 0% | L10: 1 | M10: 7% | N10: 0% | O10: 1 | P10: 0% | Q10: 0% | R10: 1 | S10: 4% | T10: 0% | U10: 1
A11: 262 | B11: Moselle | C11: 221 | D11: 9% | E11: 5% | F11: 2 | G11: 22% | H11: 22% | I11: 3 | J11: 7% | K11: 7% | L11: 2 | M11: 8% | N11: 0% | O11: 2 | P11: 7% | Q11: 7% | R11: 2 | S11: 10% | T11: 6% | U11: 2
A12: 264 | B12: Meurthe et Moselle Meuse | C12: 204 | D12: 22% | E12: 18% | F12: 3 | G12: 30% | H12: 30% | I12: 4 | J12: 30% | K12: 30% | L12: 4 | M12: 10% | N12: 3% | O12: 3 | P12: 27% | Q12: 27% | R12: 3 | S12: 20% | T12: 17% | U12: 3
A13: 30 | B13: Vosges | C13: 117 | D13: 24% | E13: 21% | F13: 4 | G13: 0% | H13: 0% | I13: 1 | J13: 34% | K13: 34% | L13: 5 | M13: 21% | N13: 13% | O13: 5 | P13: 42% | Q13: 42% | R13: 6 | S13: 35% | T13: 32% | U13: 4
A14: 110 | B14: Bas-Rhin | C14: 219 | D14: 29% | E14: 26% | F14: 5 | G14: 43% | H14: 43% | I14: 5 | J14: 28% | K14: 28% | L14: 3 | M14: 14% | N14: 7% | O14: 4 | P14: 33% | Q14: 33% | R14: 5 | S14: 40% | T14: 37% | U14: 6
A15: 160 | B15: Aube Haute Marne | C15: 112 | D15: 39% | E15: 36% | F15: 6 | G15: 52% | H15: 52% | I15: 6 | J15: 47% | K15: 47% | L15: 6 | M15: 44% | N15: 37% | O15: 6 | P15: 28% | Q15: 28% | R15: 4 | S15: 37% | T15: 34% | U15: 5
A16: 80 | B16: Haut-Rhin | C16: 122 | D16: 62% | E16: 59% | F16: 7 | G16: 59% | H16: 59% | I16: 7 | J16: 67% | K16: 67% | L16: 7 | M16: 80% | N16: 72% | O16: 7 | P16: 68% | Q16: 68% | R16: 7 | S16: 48% | T16: 45% | U16: 7
B17: Total CEGEE Directions Régionales | C17: =SUM(C10:C16) -> 1187

Sheet DC_BANCA
B1: Accueil | D1: BAROMETRE BDD - DIRECTIONS REGIONALES
D2: BANCARISATION
D3: =ACCUEIL!F7 -> 2022-11-13
D7: Ventes Nettes produits pondérés | H7: Ventes sur client non détenteur de l’univers | L7: Total Bancarisation
D8: =DATEMAJ!C8 -> au 13/11 | F8: coef | G8: ='RECAP DIRCOM'!AA4 -> 12% | H8: =DATEMAJ!C9 -> au 13/11 | J8: coef | K8: ='RECAP DIRCOM'!AE4 -> 8% | M8: coef | N8: ='RECAP DIRCOM'!AH4 -> 20%
B9: Direction | C9: ="ETP perf "&DATEMAJ!$C$28 -> ETP perf 13-nov | D9: VN | E9: VN / ETP | F9: % Ecart au 1er | G9: Rang | H9: VB | I9: VB / ETP | J9: % Ecart au 1er | K9: Rang | L9: Moyenne ecart au 1er | M9: % Ecart au 1er | N9: Rang CEGEE
A10: 50 | B10: Aube Haute Marne | C10: =VLOOKUP($A10,'RECAP DIRCOM'!$G$6:$CU$12,3,FALSE) -> 112 | D10: =VLOOKUP($A10,'RECAP DIRCOM'!$G$6:$CU$12,18,FALSE) -> 1,020 | E10: =VLOOKUP($A10,'RECAP DIRCOM'!$G$6:$CU$12,19,FALSE) -> 9.10 | F10: =VLOOKUP($A10,'RECAP DIRCOM'!$G$6:$CU$12,20,FALSE) -> 63% | G10: =VLOOKUP($A10,'RECAP DIRCOM'!$G$6:$CU$12,21,FALSE) -> 6 | H10: =VLOOKUP($A10,'RECAP DIRCOM'!$G$6:$CU$12,22,FALSE) -> 5,604 | I10: =VLOOKUP($A10,'RECAP DIRCOM'!$G$6:$CU$12,23,FALSE) -> 50.00 | J10: =VLOOKUP($A10,'RECAP DIRCOM'!$G$6:$CU$12,24,FALSE) -> 23% | K10: =VLOOKUP($A10,'RECAP DIRCOM'!$G$6:$CU$12,25,FALSE) -> 5 | L10: =VLOOKUP($A10,'RECAP DIRCOM'!$G$6:$CU$12,26,FALSE) -> 47% | M10: =VLOOKUP($A10,'RECAP DIRCOM'!$G$6:$CU$12,27,FALSE) -> 47% | N10: =VLOOKUP($A10,'RECAP DIRCOM'!$G$6:$CU$12,28,FALSE) -> 6
A11: 262 | B11: Bas-Rhin | C11: =VLOOKUP($A11,'RECAP DIRCOM'!$G$6:$CU$12,3,FALSE) -> 219 | D11: =VLOOKUP($A11,'RECAP DIRCOM'!$G$6:$CU$12,18,FALSE) -> 3,609 | E11: =VLOOKUP($A11,'RECAP DIRCOM'!$G$6:$CU$12,19,FALSE) -> 16.48 | F11: =VLOOKUP($A11,'RECAP DIRCOM'!$G$6:$CU$12,20,FALSE) -> 33% | G11: =VLOOKUP($A11,'RECAP DIRCOM'!$G$6:$CU$12,21,FALSE) -> 3 | H11: =VLOOKUP($A11,'RECAP DIRCOM'!$G$6:$CU$12,22,FALSE) -> 11,374 | I11: =VLOOKUP($A11,'RECAP DIRCOM'!$G$6:$CU$12,23,FALSE) -> 51.94 | J11: =VLOOKUP($A11,'RECAP DIRCOM'!$G$6:$CU$12,24,FALSE) -> 20% | K11: =VLOOKUP($A11,'RECAP DIRCOM'!$G$6:$CU$12,25,FALSE) -> 4 | L11: =VLOOKUP($A11,'RECAP DIRCOM'!$G$6:$CU$12,26,FALSE) -> 28% | M11: =VLOOKUP($A11,'RECAP DIRCOM'!$G$6:$CU$12,27,FALSE) -> 28% | N11: =VLOOKUP($A11,'RECAP DIRCOM'!$G$6:$CU$12,28,FALSE) -> 3
A12: 264 | B12: Haut-Rhin | C12: =VLOOKUP($A12,'RECAP DIRCOM'!$G$6:$CU$12,3,FALSE) -> 122 | D12: =VLOOKUP($A12,'RECAP DIRCOM'!$G$6:$CU$12,18,FALSE) -> 360 | E12: =VLOOKUP($A12,'RECAP DIRCOM'!$G$6:$CU$12,19,FALSE) -> 2.94 | F12: =VLOOKUP($A12,'RECAP DIRCOM'!$G$6:$CU$12,20,FALSE) -> 88% | G12: =VLOOKUP($A12,'RECAP DIRCOM'!$G$6:$CU$12,21,FALSE) -> 7 | H12: =VLOOKUP($A12,'RECAP DIRCOM'!$G$6:$CU$12,22,FALSE) -> 5,127 | I12: =VLOOKUP($A12,'RECAP DIRCOM'!$G$6:$CU$12,23,FALSE) -> 41.87 | J12: =VLOOKUP($A12,'RECAP DIRCOM'!$G$6:$CU$12,24,FALSE) -> 36% | K12: =VLOOKUP($A12,'RECAP DIRCOM'!$G$6:$CU$12,25,FALSE) -> 7 | L12: =VLOOKUP($A12,'RECAP DIRCOM'!$G$6:$CU$12,26,FALSE) -> 67% | M12: =VLOOKUP($A12,'RECAP DIRCOM'!$G$6:$CU$12,27,FALSE) -> 67% | N12: =VLOOKUP($A12,'RECAP DIRCOM'!$G$6:$CU$12,28,FALSE) -> 7
A13: 30 | B13: Marne-Ardennes | C13: =VLOOKUP($A13,'RECAP DIRCOM'!$G$6:$CU$12,3,FALSE) -> 193 | D13: =VLOOKUP($A13,'RECAP DIRCOM'!$G$6:$CU$12,18,FALSE) -> 4,759 | E13: =VLOOKUP($A13,'RECAP DIRCOM'!$G$6:$CU$12,19,FALSE) -> 24.70 | F13: =VLOOKUP($A13,'RECAP DIRCOM'!$G$6:$CU$12,20,FALSE) -> 0% | G13: =VLOOKUP($A13,'RECAP DIRCOM'!$G$6:$CU$12,21,FALSE) -> 1 | H13: =VLOOKUP($A13,'RECAP DIRCOM'!$G$6:$CU$12,22,FALSE) -> 12,545 | I13: =VLOOKUP($A13,'RECAP DIRCOM'!$G$6:$CU$12,23,FALSE) -> 65.10 | J13: =VLOOKUP($A13,'RECAP DIRCOM'!$G$6:$CU$12,24,FALSE) -> 0% | K13: =VLOOKUP($A13,'RECAP DIRCOM'!$G$6:$CU$12,25,FALSE) -> 1 | L13: =VLOOKUP($A13,'RECAP DIRCOM'!$G$6:$CU$12,26,FALSE) -> 0% | M13: =VLOOKUP($A13,'RECAP DIRCOM'!$G$6:$CU$12,27,FALSE) -> 0% | N13: =VLOOKUP($A13,'RECAP DIRCOM'!$G$6:$CU$12,28,FALSE) -> 1
A14: 110 | B14: Meurthe et Moselle Meuse | C14: =VLOOKUP($A14,'RECAP DIRCOM'!$G$6:$CU$12,3,FALSE) -> 204 | D14: =VLOOKUP($A14,'RECAP DIRCOM'!$G$6:$CU$12,18,FALSE) -> 2,905 | E14: =VLOOKUP($A14,'RECAP DIRCOM'!$G$6:$CU$12,19,FALSE) -> 14.27 | F14: =VLOOKUP($A14,'RECAP DIRCOM'!$G$6:$CU$12,20,FALSE) -> 42% | G14: =VLOOKUP($A14,'RECAP DIRCOM'!$G$6:$CU$12,21,FALSE) -> 5 | H14: =VLOOKUP($A14,'RECAP DIRCOM'!$G$6:$CU$12,22,FALSE) -> 11,598 | I14: =VLOOKUP($A14,'RECAP DIRCOM'!$G$6:$CU$12,23,FALSE) -> 56.97 | J14: =VLOOKUP($A14,'RECAP DIRCOM'!$G$6:$CU$12,24,FALSE) -> 12% | K14: =VLOOKUP($A14,'RECAP DIRCOM'!$G$6:$CU$12,25,FALSE) -> 3 | L14: =VLOOKUP($A14,'RECAP DIRCOM'!$G$6:$CU$12,26,FALSE) -> 30% | M14: =VLOOKUP($A14,'RECAP DIRCOM'!$G$6:$CU$12,27,FALSE) -> 30% | N14: =VLOOKUP($A14,'RECAP DIRCOM'!$G$6:$CU$12,28,FALSE) -> 4
A15: 160 | B15: Moselle | C15: =VLOOKUP($A15,'RECAP DIRCOM'!$G$6:$CU$12,3,FALSE) -> 221 | D15: =VLOOKUP($A15,'RECAP DIRCOM'!$G$6:$CU$12,18,FALSE) -> 4,855 | E15: =VLOOKUP($A15,'RECAP DIRCOM'!$G$6:$CU$12,19,FALSE) -> 22.01 | F15: =VLOOKUP($A15,'RECAP DIRCOM'!$G$6:$CU$12,20,FALSE) -> 11% | G15: =VLOOKUP($A15,'RECAP DIRCOM'!$G$6:$CU$12,21,FALSE) -> 2 | H15: =VLOOKUP($A15,'RECAP DIRCOM'!$G$6:$CU$12,22,FALSE) -> 14,097 | I15: =VLOOKUP($A15,'RECAP DIRCOM'!$G$6:$CU$12,23,FALSE) -> 63.91 | J15: =VLOOKUP($A15,'RECAP DIRCOM'!$G$6:$CU$12,24,FALSE) -> 2% | K15: =VLOOKUP($A15,'RECAP DIRCOM'!$G$6:$CU$12,25,FALSE) -> 2 | L15: =VLOOKUP($A15,'RECAP DIRCOM'!$G$6:$CU$12,26,FALSE) -> 7% | M15: =VLOOKUP($A15,'RECAP DIRCOM'!$G$6:$CU$12,27,FALSE) -> 7% | N15: =VLOOKUP($A15,'RECAP DIRCOM'!$G$6:$CU$12,28,FALSE) -> 2
A16: 80 | B16: Vosges | C16: =VLOOKUP($A16,'RECAP DIRCOM'!$G$6:$CU$12,3,FALSE) -> 117 | D16: =VLOOKUP($A16,'RECAP DIRCOM'!$G$6:$CU$12,18,FALSE) -> 1,767 | E16: =VLOOKUP($A16,'RECAP DIRCOM'!$G$6:$CU$12,19,FALSE) -> 15.15 | F16: =VLOOKUP($A16,'RECAP DIRCOM'!$G$6:$CU$12,20,FALSE) -> 39% | G16: =VLOOKUP($A16,'RECAP DIRCOM'!$G$6:$CU$12,21,FALSE) -> 4 | H16: =VLOOKUP($A16,'RECAP DIRCOM'!$G$6:$CU$12,22,FALSE) -> 5,516 | I16: =VLOOKUP($A16,'RECAP DIRCOM'!$G$6:$CU$12,23,FALSE) -> 47.28 | J16: =VLOOKUP($A16,'RECAP DIRCOM'!$G$6:$CU$12,24,FALSE) -> 27% | K16: =VLOOKUP($A16,'RECAP DIRCOM'!$G$6:$CU$12,25,FALSE) -> 6 | L16: =VLOOKUP($A16,'RECAP DIRCOM'!$G$6:$CU$12,26,FALSE) -> 34% | M16: =VLOOKUP($A16,'RECAP DIRCOM'!$G$6:$CU$12,27,FALSE) -> 34% | N16: =VLOOKUP($A16,'RECAP DIRCOM'!$G$6:$CU$12,28,FALSE) -> 5
B17: Total CEGEE Directions Régionales | C17: =SUM(C10:C16) -> 1187

Sheet DC_EPARGNE
B1: Accueil | D1: BAROMETRE BDD - DIRECTIONS REGIONALES
D2: EPARGNE
D3: =ACCUEIL!F7 -> 2022-11-13
D7: Excédent Epargne hors DAV pondéré | H7: Ventes sur client non détenteur de l’univers | L7: Total Epargne
D8: =DATEMAJ!C14 -> au 13/11 | F8: coef | G8: ='RECAP DIRCOM'!AP4 -> 12% | H8: =DATEMAJ!C15 -> au 13/11 | J8: coef | K8: ='RECAP DIRCOM'!AT4 -> 8% | M8: coef | N8: ='RECAP DIRCOM'!AW4 -> 20%
B9: Direction | C9: ="ETP perf "&DATEMAJ!$C$28 -> ETP perf 13-nov | D9: Excédent | E9: Excédent / ETP | F9: % Ecart au 1er | G9: Rang | H9: VB | I9: VB / ETP | J9: % Ecart au 1er | K9: Rang | L9: Moyenne ecart au 1er | M9: % Ecart au 1er | N9: Rang CEGEE
A10: 50 | B10: Aube Haute Marne | C10: =VLOOKUP($A10,'RECAP DIRCOM'!$G$6:$CU$12,3,FALSE) -> 112 | D10: =VLOOKUP($A10,'RECAP DIRCOM'!$G$6:$CU$12,33,FALSE) -> 16,259 | E10: =VLOOKUP($A10,'RECAP DIRCOM'!$G$6:$CU$12,34,FALSE) -> 145.05 | F10: =VLOOKUP($A10,'RECAP DIRCOM'!$G$6:$CU$12,35,FALSE) -> 53% | G10: =VLOOKUP($A10,'RECAP DIRCOM'!$G$6:$CU$12,36,FALSE) -> 6 | H10: =VLOOKUP($A10,'RECAP DIRCOM'!$G$6:$CU$12,37,FALSE) -> 5,357 | I10: =VLOOKUP($A10,'RECAP DIRCOM'!$G$6:$CU$12,38,FALSE) -> 47.79 | J10: =VLOOKUP($A10,'RECAP DIRCOM'!$G$6:$CU$12,39,FALSE) -> 31% | K10: =VLOOKUP($A10,'RECAP DIRCOM'!$G$6:$CU$12,40,FALSE) -> 5 | L10: =VLOOKUP($A10,'RECAP DIRCOM'!$G$6:$CU$12,41,FALSE) -> 44% | M10: =VLOOKUP($A10,'RECAP DIRCOM'!$G$6:$CU$12,42,FALSE) -> 37% | N10: =VLOOKUP($A10,'RECAP DIRCOM'!$G$6:$CU$12,43,FALSE) -> 6
A11: 262 | B11: Bas-Rhin | C11: =VLOOKUP($A11,'RECAP DIRCOM'!$G$6:$CU$12,3,FALSE) -> 219 | D11: =VLOOKUP($A11,'RECAP DIRCOM'!$G$6:$CU$12,33,FALSE) -> 62,376 | E11: =VLOOKUP($A11,'RECAP DIRCOM'!$G$6:$CU$12,34,FALSE) -> 284.82 | F11: =VLOOKUP($A11,'RECAP DIRCOM'!$G$6:$CU$12,35,FALSE) -> 7% | G11: =VLOOKUP($A11,'RECAP DIRCOM'!$G$6:$CU$12,36,FALSE) -> 2 | H11: =VLOOKUP($A11,'RECAP DIRCOM'!$G$6:$CU$12,37,FALSE) -> 11,485 | I11: =VLOOKUP($A11,'RECAP DIRCOM'!$G$6:$CU$12,38,FALSE) -> 52.44 | J11: =VLOOKUP($A11,'RECAP DIRCOM'!$G$6:$CU$12,39,FALSE) -> 24% | K11: =VLOOKUP($A11,'RECAP DIRCOM'!$G$6:$CU$12,40,FALSE) -> 3 | L11: =VLOOKUP($A11,'RECAP DIRCOM'!$G$6:$CU$12,41,FALSE) -> 14% | M11: =VLOOKUP($A11,'RECAP DIRCOM'!$G$6:$CU$12,42,FALSE) -> 7% | N11: =VLOOKUP($A11,'RECAP DIRCOM'!$G$6:$CU$12,43,FALSE) -> 4
A12: 264 | B12: Haut-Rhin | C12: =VLOOKUP($A12,'RECAP DIRCOM'!$G$6:$CU$12,3,FALSE) -> 122 | D12: =VLOOKUP($A12,'RECAP DIRCOM'!$G$6:$CU$12,33,FALSE) -> -1,264 | E12: =VLOOKUP($A12,'RECAP DIRCOM'!$G$6:$CU$12,34,FALSE) -> -10.32 | F12: =VLOOKUP($A12,'RECAP DIRCOM'!$G$6:$CU$12,35,FALSE) -> 103% | G12: =VLOOKUP($A12,'RECAP DIRCOM'!$G$6:$CU$12,36,FALSE) -> 7 | H12: =VLOOKUP($A12,'RECAP DIRCOM'!$G$6:$CU$12,37,FALSE) -> 4,707 | I12: =VLOOKUP($A12,'RECAP DIRCOM'!$G$6:$CU$12,38,FALSE) -> 38.44 | J12: =VLOOKUP($A12,'RECAP DIRCOM'!$G$6:$CU$12,39,FALSE) -> 44% | K12: =VLOOKUP($A12,'RECAP DIRCOM'!$G$6:$CU$12,40,FALSE) -> 7 | L12: =VLOOKUP($A12,'RECAP DIRCOM'!$G$6:$CU$12,41,FALSE) -> 80% | M12: =VLOOKUP($A12,'RECAP DIRCOM'!$G$6:$CU$12,42,FALSE) -> 72% | N12: =VLOOKUP($A12,'RECAP DIRCOM'!$G$6:$CU$12,43,FALSE) -> 7
A13: 30 | B13: Marne-Ardennes | C13: =VLOOKUP($A13,'RECAP DIRCOM'!$G$6:$CU$12,3,FALSE) -> 193 | D13: =VLOOKUP($A13,'RECAP DIRCOM'!$G$6:$CU$12,33,FALSE) -> 53,241 | E13: =VLOOKUP($A13,'RECAP DIRCOM'!$G$6:$CU$12,34,FALSE) -> 276.29 | F13: =VLOOKUP($A13,'RECAP DIRCOM'!$G$6:$CU$12,35,FALSE) -> 10% | G13: =VLOOKUP($A13,'RECAP DIRCOM'!$G$6:$CU$12,36,FALSE) -> 3 | H13: =VLOOKUP($A13,'RECAP DIRCOM'!$G$6:$CU$12,37,FALSE) -> 12,882 | I13: =VLOOKUP($A13,'RECAP DIRCOM'!$G$6:$CU$12,38,FALSE) -> 66.85 | J13: =VLOOKUP($A13,'RECAP DIRCOM'!$G$6:$CU$12,39,FALSE) -> 3% | K13: =VLOOKUP($A13,'RECAP DIRCOM'!$G$6:$CU$12,40,FALSE) -> 2 | L13: =VLOOKUP($A13,'RECAP DIRCOM'!$G$6:$CU$12,41,FALSE) -> 7% | M13: =VLOOKUP($A13,'RECAP DIRCOM'!$G$6:$CU$12,42,FALSE) -> 0% | N13: =VLOOKUP($A13,'RECAP DIRCOM'!$G$6:$CU$12,43,FALSE) -> 1
A14: 110 | B14: Meurthe et Moselle Meuse | C14: =VLOOKUP($A14,'RECAP DIRCOM'!$G$6:$CU$12,3,FALSE) -> 204 | D14: =VLOOKUP($A14,'RECAP DIRCOM'!$G$6:$CU$12,33,FALSE) -> 62,624 | E14: =VLOOKUP($A14,'RECAP DIRCOM'!$G$6:$CU$12,34,FALSE) -> 307.60 | F14: =VLOOKUP($A14,'RECAP DIRCOM'!$G$6:$CU$12,35,FALSE) -> 0% | G14: =VLOOKUP($A14,'RECAP DIRCOM'!$G$6:$CU$12,36,FALSE) -> 1 | H14: =VLOOKUP($A14,'RECAP DIRCOM'!$G$6:$CU$12,37,FALSE) -> 10,541 | I14: =VLOOKUP($A14,'RECAP DIRCOM'!$G$6:$CU$12,38,FALSE) -> 51.78 | J14: =VLOOKUP($A14,'RECAP DIRCOM'!$G$6:$CU$12,39,FALSE) -> 25% | K14: =VLOOKUP($A14,'RECAP DIRCOM'!$G$6:$CU$12,40,FALSE) -> 4 | L14: =VLOOKUP($A14,'RECAP DIRCOM'!$G$6:$CU$12,41,FALSE) -> 10% | M14: =VLOOKUP($A14,'RECAP DIRCOM'!$G$6:$CU$12,42,FALSE) -> 3% | N14: =VLOOKUP($A14,'RECAP DIRCOM'!$G$6:$CU$12,43,FALSE) -> 3
A15: 160 | B15: Moselle | C15: =VLOOKUP($A15,'RECAP DIRCOM'!$G$6:$CU$12,3,FALSE) -> 221 | D15: =VLOOKUP($A15,'RECAP DIRCOM'!$G$6:$CU$12,33,FALSE) -> 59,000 | E15: =VLOOKUP($A15,'RECAP DIRCOM'!$G$6:$CU$12,34,FALSE) -> 267.49 | F15: =VLOOKUP($A15,'RECAP DIRCOM'!$G$6:$CU$12,35,FALSE) -> 13% | G15: =VLOOKUP($A15,'RECAP DIRCOM'!$G$6:$CU$12,36,FALSE) -> 5 | H15: =VLOOKUP($A15,'RECAP DIRCOM'!$G$6:$CU$12,37,FALSE) -> 15,245 | I15: =VLOOKUP($A15,'RECAP DIRCOM'!$G$6:$CU$12,38,FALSE) -> 69.12 | J15: =VLOOKUP($A15,'RECAP DIRCOM'!$G$6:$CU$12,39,FALSE) -> 0% | K15: =VLOOKUP($A15,'RECAP DIRCOM'!$G$6:$CU$12,40,FALSE) -> 1 | L15: =VLOOKUP($A15,'RECAP DIRCOM'!$G$6:$CU$12,41,FALSE) -> 8% | M15: =VLOOKUP($A15,'RECAP DIRCOM'!$G$6:$CU$12,42,FALSE) -> 0% | N15: =VLOOKUP($A15,'RECAP DIRCOM'!$G$6:$CU$12,43,FALSE) -> 2
A16: 80 | B16: Vosges | C16: =VLOOKUP($A16,'RECAP DIRCOM'!$G$6:$CU$12,3,FALSE) -> 117 | D16: =VLOOKUP($A16,'RECAP DIRCOM'!$G$6:$CU$12,33,FALSE) -> 31,765 | E16: =VLOOKUP($A16,'RECAP DIRCOM'!$G$6:$CU$12,34,FALSE) -> 272.28 | F16: =VLOOKUP($A16,'RECAP DIRCOM'!$G$6:$CU$12,35,FALSE) -> 11% | G16: =VLOOKUP($A16,'RECAP DIRCOM'!$G$6:$CU$12,36,FALSE) -> 4 | H16: =VLOOKUP($A16,'RECAP DIRCOM'!$G$6:$CU$12,37,FALSE) -> 5,276 | I16: =VLOOKUP($A16,'RECAP DIRCOM'!$G$6:$CU$12,38,FALSE) -> 45.23 | J16: =VLOOKUP($A16,'RECAP DIRCOM'!$G$6:$CU$12,39,FALSE) -> 35% | K16: =VLOOKUP($A16,'RECAP DIRCOM'!$G$6:$CU$12,40,FALSE) -> 6 | L16: =VLOOKUP($A16,'RECAP DIRCOM'!$G$6:$CU$12,41,FALSE) -> 21% | M16: =VLOOKUP($A16,'RECAP DIRCOM'!$G$6:$CU$12,42,FALSE) -> 13% | N16: =VLOOKUP($A16,'RECAP DIRCOM'!$G$6:$CU$12,43,FALSE) -> 5
B17: Total CEGEE Directions Régionales | C17: =SUM(C10:C16) -> 1187

Sheet DC_CREDIT
B1: Accueil | D1: BAROMETRE BDD - DIRECTIONS REGIONALES
D2: CREDITS
D3: =ACCUEIL!F7 -> 2022-11-13
D7: Engagements et ventes accessoires pondérés Immo | H7: Engagements et ventes accessoires pondérés Conso | L7: Ventes sur client non détenteur de l’univers | P7: Total Crédits
D8: =DATEMAJ!C18 -> au 13/11 | F8: coef | G8: ='RECAP DIRCOM'!BE4 -> 6% | H8: =DATEMAJ!C19 -> au 13/11 | J8: coef | K8: ='RECAP DIRCOM'!BI4 -> 6% | L8: =DATEMAJ!C20 -> au 13/11 | N8: coef | O8: ='RECAP DIRCOM'!BM4 -> 8% | Q8: coef | R8: ='RECAP DIRCOM'!BP4 -> 20%
B9: Direction | C9: ="ETP perf "&DATEMAJ!$C$28 -> ETP perf 13-nov | D9: PNB | E9: PNB / ETP | F9: % Ecart au 1er | G9: Rang | H9: PNB | I9: PNB / ETP | J9: % Ecart au 1er | K9: Rang | L9: VB | M9: VB / ETP | N9: % Ecart au 1er | O9: Rang | P9: Moyenne ecart au 1er | Q9: % Ecart au 1er | R9: Rang CEGEE
A10: 50 | B10: Aube Haute Marne | C10: =VLOOKUP($A10,'RECAP DIRCOM'!$G$6:$CU$12,3,FALSE) -> 112 | D10: =VLOOKUP($A10,'RECAP DIRCOM'!$G$6:$CU$12,48,FALSE) -> 20,787 | E10: =VLOOKUP($A10,'RECAP DIRCOM'!$G$6:$CU$12,49,FALSE) -> 185.45 | F10: =VLOOKUP($A10,'RECAP DIRCOM'!$G$6:$CU$12,50,FALSE) -> 56% | G10: =VLOOKUP($A10,'RECAP DIRCOM'!$G$6:$CU$12,51,FALSE) -> 6 | H10: =VLOOKUP($A10,'RECAP DIRCOM'!$G$6:$CU$12,52,FALSE) -> 4,997 | I10: =VLOOKUP($A10,'RECAP DIRCOM'!$G$6:$CU$12,53,FALSE) -> 44.58 | J10: =VLOOKUP($A10,'RECAP DIRCOM'!$G$6:$CU$12,54,FALSE) -> 15% | K10: =VLOOKUP($A10,'RECAP DIRCOM'!$G$6:$CU$12,55,FALSE) -> 4 | L10: =VLOOKUP($A10,'RECAP DIRCOM'!$G$6:$CU$12,56,FALSE) -> 2,085 | M10: =VLOOKUP($A10,'RECAP DIRCOM'!$G$6:$CU$12,57,FALSE) -> 18.60 | N10: =VLOOKUP($A10,'RECAP DIRCOM'!$G$6:$CU$12,58,FALSE) -> 40% | O10: =VLOOKUP($A10,'RECAP DIRCOM'!$G$6:$CU$12,59,FALSE) -> 5 | P10: =VLOOKUP($A10,'RECAP DIRCOM'!$G$6:$CU$12,60,FALSE) -> 37% | Q10: =VLOOKUP($A10,'RECAP DIRCOM'!$G$6:$CU$12,61,FALSE) -> 34% | R10: =VLOOKUP($A10,'RECAP DIRCOM'!$G$6:$CU$12,62,FALSE) -> 5
A11: 262 | B11: Bas-Rhin | C11: =VLOOKUP($A11,'RECAP DIRCOM'!$G$6:$CU$12,3,FALSE) -> 219 | D11: =VLOOKUP($A11,'RECAP DIRCOM'!$G$6:$CU$12,48,FALSE) -> 45,283 | E11: =VLOOKUP($A11,'RECAP DIRCOM'!$G$6:$CU$12,49,FALSE) -> 206.77 | F11: =VLOOKUP($A11,'RECAP DIRCOM'!$G$6:$CU$12,50,FALSE) -> 51% | G11: =VLOOKUP($A11,'RECAP DIRCOM'!$G$6:$CU$12,51,FALSE) -> 5 | H11: =VLOOKUP($A11,'RECAP DIRCOM'!$G$6:$CU$12,52,FALSE) -> 8,303 | I11: =VLOOKUP($A11,'RECAP DIRCOM'!$G$6:$CU$12,53,FALSE) -> 37.91 | J11: =VLOOKUP($A11,'RECAP DIRCOM'!$G$6:$CU$12,54,FALSE) -> 28% | K11: =VLOOKUP($A11,'RECAP DIRCOM'!$G$6:$CU$12,55,FALSE) -> 6 | L11: =VLOOKUP($A11,'RECAP DIRCOM'!$G$6:$CU$12,56,FALSE) -> 3,956 | M11: =VLOOKUP($A11,'RECAP DIRCOM'!$G$6:$CU$12,57,FALSE) -> 18.06 | N11: =VLOOKUP($A11,'RECAP DIRCOM'!$G$6:$CU$12,58,FALSE) -> 42% | O11: =VLOOKUP($A11,'RECAP DIRCOM'!$G$6:$CU$12,59,FALSE) -> 6 | P11: =VLOOKUP($A11,'RECAP DIRCOM'!$G$6:$CU$12,60,FALSE) -> 40% | Q11: =VLOOKUP($A11,'RECAP DIRCOM'!$G$6:$CU$12,61,FALSE) -> 37% | R11: =VLOOKUP($A11,'RECAP DIRCOM'!$G$6:$CU$12,62,FALSE) -> 6
A12: 264 | B12: Haut-Rhin | C12: =VLOOKUP($A12,'RECAP DIRCOM'!$G$6:$CU$12,3,FALSE) -> 122 | D12: =VLOOKUP($A12,'RECAP DIRCOM'!$G$6:$CU$12,48,FALSE) -> 20,846 | E12: =VLOOKUP($A12,'RECAP DIRCOM'!$G$6:$CU$12,49,FALSE) -> 170.24 | F12: =VLOOKUP($A12,'RECAP DIRCOM'!$G$6:$CU$12,50,FALSE) -> 60% | G12: =VLOOKUP($A12,'RECAP DIRCOM'!$G$6:$CU$12,51,FALSE) -> 7 | H12: =VLOOKUP($A12,'RECAP DIRCOM'!$G$6:$CU$12,52,FALSE) -> 4,412 | I12: =VLOOKUP($A12,'RECAP DIRCOM'!$G$6:$CU$12,53,FALSE) -> 36.03 | J12: =VLOOKUP($A12,'RECAP DIRCOM'!$G$6:$CU$12,54,FALSE) -> 31% | K12: =VLOOKUP($A12,'RECAP DIRCOM'!$G$6:$CU$12,55,FALSE) -> 7 | L12: =VLOOKUP($A12,'RECAP DIRCOM'!$G$6:$CU$12,56,FALSE) -> 1,789 | M12: =VLOOKUP($A12,'RECAP DIRCOM'!$G$6:$CU$12,57,FALSE) -> 14.61 | N12: =VLOOKUP($A12,'RECAP DIRCOM'!$G$6:$CU$12,58,FALSE) -> 53% | O12: =VLOOKUP($A12,'RECAP DIRCOM'!$G$6:$CU$12,59,FALSE) -> 7 | P12: =VLOOKUP($A12,'RECAP DIRCOM'!$G$6:$CU$12,60,FALSE) -> 48% | Q12: =VLOOKUP($A12,'RECAP DIRCOM'!$G$6:$CU$12,61,FALSE) -> 45% | R12: =VLOOKUP($A12,'RECAP DIRCOM'!$G$6:$CU$12,62,FALSE) -> 7
A13: 30 | B13: Marne-Ardennes | C13: =VLOOKUP($A13,'RECAP DIRCOM'!$G$6:$CU$12,3,FALSE) -> 193 | D13: =VLOOKUP($A13,'RECAP DIRCOM'!$G$6:$CU$12,48,FALSE) -> 81,750 | E13: =VLOOKUP($A13,'RECAP DIRCOM'!$G$6:$CU$12,49,FALSE) -> 424.23 | F13: =VLOOKUP($A13,'RECAP DIRCOM'!$G$6:$CU$12,50,FALSE) -> 0% | G13: =VLOOKUP($A13,'RECAP DIRCOM'!$G$6:$CU$12,51,FALSE) -> 1 | H13: =VLOOKUP($A13,'RECAP DIRCOM'!$G$6:$CU$12,52,FALSE) -> 8,836 | I13: =VLOOKUP($A13,'RECAP DIRCOM'!$G$6:$CU$12,53,FALSE) -> 45.86 | J13: =VLOOKUP($A13,'RECAP DIRCOM'!$G$6:$CU$12,54,FALSE) -> 12% | K13: =VLOOKUP($A13,'RECAP DIRCOM'!$G$6:$CU$12,55,FALSE) -> 3 | L13: =VLOOKUP($A13,'RECAP DIRCOM'!$G$6:$CU$12,56,FALSE) -> 5,952 | M13: =VLOOKUP($A13,'RECAP DIRCOM'!$G$6:$CU$12,57,FALSE) -> 30.89 | N13: =VLOOKUP($A13,'RECAP DIRCOM'!$G$6:$CU$12,58,FALSE) -> 0% | O13: =VLOOKUP($A13,'RECAP DIRCOM'!$G$6:$CU$12,59,FALSE) -> 1 | P13: =VLOOKUP($A13,'RECAP DIRCOM'!$G$6:$CU$12,60,FALSE) -> 4% | Q13: =VLOOKUP($A13,'RECAP DIRCOM'!$G$6:$CU$12,61,FALSE) -> 0% | R13: =VLOOKUP($A13,'RECAP DIRCOM'!$G$6:$CU$12,62,FALSE) -> 1
A14: 110 | B14: Meurthe et Moselle Meuse | C14: =VLOOKUP($A14,'RECAP DIRCOM'!$G$6:$CU$12,3,FALSE) -> 204 | D14: =VLOOKUP($A14,'RECAP DIRCOM'!$G$6:$CU$12,48,FALSE) -> 64,194 | E14: =VLOOKUP($A14,'RECAP DIRCOM'!$G$6:$CU$12,49,FALSE) -> 315.31 | F14: =VLOOKUP($A14,'RECAP DIRCOM'!$G$6:$CU$12,50,FALSE) -> 26% | G14: =VLOOKUP($A14,'RECAP DIRCOM'!$G$6:$CU$12,51,FALSE) -> 3 | H14: =VLOOKUP($A14,'RECAP DIRCOM'!$G$6:$CU$12,52,FALSE) -> 9,632 | I14: =VLOOKUP($A14,'RECAP DIRCOM'!$G$6:$CU$12,53,FALSE) -> 47.31 | J14: =VLOOKUP($A14,'RECAP DIRCOM'!$G$6:$CU$12,54,FALSE) -> 10% | K14: =VLOOKUP($A14,'RECAP DIRCOM'!$G$6:$CU$12,55,FALSE) -> 2 | L14: =VLOOKUP($A14,'RECAP DIRCOM'!$G$6:$CU$12,56,FALSE) -> 4,737 | M14: =VLOOKUP($A14,'RECAP DIRCOM'!$G$6:$CU$12,57,FALSE) -> 23.27 | N14: =VLOOKUP($A14,'RECAP DIRCOM'!$G$6:$CU$12,58,FALSE) -> 25% | O14: =VLOOKUP($A14,'RECAP DIRCOM'!$G$6:$CU$12,59,FALSE) -> 3 | P14: =VLOOKUP($A14,'RECAP DIRCOM'!$G$6:$CU$12,60,FALSE) -> 20% | Q14: =VLOOKUP($A14,'RECAP DIRCOM'!$G$6:$CU$12,61,FALSE) -> 17% | R14: =VLOOKUP($A14,'RECAP DIRCOM'!$G$6:$CU$12,62,FALSE) -> 3
A15: 160 | B15: Moselle | C15: =VLOOKUP($A15,'RECAP DIRCOM'!$G$6:$CU$12,3,FALSE) -> 221 | D15: =VLOOKUP($A15,'RECAP DIRCOM'!$G$6:$CU$12,48,FALSE) -> 83,205 | E15: =VLOOKUP($A15,'RECAP DIRCOM'!$G$6:$CU$12,49,FALSE) -> 377.23 | F15: =VLOOKUP($A15,'RECAP DIRCOM'!$G$6:$CU$12,50,FALSE) -> 11% | G15: =VLOOKUP($A15,'RECAP DIRCOM'!$G$6:$CU$12,51,FALSE) -> 2 | H15: =VLOOKUP($A15,'RECAP DIRCOM'!$G$6:$CU$12,52,FALSE) -> 11,550 | I15: =VLOOKUP($A15,'RECAP DIRCOM'!$G$6:$CU$12,53,FALSE) -> 52.37 | J15: =VLOOKUP($A15,'RECAP DIRCOM'!$G$6:$CU$12,54,FALSE) -> 0% | K15: =VLOOKUP($A15,'RECAP DIRCOM'!$G$6:$CU$12,55,FALSE) -> 1 | L15: =VLOOKUP($A15,'RECAP DIRCOM'!$G$6:$CU$12,56,FALSE) -> 5,711 | M15: =VLOOKUP($A15,'RECAP DIRCOM'!$G$6:$CU$12,57,FALSE) -> 25.89 | N15: =VLOOKUP($A15,'RECAP DIRCOM'!$G$6:$CU$12,58,FALSE) -> 16% | O15: =VLOOKUP($A15,'RECAP DIRCOM'!$G$6:$CU$12,59,FALSE) -> 2 | P15: =VLOOKUP($A15,'RECAP DIRCOM'!$G$6:$CU$12,60,FALSE) -> 10% | Q15: =VLOOKUP($A15,'RECAP DIRCOM'!$G$6:$CU$12,61,FALSE) -> 6% | R15: =VLOOKUP($A15,'RECAP DIRCOM'!$G$6:$CU$12,62,FALSE) -> 2
A16: 80 | B16: Vosges | C16: =VLOOKUP($A16,'RECAP DIRCOM'!$G$6:$CU$12,3,FALSE) -> 117 | D16: =VLOOKUP($A16,'RECAP DIRCOM'!$G$6:$CU$12,48,FALSE) -> 24,217 | E16: =VLOOKUP($A16,'RECAP DIRCOM'!$G$6:$CU$12,49,FALSE) -> 207.59 | F16: =VLOOKUP($A16,'RECAP DIRCOM'!$G$6:$CU$12,50,FALSE) -> 51% | G16: =VLOOKUP($A16,'RECAP DIRCOM'!$G$6:$CU$12,51,FALSE) -> 4 | H16: =VLOOKUP($A16,'RECAP DIRCOM'!$G$6:$CU$12,52,FALSE) -> 4,738 | I16: =VLOOKUP($A16,'RECAP DIRCOM'!$G$6:$CU$12,53,FALSE) -> 40.62 | J16: =VLOOKUP($A16,'RECAP DIRCOM'!$G$6:$CU$12,54,FALSE) -> 22% | K16: =VLOOKUP($A16,'RECAP DIRCOM'!$G$6:$CU$12,55,FALSE) -> 5 | L16: =VLOOKUP($A16,'RECAP DIRCOM'!$G$6:$CU$12,56,FALSE) -> 2,411 | M16: =VLOOKUP($A16,'RECAP DIRCOM'!$G$6:$CU$12,57,FALSE) -> 20.67 | N16: =VLOOKUP($A16,'RECAP DIRCOM'!$G$6:$CU$12,58,FALSE) -> 33% | O16: =VLOOKUP($A16,'RECAP DIRCOM'!$G$6:$CU$12,59,FALSE) -> 4 | P16: =VLOOKUP($A16,'RECAP DIRCOM'!$G$6:$CU$12,60,FALSE) -> 35% | Q16: =VLOOKUP($A16,'RECAP DIRCOM'!$G$6:$CU$12,61,FALSE) -> 32% | R16: =VLOOKUP($A16,'RECAP DIRCOM'!$G$6:$CU$12,62,FALSE) -> 4
B17: Total CEGEE Directions Régionales | C17: =SUM(C10:C16) -> 1187

Sheet DC_IARD
B1: Accueil | D1: BAROMETRE BDD - DIRECTIONS REGIONALES
D2: IARD ET PREVOYANCE
D3: =ACCUEIL!F7 -> 2022-11-13
D7: Ventes Nettes produits pondérés | H7: Ventes sur client non détenteur de l’univers | L7: Total IARD Prévoyance
D8: =DATEMAJ!C23 -> au 13/11 | F8: coef | G8: ='RECAP DIRCOM'!BX4 -> 12% | H8: =DATEMAJ!C24 -> au 13/11 | J8: coef | K8: ='RECAP DIRCOM'!CB4 -> 8% | M8: coef | N8: ='RECAP DIRCOM'!CE4 -> 20%
B9: Direction | C9: ="ETP perf "&DATEMAJ!$C$28 -> ETP perf 13-nov | D9: VN | E9: VN / ETP | F9: % Ecart au 1er | G9: Rang | H9: VB | I9: VB / ETP | J9: % Ecart au 1er | K9: Rang | L9: Moyenne ecart au 1er | M9: % Ecart au 1er | N9: Rang CEGEE
A10: 50 | B10: Aube Haute Marne | C10: =VLOOKUP($A10,'RECAP DIRCOM'!$G$6:$CU$12,3,FALSE) -> 112 | D10: =VLOOKUP($A10,'RECAP DIRCOM'!$G$6:$CU$12,67,FALSE) -> 11,476 | E10: =VLOOKUP($A10,'RECAP DIRCOM'!$G$6:$CU$12,68,FALSE) -> 102.38 | F10: =VLOOKUP($A10,'RECAP DIRCOM'!$G$6:$CU$12,69,FALSE) -> 31% | G10: =VLOOKUP($A10,'RECAP DIRCOM'!$G$6:$CU$12,70,FALSE) -> 3 | H10: =VLOOKUP($A10,'RECAP DIRCOM'!$G$6:$CU$12,71,FALSE) -> 3,757 | I10: =VLOOKUP($A10,'RECAP DIRCOM'!$G$6:$CU$12,72,FALSE) -> 33.52 | J10: =VLOOKUP($A10,'RECAP DIRCOM'!$G$6:$CU$12,73,FALSE) -> 24% | K10: =VLOOKUP($A10,'RECAP DIRCOM'!$G$6:$CU$12,74,FALSE) -> 5 | L10: =VLOOKUP($A10,'RECAP DIRCOM'!$G$6:$CU$12,75,FALSE) -> 28% | M10: =VLOOKUP($A10,'RECAP DIRCOM'!$G$6:$CU$12,76,FALSE) -> 28% | N10: =VLOOKUP($A10,'RECAP DIRCOM'!$G$6:$CU$12,77,FALSE) -> 4
A11: 262 | B11: Bas-Rhin | C11: =VLOOKUP($A11,'RECAP DIRCOM'!$G$6:$CU$12,3,FALSE) -> 219 | D11: =VLOOKUP($A11,'RECAP DIRCOM'!$G$6:$CU$12,67,FALSE) -> 18,834 | E11: =VLOOKUP($A11,'RECAP DIRCOM'!$G$6:$CU$12,68,FALSE) -> 86.00 | F11: =VLOOKUP($A11,'RECAP DIRCOM'!$G$6:$CU$12,69,FALSE) -> 42% | G11: =VLOOKUP($A11,'RECAP DIRCOM'!$G$6:$CU$12,70,FALSE) -> 5 | H11: =VLOOKUP($A11,'RECAP DIRCOM'!$G$6:$CU$12,71,FALSE) -> 7,796 | I11: =VLOOKUP($A11,'RECAP DIRCOM'!$G$6:$CU$12,72,FALSE) -> 35.60 | J11: =VLOOKUP($A11,'RECAP DIRCOM'!$G$6:$CU$12,73,FALSE) -> 19% | K11: =VLOOKUP($A11,'RECAP DIRCOM'!$G$6:$CU$12,74,FALSE) -> 4 | L11: =VLOOKUP($A11,'RECAP DIRCOM'!$G$6:$CU$12,75,FALSE) -> 33% | M11: =VLOOKUP($A11,'RECAP DIRCOM'!$G$6:$CU$12,76,FALSE) -> 33% | N11: =VLOOKUP($A11,'RECAP DIRCOM'!$G$6:$CU$12,77,FALSE) -> 5
A12: 264 | B12: Haut-Rhin | C12: =VLOOKUP($A12,'RECAP DIRCOM'!$G$6:$CU$12,3,FALSE) -> 122 | D12: =VLOOKUP($A12,'RECAP DIRCOM'!$G$6:$CU$12,67,FALSE) -> 2,112 | E12: =VLOOKUP($A12,'RECAP DIRCOM'!$G$6:$CU$12,68,FALSE) -> 17.25 | F12: =VLOOKUP($A12,'RECAP DIRCOM'!$G$6:$CU$12,69,FALSE) -> 88% | G12: =VLOOKUP($A12,'RECAP DIRCOM'!$G$6:$CU$12,70,FALSE) -> 7 | H12: =VLOOKUP($A12,'RECAP DIRCOM'!$G$6:$CU$12,71,FALSE) -> 3,330 | I12: =VLOOKUP($A12,'RECAP DIRCOM'!$G$6:$CU$12,72,FALSE) -> 27.19 | J12: =VLOOKUP($A12,'RECAP DIRCOM'!$G$6:$CU$12,73,FALSE) -> 38% | K12: =VLOOKUP($A12,'RECAP DIRCOM'!$G$6:$CU$12,74,FALSE) -> 7 | L12: =VLOOKUP($A12,'RECAP DIRCOM'!$G$6:$CU$12,75,FALSE) -> 68% | M12: =VLOOKUP($A12,'RECAP DIRCOM'!$G$6:$CU$12,76,FALSE) -> 68% | N12: =VLOOKUP($A12,'RECAP DIRCOM'!$G$6:$CU$12,77,FALSE) -> 7
A13: 30 | B13: Marne-Ardennes | C13: =VLOOKUP($A13,'RECAP DIRCOM'!$G$6:$CU$12,3,FALSE) -> 193 | D13: =VLOOKUP($A13,'RECAP DIRCOM'!$G$6:$CU$12,67,FALSE) -> 28,753 | E13: =VLOOKUP($A13,'RECAP DIRCOM'!$G$6:$CU$12,68,FALSE) -> 149.21 | F13: =VLOOKUP($A13,'RECAP DIRCOM'!$G$6:$CU$12,69,FALSE) -> 0% | G13: =VLOOKUP($A13,'RECAP DIRCOM'!$G$6:$CU$12,70,FALSE) -> 1 | H13: =VLOOKUP($A13,'RECAP DIRCOM'!$G$6:$CU$12,71,FALSE) -> 8,492 | I13: =VLOOKUP($A13,'RECAP DIRCOM'!$G$6:$CU$12,72,FALSE) -> 44.07 | J13: =VLOOKUP($A13,'RECAP DIRCOM'!$G$6:$CU$12,73,FALSE) -> 0% | K13: =VLOOKUP($A13,'RECAP DIRCOM'!$G$6:$CU$12,74,FALSE) -> 1 | L13: =VLOOKUP($A13,'RECAP DIRCOM'!$G$6:$CU$12,75,FALSE) -> 0% | M13: =VLOOKUP($A13,'RECAP DIRCOM'!$G$6:$CU$12,76,FALSE) -> 0% | N13: =VLOOKUP($A13,'RECAP DIRCOM'!$G$6:$CU$12,77,FALSE) -> 1
A14: 110 | B14: Meurthe et Moselle Meuse | C14: =VLOOKUP($A14,'RECAP DIRCOM'!$G$6:$CU$12,3,FALSE) -> 204 | D14: =VLOOKUP($A14,'RECAP DIRCOM'!$G$6:$CU$12,67,FALSE) -> 19,367 | E14: =VLOOKUP($A14,'RECAP DIRCOM'!$G$6:$CU$12,68,FALSE) -> 95.13 | F14: =VLOOKUP($A14,'RECAP DIRCOM'!$G$6:$CU$12,69,FALSE) -> 36% | G14: =VLOOKUP($A14,'RECAP DIRCOM'!$G$6:$CU$12,70,FALSE) -> 4 | H14: =VLOOKUP($A14,'RECAP DIRCOM'!$G$6:$CU$12,71,FALSE) -> 7,701 | I14: =VLOOKUP($A14,'RECAP DIRCOM'!$G$6:$CU$12,72,FALSE) -> 37.83 | J14: =VLOOKUP($A14,'RECAP DIRCOM'!$G$6:$CU$12,73,FALSE) -> 14% | K14: =VLOOKUP($A14,'RECAP DIRCOM'!$G$6:$CU$12,74,FALSE) -> 3 | L14: =VLOOKUP($A14,'RECAP DIRCOM'!$G$6:$CU$12,75,FALSE) -> 27% | M14: =VLOOKUP($A14,'RECAP DIRCOM'!$G$6:$CU$12,76,FALSE) -> 27% | N14: =VLOOKUP($A14,'RECAP DIRCOM'!$G$6:$CU$12,77,FALSE) -> 3
A15: 160 | B15: Moselle | C15: =VLOOKUP($A15,'RECAP DIRCOM'!$G$6:$CU$12,3,FALSE) -> 221 | D15: =VLOOKUP($A15,'RECAP DIRCOM'!$G$6:$CU$12,67,FALSE) -> 29,792 | E15: =VLOOKUP($A15,'RECAP DIRCOM'!$G$6:$CU$12,68,FALSE) -> 135.07 | F15: =VLOOKUP($A15,'RECAP DIRCOM'!$G$6:$CU$12,69,FALSE) -> 9% | G15: =VLOOKUP($A15,'RECAP DIRCOM'!$G$6:$CU$12,70,FALSE) -> 2 | H15: =VLOOKUP($A15,'RECAP DIRCOM'!$G$6:$CU$12,71,FALSE) -> 9,508 | I15: =VLOOKUP($A15,'RECAP DIRCOM'!$G$6:$CU$12,72,FALSE) -> 43.11 | J15: =VLOOKUP($A15,'RECAP DIRCOM'!$G$6:$CU$12,73,FALSE) -> 2% | K15: =VLOOKUP($A15,'RECAP DIRCOM'!$G$6:$CU$12,74,FALSE) -> 2 | L15: =VLOOKUP($A15,'RECAP DIRCOM'!$G$6:$CU$12,75,FALSE) -> 7% | M15: =VLOOKUP($A15,'RECAP DIRCOM'!$G$6:$CU$12,76,FALSE) -> 7% | N15: =VLOOKUP($A15,'RECAP DIRCOM'!$G$6:$CU$12,77,FALSE) -> 2
A16: 80 | B16: Vosges | C16: =VLOOKUP($A16,'RECAP DIRCOM'!$G$6:$CU$12,3,FALSE) -> 117 | D16: =VLOOKUP($A16,'RECAP DIRCOM'!$G$6:$CU$12,67,FALSE) -> 8,785 | E16: =VLOOKUP($A16,'RECAP DIRCOM'!$G$6:$CU$12,68,FALSE) -> 75.30 | F16: =VLOOKUP($A16,'RECAP DIRCOM'!$G$6:$CU$12,69,FALSE) -> 50% | G16: =VLOOKUP($A16,'RECAP DIRCOM'!$G$6:$CU$12,70,FALSE) -> 6 | H16: =VLOOKUP($A16,'RECAP DIRCOM'!$G$6:$CU$12,71,FALSE) -> 3,553 | I16: =VLOOKUP($A16,'RECAP DIRCOM'!$G$6:$CU$12,72,FALSE) -> 30.46 | J16: =VLOOKUP($A16,'RECAP DIRCOM'!$G$6:$CU$12,73,FALSE) -> 31% | K16: =VLOOKUP($A16,'RECAP DIRCOM'!$G$6:$CU$12,74,FALSE) -> 6 | L16: =VLOOKUP($A16,'RECAP DIRCOM'!$G$6:$CU$12,75,FALSE) -> 42% | M16: =VLOOKUP($A16,'RECAP DIRCOM'!$G$6:$CU$12,76,FALSE) -> 42% | N16: =VLOOKUP($A16,'RECAP DIRCOM'!$G$6:$CU$12,77,FALSE) -> 6
B17: Total CEGEE Directions Régionales | C17: =SUM(C10:C16) -> 1187

Sheet DC_SATISFACTION
B1: Accueil | D1: BAROMETRE BDD - DIRECTIONS REGIONALES
D2: SATISFACTION
D3: =ACCUEIL!F7 -> 2022-11-13
D7: NPS à froid (SAE) | G7: NPS à chaud (QHD) | J7: Total Satisfaction Clients
D8: =DATEMAJ!E4 -> au 30/09 | E8: coef | F8: ='RECAP DIRCOM'!M4 -> 10% | G8: =DATEMAJ!C5 -> au 31/08 | H8: coef | I8: ='RECAP DIRCOM'!P4 -> 10% | K8: coef | L8: ='RECAP DIRCOM'!S4 -> 20%
B9: Direction | C9: ="ETP perf "&DATEMAJ!$C$28 -> ETP perf 13-nov | E9: % Ecart au 1er | F9: Rang | H9: % Ecart au 1er | I9: Rang | J9: Moyenne ecart au 1er | K9: % Ecart au 1er | L9: Rang CEGEE
A10: 50 | B10: Aube Haute Marne | C10: =VLOOKUP($A10,'RECAP DIRCOM'!$G$6:$CU$12,3,FALSE) -> 112 | D10: =VLOOKUP($A10,'RECAP DIRCOM'!$G$6:$CU$12,5,FALSE) -> 4.25 | E10: =VLOOKUP($A10,'RECAP DIRCOM'!$G$6:$CU$12,6,FALSE) -> 82% | F10: =VLOOKUP($A10,'RECAP DIRCOM'!$G$6:$CU$12,7,FALSE) -> 6 | G10: =VLOOKUP($A10,'RECAP DIRCOM'!$G$6:$CU$12,8,FALSE) -> 54% | H10: =VLOOKUP($A10,'RECAP DIRCOM'!$G$6:$CU$12,9,FALSE) -> 22% | I10: =VLOOKUP($A10,'RECAP DIRCOM'!$G$6:$CU$12,10,FALSE) -> 6 | J10: =VLOOKUP($A10,'RECAP DIRCOM'!$G$6:$CU$12,11,FALSE) -> 52% | K10: =VLOOKUP($A10,'RECAP DIRCOM'!$G$6:$CU$12,12,FALSE) -> 52% | L10: =VLOOKUP($A10,'RECAP DIRCOM'!$G$6:$CU$12,13,FALSE) -> 6
A11: 262 | B11: Bas-Rhin | C11: =VLOOKUP($A11,'RECAP DIRCOM'!$G$6:$CU$12,3,FALSE) -> 219 | D11: =VLOOKUP($A11,'RECAP DIRCOM'!$G$6:$CU$12,5,FALSE) -> 5.75 | E11: =VLOOKUP($A11,'RECAP DIRCOM'!$G$6:$CU$12,6,FALSE) -> 75% | F11: =VLOOKUP($A11,'RECAP DIRCOM'!$G$6:$CU$12,7,FALSE) -> 5 | G11: =VLOOKUP($A11,'RECAP DIRCOM'!$G$6:$CU$12,8,FALSE) -> 62% | H11: =VLOOKUP($A11,'RECAP DIRCOM'!$G$6:$CU$12,9,FALSE) -> 11% | I11: =VLOOKUP($A11,'RECAP DIRCOM'!$G$6:$CU$12,10,FALSE) -> 4 | J11: =VLOOKUP($A11,'RECAP DIRCOM'!$G$6:$CU$12,11,FALSE) -> 43% | K11: =VLOOKUP($A11,'RECAP DIRCOM'!$G$6:$CU$12,12,FALSE) -> 43% | L11: =VLOOKUP($A11,'RECAP DIRCOM'!$G$6:$CU$12,13,FALSE) -> 5
A12: 264 | B12: Haut-Rhin | C12: =VLOOKUP($A12,'RECAP DIRCOM'!$G$6:$CU$12,3,FALSE) -> 122 | D12: =VLOOKUP($A12,'RECAP DIRCOM'!$G$6:$CU$12,5,FALSE) -> 3 | E12: =VLOOKUP($A12,'RECAP DIRCOM'!$G$6:$CU$12,6,FALSE) -> 87% | F12: =VLOOKUP($A12,'RECAP DIRCOM'!$G$6:$CU$12,7,FALSE) -> 7 | G12: =VLOOKUP($A12,'RECAP DIRCOM'!$G$6:$CU$12,8,FALSE) -> 47% | H12: =VLOOKUP($A12,'RECAP DIRCOM'!$G$6:$CU$12,9,FALSE) -> 32% | I12: =VLOOKUP($A12,'RECAP DIRCOM'!$G$6:$CU$12,10,FALSE) -> 7 | J12: =VLOOKUP($A12,'RECAP DIRCOM'!$G$6:$CU$12,11,FALSE) -> 59% | K12: =VLOOKUP($A12,'RECAP DIRCOM'!$G$6:$CU$12,12,FALSE) -> 59% | L12: =VLOOKUP($A12,'RECAP DIRCOM'!$G$6:$CU$12,13,FALSE) -> 7
A13: 30 | B13: Marne-Ardennes | C13: =VLOOKUP($A13,'RECAP DIRCOM'!$G$6:$CU$12,3,FALSE) -> 193 | D13: =VLOOKUP($A13,'RECAP DIRCOM'!$G$6:$CU$12,5,FALSE) -> 17.25 | E13: =VLOOKUP($A13,'RECAP DIRCOM'!$G$6:$CU$12,6,FALSE) -> 26% | F13: =VLOOKUP($A13,'RECAP DIRCOM'!$G$6:$CU$12,7,FALSE) -> 2 | G13: =VLOOKUP($A13,'RECAP DIRCOM'!$G$6:$CU$12,8,FALSE) -> 66% | H13: =VLOOKUP($A13,'RECAP DIRCOM'!$G$6:$CU$12,9,FALSE) -> 5% | I13: =VLOOKUP($A13,'RECAP DIRCOM'!$G$6:$CU$12,10,FALSE) -> 2 | J13: =VLOOKUP($A13,'RECAP DIRCOM'!$G$6:$CU$12,11,FALSE) -> 15% | K13: =VLOOKUP($A13,'RECAP DIRCOM'!$G$6:$CU$12,12,FALSE) -> 15% | L13: =VLOOKUP($A13,'RECAP DIRCOM'!$G$6:$CU$12,13,FALSE) -> 2
A14: 110 | B14: Meurthe et Moselle Meuse | C14: =VLOOKUP($A14,'RECAP DIRCOM'!$G$6:$CU$12,3,FALSE) -> 204 | D14: =VLOOKUP($A14,'RECAP DIRCOM'!$G$6:$CU$12,5,FALSE) -> 12 | E14: =VLOOKUP($A14,'RECAP DIRCOM'!$G$6:$CU$12,6,FALSE) -> 48% | F14: =VLOOKUP($A14,'RECAP DIRCOM'!$G$6:$CU$12,7,FALSE) -> 4 | G14: =VLOOKUP($A14,'RECAP DIRCOM'!$G$6:$CU$12,8,FALSE) -> 61% | H14: =VLOOKUP($A14,'RECAP DIRCOM'!$G$6:$CU$12,9,FALSE) -> 12% | I14: =VLOOKUP($A14,'RECAP DIRCOM'!$G$6:$CU$12,10,FALSE) -> 5 | J14: =VLOOKUP($A14,'RECAP DIRCOM'!$G$6:$CU$12,11,FALSE) -> 30% | K14: =VLOOKUP($A14,'RECAP DIRCOM'!$G$6:$CU$12,12,FALSE) -> 30% | L14: =VLOOKUP($A14,'RECAP DIRCOM'!$G$6:$CU$12,13,FALSE) -> 4
A15: 160 | B15: Moselle | C15: =VLOOKUP($A15,'RECAP DIRCOM'!$G$6:$CU$12,3,FALSE) -> 221 | D15: =VLOOKUP($A15,'RECAP DIRCOM'!$G$6:$CU$12,5,FALSE) -> 15.25 | E15: =VLOOKUP($A15,'RECAP DIRCOM'!$G$6:$CU$12,6,FALSE) -> 34% | F15: =VLOOKUP($A15,'RECAP DIRCOM'!$G$6:$CU$12,7,FALSE) -> 3 | G15: =VLOOKUP($A15,'RECAP DIRCOM'!$G$6:$CU$12,8,FALSE) -> 62% | H15: =VLOOKUP($A15,'RECAP DIRCOM'!$G$6:$CU$12,9,FALSE) -> 10% | I15: =VLOOKUP($A15,'RECAP DIRCOM'!$G$6:$CU$12,10,FALSE) -> 3 | J15: =VLOOKUP($A15,'RECAP DIRCOM'!$G$6:$CU$12,11,FALSE) -> 22% | K15: =VLOOKUP($A15,'RECAP DIRCOM'!$G$6:$CU$12,12,FALSE) -> 22% | L15: =VLOOKUP($A15,'RECAP DIRCOM'!$G$6:$CU$12,13,FALSE) -> 3
A16: 80 | B16: Vosges | C16: =VLOOKUP($A16,'RECAP DIRCOM'!$G$6:$CU$12,3,FALSE) -> 117 | D16: =VLOOKUP($A16,'RECAP DIRCOM'!$G$6:$CU$12,5,FALSE) -> 23.25 | E16: =VLOOKUP($A16,'RECAP DIRCOM'!$G$6:$CU$12,6,FALSE) -> 0% | F16: =VLOOKUP($A16,'RECAP DIRCOM'!$G$6:$CU$12,7,FALSE) -> 1 | G16: =VLOOKUP($A16,'RECAP DIRCOM'!$G$6:$CU$12,8,FALSE) -> 69% | H16: =VLOOKUP($A16,'RECAP DIRCOM'!$G$6:$CU$12,9,FALSE) -> 0% | I16: =VLOOKUP($A16,'RECAP DIRCOM'!$G$6:$CU$12,10,FALSE) -> 1 | J16: =VLOOKUP($A16,'RECAP DIRCOM'!$G$6:$CU$12,11,FALSE) -> 0% | K16: =VLOOKUP($A16,'RECAP DIRCOM'!$G$6:$CU$12,12,FALSE) -> 0% | L16: =VLOOKUP($A16,'RECAP DIRCOM'!$G$6:$CU$12,13,FALSE) -> 1
B17: Total CEGEE Directions Régionales | C17: =SUM(C10:C16) -> 1187

Sheet SE_FICHE
A1: Accueil
A2: BAROMETRE BDD
A4: UNITE: | B4: TERRITOIRE | E4: ETP perf : | F4: =VLOOKUP(A5,'RECAP SECT'!$G$6:$I$23,3,FALSE) -> 45.58
A5: =VLOOKUP(B5,LISTES!$H$6:$I$23,2,FALSE) -> 5130 | B5: COLMAR
C6: Coefficient du critére | E6: Résultats | I6: Ecart au 1ier | M6: Evolution | O6: Rang
E7: du 1ier | G7: du territoire | I7: Du mois | K7: Au 31/12/2019
A9: RANG au CLASSEMENT GENERAL | K9: =VLOOKUP($A$5,#REF!,168,FALSE) ->  | M9: =+K9-O9 ->  | O9: =VLOOKUP($A$5,'RECAP SECT'!$G$6:$CY$312,168,FALSE) ->  | S9: =VLOOKUP($A$5,#REF!,154,FALSE) ->  | U9: =+S9-O9 -> 
A11: CRITERE CONQUETE | C11: 15% | O11: =VLOOKUP($A$5,'RECAP SECT'!$G$6:$CY$312,23,FALSE) -> 51.93067135
B12: PNB Evolution nette Clients BP | C12: 4% | E12: ='RECAP SECT'!#REF! ->  | G12: =VLOOKUP($A$5,'RECAP SECT'!$G$6:$CY$312,6,FALSE) -> 0.9 | I12: =VLOOKUP($A$5,'RECAP SECT'!$G$6:$CY$312,7,FALSE) -> 1600% | K12: =VLOOKUP($A$5,#REF!,7,FALSE) ->  | M12: =+K12-I12 ->  | O12: =VLOOKUP($A$5,'RECAP SECT'!$G$6:$CY$312,8,FALSE) -> 0.5025046922 | S12: =VLOOKUP($A$5,#REF!,6,FALSE) ->  | U12: =+S12-I12 -> 
B13: PNB Evolution nette Clients PREMIUM | C13: 5% | E13: ='RECAP SECT'!#REF! ->  | G13: =VLOOKUP($A$5,'RECAP SECT'!$G$6:$CY$312,10,FALSE) -> 16.0 | I13: =VLOOKUP($A$5,'RECAP SECT'!$G$6:$CY$312,11,FALSE) -> 61% | K13: =VLOOKUP($A$5,#REF!,11,FALSE) ->  | M13: =+K13-I13 ->  | O13: =VLOOKUP($A$5,'RECAP SECT'!$G$6:$CY$312,12,FALSE) -> 0.6038088598 | S13: =VLOOKUP($A$5,#REF!,9,FALSE) ->  | U13: =+S13-I13 -> 
B14: PNB Evolution nette Clients Jeunes Equipés | C14: 3% | E14: ='RECAP SECT'!#REF! ->  | G14: =VLOOKUP($A$5,'RECAP SECT'!$G$6:$CY$312,14,FALSE) -> 0.0 | I14: =VLOOKUP($A$5,'RECAP SECT'!$G$6:$CY$312,15,FALSE) -> 0% | K14: =VLOOKUP($A$5,#REF!,15,FALSE) ->  | M14: =+K14-I14 ->  | O14: =VLOOKUP($A$5,'RECAP SECT'!$G$6:$CY$312,16,FALSE) -> 0 | S14: =VLOOKUP($A$5,#REF!,12,FALSE) ->  | U14: =+S14-I14 -> 
B15: PNB Evolution nette Clients Pro Actifs Equipés | C15: 3% | E15: ='RECAP SECT'!W4 -> 0.0 | G15: =VLOOKUP($A$5,'RECAP SECT'!$G$6:$CY$312,18,FALSE) -> 371.8 | I15: =VLOOKUP($A$5,'RECAP SECT'!$G$6:$CY$312,19,FALSE) -> 816% | K15: =VLOOKUP($A$5,#REF!,19,FALSE) ->  | M15: =+K15-I15 ->  | O15: =VLOOKUP($A$5,'RECAP SECT'!$G$6:$CY$312,20,FALSE) -> 0.7853082163 | S15: =VLOOKUP($A$5,#REF!,15,FALSE) ->  | U15: =+S15-I15 -> 
A17: CRITERE BANCARISATION | C17: 15% | O17: =VLOOKUP($A$5,'RECAP SECT'!$G$6:$CY$312,48,FALSE) -> 9104.156613
B18: PNB Ventes nettes forfaits | C18: 4% | E18: ='RECAP SECT'!X4 -> 38.0 | G18: =VLOOKUP($A$5,'RECAP SECT'!$G$6:$CY$312,31,FALSE) -> 0.0 | I18: =VLOOKUP($A$5,'RECAP SECT'!$G$6:$CY$312,32,FALSE) -> 0% | K18: =VLOOKUP($A$5,#REF!,32,FALSE) ->  | M18: =+K18-I18 ->  | O18: =VLOOKUP($A$5,'RECAP SECT'!$G$6:$CY$312,33,FALSE) -> 1090.863937 | S18: =VLOOKUP($A$5,#REF!,27,FALSE) ->  | U18: =+S18-I18 -> 
B19: PNB Ventes nettes IZICARTES Débit Différé | C19: 4% | E19: ='RECAP SECT'!AB4 -> 93.8 | G19: =VLOOKUP($A$5,'RECAP SECT'!$G$6:$CY$312,35,FALSE) -> 1.0 | I19: =VLOOKUP($A$5,'RECAP SECT'!$G$6:$CY$312,36,FALSE) -> 1700% | K19: =VLOOKUP($A$5,#REF!,36,FALSE) ->  | M19: =+K19-I19 ->  | O19: =VLOOKUP($A$5,'RECAP SECT'!$G$6:$CY$312,37,FALSE) -> 2159 | S19: =VLOOKUP($A$5,#REF!,30,FALSE) ->  | U19: =+S19-I19 -> 
B20: PNB Ventes nettes cartes HDG Débit Différé | C20: 4% | E20: ='RECAP SECT'!#REF! ->  | G20: =VLOOKUP($A$5,'RECAP SECT'!$G$6:$CY$312,39,FALSE) -> 0.5 | I20: =VLOOKUP($A$5,'RECAP SECT'!$G$6:$CY$312,40,FALSE) -> 1800% | K20: =VLOOKUP($A$5,#REF!,40,FALSE) ->  | M20: =+K20-I20 ->  | O20: =VLOOKUP($A$5,'RECAP SECT'!$G$6:$CY$312,41,FALSE) -> 0.7659537665 | S20: =VLOOKUP($A$5,#REF!,33,FALSE) ->  | U20: =+S20-I20 -> 
B21: PNB Ventes nettes Forfaits Pro, Carte pro | C21: 3% | E21: ='RECAP SECT'!#REF! ->  | G21: =VLOOKUP($A$5,'RECAP SECT'!$G$6:$CY$312,43,FALSE) -> 17.0 | I21: =VLOOKUP($A$5,'RECAP SECT'!$G$6:$CY$312,44,FALSE) -> 0% | K21: =VLOOKUP($A$5,#REF!,44,FALSE) ->  | M21: =+K21-I21 ->  | O21: =VLOOKUP($A$5,'RECAP SECT'!$G$6:$CY$312,45,FALSE) -> 0 | S21: =VLOOKUP($A$5,#REF!,39,FALSE) ->  | U21: =+S21-I21 -> 
A23: CRITERE EPARGNE | C23: 10% | O23: =VLOOKUP($A$5,'RECAP SECT'!$G$6:$CY$312,69,FALSE) -> 0.7402402538
B24: PNB Epargne Liquide | C24: 3% | E24: ='RECAP SECT'!AM4 -> 499.0 | G24: =VLOOKUP($A$5,'RECAP SECT'!$G$6:$CY$312,56,FALSE) -> 880.0 | I24: =VLOOKUP($A$5,'RECAP SECT'!$G$6:$CY$312,57,FALSE) -> 1931% | K24: =VLOOKUP($A$5,#REF!,57,FALSE) ->  | M24: =+K24-I24 ->  | O24: =VLOOKUP($A$5,'RECAP SECT'!$G$6:$CY$312,58,FALSE) -> 0.5709689425 | S24: =VLOOKUP($A$5,#REF!,51,FALSE) ->  | U24: =+S24-I24 -> 
B25: PNB CA UC + arbitrage | C25: 4% | E25: ='RECAP SECT'!AQ4 -> 92.3 | G25: =VLOOKUP($A$5,'RECAP SECT'!$G$6:$CY$312,60,FALSE) -> 0.5 | I25: =VLOOKUP($A$5,'RECAP SECT'!$G$6:$CY$312,61,FALSE) -> 46% | K25: =VLOOKUP($A$5,#REF!,61,FALSE) ->  | M25: =+K25-I25 ->  | O25: =VLOOKUP($A$5,'RECAP SECT'!$G$6:$CY$312,62,FALSE) -> 18 | S25: =VLOOKUP($A$5,#REF!,57,FALSE) ->  | U25: =+S25-I25 -> 
B26: PNB Excédent assurance vie | C26: 3% | E26: ='RECAP SECT'!#REF! ->  | G26: =VLOOKUP($A$5,'RECAP SECT'!$G$6:$CY$312,64,FALSE) -> 0.0 | I26: =VLOOKUP($A$5,'RECAP SECT'!$G$6:$CY$312,65,FALSE) -> 0% | K26: =VLOOKUP($A$5,#REF!,65,FALSE) ->  | M26: =+K26-I26 ->  | O26: =VLOOKUP($A$5,'RECAP SECT'!$G$6:$CY$312,66,FALSE) -> 0 | S26: =VLOOKUP($A$5,#REF!,60,FALSE) ->  | U26: =+S26-I26 -> 
A28: CRITERE CREDITS | C28: 15% | O28: =VLOOKUP($A$5,'RECAP SECT'!$G$6:$CY$312,102,FALSE) -> 
B29: PNB crédit conso | C29: 4% | E29: ='RECAP SECT'!BB4 -> 653.2 | G29: =VLOOKUP($A$5,'RECAP SECT'!$G$6:$CY$312,77,FALSE) -> 17.0 | I29: =VLOOKUP($A$5,'RECAP SECT'!$G$6:$CY$312,78,FALSE) -> 0% | K29: =VLOOKUP($A$5,#REF!,78,FALSE) ->  | M29: =+K29-I29 ->  | O29: =VLOOKUP($A$5,'RECAP SECT'!$G$6:$CY$312,79,FALSE) -> 0 | S29: =VLOOKUP($A$5,#REF!,75,FALSE) ->  | U29: =+S29-I29 -> 
B30: PNB ADE crédit conso | C30: 1% | E30: ='RECAP SECT'!#REF! ->  | G30: =VLOOKUP($A$5,'RECAP SECT'!$G$6:$CY$312,81,FALSE) -> 0.0 | I30: =VLOOKUP($A$5,'RECAP SECT'!$G$6:$CY$312,82,FALSE) -> 0% | K30: =VLOOKUP($A$5,#REF!,82,FALSE) ->  | O30: =VLOOKUP($A$5,'RECAP SECT'!$G$6:$CY$312,83,FALSE) -> 0 | S30: =VLOOKUP($A$5,#REF!,78,FALSE) -> 
B31: PNB crédit immo | C31: 4% | E31: ='RECAP SECT'!BF4 -> 64.7 | G31: =VLOOKUP($A$5,'RECAP SECT'!$G$6:$CY$312,85,FALSE) -> 0.0 | I31: =VLOOKUP($A$5,'RECAP SECT'!$G$6:$CY$312,86,FALSE) -> 0% | K31: =VLOOKUP($A$5,#REF!,86,FALSE) ->  | O31: =VLOOKUP($A$5,'RECAP SECT'!$G$6:$CY$312,87,FALSE) -> 0 | S31: =VLOOKUP($A$5,#REF!,81,FALSE) -> 
B32: PNB ADE crédit immo | C32: 2% | E32: ='RECAP SECT'!#REF! ->  | G32: =VLOOKUP($A$5,'RECAP SECT'!$G$6:$CY$312,89,FALSE) -> 0.0 | I32: =VLOOKUP($A$5,'RECAP SECT'!$G$6:$CY$312,90,FALSE) -> 0% | K32: =VLOOKUP($A$5,#REF!,90,FALSE) ->  | O32: =VLOOKUP($A$5,'RECAP SECT'!$G$6:$CY$312,91,FALSE) -> 0 | S32: =VLOOKUP($A$5,#REF!,84,FALSE) -> 
B33: PNB SACCEF | C33: 2% | E33: ='RECAP SECT'!#REF! ->  | G33: =VLOOKUP($A$5,'RECAP SECT'!$G$6:$CY$312,93,FALSE) -> 0.0 | I33: =VLOOKUP($A$5,'RECAP SECT'!$G$6:$CY$312,94,FALSE) -> 60% | K33: =VLOOKUP($A$5,#REF!,94,FALSE) ->  | O33: =VLOOKUP($A$5,'RECAP SECT'!$G$6:$CY$312,95,FALSE) -> 0.5120250327 | S33: =VLOOKUP($A$5,#REF!,87,FALSE) -> 
B34: PNB Crédit MLT + Crédit Bail | C34: 2% | E34: ='RECAP SECT'!BJ4 -> 45.0 | G34: =VLOOKUP($A$5,'RECAP SECT'!$G$6:$CY$312,97,FALSE) -> 0.0 | I34: =VLOOKUP($A$5,'RECAP SECT'!$G$6:$CY$312,98,FALSE) ->  | K34: =VLOOKUP($A$5,#REF!,98,FALSE) ->  | O34: =VLOOKUP($A$5,'RECAP SECT'!$G$6:$CY$312,99,FALSE) ->  | S34: =VLOOKUP($A$5,#REF!,90,FALSE) -> 
A36: CRITERE IARD PREVOYANCE | C36: 15% | O36: =VLOOKUP($A$5,'RECAP SECT'!$G$6:$CY$312,119,FALSE) -> 
B37: PNB Ventes nettes IARD | C37: 9% | E37: ='RECAP SECT'!BU4 -> 200.8 | G37: =VLOOKUP($A$5,'RECAP SECT'!$G$6:$CY$312,110,FALSE) ->  | I37: =VLOOKUP($A$5,'RECAP SECT'!$G$6:$CY$312,111,FALSE) ->  | K37: =VLOOKUP($A$5,#REF!,111,FALSE) ->  | M37: =+K37-I37 ->  | O37: =VLOOKUP($A$5,'RECAP SECT'!$G$6:$CY$312,112,FALSE) ->  | S37: =VLOOKUP($A$5,#REF!,102,FALSE) ->  | U37: =+S37-I37 -> 
B38: PNB Ventes nettes Prévoyance | C38: 6% | E38: ='RECAP SECT'!BY4 -> 60.6 | G38: =VLOOKUP($A$5,'RECAP SECT'!$G$6:$CY$312,114,FALSE) ->  | I38: =VLOOKUP($A$5,'RECAP SECT'!$G$6:$CY$312,115,FALSE) ->  | K38: =VLOOKUP($A$5,#REF!,115,FALSE) ->  | M38: =+K38-I38 ->  | O38: =VLOOKUP($A$5,'RECAP SECT'!$G$6:$CY$312,116,FALSE) ->  | S38: =VLOOKUP($A$5,#REF!,105,FALSE) ->  | U38: =+S38-I38 -> 
A40: CRITERE ACCELERATEURS PNB | C40: 15% | O40: =VLOOKUP($A$5,'RECAP SECT'!$G$6:$CY$312,144,FALSE) -> 
B41: PNB Ventes brutes SED Finalisées | C41: 6% | E41: ='RECAP SECT'!#REF! ->  | G41: =VLOOKUP($A$5,'RECAP SECT'!$G$6:$CY$312,127,FALSE) ->  | I41: =VLOOKUP($A$5,'RECAP SECT'!$G$6:$CY$312,128,FALSE) ->  | K41: =VLOOKUP($A$5,#REF!,128,FALSE) ->  | M41: =+K41-I41 ->  | O41: =VLOOKUP($A$5,'RECAP SECT'!$G$6:$CY$312,129,FALSE) ->  | S41: =VLOOKUP($A$5,#REF!,120,FALSE) ->  | U41: =+S41-I41 -> 
B42: PNB clients équipés E documents | C42: 3% | E42: ='RECAP SECT'!#REF! ->  | G42: =VLOOKUP($A$5,'RECAP SECT'!$G$6:$CY$312,131,FALSE) ->  | I42: =VLOOKUP($A$5,'RECAP SECT'!$G$6:$CY$312,132,FALSE) ->  | K42: =VLOOKUP($A$5,#REF!,132,FALSE) ->  | M42: =+K42-I42 ->  | O42: =VLOOKUP($A$5,'RECAP SECT'!$G$6:$CY$312,133,FALSE) ->  | S42: =VLOOKUP($A$5,#REF!,123,FALSE) ->  | U42: =+S42-I42 -> 
B43: Economie opt'in | C43: 3% | E43: ='RECAP SECT'!#REF! ->  | G43: =VLOOKUP($A$5,'RECAP SECT'!$G$6:$CY$312,135,FALSE) ->  | I43: =VLOOKUP($A$5,'RECAP SECT'!$G$6:$CY$312,136,FALSE) ->  | K43: =VLOOKUP($A$5,#REF!,136,FALSE) ->  | M43: =+K43-I43 ->  | O43: =VLOOKUP($A$5,'RECAP SECT'!$G$6:$CY$312,137,FALSE) -> 
B44: Remises commerciales | C44: 3% | E44: ='RECAP SECT'!#REF! ->  | G44: =VLOOKUP($A$5,'RECAP SECT'!$G$6:$CY$312,139,FALSE) ->  | I44: =VLOOKUP($A$5,'RECAP SECT'!$G$6:$CY$312,140,FALSE) ->  | K44: =VLOOKUP($A$5,#REF!,140,FALSE) ->  | M44: =+K44-I44 ->  | O44: =VLOOKUP($A$5,'RECAP SECT'!$G$6:$CY$312,141,FALSE) ->  | S44: =VLOOKUP($A$5,#REF!,126,FALSE) ->  | U44: =+S44-I44 -> 
A46: CRITERE Satisfaction Clients | C46: 15% | O46: =VLOOKUP($A$5,'RECAP SECT'!$G$6:$CY$312,159,FALSE) -> 
B47: Objectifs NPS* | C47: 8% | E47: ='RECAP SECT'!K4 -> 25 | G47: =VLOOKUP($A$5,'RECAP SECT'!$G$6:$CY$312,151,FALSE) ->  | I47: =VLOOKUP($A$5,'RECAP SECT'!$G$6:$CY$312,152,FALSE) ->  | K47: =VLOOKUP($A$5,#REF!,152,FALSE) ->  | M47: =+K47-I47 ->  | O47: =VLOOKUP($A$5,'RECAP SECT'!$G$6:$CY$312,153,FALSE) ->  | S47: =VLOOKUP($A$5,#REF!,138,FALSE) ->  | U47: =+S47-I47 -> 
B48: Enquête Qualité Haute Définition | C48: 7% | E48: ='RECAP SECT'!N4 -> 74% | G48: =VLOOKUP($A$5,'RECAP SECT'!$G$6:$CY$312,154,FALSE) ->  | I48: =VLOOKUP($A$5,'RECAP SECT'!$G$6:$CY$312,155,FALSE) ->  | K48: =VLOOKUP($A$5,#REF!,155,FALSE) ->  | M48: =+K48-I48 ->  | O48: =VLOOKUP($A$5,'RECAP SECT'!$G$6:$CY$312,156,FALSE) ->  | S48: =VLOOKUP($A$5,#REF!,141,FALSE) ->  | U48: =+S48-I48 -> 

Sheet SE_TOTAL
B1: Accueil | F1: BAROMETRE BDD - TERRITOIRES
F2: TOTAL GENERAL
F3: =ACCUEIL!F7 -> 2022-11-13
F7: TOTAL GENERAL | I7: Total Satisfaction Clients | L7: Total Bancarisation | O7: Total Epargne | R7: Total IARD Prévoyance | U7: Total Crédits
G8: coef | H8: =K8+N8+Q8+T8+W8 -> 100% | J8: coef | K8: =SE_SATISFACTION!N8 -> 20% | M8: coef | N8: =SE_BANCA!P8 -> 20% | P8: coef | Q8: =SE_EPARGNE!P8 -> 20% | S8: coef | T8: =SE_IARD!P8 -> 20% | V8: coef | W8: =SE_CREDIT!T8 -> 20%
B9: Direction | C9: eds | D9: Territoire | E9: ="ETP perf "&DATEMAJ!$C$28 -> ETP perf 13-nov | F9: Moyenne ecart au 1er | G9: % Ecart au 1er | H9: Rang CEGEE | I9: Moyenne ecart au 1er | J9: % Ecart au 1er | K9: Rang CEGEE | L9: Moyenne ecart au 1er | M9: % Ecart au 1er | N9: Rang CEGEE | O9: Moyenne ecart au 1er | P9: % Ecart au 1er | Q9: Rang CEGEE | R9: Moyenne ecart au 1er | S9: % Ecart au 1er | T9: Rang CEGEE | U9: Moyenne ecart au 1er | V9: % Ecart au 1er | W9: Rang CEGEE
A10: 50 | B10: MARNE-ARDENNES | C10: 11 | D10: REIMS | E10: 67.9 | F10: 9% | G10: 0% | H10: 1 | I10: 26% | J10: 25% | K10: 7 | L10: 0% | M10: 0% | N10: 1 | O10: 22% | P10: 16% | Q10: 5 | R10: 5% | S10: 4% | T10: 2 | U10: 4% | V10: 0% | W10: 1
A11: 50 | B11: MARNE-ARDENNES | C11: 6 | D11: CHALONS EN CHAMPAGNE | E11: 37.4 | F11: 14% | G11: 4% | H11: 2 | I11: 0% | J11: 0% | K11: 1 | L11: 21% | M11: 21% | N11: 3 | O11: 24% | P11: 18% | Q11: 7 | R11: 10% | S11: 8% | T11: 4 | U11: 24% | V11: 20% | W11: 4
A12: 262 | B12: MOSELLE | C12: 44 | D12: MOSELLE NORD | E12: 55.5 | F12: 16% | G12: 7% | H12: 3 | I12: 40% | J12: 39% | K12: 13 | L12: 7% | M12: 7% | N12: 2 | O12: 36% | P12: 30% | Q12: 10 | R12: 1% | S12: 0% | T12: 1 | U12: 10% | V12: 6% | W12: 2
A13: 262 | B13: MARNE-ARDENNES | C13: 2 | D13: CHARLEVILLE MEZIERES | E13: 48.2 | F13: 20% | G13: 11% | H13: 4 | I13: 29% | J13: 28% | K13: 9 | L13: 35% | M13: 35% | N13: 6 | O13: 20% | P13: 15% | Q13: 4 | R13: 9% | S13: 8% | T13: 3 | U13: 21% | V13: 17% | W13: 3
A14: 262 | B14: MOSELLE | C14: 42 | D14: MOSELLE EST | E14: 57.8 | F14: 23% | G14: 14% | H14: 5 | I14: 18% | J14: 17% | K14: 5 | L14: 28% | M14: 28% | N14: 4 | O14: 41% | P14: 36% | Q14: 13 | R14: 14% | S14: 12% | T14: 5 | U14: 27% | V14: 23% | W14: 6
A15: 264 | B15: BAS-RHIN | C15: 5006 | D15: STRASBOURG | E15: 64.8 | F15: 25% | G15: 16% | H15: 6 | I15: 38% | J15: 38% | K15: 12 | L15: 31% | M15: 31% | N15: 5 | O15: 6% | P15: 0% | Q15: 1 | R15: 20% | S15: 19% | T15: 7 | U15: 40% | V15: 36% | W15: 11
A16: 264 | B16: MOSELLE | C16: 45 | D16: METZ | E16: 72.6 | F16: 26% | G16: 16% | H16: 7 | I16: 27% | J16: 27% | K16: 8 | L16: 40% | M16: 40% | N16: 9 | O16: 7% | P16: 1% | Q16: 2 | R16: 35% | S16: 34% | T16: 9 | U16: 30% | V16: 26% | W16: 8
A17: 30 | B17: AUBE HAUTE MARNE | C17: 21 | D17: CHAUMONT | E17: 33.6 | F17: 27% | G17: 17% | H17: 8 | I17: 21% | J17: 20% | K17: 6 | L17: 45% | M17: 45% | N17: 14 | O17: 24% | P17: 18% | Q17: 6 | R17: 17% | S17: 15% | T17: 6 | U17: 38% | V17: 34% | W17: 10
A18: 30 | B18: MEURTHE ET MOSELLE MEUSE | C18: 26 | D18: NANCY | E18: 55.0 | F18: 28% | G18: 19% | H18: 9 | I18: 32% | J18: 31% | K18: 10 | L18: 43% | M18: 43% | N18: 11 | O18: 15% | P18: 10% | Q18: 3 | R18: 36% | S18: 34% | T18: 10 | U18: 25% | V18: 21% | W18: 5
A19: 30 | B19: VOSGES | C19: 57 | D19: EPINAL | E19: 53.0 | F19: 29% | G19: 20% | H19: 10 | I19: 11% | J19: 11% | K19: 3 | L19: 39% | M19: 39% | N19: 8 | O19: 24% | P19: 19% | Q19: 8 | R19: 44% | S19: 42% | T19: 13 | U19: 41% | V19: 37% | W19: 12
A20: 110 | B20: MEURTHE ET MOSELLE MEUSE | C20: 31 | D20: VERDUN | E20: 48.7 | F20: 29% | G20: 20% | H20: 11 | I20: 13% | J20: 13% | K20: 4 | L20: 37% | M20: 37% | N20: 7 | O20: 36% | P20: 31% | Q20: 11 | R20: 38% | S20: 37% | T20: 11 | U20: 34% | V20: 30% | W20: 9
A21: 110 | B21: MEURTHE ET MOSELLE MEUSE | C21: 27 | D21: PONT A MOUSSON | E21: 59.5 | F21: 34% | G21: 25% | H21: 12 | I21: 56% | J21: 56% | K21: 15 | L21: 44% | M21: 44% | N21: 12 | O21: 27% | P21: 21% | Q21: 9 | R21: 27% | S21: 26% | T21: 8 | U21: 28% | V21: 24% | W21: 7
A22: 110 | B22: VOSGES | C22: 55 | D22: SAINT DIE | E22: 40.1 | F22: 37% | G22: 28% | H22: 13 | I22: 3% | J22: 3% | K22: 2 | L22: 52% | M22: 52% | N22: 15 | O22: 48% | P22: 42% | Q22: 15 | R22: 50% | S22: 49% | T22: 16 | U22: 42% | V22: 38% | W22: 13
A23: 160 | B23: BAS-RHIN | C23: 5060 | D23: HAGUENAU | E23: 55.6 | F23: 40% | G23: 31% | H23: 14 | I23: 36% | J23: 36% | K23: 11 | L23: 41% | M23: 41% | N23: 10 | O23: 42% | P23: 36% | Q23: 14 | R23: 47% | S23: 46% | T23: 14 | U23: 49% | V23: 44% | W23: 16
A24: 160 | B24: BAS-RHIN | C24: 5101 | D24: SELESTAT | E24: 50.8 | F24: 44% | G24: 35% | H24: 15 | I24: 56% | J24: 55% | K24: 14 | L24: 45% | M24: 45% | N24: 13 | O24: 39% | P24: 33% | Q24: 12 | R24: 47% | S24: 46% | T24: 15 | U24: 46% | V24: 42% | W24: 15
A25: 160 | B25: AUBE HAUTE MARNE | C25: 14 | D25: TROYES | E25: 53.9 | F25: 54% | G25: 45% | H25: 16 | I25: 67% | J25: 67% | K25: 18 | L25: 60% | M25: 60% | N25: 16 | O25: 68% | P25: 63% | Q25: 16 | R25: 42% | S25: 41% | T25: 12 | U25: 44% | V25: 39% | W25: 14
A26: 80 | B26: HAUT-RHIN | C26: 5130 | D26: COLMAR | E26: 45.6 | F26: 60% | G26: 51% | H26: 17 | I26: 61% | J26: 60% | K26: 16 | L26: 65% | M26: 65% | N26: 17 | O26: 77% | P26: 71% | Q26: 17 | R26: 60% | S26: 59% | T26: 17 | U26: 51% | V26: 46% | W26: 18
A27: 80 | B27: HAUT-RHIN | C27: 5169 | D27: MULHOUSE | E27: 46.8 | F27: 67% | G27: 58% | H27: 18 | I27: 63% | J27: 62% | K27: 17 | L27: 75% | M27: 75% | N27: 18 | O27: 82% | P27: 77% | Q27: 18 | R27: 78% | S27: 77% | T27: 18 | U27: 50% | V27: 46% | W27: 17
A28: Total CEGEE Directions Régionales | E28: =SUM(E10:E27) -> 946

Sheet SE_BANCA
B1: Accueil | F1: BAROMETRE BDD - TERRITOIRES
F2: BANCARISATION
F3: =ACCUEIL!F7 -> 2022-11-13
F7: Ventes Nettes produits pondérés | J7: Ventes sur client non détenteur de l’univers | N7: Total Bancarisation
F8: =DATEMAJ!C8 -> au 13/11 | H8: coef | I8: ='RECAP DIRCOM'!AA4 -> 12% | J8: =DATEMAJ!C9 -> au 13/11 | L8: coef | M8: ='RECAP DIRCOM'!AE4 -> 8% | O8: coef | P8: ='RECAP DIRCOM'!AH4 -> 20%
B9: Direction | C9: eds | D9: Territoire | E9: ="ETP perf "&DATEMAJ!$C$28 -> ETP perf 13-nov | F9: VN | G9: VN / ETP | H9: % Ecart au 1er | I9: Rang | J9: VB | K9: VB / ETP | L9: % Ecart au 1er | M9: Rang | N9: Moyenne ecart au 1er | O9: % Ecart au 1er | P9: Rang CEGEE
A10: 50 | B10: AUBE HAUTE MARNE | C10: 21 | D10: CHAUMONT | E10: =VLOOKUP($C10,'RECAP SECT'!$G$6:$CU$253,3,FALSE) -> 33.6 | F10: =VLOOKUP($C10,'RECAP SECT'!$G$6:$CU$253,18,FALSE) -> 582 | G10: =VLOOKUP($C10,'RECAP SECT'!$G$6:$CU$253,19,FALSE) -> 17.33 | H10: =VLOOKUP($C10,'RECAP SECT'!$G$6:$CU$253,20,FALSE) -> 54% | I10: =VLOOKUP($C10,'RECAP SECT'!$G$6:$CU$253,21,FALSE) -> 12 | J10: =VLOOKUP($C10,'RECAP SECT'!$G$6:$CU$253,22,FALSE) -> 2,149 | K10: =VLOOKUP($C10,'RECAP SECT'!$G$6:$CU$253,23,FALSE) -> 64.03 | L10: =VLOOKUP($C10,'RECAP SECT'!$G$6:$CU$253,24,FALSE) -> 32% | M10: =VLOOKUP($C10,'RECAP SECT'!$G$6:$CU$253,25,FALSE) -> 12 | N10: =VLOOKUP($C10,'RECAP SECT'!$G$6:$CU$253,26,FALSE) -> 45% | O10: =VLOOKUP($C10,'RECAP SECT'!$G$6:$CU$253,27,FALSE) -> 45% | P10: =VLOOKUP($C10,'RECAP SECT'!$G$6:$CU$253,28,FALSE) -> 14
A11: 50 | B11: AUBE HAUTE MARNE | C11: 14 | D11: TROYES | E11: =VLOOKUP($C11,'RECAP SECT'!$G$6:$CU$253,3,FALSE) -> 53.9 | F11: =VLOOKUP($C11,'RECAP SECT'!$G$6:$CU$253,18,FALSE) -> 438 | G11: =VLOOKUP($C11,'RECAP SECT'!$G$6:$CU$253,19,FALSE) -> 8.14 | H11: =VLOOKUP($C11,'RECAP SECT'!$G$6:$CU$253,20,FALSE) -> 79% | I11: =VLOOKUP($C11,'RECAP SECT'!$G$6:$CU$253,21,FALSE) -> 17 | J11: =VLOOKUP($C11,'RECAP SECT'!$G$6:$CU$253,22,FALSE) -> 3,455 | K11: =VLOOKUP($C11,'RECAP SECT'!$G$6:$CU$253,23,FALSE) -> 64.15 | L11: =VLOOKUP($C11,'RECAP SECT'!$G$6:$CU$253,24,FALSE) -> 32% | M11: =VLOOKUP($C11,'RECAP SECT'!$G$6:$CU$253,25,FALSE) -> 11 | N11: =VLOOKUP($C11,'RECAP SECT'!$G$6:$CU$253,26,FALSE) -> 60% | O11: =VLOOKUP($C11,'RECAP SECT'!$G$6:$CU$253,27,FALSE) -> 60% | P11: =VLOOKUP($C11,'RECAP SECT'!$G$6:$CU$253,28,FALSE) -> 16
A12: 262 | B12: BAS-RHIN | C12: 5060 | D12: HAGUENAU | E12: =VLOOKUP($C12,'RECAP SECT'!$G$6:$CU$253,3,FALSE) -> 55.6 | F12: =VLOOKUP($C12,'RECAP SECT'!$G$6:$CU$253,18,FALSE) -> 1,225 | G12: =VLOOKUP($C12,'RECAP SECT'!$G$6:$CU$253,19,FALSE) -> 22.05 | H12: =VLOOKUP($C12,'RECAP SECT'!$G$6:$CU$253,20,FALSE) -> 42% | I12: =VLOOKUP($C12,'RECAP SECT'!$G$6:$CU$253,21,FALSE) -> 5 | J12: =VLOOKUP($C12,'RECAP SECT'!$G$6:$CU$253,22,FALSE) -> 3,206 | K12: =VLOOKUP($C12,'RECAP SECT'!$G$6:$CU$253,23,FALSE) -> 57.71 | L12: =VLOOKUP($C12,'RECAP SECT'!$G$6:$CU$253,24,FALSE) -> 38% | M12: =VLOOKUP($C12,'RECAP SECT'!$G$6:$CU$253,25,FALSE) -> 15 | N12: =VLOOKUP($C12,'RECAP SECT'!$G$6:$CU$253,26,FALSE) -> 41% | O12: =VLOOKUP($C12,'RECAP SECT'!$G$6:$CU$253,27,FALSE) -> 41% | P12: =VLOOKUP($C12,'RECAP SECT'!$G$6:$CU$253,28,FALSE) -> 10
A13: 262 | B13: BAS-RHIN | C13: 5101 | D13: SELESTAT | E13: =VLOOKUP($C13,'RECAP SECT'!$G$6:$CU$253,3,FALSE) -> 50.8 | F13: =VLOOKUP($C13,'RECAP SECT'!$G$6:$CU$253,18,FALSE) -> 998 | G13: =VLOOKUP($C13,'RECAP SECT'!$G$6:$CU$253,19,FALSE) -> 19.65 | H13: =VLOOKUP($C13,'RECAP SECT'!$G$6:$CU$253,20,FALSE) -> 48% | I13: =VLOOKUP($C13,'RECAP SECT'!$G$6:$CU$253,21,FALSE) -> 10 | J13: =VLOOKUP($C13,'RECAP SECT'!$G$6:$CU$253,22,FALSE) -> 2,872 | K13: =VLOOKUP($C13,'RECAP SECT'!$G$6:$CU$253,23,FALSE) -> 56.57 | L13: =VLOOKUP($C13,'RECAP SECT'!$G$6:$CU$253,24,FALSE) -> 40% | M13: =VLOOKUP($C13,'RECAP SECT'!$G$6:$CU$253,25,FALSE) -> 16 | N13: =VLOOKUP($C13,'RECAP SECT'!$G$6:$CU$253,26,FALSE) -> 45% | O13: =VLOOKUP($C13,'RECAP SECT'!$G$6:$CU$253,27,FALSE) -> 45% | P13: =VLOOKUP($C13,'RECAP SECT'!$G$6:$CU$253,28,FALSE) -> 13
A14: 262 | B14: BAS-RHIN | C14: 5006 | D14: STRASBOURG | E14: =VLOOKUP($C14,'RECAP SECT'!$G$6:$CU$253,3,FALSE) -> 64.8 | F14: =VLOOKUP($C14,'RECAP SECT'!$G$6:$CU$253,18,FALSE) -> 1,386 | G14: =VLOOKUP($C14,'RECAP SECT'!$G$6:$CU$253,19,FALSE) -> 21.40 | H14: =VLOOKUP($C14,'RECAP SECT'!$G$6:$CU$253,20,FALSE) -> 44% | I14: =VLOOKUP($C14,'RECAP SECT'!$G$6:$CU$253,21,FALSE) -> 7 | J14: =VLOOKUP($C14,'RECAP SECT'!$G$6:$CU$253,22,FALSE) -> 5,296 | K14: =VLOOKUP($C14,'RECAP SECT'!$G$6:$CU$253,23,FALSE) -> 81.74 | L14: =VLOOKUP($C14,'RECAP SECT'!$G$6:$CU$253,24,FALSE) -> 13% | M14: =VLOOKUP($C14,'RECAP SECT'!$G$6:$CU$253,25,FALSE) -> 3 | N14: =VLOOKUP($C14,'RECAP SECT'!$G$6:$CU$253,26,FALSE) -> 31% | O14: =VLOOKUP($C14,'RECAP SECT'!$G$6:$CU$253,27,FALSE) -> 31% | P14: =VLOOKUP($C14,'RECAP SECT'!$G$6:$CU$253,28,FALSE) -> 5
A15: 264 | B15: HAUT-RHIN | C15: 5130 | D15: COLMAR | E15: =VLOOKUP($C15,'RECAP SECT'!$G$6:$CU$253,3,FALSE) -> 45.6 | F15: =VLOOKUP($C15,'RECAP SECT'!$G$6:$CU$253,18,FALSE) -> 372 | G15: =VLOOKUP($C15,'RECAP SECT'!$G$6:$CU$253,19,FALSE) -> 8.16 | H15: =VLOOKUP($C15,'RECAP SECT'!$G$6:$CU$253,20,FALSE) -> 79% | I15: =VLOOKUP($C15,'RECAP SECT'!$G$6:$CU$253,21,FALSE) -> 16 | J15: =VLOOKUP($C15,'RECAP SECT'!$G$6:$CU$253,22,FALSE) -> 2,367 | K15: =VLOOKUP($C15,'RECAP SECT'!$G$6:$CU$253,23,FALSE) -> 51.93 | L15: =VLOOKUP($C15,'RECAP SECT'!$G$6:$CU$253,24,FALSE) -> 45% | M15: =VLOOKUP($C15,'RECAP SECT'!$G$6:$CU$253,25,FALSE) -> 18 | N15: =VLOOKUP($C15,'RECAP SECT'!$G$6:$CU$253,26,FALSE) -> 65% | O15: =VLOOKUP($C15,'RECAP SECT'!$G$6:$CU$253,27,FALSE) -> 65% | P15: =VLOOKUP($C15,'RECAP SECT'!$G$6:$CU$253,28,FALSE) -> 17
A16: 264 | B16: HAUT-RHIN | C16: 5169 | D16: MULHOUSE | E16: =VLOOKUP($C16,'RECAP SECT'!$G$6:$CU$253,3,FALSE) -> 46.8 | F16: =VLOOKUP($C16,'RECAP SECT'!$G$6:$CU$253,18,FALSE) -> -12 | G16: =VLOOKUP($C16,'RECAP SECT'!$G$6:$CU$253,19,FALSE) -> -0.25 | H16: =VLOOKUP($C16,'RECAP SECT'!$G$6:$CU$253,20,FALSE) -> 101% | I16: =VLOOKUP($C16,'RECAP SECT'!$G$6:$CU$253,21,FALSE) -> 18 | J16: =VLOOKUP($C16,'RECAP SECT'!$G$6:$CU$253,22,FALSE) -> 2,760 | K16: =VLOOKUP($C16,'RECAP SECT'!$G$6:$CU$253,23,FALSE) -> 58.94 | L16: =VLOOKUP($C16,'RECAP SECT'!$G$6:$CU$253,24,FALSE) -> 37% | M16: =VLOOKUP($C16,'RECAP SECT'!$G$6:$CU$253,25,FALSE) -> 14 | N16: =VLOOKUP($C16,'RECAP SECT'!$G$6:$CU$253,26,FALSE) -> 75% | O16: =VLOOKUP($C16,'RECAP SECT'!$G$6:$CU$253,27,FALSE) -> 75% | P16: =VLOOKUP($C16,'RECAP SECT'!$G$6:$CU$253,28,FALSE) -> 18
A17: 30 | B17: MARNE-ARDENNES | C17: 6 | D17: CHALONS EN CHAMPAGNE | E17: =VLOOKUP($C17,'RECAP SECT'!$G$6:$CU$253,3,FALSE) -> 37.4 | F17: =VLOOKUP($C17,'RECAP SECT'!$G$6:$CU$253,18,FALSE) -> 1,150 | G17: =VLOOKUP($C17,'RECAP SECT'!$G$6:$CU$253,19,FALSE) -> 30.78 | H17: =VLOOKUP($C17,'RECAP SECT'!$G$6:$CU$253,20,FALSE) -> 19% | I17: =VLOOKUP($C17,'RECAP SECT'!$G$6:$CU$253,21,FALSE) -> 3 | J17: =VLOOKUP($C17,'RECAP SECT'!$G$6:$CU$253,22,FALSE) -> 2,635 | K17: =VLOOKUP($C17,'RECAP SECT'!$G$6:$CU$253,23,FALSE) -> 70.55 | L17: =VLOOKUP($C17,'RECAP SECT'!$G$6:$CU$253,24,FALSE) -> 25% | M17: =VLOOKUP($C17,'RECAP SECT'!$G$6:$CU$253,25,FALSE) -> 8 | N17: =VLOOKUP($C17,'RECAP SECT'!$G$6:$CU$253,26,FALSE) -> 21% | O17: =VLOOKUP($C17,'RECAP SECT'!$G$6:$CU$253,27,FALSE) -> 21% | P17: =VLOOKUP($C17,'RECAP SECT'!$G$6:$CU$253,28,FALSE) -> 3
A18: 30 | B18: MARNE-ARDENNES | C18: 2 | D18: CHARLEVILLE MEZIERES | E18: =VLOOKUP($C18,'RECAP SECT'!$G$6:$CU$253,3,FALSE) -> 48.2 | F18: =VLOOKUP($C18,'RECAP SECT'!$G$6:$CU$253,18,FALSE) -> 1,029 | G18: =VLOOKUP($C18,'RECAP SECT'!$G$6:$CU$253,19,FALSE) -> 21.35 | H18: =VLOOKUP($C18,'RECAP SECT'!$G$6:$CU$253,20,FALSE) -> 44% | I18: =VLOOKUP($C18,'RECAP SECT'!$G$6:$CU$253,21,FALSE) -> 8 | J18: =VLOOKUP($C18,'RECAP SECT'!$G$6:$CU$253,22,FALSE) -> 3,541 | K18: =VLOOKUP($C18,'RECAP SECT'!$G$6:$CU$253,23,FALSE) -> 73.46 | L18: =VLOOKUP($C18,'RECAP SECT'!$G$6:$CU$253,24,FALSE) -> 22% | M18: =VLOOKUP($C18,'RECAP SECT'!$G$6:$CU$253,25,FALSE) -> 5 | N18: =VLOOKUP($C18,'RECAP SECT'!$G$6:$CU$253,26,FALSE) -> 35% | O18: =VLOOKUP($C18,'RECAP SECT'!$G$6:$CU$253,27,FALSE) -> 35% | P18: =VLOOKUP($C18,'RECAP SECT'!$G$6:$CU$253,28,FALSE) -> 6
A19: 30 | B19: MARNE-ARDENNES | C19: 11 | D19: REIMS | E19: =VLOOKUP($C19,'RECAP SECT'!$G$6:$CU$253,3,FALSE) -> 67.9 | F19: =VLOOKUP($C19,'RECAP SECT'!$G$6:$CU$253,18,FALSE) -> 2,580 | G19: =VLOOKUP($C19,'RECAP SECT'!$G$6:$CU$253,19,FALSE) -> 37.99 | H19: =VLOOKUP($C19,'RECAP SECT'!$G$6:$CU$253,20,FALSE) -> 0% | I19: =VLOOKUP($C19,'RECAP SECT'!$G$6:$CU$253,21,FALSE) -> 1 | J19: =VLOOKUP($C19,'RECAP SECT'!$G$6:$CU$253,22,FALSE) -> 6,369 | K19: =VLOOKUP($C19,'RECAP SECT'!$G$6:$CU$253,23,FALSE) -> 93.79 | L19: =VLOOKUP($C19,'RECAP SECT'!$G$6:$CU$253,24,FALSE) -> 0% | M19: =VLOOKUP($C19,'RECAP SECT'!$G$6:$CU$253,25,FALSE) -> 1 | N19: =VLOOKUP($C19,'RECAP SECT'!$G$6:$CU$253,26,FALSE) -> 0% | O19: =VLOOKUP($C19,'RECAP SECT'!$G$6:$CU$253,27,FALSE) -> 0% | P19: =VLOOKUP($C19,'RECAP SECT'!$G$6:$CU$253,28,FALSE) -> 1
A20: 110 | B20: MEURTHE ET MOSELLE MEUSE | C20: 26 | D20: NANCY | E20: =VLOOKUP($C20,'RECAP SECT'!$G$6:$CU$253,3,FALSE) -> 55.0 | F20: =VLOOKUP($C20,'RECAP SECT'!$G$6:$CU$253,18,FALSE) -> 915 | G20: =VLOOKUP($C20,'RECAP SECT'!$G$6:$CU$253,19,FALSE) -> 16.65 | H20: =VLOOKUP($C20,'RECAP SECT'!$G$6:$CU$253,20,FALSE) -> 56% | I20: =VLOOKUP($C20,'RECAP SECT'!$G$6:$CU$253,21,FALSE) -> 13 | J20: =VLOOKUP($C20,'RECAP SECT'!$G$6:$CU$253,22,FALSE) -> 3,942 | K20: =VLOOKUP($C20,'RECAP SECT'!$G$6:$CU$253,23,FALSE) -> 71.72 | L20: =VLOOKUP($C20,'RECAP SECT'!$G$6:$CU$253,24,FALSE) -> 24% | M20: =VLOOKUP($C20,'RECAP SECT'!$G$6:$CU$253,25,FALSE) -> 7 | N20: =VLOOKUP($C20,'RECAP SECT'!$G$6:$CU$253,26,FALSE) -> 43% | O20: =VLOOKUP($C20,'RECAP SECT'!$G$6:$CU$253,27,FALSE) -> 43% | P20: =VLOOKUP($C20,'RECAP SECT'!$G$6:$CU$253,28,FALSE) -> 11
A21: 110 | B21: MEURTHE ET MOSELLE MEUSE | C21: 27 | D21: PONT A MOUSSON | E21: =VLOOKUP($C21,'RECAP SECT'!$G$6:$CU$253,3,FALSE) -> 59.5 | F21: =VLOOKUP($C21,'RECAP SECT'!$G$6:$CU$253,18,FALSE) -> 959 | G21: =VLOOKUP($C21,'RECAP SECT'!$G$6:$CU$253,19,FALSE) -> 16.11 | H21: =VLOOKUP($C21,'RECAP SECT'!$G$6:$CU$253,20,FALSE) -> 58% | I21: =VLOOKUP($C21,'RECAP SECT'!$G$6:$CU$253,21,FALSE) -> 14 | J21: =VLOOKUP($C21,'RECAP SECT'!$G$6:$CU$253,22,FALSE) -> 4,327 | K21: =VLOOKUP($C21,'RECAP SECT'!$G$6:$CU$253,23,FALSE) -> 72.70 | L21: =VLOOKUP($C21,'RECAP SECT'!$G$6:$CU$253,24,FALSE) -> 22% | M21: =VLOOKUP($C21,'RECAP SECT'!$G$6:$CU$253,25,FALSE) -> 6 | N21: =VLOOKUP($C21,'RECAP SECT'!$G$6:$CU$253,26,FALSE) -> 44% | O21: =VLOOKUP($C21,'RECAP SECT'!$G$6:$CU$253,27,FALSE) -> 44% | P21: =VLOOKUP($C21,'RECAP SECT'!$G$6:$CU$253,28,FALSE) -> 12
A22: 110 | B22: MEURTHE ET MOSELLE MEUSE | C22: 31 | D22: VERDUN | E22: =VLOOKUP($C22,'RECAP SECT'!$G$6:$CU$253,3,FALSE) -> 48.7 | F22: =VLOOKUP($C22,'RECAP SECT'!$G$6:$CU$253,18,FALSE) -> 1,031 | G22: =VLOOKUP($C22,'RECAP SECT'!$G$6:$CU$253,19,FALSE) -> 21.18 | H22: =VLOOKUP($C22,'RECAP SECT'!$G$6:$CU$253,20,FALSE) -> 44% | I22: =VLOOKUP($C22,'RECAP SECT'!$G$6:$CU$253,21,FALSE) -> 9 | J22: =VLOOKUP($C22,'RECAP SECT'!$G$6:$CU$253,22,FALSE) -> 3,329 | K22: =VLOOKUP($C22,'RECAP SECT'!$G$6:$CU$253,23,FALSE) -> 68.43 | L22: =VLOOKUP($C22,'RECAP SECT'!$G$6:$CU$253,24,FALSE) -> 27% | M22: =VLOOKUP($C22,'RECAP SECT'!$G$6:$CU$253,25,FALSE) -> 10 | N22: =VLOOKUP($C22,'RECAP SECT'!$G$6:$CU$253,26,FALSE) -> 37% | O22: =VLOOKUP($C22,'RECAP SECT'!$G$6:$CU$253,27,FALSE) -> 37% | P22: =VLOOKUP($C22,'RECAP SECT'!$G$6:$CU$253,28,FALSE) -> 7
A23: 160 | B23: MOSELLE | C23: 45 | D23: METZ | E23: =VLOOKUP($C23,'RECAP SECT'!$G$6:$CU$253,3,FALSE) -> 72.6 | F23: =VLOOKUP($C23,'RECAP SECT'!$G$6:$CU$253,18,FALSE) -> 1,399 | G23: =VLOOKUP($C23,'RECAP SECT'!$G$6:$CU$253,19,FALSE) -> 19.27 | H23: =VLOOKUP($C23,'RECAP SECT'!$G$6:$CU$253,20,FALSE) -> 49% | I23: =VLOOKUP($C23,'RECAP SECT'!$G$6:$CU$253,21,FALSE) -> 11 | J23: =VLOOKUP($C23,'RECAP SECT'!$G$6:$CU$253,22,FALSE) -> 5,088 | K23: =VLOOKUP($C23,'RECAP SECT'!$G$6:$CU$253,23,FALSE) -> 70.08 | L23: =VLOOKUP($C23,'RECAP SECT'!$G$6:$CU$253,24,FALSE) -> 25% | M23: =VLOOKUP($C23,'RECAP SECT'!$G$6:$CU$253,25,FALSE) -> 9 | N23: =VLOOKUP($C23,'RECAP SECT'!$G$6:$CU$253,26,FALSE) -> 40% | O23: =VLOOKUP($C23,'RECAP SECT'!$G$6:$CU$253,27,FALSE) -> 40% | P23: =VLOOKUP($C23,'RECAP SECT'!$G$6:$CU$253,28,FALSE) -> 9
A24: 160 | B24: MOSELLE | C24: 42 | D24: MOSELLE EST | E24: =VLOOKUP($C24,'RECAP SECT'!$G$6:$CU$253,3,FALSE) -> 57.8 | F24: =VLOOKUP($C24,'RECAP SECT'!$G$6:$CU$253,18,FALSE) -> 1,468 | G24: =VLOOKUP($C24,'RECAP SECT'!$G$6:$CU$253,19,FALSE) -> 25.40 | H24: =VLOOKUP($C24,'RECAP SECT'!$G$6:$CU$253,20,FALSE) -> 33% | I24: =VLOOKUP($C24,'RECAP SECT'!$G$6:$CU$253,21,FALSE) -> 4 | J24: =VLOOKUP($C24,'RECAP SECT'!$G$6:$CU$253,22,FALSE) -> 4,312 | K24: =VLOOKUP($C24,'RECAP SECT'!$G$6:$CU$253,23,FALSE) -> 74.60 | L24: =VLOOKUP($C24,'RECAP SECT'!$G$6:$CU$253,24,FALSE) -> 20% | M24: =VLOOKUP($C24,'RECAP SECT'!$G$6:$CU$253,25,FALSE) -> 4 | N24: =VLOOKUP($C24,'RECAP SECT'!$G$6:$CU$253,26,FALSE) -> 28% | O24: =VLOOKUP($C24,'RECAP SECT'!$G$6:$CU$253,27,FALSE) -> 28% | P24: =VLOOKUP($C24,'RECAP SECT'!$G$6:$CU$253,28,FALSE) -> 4
A25: 160 | B25: MOSELLE | C25: 44 | D25: MOSELLE NORD | E25: =VLOOKUP($C25,'RECAP SECT'!$G$6:$CU$253,3,FALSE) -> 55.5 | F25: =VLOOKUP($C25,'RECAP SECT'!$G$6:$CU$253,18,FALSE) -> 1,988 | G25: =VLOOKUP($C25,'RECAP SECT'!$G$6:$CU$253,19,FALSE) -> 35.83 | H25: =VLOOKUP($C25,'RECAP SECT'!$G$6:$CU$253,20,FALSE) -> 6% | I25: =VLOOKUP($C25,'RECAP SECT'!$G$6:$CU$253,21,FALSE) -> 2 | J25: =VLOOKUP($C25,'RECAP SECT'!$G$6:$CU$253,22,FALSE) -> 4,697 | K25: =VLOOKUP($C25,'RECAP SECT'!$G$6:$CU$253,23,FALSE) -> 84.66 | L25: =VLOOKUP($C25,'RECAP SECT'!$G$6:$CU$253,24,FALSE) -> 10% | M25: =VLOOKUP($C25,'RECAP SECT'!$G$6:$CU$253,25,FALSE) -> 2 | N25: =VLOOKUP($C25,'RECAP SECT'!$G$6:$CU$253,26,FALSE) -> 7% | O25: =VLOOKUP($C25,'RECAP SECT'!$G$6:$CU$253,27,FALSE) -> 7% | P25: =VLOOKUP($C25,'RECAP SECT'!$G$6:$CU$253,28,FALSE) -> 2
A26: 80 | B26: VOSGES | C26: 57 | D26: EPINAL | E26: =VLOOKUP($C26,'RECAP SECT'!$G$6:$CU$253,3,FALSE) -> 53.0 | F26: =VLOOKUP($C26,'RECAP SECT'!$G$6:$CU$253,18,FALSE) -> 1,149 | G26: =VLOOKUP($C26,'RECAP SECT'!$G$6:$CU$253,19,FALSE) -> 21.69 | H26: =VLOOKUP($C26,'RECAP SECT'!$G$6:$CU$253,20,FALSE) -> 43% | I26: =VLOOKUP($C26,'RECAP SECT'!$G$6:$CU$253,21,FALSE) -> 6 | J26: =VLOOKUP($C26,'RECAP SECT'!$G$6:$CU$253,22,FALSE) -> 3,329 | K26: =VLOOKUP($C26,'RECAP SECT'!$G$6:$CU$253,23,FALSE) -> 62.86 | L26: =VLOOKUP($C26,'RECAP SECT'!$G$6:$CU$253,24,FALSE) -> 33% | M26: =VLOOKUP($C26,'RECAP SECT'!$G$6:$CU$253,25,FALSE) -> 13 | N26: =VLOOKUP($C26,'RECAP SECT'!$G$6:$CU$253,26,FALSE) -> 39% | O26: =VLOOKUP($C26,'RECAP SECT'!$G$6:$CU$253,27,FALSE) -> 39% | P26: =VLOOKUP($C26,'RECAP SECT'!$G$6:$CU$253,28,FALSE) -> 8
A27: 80 | B27: VOSGES | C27: 55 | D27: SAINT DIE | E27: =VLOOKUP($C27,'RECAP SECT'!$G$6:$CU$253,3,FALSE) -> 40.1 | F27: =VLOOKUP($C27,'RECAP SECT'!$G$6:$CU$253,18,FALSE) -> 618 | G27: =VLOOKUP($C27,'RECAP SECT'!$G$6:$CU$253,19,FALSE) -> 15.42 | H27: =VLOOKUP($C27,'RECAP SECT'!$G$6:$CU$253,20,FALSE) -> 59% | I27: =VLOOKUP($C27,'RECAP SECT'!$G$6:$CU$253,21,FALSE) -> 15 | J27: =VLOOKUP($C27,'RECAP SECT'!$G$6:$CU$253,22,FALSE) -> 2,187 | K27: =VLOOKUP($C27,'RECAP SECT'!$G$6:$CU$253,23,FALSE) -> 54.54 | L27: =VLOOKUP($C27,'RECAP SECT'!$G$6:$CU$253,24,FALSE) -> 42% | M27: =VLOOKUP($C27,'RECAP SECT'!$G$6:$CU$253,25,FALSE) -> 17 | N27: =VLOOKUP($C27,'RECAP SECT'!$G$6:$CU$253,26,FALSE) -> 52% | O27: =VLOOKUP($C27,'RECAP SECT'!$G$6:$CU$253,27,FALSE) -> 52% | P27: =VLOOKUP($C27,'RECAP SECT'!$G$6:$CU$253,28,FALSE) -> 15
A28: Total CEGEE Directions Régionales | E28: =SUM(E10:E27) -> 946

Sheet SE_EPARGNE
B1: Accueil | F1: BAROMETRE BDD - TERRITOIRES
F2: EPARGNE
F3: =ACCUEIL!F7 -> 2022-11-13
F7: Excédent Epargne hors DAV pondéré | J7: Ventes sur client non détenteur de l’univers | N7: Total Epargne
F8: =DATEMAJ!C14 -> au 13/11 | H8: coef | I8: ='RECAP DIRCOM'!AP4 -> 12% | J8: =DATEMAJ!C15 -> au 13/11 | L8: coef | M8: ='RECAP DIRCOM'!AT4 -> 8% | O8: coef | P8: ='RECAP DIRCOM'!AW4 -> 20%
A9: eds | B9: Direction | C9: eds | D9: Territoire | E9: ="ETP perf "&DATEMAJ!$C$28 -> ETP perf 13-nov | F9: Excédent | G9: Excédent / ETP | H9: % Ecart au 1er | I9: Rang | J9: VB | K9: VB / ETP | L9: % Ecart au 1er | M9: Rang | N9: Moyenne ecart au 1er | O9: % Ecart au 1er | P9: Rang CEGEE
A10: 50 | B10: AUBE HAUTE MARNE | C10: 21 | D10: CHAUMONT | E10: =VLOOKUP($C10,'RECAP SECT'!$G$6:$CU$253,3,FALSE) -> 33.6 | F10: =VLOOKUP($C10,'RECAP SECT'!$G$6:$CU$253,33,FALSE) -> 13,790 | G10: =VLOOKUP($C10,'RECAP SECT'!$G$6:$CU$253,34,FALSE) -> 410.90 | H10: =VLOOKUP($C10,'RECAP SECT'!$G$6:$CU$253,35,FALSE) -> 18% | I10: =VLOOKUP($C10,'RECAP SECT'!$G$6:$CU$253,36,FALSE) -> 4 | J10: =VLOOKUP($C10,'RECAP SECT'!$G$6:$CU$253,37,FALSE) -> 2,094 | K10: =VLOOKUP($C10,'RECAP SECT'!$G$6:$CU$253,38,FALSE) -> 62.40 | L10: =VLOOKUP($C10,'RECAP SECT'!$G$6:$CU$253,39,FALSE) -> 32% | M10: =VLOOKUP($C10,'RECAP SECT'!$G$6:$CU$253,40,FALSE) -> 10 | N10: =VLOOKUP($C10,'RECAP SECT'!$G$6:$CU$253,41,FALSE) -> 24% | O10: =VLOOKUP($C10,'RECAP SECT'!$G$6:$CU$253,42,FALSE) -> 18% | P10: =VLOOKUP($C10,'RECAP SECT'!$G$6:$CU$253,43,FALSE) -> 6
A11: 50 | B11: AUBE HAUTE MARNE | C11: 14 | D11: TROYES | E11: =VLOOKUP($C11,'RECAP SECT'!$G$6:$CU$253,3,FALSE) -> 53.9 | F11: =VLOOKUP($C11,'RECAP SECT'!$G$6:$CU$253,33,FALSE) -> 2,469 | G11: =VLOOKUP($C11,'RECAP SECT'!$G$6:$CU$253,34,FALSE) -> 45.84 | H11: =VLOOKUP($C11,'RECAP SECT'!$G$6:$CU$253,35,FALSE) -> 91% | I11: =VLOOKUP($C11,'RECAP SECT'!$G$6:$CU$253,36,FALSE) -> 16 | J11: =VLOOKUP($C11,'RECAP SECT'!$G$6:$CU$253,37,FALSE) -> 3,263 | K11: =VLOOKUP($C11,'RECAP SECT'!$G$6:$CU$253,38,FALSE) -> 60.58 | L11: =VLOOKUP($C11,'RECAP SECT'!$G$6:$CU$253,39,FALSE) -> 34% | M11: =VLOOKUP($C11,'RECAP SECT'!$G$6:$CU$253,40,FALSE) -> 13 | N11: =VLOOKUP($C11,'RECAP SECT'!$G$6:$CU$253,41,FALSE) -> 68% | O11: =VLOOKUP($C11,'RECAP SECT'!$G$6:$CU$253,42,FALSE) -> 63% | P11: =VLOOKUP($C11,'RECAP SECT'!$G$6:$CU$253,43,FALSE) -> 16
A12: 262 | B12: BAS-RHIN | C12: 5060 | D12: HAGUENAU | E12: =VLOOKUP($C12,'RECAP SECT'!$G$6:$CU$253,3,FALSE) -> 55.6 | F12: =VLOOKUP($C12,'RECAP SECT'!$G$6:$CU$253,33,FALSE) -> 15,388 | G12: =VLOOKUP($C12,'RECAP SECT'!$G$6:$CU$253,34,FALSE) -> 277.01 | H12: =VLOOKUP($C12,'RECAP SECT'!$G$6:$CU$253,35,FALSE) -> 44% | I12: =VLOOKUP($C12,'RECAP SECT'!$G$6:$CU$253,36,FALSE) -> 12 | J12: =VLOOKUP($C12,'RECAP SECT'!$G$6:$CU$253,37,FALSE) -> 3,220 | K12: =VLOOKUP($C12,'RECAP SECT'!$G$6:$CU$253,38,FALSE) -> 57.97 | L12: =VLOOKUP($C12,'RECAP SECT'!$G$6:$CU$253,39,FALSE) -> 37% | M12: =VLOOKUP($C12,'RECAP SECT'!$G$6:$CU$253,40,FALSE) -> 14 | N12: =VLOOKUP($C12,'RECAP SECT'!$G$6:$CU$253,41,FALSE) -> 42% | O12: =VLOOKUP($C12,'RECAP SECT'!$G$6:$CU$253,42,FALSE) -> 36% | P12: =VLOOKUP($C12,'RECAP SECT'!$G$6:$CU$253,43,FALSE) -> 14
A13: 262 | B13: BAS-RHIN | C13: 5101 | D13: SELESTAT | E13: =VLOOKUP($C13,'RECAP SECT'!$G$6:$CU$253,3,FALSE) -> 50.8 | F13: =VLOOKUP($C13,'RECAP SECT'!$G$6:$CU$253,33,FALSE) -> 15,366 | G13: =VLOOKUP($C13,'RECAP SECT'!$G$6:$CU$253,34,FALSE) -> 302.66 | H13: =VLOOKUP($C13,'RECAP SECT'!$G$6:$CU$253,35,FALSE) -> 39% | I13: =VLOOKUP($C13,'RECAP SECT'!$G$6:$CU$253,36,FALSE) -> 11 | J13: =VLOOKUP($C13,'RECAP SECT'!$G$6:$CU$253,37,FALSE) -> 2,933 | K13: =VLOOKUP($C13,'RECAP SECT'!$G$6:$CU$253,38,FALSE) -> 57.77 | L13: =VLOOKUP($C13,'RECAP SECT'!$G$6:$CU$253,39,FALSE) -> 37% | M13: =VLOOKUP($C13,'RECAP SECT'!$G$6:$CU$253,40,FALSE) -> 15 | N13: =VLOOKUP($C13,'RECAP SECT'!$G$6:$CU$253,41,FALSE) -> 39% | O13: =VLOOKUP($C13,'RECAP SECT'!$G$6:$CU$253,42,FALSE) -> 33% | P13: =VLOOKUP($C13,'RECAP SECT'!$G$6:$CU$253,43,FALSE) -> 12
A14: 262 | B14: BAS-RHIN | C14: 5006 | D14: STRASBOURG | E14: =VLOOKUP($C14,'RECAP SECT'!$G$6:$CU$253,3,FALSE) -> 64.8 | F14: =VLOOKUP($C14,'RECAP SECT'!$G$6:$CU$253,33,FALSE) -> 31,622 | G14: =VLOOKUP($C14,'RECAP SECT'!$G$6:$CU$253,34,FALSE) -> 488.07 | H14: =VLOOKUP($C14,'RECAP SECT'!$G$6:$CU$253,35,FALSE) -> 2% | I14: =VLOOKUP($C14,'RECAP SECT'!$G$6:$CU$253,36,FALSE) -> 2 | J14: =VLOOKUP($C14,'RECAP SECT'!$G$6:$CU$253,37,FALSE) -> 5,332 | K14: =VLOOKUP($C14,'RECAP SECT'!$G$6:$CU$253,38,FALSE) -> 82.30 | L14: =VLOOKUP($C14,'RECAP SECT'!$G$6:$CU$253,39,FALSE) -> 11% | M14: =VLOOKUP($C14,'RECAP SECT'!$G$6:$CU$253,40,FALSE) -> 4 | N14: =VLOOKUP($C14,'RECAP SECT'!$G$6:$CU$253,41,FALSE) -> 6% | O14: =VLOOKUP($C14,'RECAP SECT'!$G$6:$CU$253,42,FALSE) -> 0% | P14: =VLOOKUP($C14,'RECAP SECT'!$G$6:$CU$253,43,FALSE) -> 1
A15: 264 | B15: HAUT-RHIN | C15: 5130 | D15: COLMAR | E15: =VLOOKUP($C15,'RECAP SECT'!$G$6:$CU$253,3,FALSE) -> 45.6 | F15: =VLOOKUP($C15,'RECAP SECT'!$G$6:$CU$253,33,FALSE) -> 1,091 | G15: =VLOOKUP($C15,'RECAP SECT'!$G$6:$CU$253,34,FALSE) -> 23.93 | H15: =VLOOKUP($C15,'RECAP SECT'!$G$6:$CU$253,35,FALSE) -> 95% | I15: =VLOOKUP($C15,'RECAP SECT'!$G$6:$CU$253,36,FALSE) -> 17 | J15: =VLOOKUP($C15,'RECAP SECT'!$G$6:$CU$253,37,FALSE) -> 2,159 | K15: =VLOOKUP($C15,'RECAP SECT'!$G$6:$CU$253,38,FALSE) -> 47.37 | L15: =VLOOKUP($C15,'RECAP SECT'!$G$6:$CU$253,39,FALSE) -> 49% | M15: =VLOOKUP($C15,'RECAP SECT'!$G$6:$CU$253,40,FALSE) -> 18 | N15: =VLOOKUP($C15,'RECAP SECT'!$G$6:$CU$253,41,FALSE) -> 77% | O15: =VLOOKUP($C15,'RECAP SECT'!$G$6:$CU$253,42,FALSE) -> 71% | P15: =VLOOKUP($C15,'RECAP SECT'!$G$6:$CU$253,43,FALSE) -> 17
A16: 264 | B16: HAUT-RHIN | C16: 5169 | D16: MULHOUSE | E16: =VLOOKUP($C16,'RECAP SECT'!$G$6:$CU$253,3,FALSE) -> 46.8 | F16: =VLOOKUP($C16,'RECAP SECT'!$G$6:$CU$253,33,FALSE) -> -2,355 | G16: =VLOOKUP($C16,'RECAP SECT'!$G$6:$CU$253,34,FALSE) -> -50.29 | H16: =VLOOKUP($C16,'RECAP SECT'!$G$6:$CU$253,35,FALSE) -> 110% | I16: =VLOOKUP($C16,'RECAP SECT'!$G$6:$CU$253,36,FALSE) -> 18 | J16: =VLOOKUP($C16,'RECAP SECT'!$G$6:$CU$253,37,FALSE) -> 2,548 | K16: =VLOOKUP($C16,'RECAP SECT'!$G$6:$CU$253,38,FALSE) -> 54.41 | L16: =VLOOKUP($C16,'RECAP SECT'!$G$6:$CU$253,39,FALSE) -> 41% | M16: =VLOOKUP($C16,'RECAP SECT'!$G$6:$CU$253,40,FALSE) -> 16 | N16: =VLOOKUP($C16,'RECAP SECT'!$G$6:$CU$253,41,FALSE) -> 82% | O16: =VLOOKUP($C16,'RECAP SECT'!$G$6:$CU$253,42,FALSE) -> 77% | P16: =VLOOKUP($C16,'RECAP SECT'!$G$6:$CU$253,43,FALSE) -> 18
A17: 30 | B17: MARNE-ARDENNES | C17: 6 | D17: CHALONS EN CHAMPAGNE | E17: =VLOOKUP($C17,'RECAP SECT'!$G$6:$CU$253,3,FALSE) -> 37.4 | F17: =VLOOKUP($C17,'RECAP SECT'!$G$6:$CU$253,33,FALSE) -> 13,151 | G17: =VLOOKUP($C17,'RECAP SECT'!$G$6:$CU$253,34,FALSE) -> 352.10 | H17: =VLOOKUP($C17,'RECAP SECT'!$G$6:$CU$253,35,FALSE) -> 29% | I17: =VLOOKUP($C17,'RECAP SECT'!$G$6:$CU$253,36,FALSE) -> 8 | J17: =VLOOKUP($C17,'RECAP SECT'!$G$6:$CU$253,37,FALSE) -> 2,917 | K17: =VLOOKUP($C17,'RECAP SECT'!$G$6:$CU$253,38,FALSE) -> 78.10 | L17: =VLOOKUP($C17,'RECAP SECT'!$G$6:$CU$253,39,FALSE) -> 15% | M17: =VLOOKUP($C17,'RECAP SECT'!$G$6:$CU$253,40,FALSE) -> 6 | N17: =VLOOKUP($C17,'RECAP SECT'!$G$6:$CU$253,41,FALSE) -> 24% | O17: =VLOOKUP($C17,'RECAP SECT'!$G$6:$CU$253,42,FALSE) -> 18% | P17: =VLOOKUP($C17,'RECAP SECT'!$G$6:$CU$253,43,FALSE) -> 7
A18: 30 | B18: MARNE-ARDENNES | C18: 2 | D18: CHARLEVILLE MEZIERES | E18: =VLOOKUP($C18,'RECAP SECT'!$G$6:$CU$253,3,FALSE) -> 48.2 | F18: =VLOOKUP($C18,'RECAP SECT'!$G$6:$CU$253,33,FALSE) -> 17,457 | G18: =VLOOKUP($C18,'RECAP SECT'!$G$6:$CU$253,34,FALSE) -> 362.18 | H18: =VLOOKUP($C18,'RECAP SECT'!$G$6:$CU$253,35,FALSE) -> 27% | I18: =VLOOKUP($C18,'RECAP SECT'!$G$6:$CU$253,36,FALSE) -> 7 | J18: =VLOOKUP($C18,'RECAP SECT'!$G$6:$CU$253,37,FALSE) -> 4,026 | K18: =VLOOKUP($C18,'RECAP SECT'!$G$6:$CU$253,38,FALSE) -> 83.53 | L18: =VLOOKUP($C18,'RECAP SECT'!$G$6:$CU$253,39,FALSE) -> 10% | M18: =VLOOKUP($C18,'RECAP SECT'!$G$6:$CU$253,40,FALSE) -> 3 | N18: =VLOOKUP($C18,'RECAP SECT'!$G$6:$CU$253,41,FALSE) -> 20% | O18: =VLOOKUP($C18,'RECAP SECT'!$G$6:$CU$253,42,FALSE) -> 15% | P18: =VLOOKUP($C18,'RECAP SECT'!$G$6:$CU$253,43,FALSE) -> 4
A19: 30 | B19: MARNE-ARDENNES | C19: 11 | D19: REIMS | E19: =VLOOKUP($C19,'RECAP SECT'!$G$6:$CU$253,3,FALSE) -> 67.9 | F19: =VLOOKUP($C19,'RECAP SECT'!$G$6:$CU$253,33,FALSE) -> 22,633 | G19: =VLOOKUP($C19,'RECAP SECT'!$G$6:$CU$253,34,FALSE) -> 333.28 | H19: =VLOOKUP($C19,'RECAP SECT'!$G$6:$CU$253,35,FALSE) -> 33% | I19: =VLOOKUP($C19,'RECAP SECT'!$G$6:$CU$253,36,FALSE) -> 9 | J19: =VLOOKUP($C19,'RECAP SECT'!$G$6:$CU$253,37,FALSE) -> 5,939 | K19: =VLOOKUP($C19,'RECAP SECT'!$G$6:$CU$253,38,FALSE) -> 87.45 | L19: =VLOOKUP($C19,'RECAP SECT'!$G$6:$CU$253,39,FALSE) -> 5% | M19: =VLOOKUP($C19,'RECAP SECT'!$G$6:$CU$253,40,FALSE) -> 2 | N19: =VLOOKUP($C19,'RECAP SECT'!$G$6:$CU$253,41,FALSE) -> 22% | O19: =VLOOKUP($C19,'RECAP SECT'!$G$6:$CU$253,42,FALSE) -> 16% | P19: =VLOOKUP($C19,'RECAP SECT'!$G$6:$CU$253,43,FALSE) -> 5
A20: 110 | B20: MEURTHE ET MOSELLE MEUSE | C20: 26 | D20: NANCY | E20: =VLOOKUP($C20,'RECAP SECT'!$G$6:$CU$253,3,FALSE) -> 55.0 | F20: =VLOOKUP($C20,'RECAP SECT'!$G$6:$CU$253,33,FALSE) -> 24,963 | G20: =VLOOKUP($C20,'RECAP SECT'!$G$6:$CU$253,34,FALSE) -> 454.20 | H20: =VLOOKUP($C20,'RECAP SECT'!$G$6:$CU$253,35,FALSE) -> 9% | I20: =VLOOKUP($C20,'RECAP SECT'!$G$6:$CU$253,36,FALSE) -> 3 | J20: =VLOOKUP($C20,'RECAP SECT'!$G$6:$CU$253,37,FALSE) -> 3,792 | K20: =VLOOKUP($C20,'RECAP SECT'!$G$6:$CU$253,38,FALSE) -> 69.00 | L20: =VLOOKUP($C20,'RECAP SECT'!$G$6:$CU$253,39,FALSE) -> 25% | M20: =VLOOKUP($C20,'RECAP SECT'!$G$6:$CU$253,40,FALSE) -> 8 | N20: =VLOOKUP($C20,'RECAP SECT'!$G$6:$CU$253,41,FALSE) -> 15% | O20: =VLOOKUP($C20,'RECAP SECT'!$G$6:$CU$253,42,FALSE) -> 10% | P20: =VLOOKUP($C20,'RECAP SECT'!$G$6:$CU$253,43,FALSE) -> 3
A21: 110 | B21: MEURTHE ET MOSELLE MEUSE | C21: 27 | D21: PONT A MOUSSON | E21: =VLOOKUP($C21,'RECAP SECT'!$G$6:$CU$253,3,FALSE) -> 59.5 | F21: =VLOOKUP($C21,'RECAP SECT'!$G$6:$CU$253,33,FALSE) -> 22,711 | G21: =VLOOKUP($C21,'RECAP SECT'!$G$6:$CU$253,34,FALSE) -> 381.57 | H21: =VLOOKUP($C21,'RECAP SECT'!$G$6:$CU$253,35,FALSE) -> 24% | I21: =VLOOKUP($C21,'RECAP SECT'!$G$6:$CU$253,36,FALSE) -> 6 | J21: =VLOOKUP($C21,'RECAP SECT'!$G$6:$CU$253,37,FALSE) -> 3,730 | K21: =VLOOKUP($C21,'RECAP SECT'!$G$6:$CU$253,38,FALSE) -> 62.67 | L21: =VLOOKUP($C21,'RECAP SECT'!$G$6:$CU$253,39,FALSE) -> 32% | M21: =VLOOKUP($C21,'RECAP SECT'!$G$6:$CU$253,40,FALSE) -> 9 | N21: =VLOOKUP($C21,'RECAP SECT'!$G$6:$CU$253,41,FALSE) -> 27% | O21: =VLOOKUP($C21,'RECAP SECT'!$G$6:$CU$253,42,FALSE) -> 21% | P21: =VLOOKUP($C21,'RECAP SECT'!$G$6:$CU$253,43,FALSE) -> 9
A22: 110 | B22: MEURTHE ET MOSELLE MEUSE | C22: 31 | D22: VERDUN | E22: =VLOOKUP($C22,'RECAP SECT'!$G$6:$CU$253,3,FALSE) -> 48.7 | F22: =VLOOKUP($C22,'RECAP SECT'!$G$6:$CU$253,33,FALSE) -> 14,950 | G22: =VLOOKUP($C22,'RECAP SECT'!$G$6:$CU$253,34,FALSE) -> 307.29 | H22: =VLOOKUP($C22,'RECAP SECT'!$G$6:$CU$253,35,FALSE) -> 38% | I22: =VLOOKUP($C22,'RECAP SECT'!$G$6:$CU$253,36,FALSE) -> 10 | J22: =VLOOKUP($C22,'RECAP SECT'!$G$6:$CU$253,37,FALSE) -> 3,019 | K22: =VLOOKUP($C22,'RECAP SECT'!$G$6:$CU$253,38,FALSE) -> 62.06 | L22: =VLOOKUP($C22,'RECAP SECT'!$G$6:$CU$253,39,FALSE) -> 33% | M22: =VLOOKUP($C22,'RECAP SECT'!$G$6:$CU$253,40,FALSE) -> 11 | N22: =VLOOKUP($C22,'RECAP SECT'!$G$6:$CU$253,41,FALSE) -> 36% | O22: =VLOOKUP($C22,'RECAP SECT'!$G$6:$CU$253,42,FALSE) -> 31% | P22: =VLOOKUP($C22,'RECAP SECT'!$G$6:$CU$253,43,FALSE) -> 11
A23: 160 | B23: MOSELLE | C23: 45 | D23: METZ | E23: =VLOOKUP($C23,'RECAP SECT'!$G$6:$CU$253,3,FALSE) -> 72.6 | F23: =VLOOKUP($C23,'RECAP SECT'!$G$6:$CU$253,33,FALSE) -> 36,225 | G23: =VLOOKUP($C23,'RECAP SECT'!$G$6:$CU$253,34,FALSE) -> 498.97 | H23: =VLOOKUP($C23,'RECAP SECT'!$G$6:$CU$253,35,FALSE) -> 0% | I23: =VLOOKUP($C23,'RECAP SECT'!$G$6:$CU$253,36,FALSE) -> 1 | J23: =VLOOKUP($C23,'RECAP SECT'!$G$6:$CU$253,37,FALSE) -> 5,510 | K23: =VLOOKUP($C23,'RECAP SECT'!$G$6:$CU$253,38,FALSE) -> 75.90 | L23: =VLOOKUP($C23,'RECAP SECT'!$G$6:$CU$253,39,FALSE) -> 18% | M23: =VLOOKUP($C23,'RECAP SECT'!$G$6:$CU$253,40,FALSE) -> 7 | N23: =VLOOKUP($C23,'RECAP SECT'!$G$6:$CU$253,41,FALSE) -> 7% | O23: =VLOOKUP($C23,'RECAP SECT'!$G$6:$CU$253,42,FALSE) -> 1% | P23: =VLOOKUP($C23,'RECAP SECT'!$G$6:$CU$253,43,FALSE) -> 2
A24: 160 | B24: MOSELLE | C24: 42 | D24: MOSELLE EST | E24: =VLOOKUP($C24,'RECAP SECT'!$G$6:$CU$253,3,FALSE) -> 57.8 | F24: =VLOOKUP($C24,'RECAP SECT'!$G$6:$CU$253,33,FALSE) -> 11,565 | G24: =VLOOKUP($C24,'RECAP SECT'!$G$6:$CU$253,34,FALSE) -> 200.08 | H24: =VLOOKUP($C24,'RECAP SECT'!$G$6:$CU$253,35,FALSE) -> 60% | I24: =VLOOKUP($C24,'RECAP SECT'!$G$6:$CU$253,36,FALSE) -> 15 | J24: =VLOOKUP($C24,'RECAP SECT'!$G$6:$CU$253,37,FALSE) -> 4,614 | K24: =VLOOKUP($C24,'RECAP SECT'!$G$6:$CU$253,38,FALSE) -> 79.83 | L24: =VLOOKUP($C24,'RECAP SECT'!$G$6:$CU$253,39,FALSE) -> 14% | M24: =VLOOKUP($C24,'RECAP SECT'!$G$6:$CU$253,40,FALSE) -> 5 | N24: =VLOOKUP($C24,'RECAP SECT'!$G$6:$CU$253,41,FALSE) -> 41% | O24: =VLOOKUP($C24,'RECAP SECT'!$G$6:$CU$253,42,FALSE) -> 36% | P24: =VLOOKUP($C24,'RECAP SECT'!$G$6:$CU$253,43,FALSE) -> 13
A25: 160 | B25: MOSELLE | C25: 44 | D25: MOSELLE NORD | E25: =VLOOKUP($C25,'RECAP SECT'!$G$6:$CU$253,3,FALSE) -> 55.5 | F25: =VLOOKUP($C25,'RECAP SECT'!$G$6:$CU$253,33,FALSE) -> 11,210 | G25: =VLOOKUP($C25,'RECAP SECT'!$G$6:$CU$253,34,FALSE) -> 202.05 | H25: =VLOOKUP($C25,'RECAP SECT'!$G$6:$CU$253,35,FALSE) -> 60% | I25: =VLOOKUP($C25,'RECAP SECT'!$G$6:$CU$253,36,FALSE) -> 14 | J25: =VLOOKUP($C25,'RECAP SECT'!$G$6:$CU$253,37,FALSE) -> 5,121 | K25: =VLOOKUP($C25,'RECAP SECT'!$G$6:$CU$253,38,FALSE) -> 92.30 | L25: =VLOOKUP($C25,'RECAP SECT'!$G$6:$CU$253,39,FALSE) -> 0% | M25: =VLOOKUP($C25,'RECAP SECT'!$G$6:$CU$253,40,FALSE) -> 1 | N25: =VLOOKUP($C25,'RECAP SECT'!$G$6:$CU$253,41,FALSE) -> 36% | O25: =VLOOKUP($C25,'RECAP SECT'!$G$6:$CU$253,42,FALSE) -> 30% | P25: =VLOOKUP($C25,'RECAP SECT'!$G$6:$CU$253,43,FALSE) -> 10
A26: 80 | B26: VOSGES | C26: 57 | D26: EPINAL | E26: =VLOOKUP($C26,'RECAP SECT'!$G$6:$CU$253,3,FALSE) -> 53.0 | F26: =VLOOKUP($C26,'RECAP SECT'!$G$6:$CU$253,33,FALSE) -> 21,637 | G26: =VLOOKUP($C26,'RECAP SECT'!$G$6:$CU$253,34,FALSE) -> 408.56 | H26: =VLOOKUP($C26,'RECAP SECT'!$G$6:$CU$253,35,FALSE) -> 18% | I26: =VLOOKUP($C26,'RECAP SECT'!$G$6:$CU$253,36,FALSE) -> 5 | J26: =VLOOKUP($C26,'RECAP SECT'!$G$6:$CU$253,37,FALSE) -> 3,244 | K26: =VLOOKUP($C26,'RECAP SECT'!$G$6:$CU$253,38,FALSE) -> 61.25 | L26: =VLOOKUP($C26,'RECAP SECT'!$G$6:$CU$253,39,FALSE) -> 34% | M26: =VLOOKUP($C26,'RECAP SECT'!$G$6:$CU$253,40,FALSE) -> 12 | N26: =VLOOKUP($C26,'RECAP SECT'!$G$6:$CU$253,41,FALSE) -> 24% | O26: =VLOOKUP($C26,'RECAP SECT'!$G$6:$CU$253,42,FALSE) -> 19% | P26: =VLOOKUP($C26,'RECAP SECT'!$G$6:$CU$253,43,FALSE) -> 8
A27: 80 | B27: VOSGES | C27: 55 | D27: SAINT DIE | E27: =VLOOKUP($C27,'RECAP SECT'!$G$6:$CU$253,3,FALSE) -> 40.1 | F27: =VLOOKUP($C27,'RECAP SECT'!$G$6:$CU$253,33,FALSE) -> 10,127 | G27: =VLOOKUP($C27,'RECAP SECT'!$G$6:$CU$253,34,FALSE) -> 252.55 | H27: =VLOOKUP($C27,'RECAP SECT'!$G$6:$CU$253,35,FALSE) -> 49% | I27: =VLOOKUP($C27,'RECAP SECT'!$G$6:$CU$253,36,FALSE) -> 13 | J27: =VLOOKUP($C27,'RECAP SECT'!$G$6:$CU$253,37,FALSE) -> 2,032 | K27: =VLOOKUP($C27,'RECAP SECT'!$G$6:$CU$253,38,FALSE) -> 50.67 | L27: =VLOOKUP($C27,'RECAP SECT'!$G$6:$CU$253,39,FALSE) -> 45% | M27: =VLOOKUP($C27,'RECAP SECT'!$G$6:$CU$253,40,FALSE) -> 17 | N27: =VLOOKUP($C27,'RECAP SECT'!$G$6:$CU$253,41,FALSE) -> 48% | O27: =VLOOKUP($C27,'RECAP SECT'!$G$6:$CU$253,42,FALSE) -> 42% | P27: =VLOOKUP($C27,'RECAP SECT'!$G$6:$CU$253,43,FALSE) -> 15
A28: Total CEGEE Directions Régionales | E28: =SUM(E10:E27) -> 946

Sheet SE_CREDIT
B1: Accueil | F1: BAROMETRE BDD - TERRITOIRES
F2: CREDITS
F3: =ACCUEIL!F7 -> 2022-11-13
F7: Engagements et ventes accessoires pondérés Immo | J7: Engagements et ventes accessoires pondérés Conso | N7: Ventes sur client non détenteur de l’univers | R7: Total Crédits
F8: =DATEMAJ!C18 -> au 13/11 | H8: coef | I8: ='RECAP DIRCOM'!BE4 -> 6% | J8: =DATEMAJ!C19 -> au 13/11 | L8: coef | M8: ='RECAP DIRCOM'!BI4 -> 6% | N8: =DATEMAJ!C20 -> au 13/11 | P8: coef | Q8: ='RECAP DIRCOM'!BM4 -> 8% | S8: coef | T8: ='RECAP DIRCOM'!BP4 -> 20%
B9: Direction | C9: eds | D9: Territoire | E9: ="ETP perf "&DATEMAJ!$C$28 -> ETP perf 13-nov | F9: PNB | G9: PNB / ETP | H9: % Ecart au 1er | I9: Rang | J9: PNB | K9: PNB / ETP | L9: % Ecart au 1er | M9: Rang | N9: VB | O9: VB / ETP | P9: % Ecart au 1er | Q9: Rang | R9: Moyenne ecart au 1er | S9: % Ecart au 1er | T9: Rang CEGEE
A10: 50 | B10: AUBE HAUTE MARNE | C10: 21 | D10: CHAUMONT | E10: =VLOOKUP($C10,'RECAP SECT'!$G$6:$CU$253,3,FALSE) -> 33.6 | F10: =VLOOKUP($C10,'RECAP SECT'!$G$6:$CU$253,48,FALSE) -> 8,049 | G10: =VLOOKUP($C10,'RECAP SECT'!$G$6:$CU$253,49,FALSE) -> 239.83 | H10: =VLOOKUP($C10,'RECAP SECT'!$G$6:$CU$253,50,FALSE) -> 63% | I10: =VLOOKUP($C10,'RECAP SECT'!$G$6:$CU$253,51,FALSE) -> 13 | J10: =VLOOKUP($C10,'RECAP SECT'!$G$6:$CU$253,52,FALSE) -> 2,063 | K10: =VLOOKUP($C10,'RECAP SECT'!$G$6:$CU$253,53,FALSE) -> 61.48 | L10: =VLOOKUP($C10,'RECAP SECT'!$G$6:$CU$253,54,FALSE) -> 5% | M10: =VLOOKUP($C10,'RECAP SECT'!$G$6:$CU$253,55,FALSE) -> 4 | N10: =VLOOKUP($C10,'RECAP SECT'!$G$6:$CU$253,56,FALSE) -> 855 | O10: =VLOOKUP($C10,'RECAP SECT'!$G$6:$CU$253,57,FALSE) -> 25.48 | P10: =VLOOKUP($C10,'RECAP SECT'!$G$6:$CU$253,58,FALSE) -> 43% | Q10: =VLOOKUP($C10,'RECAP SECT'!$G$6:$CU$253,59,FALSE) -> 11 | R10: =VLOOKUP($C10,'RECAP SECT'!$G$6:$CU$253,60,FALSE) -> 38% | S10: =VLOOKUP($C10,'RECAP SECT'!$G$6:$CU$253,61,FALSE) -> 34% | T10: =VLOOKUP($C10,'RECAP SECT'!$G$6:$CU$253,62,FALSE) -> 10
A11: 50 | B11: AUBE HAUTE MARNE | C11: 14 | D11: TROYES | E11: =VLOOKUP($C11,'RECAP SECT'!$G$6:$CU$253,3,FALSE) -> 53.9 | F11: =VLOOKUP($C11,'RECAP SECT'!$G$6:$CU$253,48,FALSE) -> 12,739 | G11: =VLOOKUP($C11,'RECAP SECT'!$G$6:$CU$253,49,FALSE) -> 236.51 | H11: =VLOOKUP($C11,'RECAP SECT'!$G$6:$CU$253,50,FALSE) -> 64% | I11: =VLOOKUP($C11,'RECAP SECT'!$G$6:$CU$253,51,FALSE) -> 16 | J11: =VLOOKUP($C11,'RECAP SECT'!$G$6:$CU$253,52,FALSE) -> 2,934 | K11: =VLOOKUP($C11,'RECAP SECT'!$G$6:$CU$253,53,FALSE) -> 54.47 | L11: =VLOOKUP($C11,'RECAP SECT'!$G$6:$CU$253,54,FALSE) -> 16% | M11: =VLOOKUP($C11,'RECAP SECT'!$G$6:$CU$253,55,FALSE) -> 11 | N11: =VLOOKUP($C11,'RECAP SECT'!$G$6:$CU$253,56,FALSE) -> 1,230 | O11: =VLOOKUP($C11,'RECAP SECT'!$G$6:$CU$253,57,FALSE) -> 22.84 | P11: =VLOOKUP($C11,'RECAP SECT'!$G$6:$CU$253,58,FALSE) -> 49% | Q11: =VLOOKUP($C11,'RECAP SECT'!$G$6:$CU$253,59,FALSE) -> 14 | R11: =VLOOKUP($C11,'RECAP SECT'!$G$6:$CU$253,60,FALSE) -> 44% | S11: =VLOOKUP($C11,'RECAP SECT'!$G$6:$CU$253,61,FALSE) -> 39% | T11: =VLOOKUP($C11,'RECAP SECT'!$G$6:$CU$253,62,FALSE) -> 14
A12: 262 | B12: BAS-RHIN | C12: 5060 | D12: HAGUENAU | E12: =VLOOKUP($C12,'RECAP SECT'!$G$6:$CU$253,3,FALSE) -> 55.6 | F12: =VLOOKUP($C12,'RECAP SECT'!$G$6:$CU$253,48,FALSE) -> 11,063 | G12: =VLOOKUP($C12,'RECAP SECT'!$G$6:$CU$253,49,FALSE) -> 199.15 | H12: =VLOOKUP($C12,'RECAP SECT'!$G$6:$CU$253,50,FALSE) -> 70% | I12: =VLOOKUP($C12,'RECAP SECT'!$G$6:$CU$253,51,FALSE) -> 18 | J12: =VLOOKUP($C12,'RECAP SECT'!$G$6:$CU$253,52,FALSE) -> 2,994 | K12: =VLOOKUP($C12,'RECAP SECT'!$G$6:$CU$253,53,FALSE) -> 53.90 | L12: =VLOOKUP($C12,'RECAP SECT'!$G$6:$CU$253,54,FALSE) -> 17% | M12: =VLOOKUP($C12,'RECAP SECT'!$G$6:$CU$253,55,FALSE) -> 13 | N12: =VLOOKUP($C12,'RECAP SECT'!$G$6:$CU$253,56,FALSE) -> 1,083 | O12: =VLOOKUP($C12,'RECAP SECT'!$G$6:$CU$253,57,FALSE) -> 19.50 | P12: =VLOOKUP($C12,'RECAP SECT'!$G$6:$CU$253,58,FALSE) -> 57% | Q12: =VLOOKUP($C12,'RECAP SECT'!$G$6:$CU$253,59,FALSE) -> 16 | R12: =VLOOKUP($C12,'RECAP SECT'!$G$6:$CU$253,60,FALSE) -> 49% | S12: =VLOOKUP($C12,'RECAP SECT'!$G$6:$CU$253,61,FALSE) -> 44% | T12: =VLOOKUP($C12,'RECAP SECT'!$G$6:$CU$253,62,FALSE) -> 16
A13: 262 | B13: BAS-RHIN | C13: 5101 | D13: SELESTAT | E13: =VLOOKUP($C13,'RECAP SECT'!$G$6:$CU$253,3,FALSE) -> 50.8 | F13: =VLOOKUP($C13,'RECAP SECT'!$G$6:$CU$253,48,FALSE) -> 12,077 | G13: =VLOOKUP($C13,'RECAP SECT'!$G$6:$CU$253,49,FALSE) -> 237.87 | H13: =VLOOKUP($C13,'RECAP SECT'!$G$6:$CU$253,50,FALSE) -> 64% | I13: =VLOOKUP($C13,'RECAP SECT'!$G$6:$CU$253,51,FALSE) -> 14 | J13: =VLOOKUP($C13,'RECAP SECT'!$G$6:$CU$253,52,FALSE) -> 2,545 | K13: =VLOOKUP($C13,'RECAP SECT'!$G$6:$CU$253,53,FALSE) -> 50.14 | L13: =VLOOKUP($C13,'RECAP SECT'!$G$6:$CU$253,54,FALSE) -> 22% | M13: =VLOOKUP($C13,'RECAP SECT'!$G$6:$CU$253,55,FALSE) -> 14 | N13: =VLOOKUP($C13,'RECAP SECT'!$G$6:$CU$253,56,FALSE) -> 1,114 | O13: =VLOOKUP($C13,'RECAP SECT'!$G$6:$CU$253,57,FALSE) -> 21.94 | P13: =VLOOKUP($C13,'RECAP SECT'!$G$6:$CU$253,58,FALSE) -> 51% | Q13: =VLOOKUP($C13,'RECAP SECT'!$G$6:$CU$253,59,FALSE) -> 15 | R13: =VLOOKUP($C13,'RECAP SECT'!$G$6:$CU$253,60,FALSE) -> 46% | S13: =VLOOKUP($C13,'RECAP SECT'!$G$6:$CU$253,61,FALSE) -> 42% | T13: =VLOOKUP($C13,'RECAP SECT'!$G$6:$CU$253,62,FALSE) -> 15
A14: 262 | B14: BAS-RHIN | C14: 5006 | D14: STRASBOURG | E14: =VLOOKUP($C14,'RECAP SECT'!$G$6:$CU$253,3,FALSE) -> 64.8 | F14: =VLOOKUP($C14,'RECAP SECT'!$G$6:$CU$253,48,FALSE) -> 22,143 | G14: =VLOOKUP($C14,'RECAP SECT'!$G$6:$CU$253,49,FALSE) -> 341.77 | H14: =VLOOKUP($C14,'RECAP SECT'!$G$6:$CU$253,50,FALSE) -> 48% | I14: =VLOOKUP($C14,'RECAP SECT'!$G$6:$CU$253,51,FALSE) -> 9 | J14: =VLOOKUP($C14,'RECAP SECT'!$G$6:$CU$253,52,FALSE) -> 2,764 | K14: =VLOOKUP($C14,'RECAP SECT'!$G$6:$CU$253,53,FALSE) -> 42.66 | L14: =VLOOKUP($C14,'RECAP SECT'!$G$6:$CU$253,54,FALSE) -> 34% | M14: =VLOOKUP($C14,'RECAP SECT'!$G$6:$CU$253,55,FALSE) -> 18 | N14: =VLOOKUP($C14,'RECAP SECT'!$G$6:$CU$253,56,FALSE) -> 1,759 | O14: =VLOOKUP($C14,'RECAP SECT'!$G$6:$CU$253,57,FALSE) -> 27.15 | P14: =VLOOKUP($C14,'RECAP SECT'!$G$6:$CU$253,58,FALSE) -> 40% | Q14: =VLOOKUP($C14,'RECAP SECT'!$G$6:$CU$253,59,FALSE) -> 9 | R14: =VLOOKUP($C14,'RECAP SECT'!$G$6:$CU$253,60,FALSE) -> 40% | S14: =VLOOKUP($C14,'RECAP SECT'!$G$6:$CU$253,61,FALSE) -> 36% | T14: =VLOOKUP($C14,'RECAP SECT'!$G$6:$CU$253,62,FALSE) -> 11
A15: 264 | B15: HAUT-RHIN | C15: 5130 | D15: COLMAR | E15: =VLOOKUP($C15,'RECAP SECT'!$G$6:$CU$253,3,FALSE) -> 45.6 | F15: =VLOOKUP($C15,'RECAP SECT'!$G$6:$CU$253,48,FALSE) -> 9,104 | G15: =VLOOKUP($C15,'RECAP SECT'!$G$6:$CU$253,49,FALSE) -> 199.74 | H15: =VLOOKUP($C15,'RECAP SECT'!$G$6:$CU$253,50,FALSE) -> 69% | I15: =VLOOKUP($C15,'RECAP SECT'!$G$6:$CU$253,51,FALSE) -> 17 | J15: =VLOOKUP($C15,'RECAP SECT'!$G$6:$CU$253,52,FALSE) -> 2,268 | K15: =VLOOKUP($C15,'RECAP SECT'!$G$6:$CU$253,53,FALSE) -> 49.77 | L15: =VLOOKUP($C15,'RECAP SECT'!$G$6:$CU$253,54,FALSE) -> 23% | M15: =VLOOKUP($C15,'RECAP SECT'!$G$6:$CU$253,55,FALSE) -> 15 | N15: =VLOOKUP($C15,'RECAP SECT'!$G$6:$CU$253,56,FALSE) -> 880 | O15: =VLOOKUP($C15,'RECAP SECT'!$G$6:$CU$253,57,FALSE) -> 19.31 | P15: =VLOOKUP($C15,'RECAP SECT'!$G$6:$CU$253,58,FALSE) -> 57% | Q15: =VLOOKUP($C15,'RECAP SECT'!$G$6:$CU$253,59,FALSE) -> 18 | R15: =VLOOKUP($C15,'RECAP SECT'!$G$6:$CU$253,60,FALSE) -> 51% | S15: =VLOOKUP($C15,'RECAP SECT'!$G$6:$CU$253,61,FALSE) -> 46% | T15: =VLOOKUP($C15,'RECAP SECT'!$G$6:$CU$253,62,FALSE) -> 18
A16: 264 | B16: HAUT-RHIN | C16: 5169 | D16: MULHOUSE | E16: =VLOOKUP($C16,'RECAP SECT'!$G$6:$CU$253,3,FALSE) -> 46.8 | F16: =VLOOKUP($C16,'RECAP SECT'!$G$6:$CU$253,48,FALSE) -> 11,742 | G16: =VLOOKUP($C16,'RECAP SECT'!$G$6:$CU$253,49,FALSE) -> 250.73 | H16: =VLOOKUP($C16,'RECAP SECT'!$G$6:$CU$253,50,FALSE) -> 62% | I16: =VLOOKUP($C16,'RECAP SECT'!$G$6:$CU$253,51,FALSE) -> 12 | J16: =VLOOKUP($C16,'RECAP SECT'!$G$6:$CU$253,52,FALSE) -> 2,143 | K16: =VLOOKUP($C16,'RECAP SECT'!$G$6:$CU$253,53,FALSE) -> 45.77 | L16: =VLOOKUP($C16,'RECAP SECT'!$G$6:$CU$253,54,FALSE) -> 29% | M16: =VLOOKUP($C16,'RECAP SECT'!$G$6:$CU$253,55,FALSE) -> 17 | N16: =VLOOKUP($C16,'RECAP SECT'!$G$6:$CU$253,56,FALSE) -> 909 | O16: =VLOOKUP($C16,'RECAP SECT'!$G$6:$CU$253,57,FALSE) -> 19.41 | P16: =VLOOKUP($C16,'RECAP SECT'!$G$6:$CU$253,58,FALSE) -> 57% | Q16: =VLOOKUP($C16,'RECAP SECT'!$G$6:$CU$253,59,FALSE) -> 17 | R16: =VLOOKUP($C16,'RECAP SECT'!$G$6:$CU$253,60,FALSE) -> 50% | S16: =VLOOKUP($C16,'RECAP SECT'!$G$6:$CU$253,61,FALSE) -> 46% | T16: =VLOOKUP($C16,'RECAP SECT'!$G$6:$CU$253,62,FALSE) -> 17
A17: 30 | B17: MARNE-ARDENNES | C17: 6 | D17: CHALONS EN CHAMPAGNE | E17: =VLOOKUP($C17,'RECAP SECT'!$G$6:$CU$253,3,FALSE) -> 37.4 | F17: =VLOOKUP($C17,'RECAP SECT'!$G$6:$CU$253,48,FALSE) -> 15,671 | G17: =VLOOKUP($C17,'RECAP SECT'!$G$6:$CU$253,49,FALSE) -> 419.58 | H17: =VLOOKUP($C17,'RECAP SECT'!$G$6:$CU$253,50,FALSE) -> 36% | I17: =VLOOKUP($C17,'RECAP SECT'!$G$6:$CU$253,51,FALSE) -> 5 | J17: =VLOOKUP($C17,'RECAP SECT'!$G$6:$CU$253,52,FALSE) -> 2,213 | K17: =VLOOKUP($C17,'RECAP SECT'!$G$6:$CU$253,53,FALSE) -> 59.26 | L17: =VLOOKUP($C17,'RECAP SECT'!$G$6:$CU$253,54,FALSE) -> 8% | M17: =VLOOKUP($C17,'RECAP SECT'!$G$6:$CU$253,55,FALSE) -> 5 | N17: =VLOOKUP($C17,'RECAP SECT'!$G$6:$CU$253,56,FALSE) -> 1,210 | O17: =VLOOKUP($C17,'RECAP SECT'!$G$6:$CU$253,57,FALSE) -> 32.40 | P17: =VLOOKUP($C17,'RECAP SECT'!$G$6:$CU$253,58,FALSE) -> 28% | Q17: =VLOOKUP($C17,'RECAP SECT'!$G$6:$CU$253,59,FALSE) -> 4 | R17: =VLOOKUP($C17,'RECAP SECT'!$G$6:$CU$253,60,FALSE) -> 24% | S17: =VLOOKUP($C17,'RECAP SECT'!$G$6:$CU$253,61,FALSE) -> 20% | T17: =VLOOKUP($C17,'RECAP SECT'!$G$6:$CU$253,62,FALSE) -> 4
A18: 30 | B18: MARNE-ARDENNES | C18: 2 | D18: CHARLEVILLE MEZIERES | E18: =VLOOKUP($C18,'RECAP SECT'!$G$6:$CU$253,3,FALSE) -> 48.2 | F18: =VLOOKUP($C18,'RECAP SECT'!$G$6:$CU$253,48,FALSE) -> 21,717 | G18: =VLOOKUP($C18,'RECAP SECT'!$G$6:$CU$253,49,FALSE) -> 450.56 | H18: =VLOOKUP($C18,'RECAP SECT'!$G$6:$CU$253,50,FALSE) -> 31% | I18: =VLOOKUP($C18,'RECAP SECT'!$G$6:$CU$253,51,FALSE) -> 4 | J18: =VLOOKUP($C18,'RECAP SECT'!$G$6:$CU$253,52,FALSE) -> 2,850 | K18: =VLOOKUP($C18,'RECAP SECT'!$G$6:$CU$253,53,FALSE) -> 59.14 | L18: =VLOOKUP($C18,'RECAP SECT'!$G$6:$CU$253,54,FALSE) -> 9% | M18: =VLOOKUP($C18,'RECAP SECT'!$G$6:$CU$253,55,FALSE) -> 6 | N18: =VLOOKUP($C18,'RECAP SECT'!$G$6:$CU$253,56,FALSE) -> 1,686 | O18: =VLOOKUP($C18,'RECAP SECT'!$G$6:$CU$253,57,FALSE) -> 34.98 | P18: =VLOOKUP($C18,'RECAP SECT'!$G$6:$CU$253,58,FALSE) -> 22% | Q18: =VLOOKUP($C18,'RECAP SECT'!$G$6:$CU$253,59,FALSE) -> 3 | R18: =VLOOKUP($C18,'RECAP SECT'!$G$6:$CU$253,60,FALSE) -> 21% | S18: =VLOOKUP($C18,'RECAP SECT'!$G$6:$CU$253,61,FALSE) -> 17% | T18: =VLOOKUP($C18,'RECAP SECT'!$G$6:$CU$253,62,FALSE) -> 3
A19: 30 | B19: MARNE-ARDENNES | C19: 11 | D19: REIMS | E19: =VLOOKUP($C19,'RECAP SECT'!$G$6:$CU$253,3,FALSE) -> 67.9 | F19: =VLOOKUP($C19,'RECAP SECT'!$G$6:$CU$253,48,FALSE) -> 44,361 | G19: =VLOOKUP($C19,'RECAP SECT'!$G$6:$CU$253,49,FALSE) -> 653.23 | H19: =VLOOKUP($C19,'RECAP SECT'!$G$6:$CU$253,50,FALSE) -> 0% | I19: =VLOOKUP($C19,'RECAP SECT'!$G$6:$CU$253,51,FALSE) -> 1 | J19: =VLOOKUP($C19,'RECAP SECT'!$G$6:$CU$253,52,FALSE) -> 3,773 | K19: =VLOOKUP($C19,'RECAP SECT'!$G$6:$CU$253,53,FALSE) -> 55.55 | L19: =VLOOKUP($C19,'RECAP SECT'!$G$6:$CU$253,54,FALSE) -> 14% | M19: =VLOOKUP($C19,'RECAP SECT'!$G$6:$CU$253,55,FALSE) -> 10 | N19: =VLOOKUP($C19,'RECAP SECT'!$G$6:$CU$253,56,FALSE) -> 3,056 | O19: =VLOOKUP($C19,'RECAP SECT'!$G$6:$CU$253,57,FALSE) -> 45.00 | P19: =VLOOKUP($C19,'RECAP SECT'!$G$6:$CU$253,58,FALSE) -> 0% | Q19: =VLOOKUP($C19,'RECAP SECT'!$G$6:$CU$253,59,FALSE) -> 1 | R19: =VLOOKUP($C19,'RECAP SECT'!$G$6:$CU$253,60,FALSE) -> 4% | S19: =VLOOKUP($C19,'RECAP SECT'!$G$6:$CU$253,61,FALSE) -> 0% | T19: =VLOOKUP($C19,'RECAP SECT'!$G$6:$CU$253,62,FALSE) -> 1
A20: 110 | B20: MEURTHE ET MOSELLE MEUSE | C20: 26 | D20: NANCY | E20: =VLOOKUP($C20,'RECAP SECT'!$G$6:$CU$253,3,FALSE) -> 55.0 | F20: =VLOOKUP($C20,'RECAP SECT'!$G$6:$CU$253,48,FALSE) -> 24,797 | G20: =VLOOKUP($C20,'RECAP SECT'!$G$6:$CU$253,49,FALSE) -> 451.19 | H20: =VLOOKUP($C20,'RECAP SECT'!$G$6:$CU$253,50,FALSE) -> 31% | I20: =VLOOKUP($C20,'RECAP SECT'!$G$6:$CU$253,51,FALSE) -> 3 | J20: =VLOOKUP($C20,'RECAP SECT'!$G$6:$CU$253,52,FALSE) -> 3,136 | K20: =VLOOKUP($C20,'RECAP SECT'!$G$6:$CU$253,53,FALSE) -> 57.06 | L20: =VLOOKUP($C20,'RECAP SECT'!$G$6:$CU$253,54,FALSE) -> 12% | M20: =VLOOKUP($C20,'RECAP SECT'!$G$6:$CU$253,55,FALSE) -> 8 | N20: =VLOOKUP($C20,'RECAP SECT'!$G$6:$CU$253,56,FALSE) -> 1,724 | O20: =VLOOKUP($C20,'RECAP SECT'!$G$6:$CU$253,57,FALSE) -> 31.37 | P20: =VLOOKUP($C20,'RECAP SECT'!$G$6:$CU$253,58,FALSE) -> 30% | Q20: =VLOOKUP($C20,'RECAP SECT'!$G$6:$CU$253,59,FALSE) -> 5 | R20: =VLOOKUP($C20,'RECAP SECT'!$G$6:$CU$253,60,FALSE) -> 25% | S20: =VLOOKUP($C20,'RECAP SECT'!$G$6:$CU$253,61,FALSE) -> 21% | T20: =VLOOKUP($C20,'RECAP SECT'!$G$6:$CU$253,62,FALSE) -> 5
A21: 110 | B21: MEURTHE ET MOSELLE MEUSE | C21: 27 | D21: PONT A MOUSSON | E21: =VLOOKUP($C21,'RECAP SECT'!$G$6:$CU$253,3,FALSE) -> 59.5 | F21: =VLOOKUP($C21,'RECAP SECT'!$G$6:$CU$253,48,FALSE) -> 24,806 | G21: =VLOOKUP($C21,'RECAP SECT'!$G$6:$CU$253,49,FALSE) -> 416.77 | H21: =VLOOKUP($C21,'RECAP SECT'!$G$6:$CU$253,50,FALSE) -> 36% | I21: =VLOOKUP($C21,'RECAP SECT'!$G$6:$CU$253,51,FALSE) -> 6 | J21: =VLOOKUP($C21,'RECAP SECT'!$G$6:$CU$253,52,FALSE) -> 3,359 | K21: =VLOOKUP($C21,'RECAP SECT'!$G$6:$CU$253,53,FALSE) -> 56.44 | L21: =VLOOKUP($C21,'RECAP SECT'!$G$6:$CU$253,54,FALSE) -> 13% | M21: =VLOOKUP($C21,'RECAP SECT'!$G$6:$CU$253,55,FALSE) -> 9 | N21: =VLOOKUP($C21,'RECAP SECT'!$G$6:$CU$253,56,FALSE) -> 1,777 | O21: =VLOOKUP($C21,'RECAP SECT'!$G$6:$CU$253,57,FALSE) -> 29.86 | P21: =VLOOKUP($C21,'RECAP SECT'!$G$6:$CU$253,58,FALSE) -> 34% | Q21: =VLOOKUP($C21,'RECAP SECT'!$G$6:$CU$253,59,FALSE) -> 6 | R21: =VLOOKUP($C21,'RECAP SECT'!$G$6:$CU$253,60,FALSE) -> 28% | S21: =VLOOKUP($C21,'RECAP SECT'!$G$6:$CU$253,61,FALSE) -> 24% | T21: =VLOOKUP($C21,'RECAP SECT'!$G$6:$CU$253,62,FALSE) -> 7
A22: 110 | B22: MEURTHE ET MOSELLE MEUSE | C22: 31 | D22: VERDUN | E22: =VLOOKUP($C22,'RECAP SECT'!$G$6:$CU$253,3,FALSE) -> 48.7 | F22: =VLOOKUP($C22,'RECAP SECT'!$G$6:$CU$253,48,FALSE) -> 14,591 | G22: =VLOOKUP($C22,'RECAP SECT'!$G$6:$CU$253,49,FALSE) -> 299.92 | H22: =VLOOKUP($C22,'RECAP SECT'!$G$6:$CU$253,50,FALSE) -> 54% | I22: =VLOOKUP($C22,'RECAP SECT'!$G$6:$CU$253,51,FALSE) -> 10 | J22: =VLOOKUP($C22,'RECAP SECT'!$G$6:$CU$253,52,FALSE) -> 3,137 | K22: =VLOOKUP($C22,'RECAP SECT'!$G$6:$CU$253,53,FALSE) -> 64.48 | L22: =VLOOKUP($C22,'RECAP SECT'!$G$6:$CU$253,54,FALSE) -> 0% | M22: =VLOOKUP($C22,'RECAP SECT'!$G$6:$CU$253,55,FALSE) -> 2 | N22: =VLOOKUP($C22,'RECAP SECT'!$G$6:$CU$253,56,FALSE) -> 1,236 | O22: =VLOOKUP($C22,'RECAP SECT'!$G$6:$CU$253,57,FALSE) -> 25.41 | P22: =VLOOKUP($C22,'RECAP SECT'!$G$6:$CU$253,58,FALSE) -> 44% | Q22: =VLOOKUP($C22,'RECAP SECT'!$G$6:$CU$253,59,FALSE) -> 12 | R22: =VLOOKUP($C22,'RECAP SECT'!$G$6:$CU$253,60,FALSE) -> 34% | S22: =VLOOKUP($C22,'RECAP SECT'!$G$6:$CU$253,61,FALSE) -> 30% | T22: =VLOOKUP($C22,'RECAP SECT'!$G$6:$CU$253,62,FALSE) -> 9
A23: 160 | B23: MOSELLE | C23: 45 | D23: METZ | E23: =VLOOKUP($C23,'RECAP SECT'!$G$6:$CU$253,3,FALSE) -> 72.6 | F23: =VLOOKUP($C23,'RECAP SECT'!$G$6:$CU$253,48,FALSE) -> 27,817 | G23: =VLOOKUP($C23,'RECAP SECT'!$G$6:$CU$253,49,FALSE) -> 383.15 | H23: =VLOOKUP($C23,'RECAP SECT'!$G$6:$CU$253,50,FALSE) -> 41% | I23: =VLOOKUP($C23,'RECAP SECT'!$G$6:$CU$253,51,FALSE) -> 8 | J23: =VLOOKUP($C23,'RECAP SECT'!$G$6:$CU$253,52,FALSE) -> 4,257 | K23: =VLOOKUP($C23,'RECAP SECT'!$G$6:$CU$253,53,FALSE) -> 58.63 | L23: =VLOOKUP($C23,'RECAP SECT'!$G$6:$CU$253,54,FALSE) -> 9% | M23: =VLOOKUP($C23,'RECAP SECT'!$G$6:$CU$253,55,FALSE) -> 7 | N23: =VLOOKUP($C23,'RECAP SECT'!$G$6:$CU$253,56,FALSE) -> 2,018 | O23: =VLOOKUP($C23,'RECAP SECT'!$G$6:$CU$253,57,FALSE) -> 27.80 | P23: =VLOOKUP($C23,'RECAP SECT'!$G$6:$CU$253,58,FALSE) -> 38% | Q23: =VLOOKUP($C23,'RECAP SECT'!$G$6:$CU$253,59,FALSE) -> 8 | R23: =VLOOKUP($C23,'RECAP SECT'!$G$6:$CU$253,60,FALSE) -> 30% | S23: =VLOOKUP($C23,'RECAP SECT'!$G$6:$CU$253,61,FALSE) -> 26% | T23: =VLOOKUP($C23,'RECAP SECT'!$G$6:$CU$253,62,FALSE) -> 8
A24: 160 | B24: MOSELLE | C24: 42 | D24: MOSELLE EST | E24: =VLOOKUP($C24,'RECAP SECT'!$G$6:$CU$253,3,FALSE) -> 57.8 | F24: =VLOOKUP($C24,'RECAP SECT'!$G$6:$CU$253,48,FALSE) -> 22,191 | G24: =VLOOKUP($C24,'RECAP SECT'!$G$6:$CU$253,49,FALSE) -> 383.93 | H24: =VLOOKUP($C24,'RECAP SECT'!$G$6:$CU$253,50,FALSE) -> 41% | I24: =VLOOKUP($C24,'RECAP SECT'!$G$6:$CU$253,51,FALSE) -> 7 | J24: =VLOOKUP($C24,'RECAP SECT'!$G$6:$CU$253,52,FALSE) -> 3,707 | K24: =VLOOKUP($C24,'RECAP SECT'!$G$6:$CU$253,53,FALSE) -> 64.13 | L24: =VLOOKUP($C24,'RECAP SECT'!$G$6:$CU$253,54,FALSE) -> 1% | M24: =VLOOKUP($C24,'RECAP SECT'!$G$6:$CU$253,55,FALSE) -> 3 | N24: =VLOOKUP($C24,'RECAP SECT'!$G$6:$CU$253,56,FALSE) -> 1,653 | O24: =VLOOKUP($C24,'RECAP SECT'!$G$6:$CU$253,57,FALSE) -> 28.60 | P24: =VLOOKUP($C24,'RECAP SECT'!$G$6:$CU$253,58,FALSE) -> 36% | Q24: =VLOOKUP($C24,'RECAP SECT'!$G$6:$CU$253,59,FALSE) -> 7 | R24: =VLOOKUP($C24,'RECAP SECT'!$G$6:$CU$253,60,FALSE) -> 27% | S24: =VLOOKUP($C24,'RECAP SECT'!$G$6:$CU$253,61,FALSE) -> 23% | T24: =VLOOKUP($C24,'RECAP SECT'!$G$6:$CU$253,62,FALSE) -> 6
A25: 160 | B25: MOSELLE | C25: 44 | D25: MOSELLE NORD | E25: =VLOOKUP($C25,'RECAP SECT'!$G$6:$CU$253,3,FALSE) -> 55.5 | F25: =VLOOKUP($C25,'RECAP SECT'!$G$6:$CU$253,48,FALSE) -> 33,197 | G25: =VLOOKUP($C25,'RECAP SECT'!$G$6:$CU$253,49,FALSE) -> 598.35 | H25: =VLOOKUP($C25,'RECAP SECT'!$G$6:$CU$253,50,FALSE) -> 8% | I25: =VLOOKUP($C25,'RECAP SECT'!$G$6:$CU$253,51,FALSE) -> 2 | J25: =VLOOKUP($C25,'RECAP SECT'!$G$6:$CU$253,52,FALSE) -> 3,587 | K25: =VLOOKUP($C25,'RECAP SECT'!$G$6:$CU$253,53,FALSE) -> 64.65 | L25: =VLOOKUP($C25,'RECAP SECT'!$G$6:$CU$253,54,FALSE) -> 0% | M25: =VLOOKUP($C25,'RECAP SECT'!$G$6:$CU$253,55,FALSE) -> 1 | N25: =VLOOKUP($C25,'RECAP SECT'!$G$6:$CU$253,56,FALSE) -> 2,040 | O25: =VLOOKUP($C25,'RECAP SECT'!$G$6:$CU$253,57,FALSE) -> 36.77 | P25: =VLOOKUP($C25,'RECAP SECT'!$G$6:$CU$253,58,FALSE) -> 18% | Q25: =VLOOKUP($C25,'RECAP SECT'!$G$6:$CU$253,59,FALSE) -> 2 | R25: =VLOOKUP($C25,'RECAP SECT'!$G$6:$CU$253,60,FALSE) -> 10% | S25: =VLOOKUP($C25,'RECAP SECT'!$G$6:$CU$253,61,FALSE) -> 6% | T25: =VLOOKUP($C25,'RECAP SECT'!$G$6:$CU$253,62,FALSE) -> 2
A26: 80 | B26: VOSGES | C26: 57 | D26: EPINAL | E26: =VLOOKUP($C26,'RECAP SECT'!$G$6:$CU$253,3,FALSE) -> 53.0 | F26: =VLOOKUP($C26,'RECAP SECT'!$G$6:$CU$253,48,FALSE) -> 14,682 | G26: =VLOOKUP($C26,'RECAP SECT'!$G$6:$CU$253,49,FALSE) -> 277.23 | H26: =VLOOKUP($C26,'RECAP SECT'!$G$6:$CU$253,50,FALSE) -> 58% | I26: =VLOOKUP($C26,'RECAP SECT'!$G$6:$CU$253,51,FALSE) -> 11 | J26: =VLOOKUP($C26,'RECAP SECT'!$G$6:$CU$253,52,FALSE) -> 2,569 | K26: =VLOOKUP($C26,'RECAP SECT'!$G$6:$CU$253,53,FALSE) -> 48.50 | L26: =VLOOKUP($C26,'RECAP SECT'!$G$6:$CU$253,54,FALSE) -> 25% | M26: =VLOOKUP($C26,'RECAP SECT'!$G$6:$CU$253,55,FALSE) -> 16 | N26: =VLOOKUP($C26,'RECAP SECT'!$G$6:$CU$253,56,FALSE) -> 1,425 | O26: =VLOOKUP($C26,'RECAP SECT'!$G$6:$CU$253,57,FALSE) -> 26.91 | P26: =VLOOKUP($C26,'RECAP SECT'!$G$6:$CU$253,58,FALSE) -> 40% | Q26: =VLOOKUP($C26,'RECAP SECT'!$G$6:$CU$253,59,FALSE) -> 10 | R26: =VLOOKUP($C26,'RECAP SECT'!$G$6:$CU$253,60,FALSE) -> 41% | S26: =VLOOKUP($C26,'RECAP SECT'!$G$6:$CU$253,61,FALSE) -> 37% | T26: =VLOOKUP($C26,'RECAP SECT'!$G$6:$CU$253,62,FALSE) -> 12
A27: 80 | B27: VOSGES | C27: 55 | D27: SAINT DIE | E27: =VLOOKUP($C27,'RECAP SECT'!$G$6:$CU$253,3,FALSE) -> 40.1 | F27: =VLOOKUP($C27,'RECAP SECT'!$G$6:$CU$253,48,FALSE) -> 9,535 | G27: =VLOOKUP($C27,'RECAP SECT'!$G$6:$CU$253,49,FALSE) -> 237.78 | H27: =VLOOKUP($C27,'RECAP SECT'!$G$6:$CU$253,50,FALSE) -> 64% | I27: =VLOOKUP($C27,'RECAP SECT'!$G$6:$CU$253,51,FALSE) -> 15 | J27: =VLOOKUP($C27,'RECAP SECT'!$G$6:$CU$253,52,FALSE) -> 2,170 | K27: =VLOOKUP($C27,'RECAP SECT'!$G$6:$CU$253,53,FALSE) -> 54.11 | L27: =VLOOKUP($C27,'RECAP SECT'!$G$6:$CU$253,54,FALSE) -> 16% | M27: =VLOOKUP($C27,'RECAP SECT'!$G$6:$CU$253,55,FALSE) -> 12 | N27: =VLOOKUP($C27,'RECAP SECT'!$G$6:$CU$253,56,FALSE) -> 986 | O27: =VLOOKUP($C27,'RECAP SECT'!$G$6:$CU$253,57,FALSE) -> 24.59 | P27: =VLOOKUP($C27,'RECAP SECT'!$G$6:$CU$253,58,FALSE) -> 45% | Q27: =VLOOKUP($C27,'RECAP SECT'!$G$6:$CU$253,59,FALSE) -> 13 | R27: =VLOOKUP($C27,'RECAP SECT'!$G$6:$CU$253,60,FALSE) -> 42% | S27: =VLOOKUP($C27,'RECAP SECT'!$G$6:$CU$253,61,FALSE) -> 38% | T27: =VLOOKUP($C27,'RECAP SECT'!$G$6:$CU$253,62,FALSE) -> 13
A28: Total CEGEE Directions Régionales | E28: =SUM(E10:E27) -> 946

Sheet SE_IARD
B1: Accueil | F1: BAROMETRE BDD - TERRITOIRES
F2: IARD ET PREVOYANCE
F3: =ACCUEIL!F7 -> 2022-11-13
F7: Ventes Nettes produits pondérés | J7: Ventes sur client non détenteur de l’univers | N7: Total IARD Prévoyance
F8: =DATEMAJ!C23 -> au 13/11 | H8: coef | I8: ='RECAP DIRCOM'!BX4 -> 12% | J8: =DATEMAJ!C24 -> au 13/11 | L8: coef | M8: ='RECAP DIRCOM'!CB4 -> 8% | O8: coef | P8: ='RECAP DIRCOM'!CE4 -> 20%
B9: Direction | C9: eds | D9: Territoire | E9: ="ETP perf "&DATEMAJ!$C$28 -> ETP perf 13-nov | F9: VN | G9: VN / ETP | H9: % Ecart au 1er | I9: Rang | J9: VB | K9: VB / ETP | L9: % Ecart au 1er | M9: Rang | N9: Moyenne ecart au 1er | O9: % Ecart au 1er | P9: Rang CEGEE
A10: 50 | B10: AUBE HAUTE MARNE | C10: 21 | D10: CHAUMONT | E10: =VLOOKUP($C10,'RECAP SECT'!$G$6:$CU$253,3,FALSE) -> 33.6 | F10: =VLOOKUP($C10,'RECAP SECT'!$G$6:$CU$253,67,FALSE) -> 6,009 | G10: =VLOOKUP($C10,'RECAP SECT'!$G$6:$CU$253,68,FALSE) -> 179.05 | H10: =VLOOKUP($C10,'RECAP SECT'!$G$6:$CU$253,69,FALSE) -> 11% | I10: =VLOOKUP($C10,'RECAP SECT'!$G$6:$CU$253,70,FALSE) -> 5 | J10: =VLOOKUP($C10,'RECAP SECT'!$G$6:$CU$253,71,FALSE) -> 1,513 | K10: =VLOOKUP($C10,'RECAP SECT'!$G$6:$CU$253,72,FALSE) -> 45.08 | L10: =VLOOKUP($C10,'RECAP SECT'!$G$6:$CU$253,73,FALSE) -> 26% | M10: =VLOOKUP($C10,'RECAP SECT'!$G$6:$CU$253,74,FALSE) -> 9 | N10: =VLOOKUP($C10,'RECAP SECT'!$G$6:$CU$253,75,FALSE) -> 17% | O10: =VLOOKUP($C10,'RECAP SECT'!$G$6:$CU$253,76,FALSE) -> 15% | P10: =VLOOKUP($C10,'RECAP SECT'!$G$6:$CU$253,77,FALSE) -> 6
A11: 50 | B11: AUBE HAUTE MARNE | C11: 14 | D11: TROYES | E11: =VLOOKUP($C11,'RECAP SECT'!$G$6:$CU$253,3,FALSE) -> 53.9 | F11: =VLOOKUP($C11,'RECAP SECT'!$G$6:$CU$253,67,FALSE) -> 5,467 | G11: =VLOOKUP($C11,'RECAP SECT'!$G$6:$CU$253,68,FALSE) -> 101.50 | H11: =VLOOKUP($C11,'RECAP SECT'!$G$6:$CU$253,69,FALSE) -> 49% | I11: =VLOOKUP($C11,'RECAP SECT'!$G$6:$CU$253,70,FALSE) -> 12 | J11: =VLOOKUP($C11,'RECAP SECT'!$G$6:$CU$253,71,FALSE) -> 2,244 | K11: =VLOOKUP($C11,'RECAP SECT'!$G$6:$CU$253,72,FALSE) -> 41.66 | L11: =VLOOKUP($C11,'RECAP SECT'!$G$6:$CU$253,73,FALSE) -> 31% | M11: =VLOOKUP($C11,'RECAP SECT'!$G$6:$CU$253,74,FALSE) -> 12 | N11: =VLOOKUP($C11,'RECAP SECT'!$G$6:$CU$253,75,FALSE) -> 42% | O11: =VLOOKUP($C11,'RECAP SECT'!$G$6:$CU$253,76,FALSE) -> 41% | P11: =VLOOKUP($C11,'RECAP SECT'!$G$6:$CU$253,77,FALSE) -> 12
A12: 262 | B12: BAS-RHIN | C12: 5060 | D12: HAGUENAU | E12: =VLOOKUP($C12,'RECAP SECT'!$G$6:$CU$253,3,FALSE) -> 55.6 | F12: =VLOOKUP($C12,'RECAP SECT'!$G$6:$CU$253,67,FALSE) -> 5,128 | G12: =VLOOKUP($C12,'RECAP SECT'!$G$6:$CU$253,68,FALSE) -> 92.31 | H12: =VLOOKUP($C12,'RECAP SECT'!$G$6:$CU$253,69,FALSE) -> 54% | I12: =VLOOKUP($C12,'RECAP SECT'!$G$6:$CU$253,70,FALSE) -> 14 | J12: =VLOOKUP($C12,'RECAP SECT'!$G$6:$CU$253,71,FALSE) -> 2,120 | K12: =VLOOKUP($C12,'RECAP SECT'!$G$6:$CU$253,72,FALSE) -> 38.16 | L12: =VLOOKUP($C12,'RECAP SECT'!$G$6:$CU$253,73,FALSE) -> 37% | M12: =VLOOKUP($C12,'RECAP SECT'!$G$6:$CU$253,74,FALSE) -> 15 | N12: =VLOOKUP($C12,'RECAP SECT'!$G$6:$CU$253,75,FALSE) -> 47% | O12: =VLOOKUP($C12,'RECAP SECT'!$G$6:$CU$253,76,FALSE) -> 46% | P12: =VLOOKUP($C12,'RECAP SECT'!$G$6:$CU$253,77,FALSE) -> 14
A13: 262 | B13: BAS-RHIN | C13: 5101 | D13: SELESTAT | E13: =VLOOKUP($C13,'RECAP SECT'!$G$6:$CU$253,3,FALSE) -> 50.8 | F13: =VLOOKUP($C13,'RECAP SECT'!$G$6:$CU$253,67,FALSE) -> 4,604 | G13: =VLOOKUP($C13,'RECAP SECT'!$G$6:$CU$253,68,FALSE) -> 90.68 | H13: =VLOOKUP($C13,'RECAP SECT'!$G$6:$CU$253,69,FALSE) -> 55% | I13: =VLOOKUP($C13,'RECAP SECT'!$G$6:$CU$253,70,FALSE) -> 15 | J13: =VLOOKUP($C13,'RECAP SECT'!$G$6:$CU$253,71,FALSE) -> 1,958 | K13: =VLOOKUP($C13,'RECAP SECT'!$G$6:$CU$253,72,FALSE) -> 38.57 | L13: =VLOOKUP($C13,'RECAP SECT'!$G$6:$CU$253,73,FALSE) -> 36% | M13: =VLOOKUP($C13,'RECAP SECT'!$G$6:$CU$253,74,FALSE) -> 14 | N13: =VLOOKUP($C13,'RECAP SECT'!$G$6:$CU$253,75,FALSE) -> 47% | O13: =VLOOKUP($C13,'RECAP SECT'!$G$6:$CU$253,76,FALSE) -> 46% | P13: =VLOOKUP($C13,'RECAP SECT'!$G$6:$CU$253,77,FALSE) -> 15
A14: 262 | B14: BAS-RHIN | C14: 5006 | D14: STRASBOURG | E14: =VLOOKUP($C14,'RECAP SECT'!$G$6:$CU$253,3,FALSE) -> 64.8 | F14: =VLOOKUP($C14,'RECAP SECT'!$G$6:$CU$253,67,FALSE) -> 9,102 | G14: =VLOOKUP($C14,'RECAP SECT'!$G$6:$CU$253,68,FALSE) -> 140.48 | H14: =VLOOKUP($C14,'RECAP SECT'!$G$6:$CU$253,69,FALSE) -> 30% | I14: =VLOOKUP($C14,'RECAP SECT'!$G$6:$CU$253,70,FALSE) -> 7 | J14: =VLOOKUP($C14,'RECAP SECT'!$G$6:$CU$253,71,FALSE) -> 3,718 | K14: =VLOOKUP($C14,'RECAP SECT'!$G$6:$CU$253,72,FALSE) -> 57.39 | L14: =VLOOKUP($C14,'RECAP SECT'!$G$6:$CU$253,73,FALSE) -> 5% | M14: =VLOOKUP($C14,'RECAP SECT'!$G$6:$CU$253,74,FALSE) -> 3 | N14: =VLOOKUP($C14,'RECAP SECT'!$G$6:$CU$253,75,FALSE) -> 20% | O14: =VLOOKUP($C14,'RECAP SECT'!$G$6:$CU$253,76,FALSE) -> 19% | P14: =VLOOKUP($C14,'RECAP SECT'!$G$6:$CU$253,77,FALSE) -> 7
A15: 264 | B15: HAUT-RHIN | C15: 5130 | D15: COLMAR | E15: =VLOOKUP($C15,'RECAP SECT'!$G$6:$CU$253,3,FALSE) -> 45.6 | F15: =VLOOKUP($C15,'RECAP SECT'!$G$6:$CU$253,67,FALSE) -> 2,378 | G15: =VLOOKUP($C15,'RECAP SECT'!$G$6:$CU$253,68,FALSE) -> 52.17 | H15: =VLOOKUP($C15,'RECAP SECT'!$G$6:$CU$253,69,FALSE) -> 74% | I15: =VLOOKUP($C15,'RECAP SECT'!$G$6:$CU$253,70,FALSE) -> 17 | J15: =VLOOKUP($C15,'RECAP SECT'!$G$6:$CU$253,71,FALSE) -> 1,652 | K15: =VLOOKUP($C15,'RECAP SECT'!$G$6:$CU$253,72,FALSE) -> 36.24 | L15: =VLOOKUP($C15,'RECAP SECT'!$G$6:$CU$253,73,FALSE) -> 40% | M15: =VLOOKUP($C15,'RECAP SECT'!$G$6:$CU$253,74,FALSE) -> 17 | N15: =VLOOKUP($C15,'RECAP SECT'!$G$6:$CU$253,75,FALSE) -> 60% | O15: =VLOOKUP($C15,'RECAP SECT'!$G$6:$CU$253,76,FALSE) -> 59% | P15: =VLOOKUP($C15,'RECAP SECT'!$G$6:$CU$253,77,FALSE) -> 17
A16: 264 | B16: HAUT-RHIN | C16: 5169 | D16: MULHOUSE | E16: =VLOOKUP($C16,'RECAP SECT'!$G$6:$CU$253,3,FALSE) -> 46.8 | F16: =VLOOKUP($C16,'RECAP SECT'!$G$6:$CU$253,67,FALSE) -> -266 | G16: =VLOOKUP($C16,'RECAP SECT'!$G$6:$CU$253,68,FALSE) -> -5.68 | H16: =VLOOKUP($C16,'RECAP SECT'!$G$6:$CU$253,69,FALSE) -> 103% | I16: =VLOOKUP($C16,'RECAP SECT'!$G$6:$CU$253,70,FALSE) -> 18 | J16: =VLOOKUP($C16,'RECAP SECT'!$G$6:$CU$253,71,FALSE) -> 1,678 | K16: =VLOOKUP($C16,'RECAP SECT'!$G$6:$CU$253,72,FALSE) -> 35.83 | L16: =VLOOKUP($C16,'RECAP SECT'!$G$6:$CU$253,73,FALSE) -> 41% | M16: =VLOOKUP($C16,'RECAP SECT'!$G$6:$CU$253,74,FALSE) -> 18 | N16: =VLOOKUP($C16,'RECAP SECT'!$G$6:$CU$253,75,FALSE) -> 78% | O16: =VLOOKUP($C16,'RECAP SECT'!$G$6:$CU$253,76,FALSE) -> 77% | P16: =VLOOKUP($C16,'RECAP SECT'!$G$6:$CU$253,77,FALSE) -> 18
A17: 30 | B17: MARNE-ARDENNES | C17: 6 | D17: CHALONS EN CHAMPAGNE | E17: =VLOOKUP($C17,'RECAP SECT'!$G$6:$CU$253,3,FALSE) -> 37.4 | F17: =VLOOKUP($C17,'RECAP SECT'!$G$6:$CU$253,67,FALSE) -> 6,919 | G17: =VLOOKUP($C17,'RECAP SECT'!$G$6:$CU$253,68,FALSE) -> 185.25 | H17: =VLOOKUP($C17,'RECAP SECT'!$G$6:$CU$253,69,FALSE) -> 8% | I17: =VLOOKUP($C17,'RECAP SECT'!$G$6:$CU$253,70,FALSE) -> 3 | J17: =VLOOKUP($C17,'RECAP SECT'!$G$6:$CU$253,71,FALSE) -> 1,976 | K17: =VLOOKUP($C17,'RECAP SECT'!$G$6:$CU$253,72,FALSE) -> 52.90 | L17: =VLOOKUP($C17,'RECAP SECT'!$G$6:$CU$253,73,FALSE) -> 13% | M17: =VLOOKUP($C17,'RECAP SECT'!$G$6:$CU$253,74,FALSE) -> 4 | N17: =VLOOKUP($C17,'RECAP SECT'!$G$6:$CU$253,75,FALSE) -> 10% | O17: =VLOOKUP($C17,'RECAP SECT'!$G$6:$CU$253,76,FALSE) -> 8% | P17: =VLOOKUP($C17,'RECAP SECT'!$G$6:$CU$253,77,FALSE) -> 4
A18: 30 | B18: MARNE-ARDENNES | C18: 2 | D18: CHARLEVILLE MEZIERES | E18: =VLOOKUP($C18,'RECAP SECT'!$G$6:$CU$253,3,FALSE) -> 48.2 | F18: =VLOOKUP($C18,'RECAP SECT'!$G$6:$CU$253,67,FALSE) -> 9,391 | G18: =VLOOKUP($C18,'RECAP SECT'!$G$6:$CU$253,68,FALSE) -> 194.83 | H18: =VLOOKUP($C18,'RECAP SECT'!$G$6:$CU$253,69,FALSE) -> 3% | I18: =VLOOKUP($C18,'RECAP SECT'!$G$6:$CU$253,70,FALSE) -> 2 | J18: =VLOOKUP($C18,'RECAP SECT'!$G$6:$CU$253,71,FALSE) -> 2,400 | K18: =VLOOKUP($C18,'RECAP SECT'!$G$6:$CU$253,72,FALSE) -> 49.79 | L18: =VLOOKUP($C18,'RECAP SECT'!$G$6:$CU$253,73,FALSE) -> 18% | M18: =VLOOKUP($C18,'RECAP SECT'!$G$6:$CU$253,74,FALSE) -> 7 | N18: =VLOOKUP($C18,'RECAP SECT'!$G$6:$CU$253,75,FALSE) -> 9% | O18: =VLOOKUP($C18,'RECAP SECT'!$G$6:$CU$253,76,FALSE) -> 8% | P18: =VLOOKUP($C18,'RECAP SECT'!$G$6:$CU$253,77,FALSE) -> 3
A19: 30 | B19: MARNE-ARDENNES | C19: 11 | D19: REIMS | E19: =VLOOKUP($C19,'RECAP SECT'!$G$6:$CU$253,3,FALSE) -> 67.9 | F19: =VLOOKUP($C19,'RECAP SECT'!$G$6:$CU$253,67,FALSE) -> 12,443 | G19: =VLOOKUP($C19,'RECAP SECT'!$G$6:$CU$253,68,FALSE) -> 183.23 | H19: =VLOOKUP($C19,'RECAP SECT'!$G$6:$CU$253,69,FALSE) -> 9% | I19: =VLOOKUP($C19,'RECAP SECT'!$G$6:$CU$253,70,FALSE) -> 4 | J19: =VLOOKUP($C19,'RECAP SECT'!$G$6:$CU$253,71,FALSE) -> 4,116 | K19: =VLOOKUP($C19,'RECAP SECT'!$G$6:$CU$253,72,FALSE) -> 60.61 | L19: =VLOOKUP($C19,'RECAP SECT'!$G$6:$CU$253,73,FALSE) -> 0% | M19: =VLOOKUP($C19,'RECAP SECT'!$G$6:$CU$253,74,FALSE) -> 1 | N19: =VLOOKUP($C19,'RECAP SECT'!$G$6:$CU$253,75,FALSE) -> 5% | O19: =VLOOKUP($C19,'RECAP SECT'!$G$6:$CU$253,76,FALSE) -> 4% | P19: =VLOOKUP($C19,'RECAP SECT'!$G$6:$CU$253,77,FALSE) -> 2
A20: 110 | B20: MEURTHE ET MOSELLE MEUSE | C20: 26 | D20: NANCY | E20: =VLOOKUP($C20,'RECAP SECT'!$G$6:$CU$253,3,FALSE) -> 55.0 | F20: =VLOOKUP($C20,'RECAP SECT'!$G$6:$CU$253,67,FALSE) -> 6,081 | G20: =VLOOKUP($C20,'RECAP SECT'!$G$6:$CU$253,68,FALSE) -> 110.64 | H20: =VLOOKUP($C20,'RECAP SECT'!$G$6:$CU$253,69,FALSE) -> 45% | I20: =VLOOKUP($C20,'RECAP SECT'!$G$6:$CU$253,70,FALSE) -> 11 | J20: =VLOOKUP($C20,'RECAP SECT'!$G$6:$CU$253,71,FALSE) -> 2,593 | K20: =VLOOKUP($C20,'RECAP SECT'!$G$6:$CU$253,72,FALSE) -> 47.18 | L20: =VLOOKUP($C20,'RECAP SECT'!$G$6:$CU$253,73,FALSE) -> 22% | M20: =VLOOKUP($C20,'RECAP SECT'!$G$6:$CU$253,74,FALSE) -> 8 | N20: =VLOOKUP($C20,'RECAP SECT'!$G$6:$CU$253,75,FALSE) -> 36% | O20: =VLOOKUP($C20,'RECAP SECT'!$G$6:$CU$253,76,FALSE) -> 34% | P20: =VLOOKUP($C20,'RECAP SECT'!$G$6:$CU$253,77,FALSE) -> 10
A21: 110 | B21: MEURTHE ET MOSELLE MEUSE | C21: 27 | D21: PONT A MOUSSON | E21: =VLOOKUP($C21,'RECAP SECT'!$G$6:$CU$253,3,FALSE) -> 59.5 | F21: =VLOOKUP($C21,'RECAP SECT'!$G$6:$CU$253,67,FALSE) -> 7,789 | G21: =VLOOKUP($C21,'RECAP SECT'!$G$6:$CU$253,68,FALSE) -> 130.86 | H21: =VLOOKUP($C21,'RECAP SECT'!$G$6:$CU$253,69,FALSE) -> 35% | I21: =VLOOKUP($C21,'RECAP SECT'!$G$6:$CU$253,70,FALSE) -> 8 | J21: =VLOOKUP($C21,'RECAP SECT'!$G$6:$CU$253,71,FALSE) -> 3,058 | K21: =VLOOKUP($C21,'RECAP SECT'!$G$6:$CU$253,72,FALSE) -> 51.38 | L21: =VLOOKUP($C21,'RECAP SECT'!$G$6:$CU$253,73,FALSE) -> 15% | M21: =VLOOKUP($C21,'RECAP SECT'!$G$6:$CU$253,74,FALSE) -> 6 | N21: =VLOOKUP($C21,'RECAP SECT'!$G$6:$CU$253,75,FALSE) -> 27% | O21: =VLOOKUP($C21,'RECAP SECT'!$G$6:$CU$253,76,FALSE) -> 26% | P21: =VLOOKUP($C21,'RECAP SECT'!$G$6:$CU$253,77,FALSE) -> 8
A22: 110 | B22: MEURTHE ET MOSELLE MEUSE | C22: 31 | D22: VERDUN | E22: =VLOOKUP($C22,'RECAP SECT'!$G$6:$CU$253,3,FALSE) -> 48.7 | F22: =VLOOKUP($C22,'RECAP SECT'!$G$6:$CU$253,67,FALSE) -> 5,497 | G22: =VLOOKUP($C22,'RECAP SECT'!$G$6:$CU$253,68,FALSE) -> 112.99 | H22: =VLOOKUP($C22,'RECAP SECT'!$G$6:$CU$253,69,FALSE) -> 44% | I22: =VLOOKUP($C22,'RECAP SECT'!$G$6:$CU$253,70,FALSE) -> 10 | J22: =VLOOKUP($C22,'RECAP SECT'!$G$6:$CU$253,71,FALSE) -> 2,050 | K22: =VLOOKUP($C22,'RECAP SECT'!$G$6:$CU$253,72,FALSE) -> 42.14 | L22: =VLOOKUP($C22,'RECAP SECT'!$G$6:$CU$253,73,FALSE) -> 30% | M22: =VLOOKUP($C22,'RECAP SECT'!$G$6:$CU$253,74,FALSE) -> 11 | N22: =VLOOKUP($C22,'RECAP SECT'!$G$6:$CU$253,75,FALSE) -> 38% | O22: =VLOOKUP($C22,'RECAP SECT'!$G$6:$CU$253,76,FALSE) -> 37% | P22: =VLOOKUP($C22,'RECAP SECT'!$G$6:$CU$253,77,FALSE) -> 11
A23: 160 | B23: MOSELLE | C23: 45 | D23: METZ | E23: =VLOOKUP($C23,'RECAP SECT'!$G$6:$CU$253,3,FALSE) -> 72.6 | F23: =VLOOKUP($C23,'RECAP SECT'!$G$6:$CU$253,67,FALSE) -> 8,546 | G23: =VLOOKUP($C23,'RECAP SECT'!$G$6:$CU$253,68,FALSE) -> 117.71 | H23: =VLOOKUP($C23,'RECAP SECT'!$G$6:$CU$253,69,FALSE) -> 41% | I23: =VLOOKUP($C23,'RECAP SECT'!$G$6:$CU$253,70,FALSE) -> 9 | J23: =VLOOKUP($C23,'RECAP SECT'!$G$6:$CU$253,71,FALSE) -> 3,268 | K23: =VLOOKUP($C23,'RECAP SECT'!$G$6:$CU$253,72,FALSE) -> 45.01 | L23: =VLOOKUP($C23,'RECAP SECT'!$G$6:$CU$253,73,FALSE) -> 26% | M23: =VLOOKUP($C23,'RECAP SECT'!$G$6:$CU$253,74,FALSE) -> 10 | N23: =VLOOKUP($C23,'RECAP SECT'!$G$6:$CU$253,75,FALSE) -> 35% | O23: =VLOOKUP($C23,'RECAP SECT'!$G$6:$CU$253,76,FALSE) -> 34% | P23: =VLOOKUP($C23,'RECAP SECT'!$G$6:$CU$253,77,FALSE) -> 9
A24: 160 | B24: MOSELLE | C24: 42 | D24: MOSELLE EST | E24: =VLOOKUP($C24,'RECAP SECT'!$G$6:$CU$253,3,FALSE) -> 57.8 | F24: =VLOOKUP($C24,'RECAP SECT'!$G$6:$CU$253,67,FALSE) -> 10,103 | G24: =VLOOKUP($C24,'RECAP SECT'!$G$6:$CU$253,68,FALSE) -> 174.79 | H24: =VLOOKUP($C24,'RECAP SECT'!$G$6:$CU$253,69,FALSE) -> 13% | I24: =VLOOKUP($C24,'RECAP SECT'!$G$6:$CU$253,70,FALSE) -> 6 | J24: =VLOOKUP($C24,'RECAP SECT'!$G$6:$CU$253,71,FALSE) -> 2,990 | K24: =VLOOKUP($C24,'RECAP SECT'!$G$6:$CU$253,72,FALSE) -> 51.73 | L24: =VLOOKUP($C24,'RECAP SECT'!$G$6:$CU$253,73,FALSE) -> 15% | M24: =VLOOKUP($C24,'RECAP SECT'!$G$6:$CU$253,74,FALSE) -> 5 | N24: =VLOOKUP($C24,'RECAP SECT'!$G$6:$CU$253,75,FALSE) -> 14% | O24: =VLOOKUP($C24,'RECAP SECT'!$G$6:$CU$253,76,FALSE) -> 12% | P24: =VLOOKUP($C24,'RECAP SECT'!$G$6:$CU$253,77,FALSE) -> 5
A25: 160 | B25: MOSELLE | C25: 44 | D25: MOSELLE NORD | E25: =VLOOKUP($C25,'RECAP SECT'!$G$6:$CU$253,3,FALSE) -> 55.5 | F25: =VLOOKUP($C25,'RECAP SECT'!$G$6:$CU$253,67,FALSE) -> 11,143 | G25: =VLOOKUP($C25,'RECAP SECT'!$G$6:$CU$253,68,FALSE) -> 200.85 | H25: =VLOOKUP($C25,'RECAP SECT'!$G$6:$CU$253,69,FALSE) -> 0% | I25: =VLOOKUP($C25,'RECAP SECT'!$G$6:$CU$253,70,FALSE) -> 1 | J25: =VLOOKUP($C25,'RECAP SECT'!$G$6:$CU$253,71,FALSE) -> 3,250 | K25: =VLOOKUP($C25,'RECAP SECT'!$G$6:$CU$253,72,FALSE) -> 58.58 | L25: =VLOOKUP($C25,'RECAP SECT'!$G$6:$CU$253,73,FALSE) -> 3% | M25: =VLOOKUP($C25,'RECAP SECT'!$G$6:$CU$253,74,FALSE) -> 2 | N25: =VLOOKUP($C25,'RECAP SECT'!$G$6:$CU$253,75,FALSE) -> 1% | O25: =VLOOKUP($C25,'RECAP SECT'!$G$6:$CU$253,76,FALSE) -> 0% | P25: =VLOOKUP($C25,'RECAP SECT'!$G$6:$CU$253,77,FALSE) -> 1
A26: 80 | B26: VOSGES | C26: 57 | D26: EPINAL | E26: =VLOOKUP($C26,'RECAP SECT'!$G$6:$CU$253,3,FALSE) -> 53.0 | F26: =VLOOKUP($C26,'RECAP SECT'!$G$6:$CU$253,67,FALSE) -> 5,374 | G26: =VLOOKUP($C26,'RECAP SECT'!$G$6:$CU$253,68,FALSE) -> 101.47 | H26: =VLOOKUP($C26,'RECAP SECT'!$G$6:$CU$253,69,FALSE) -> 49% | I26: =VLOOKUP($C26,'RECAP SECT'!$G$6:$CU$253,70,FALSE) -> 13 | J26: =VLOOKUP($C26,'RECAP SECT'!$G$6:$CU$253,71,FALSE) -> 2,084 | K26: =VLOOKUP($C26,'RECAP SECT'!$G$6:$CU$253,72,FALSE) -> 39.35 | L26: =VLOOKUP($C26,'RECAP SECT'!$G$6:$CU$253,73,FALSE) -> 35% | M26: =VLOOKUP($C26,'RECAP SECT'!$G$6:$CU$253,74,FALSE) -> 13 | N26: =VLOOKUP($C26,'RECAP SECT'!$G$6:$CU$253,75,FALSE) -> 44% | O26: =VLOOKUP($C26,'RECAP SECT'!$G$6:$CU$253,76,FALSE) -> 42% | P26: =VLOOKUP($C26,'RECAP SECT'!$G$6:$CU$253,77,FALSE) -> 13
A27: 80 | B27: VOSGES | C27: 55 | D27: SAINT DIE | E27: =VLOOKUP($C27,'RECAP SECT'!$G$6:$CU$253,3,FALSE) -> 40.1 | F27: =VLOOKUP($C27,'RECAP SECT'!$G$6:$CU$253,67,FALSE) -> 3,411 | G27: =VLOOKUP($C27,'RECAP SECT'!$G$6:$CU$253,68,FALSE) -> 85.06 | H27: =VLOOKUP($C27,'RECAP SECT'!$G$6:$CU$253,69,FALSE) -> 58% | I27: =VLOOKUP($C27,'RECAP SECT'!$G$6:$CU$253,70,FALSE) -> 16 | J27: =VLOOKUP($C27,'RECAP SECT'!$G$6:$CU$253,71,FALSE) -> 1,469 | K27: =VLOOKUP($C27,'RECAP SECT'!$G$6:$CU$253,72,FALSE) -> 36.63 | L27: =VLOOKUP($C27,'RECAP SECT'!$G$6:$CU$253,73,FALSE) -> 40% | M27: =VLOOKUP($C27,'RECAP SECT'!$G$6:$CU$253,74,FALSE) -> 16 | N27: =VLOOKUP($C27,'RECAP SECT'!$G$6:$CU$253,75,FALSE) -> 50% | O27: =VLOOKUP($C27,'RECAP SECT'!$G$6:$CU$253,76,FALSE) -> 49% | P27: =VLOOKUP($C27,'RECAP SECT'!$G$6:$CU$253,77,FALSE) -> 16
A28: Total CEGEE Directions Régionales | E28: =SUM(E10:E27) -> 946

Sheet SE_SATISFACTION
B1: Accueil | F1: BAROMETRE BDD - TERRITOIRES
F2: SATISFACTION
F3: =ACCUEIL!F7 -> 2022-11-13
F7: NPS à froid (SAE) | I7: NPS à chaud (QHD) | L7: Total Satisfaction Clients
F8: =DATEMAJ!E4 -> au 30/09 | G8: coef | H8: ='RECAP DIRCOM'!M4 -> 10% | I8: =DATEMAJ!C5 -> au 31/08 | J8: coef | K8: ='RECAP DIRCOM'!P4 -> 10% | M8: coef | N8: ='RECAP DIRCOM'!S4 -> 20%
B9: Direction | C9: eds | D9: Territoire | E9: ="ETP perf "&DATEMAJ!$C$28 -> ETP perf 13-nov | G9: % Ecart au 1er | H9: Rang | J9: % Ecart au 1er | K9: Rang | L9: Moyenne ecart au 1er | M9: % Ecart au 1er | N9: Rang CEGEE
A10: 50 | B10: AUBE HAUTE MARNE | C10: 21 | D10: CHAUMONT | E10: =VLOOKUP($C10,'RECAP SECT'!$G$6:$CU$253,3,FALSE) -> 33.6 | F10: =VLOOKUP($C10,'RECAP SECT'!$G$6:$CU$253,5,FALSE) -> 17.75 | G10: =VLOOKUP($C10,'RECAP SECT'!$G$6:$CU$253,6,FALSE) -> 30% | H10: =VLOOKUP($C10,'RECAP SECT'!$G$6:$CU$253,7,FALSE) -> 6 | I10: =VLOOKUP($C10,'RECAP SECT'!$G$6:$CU$253,8,FALSE) -> 65% | J10: =VLOOKUP($C10,'RECAP SECT'!$G$6:$CU$253,9,FALSE) -> 12% | K10: =VLOOKUP($C10,'RECAP SECT'!$G$6:$CU$253,10,FALSE) -> 8 | L10: =VLOOKUP($C10,'RECAP SECT'!$G$6:$CU$253,11,FALSE) -> 21% | M10: =VLOOKUP($C10,'RECAP SECT'!$G$6:$CU$253,12,FALSE) -> 20% | N10: =VLOOKUP($C10,'RECAP SECT'!$G$6:$CU$253,13,FALSE) -> 6
A11: 50 | B11: AUBE HAUTE MARNE | C11: 14 | D11: TROYES | E11: =VLOOKUP($C11,'RECAP SECT'!$G$6:$CU$253,3,FALSE) -> 53.9 | F11: =VLOOKUP($C11,'RECAP SECT'!$G$6:$CU$253,5,FALSE) -> 0 | G11: =VLOOKUP($C11,'RECAP SECT'!$G$6:$CU$253,6,FALSE) -> 100% | H11: =VLOOKUP($C11,'RECAP SECT'!$G$6:$CU$253,7,FALSE) -> 18 | I11: =VLOOKUP($C11,'RECAP SECT'!$G$6:$CU$253,8,FALSE) -> 48% | J11: =VLOOKUP($C11,'RECAP SECT'!$G$6:$CU$253,9,FALSE) -> 35% | K11: =VLOOKUP($C11,'RECAP SECT'!$G$6:$CU$253,10,FALSE) -> 17 | L11: =VLOOKUP($C11,'RECAP SECT'!$G$6:$CU$253,11,FALSE) -> 67% | M11: =VLOOKUP($C11,'RECAP SECT'!$G$6:$CU$253,12,FALSE) -> 67% | N11: =VLOOKUP($C11,'RECAP SECT'!$G$6:$CU$253,13,FALSE) -> 18
A12: 262 | B12: BAS-RHIN | C12: 5060 | D12: HAGUENAU | E12: =VLOOKUP($C12,'RECAP SECT'!$G$6:$CU$253,3,FALSE) -> 55.6 | F12: =VLOOKUP($C12,'RECAP SECT'!$G$6:$CU$253,5,FALSE) -> 11.25 | G12: =VLOOKUP($C12,'RECAP SECT'!$G$6:$CU$253,6,FALSE) -> 55% | H12: =VLOOKUP($C12,'RECAP SECT'!$G$6:$CU$253,7,FALSE) -> 11 | I12: =VLOOKUP($C12,'RECAP SECT'!$G$6:$CU$253,8,FALSE) -> 61% | J12: =VLOOKUP($C12,'RECAP SECT'!$G$6:$CU$253,9,FALSE) -> 17% | K12: =VLOOKUP($C12,'RECAP SECT'!$G$6:$CU$253,10,FALSE) -> 11 | L12: =VLOOKUP($C12,'RECAP SECT'!$G$6:$CU$253,11,FALSE) -> 36% | M12: =VLOOKUP($C12,'RECAP SECT'!$G$6:$CU$253,12,FALSE) -> 36% | N12: =VLOOKUP($C12,'RECAP SECT'!$G$6:$CU$253,13,FALSE) -> 11
A13: 262 | B13: BAS-RHIN | C13: 5101 | D13: SELESTAT | E13: =VLOOKUP($C13,'RECAP SECT'!$G$6:$CU$253,3,FALSE) -> 50.8 | F13: =VLOOKUP($C13,'RECAP SECT'!$G$6:$CU$253,5,FALSE) -> 1.75 | G13: =VLOOKUP($C13,'RECAP SECT'!$G$6:$CU$253,6,FALSE) -> 93% | H13: =VLOOKUP($C13,'RECAP SECT'!$G$6:$CU$253,7,FALSE) -> 17 | I13: =VLOOKUP($C13,'RECAP SECT'!$G$6:$CU$253,8,FALSE) -> 60% | J13: =VLOOKUP($C13,'RECAP SECT'!$G$6:$CU$253,9,FALSE) -> 19% | K13: =VLOOKUP($C13,'RECAP SECT'!$G$6:$CU$253,10,FALSE) -> 13 | L13: =VLOOKUP($C13,'RECAP SECT'!$G$6:$CU$253,11,FALSE) -> 56% | M13: =VLOOKUP($C13,'RECAP SECT'!$G$6:$CU$253,12,FALSE) -> 55% | N13: =VLOOKUP($C13,'RECAP SECT'!$G$6:$CU$253,13,FALSE) -> 14
A14: 262 | B14: BAS-RHIN | C14: 5006 | D14: STRASBOURG | E14: =VLOOKUP($C14,'RECAP SECT'!$G$6:$CU$253,3,FALSE) -> 64.8 | F14: =VLOOKUP($C14,'RECAP SECT'!$G$6:$CU$253,5,FALSE) -> 8.5 | G14: =VLOOKUP($C14,'RECAP SECT'!$G$6:$CU$253,6,FALSE) -> 66% | H14: =VLOOKUP($C14,'RECAP SECT'!$G$6:$CU$253,7,FALSE) -> 13 | I14: =VLOOKUP($C14,'RECAP SECT'!$G$6:$CU$253,8,FALSE) -> 66% | J14: =VLOOKUP($C14,'RECAP SECT'!$G$6:$CU$253,9,FALSE) -> 10% | K14: =VLOOKUP($C14,'RECAP SECT'!$G$6:$CU$253,10,FALSE) -> 6 | L14: =VLOOKUP($C14,'RECAP SECT'!$G$6:$CU$253,11,FALSE) -> 38% | M14: =VLOOKUP($C14,'RECAP SECT'!$G$6:$CU$253,12,FALSE) -> 38% | N14: =VLOOKUP($C14,'RECAP SECT'!$G$6:$CU$253,13,FALSE) -> 12
A15: 264 | B15: HAUT-RHIN | C15: 5130 | D15: COLMAR | E15: =VLOOKUP($C15,'RECAP SECT'!$G$6:$CU$253,3,FALSE) -> 45.6 | F15: =VLOOKUP($C15,'RECAP SECT'!$G$6:$CU$253,5,FALSE) -> 2.5 | G15: =VLOOKUP($C15,'RECAP SECT'!$G$6:$CU$253,6,FALSE) -> 90% | H15: =VLOOKUP($C15,'RECAP SECT'!$G$6:$CU$253,7,FALSE) -> 16 | I15: =VLOOKUP($C15,'RECAP SECT'!$G$6:$CU$253,8,FALSE) -> 50% | J15: =VLOOKUP($C15,'RECAP SECT'!$G$6:$CU$253,9,FALSE) -> 32% | K15: =VLOOKUP($C15,'RECAP SECT'!$G$6:$CU$253,10,FALSE) -> 16 | L15: =VLOOKUP($C15,'RECAP SECT'!$G$6:$CU$253,11,FALSE) -> 61% | M15: =VLOOKUP($C15,'RECAP SECT'!$G$6:$CU$253,12,FALSE) -> 60% | N15: =VLOOKUP($C15,'RECAP SECT'!$G$6:$CU$253,13,FALSE) -> 16
A16: 264 | B16: HAUT-RHIN | C16: 5169 | D16: MULHOUSE | E16: =VLOOKUP($C16,'RECAP SECT'!$G$6:$CU$253,3,FALSE) -> 46.8 | F16: =VLOOKUP($C16,'RECAP SECT'!$G$6:$CU$253,5,FALSE) -> 3.25 | G16: =VLOOKUP($C16,'RECAP SECT'!$G$6:$CU$253,6,FALSE) -> 87% | H16: =VLOOKUP($C16,'RECAP SECT'!$G$6:$CU$253,7,FALSE) -> 15 | I16: =VLOOKUP($C16,'RECAP SECT'!$G$6:$CU$253,8,FALSE) -> 45% | J16: =VLOOKUP($C16,'RECAP SECT'!$G$6:$CU$253,9,FALSE) -> 39% | K16: =VLOOKUP($C16,'RECAP SECT'!$G$6:$CU$253,10,FALSE) -> 18 | L16: =VLOOKUP($C16,'RECAP SECT'!$G$6:$CU$253,11,FALSE) -> 63% | M16: =VLOOKUP($C16,'RECAP SECT'!$G$6:$CU$253,12,FALSE) -> 62% | N16: =VLOOKUP($C16,'RECAP SECT'!$G$6:$CU$253,13,FALSE) -> 17
A17: 30 | B17: MARNE-ARDENNES | C17: 6 | D17: CHALONS EN CHAMPAGNE | E17: =VLOOKUP($C17,'RECAP SECT'!$G$6:$CU$253,3,FALSE) -> 37.4 | F17: =VLOOKUP($C17,'RECAP SECT'!$G$6:$CU$253,5,FALSE) -> 25 | G17: =VLOOKUP($C17,'RECAP SECT'!$G$6:$CU$253,6,FALSE) -> 1% | H17: =VLOOKUP($C17,'RECAP SECT'!$G$6:$CU$253,7,FALSE) -> 2 | I17: =VLOOKUP($C17,'RECAP SECT'!$G$6:$CU$253,8,FALSE) -> 74% | J17: =VLOOKUP($C17,'RECAP SECT'!$G$6:$CU$253,9,FALSE) -> 0% | K17: =VLOOKUP($C17,'RECAP SECT'!$G$6:$CU$253,10,FALSE) -> 1 | L17: =VLOOKUP($C17,'RECAP SECT'!$G$6:$CU$253,11,FALSE) -> 0% | M17: =VLOOKUP($C17,'RECAP SECT'!$G$6:$CU$253,12,FALSE) -> 0% | N17: =VLOOKUP($C17,'RECAP SECT'!$G$6:$CU$253,13,FALSE) -> 1
A18: 30 | B18: MARNE-ARDENNES | C18: 2 | D18: CHARLEVILLE MEZIERES | E18: =VLOOKUP($C18,'RECAP SECT'!$G$6:$CU$253,3,FALSE) -> 48.2 | F18: =VLOOKUP($C18,'RECAP SECT'!$G$6:$CU$253,5,FALSE) -> 13.25 | G18: =VLOOKUP($C18,'RECAP SECT'!$G$6:$CU$253,6,FALSE) -> 48% | H18: =VLOOKUP($C18,'RECAP SECT'!$G$6:$CU$253,7,FALSE) -> 9 | I18: =VLOOKUP($C18,'RECAP SECT'!$G$6:$CU$253,8,FALSE) -> 66% | J18: =VLOOKUP($C18,'RECAP SECT'!$G$6:$CU$253,9,FALSE) -> 10% | K18: =VLOOKUP($C18,'RECAP SECT'!$G$6:$CU$253,10,FALSE) -> 7 | L18: =VLOOKUP($C18,'RECAP SECT'!$G$6:$CU$253,11,FALSE) -> 29% | M18: =VLOOKUP($C18,'RECAP SECT'!$G$6:$CU$253,12,FALSE) -> 28% | N18: =VLOOKUP($C18,'RECAP SECT'!$G$6:$CU$253,13,FALSE) -> 9
A19: 30 | B19: MARNE-ARDENNES | C19: 11 | D19: REIMS | E19: =VLOOKUP($C19,'RECAP SECT'!$G$6:$CU$253,3,FALSE) -> 67.9 | F19: =VLOOKUP($C19,'RECAP SECT'!$G$6:$CU$253,5,FALSE) -> 16.25 | G19: =VLOOKUP($C19,'RECAP SECT'!$G$6:$CU$253,6,FALSE) -> 36% | H19: =VLOOKUP($C19,'RECAP SECT'!$G$6:$CU$253,7,FALSE) -> 8 | I19: =VLOOKUP($C19,'RECAP SECT'!$G$6:$CU$253,8,FALSE) -> 62% | J19: =VLOOKUP($C19,'RECAP SECT'!$G$6:$CU$253,9,FALSE) -> 16% | K19: =VLOOKUP($C19,'RECAP SECT'!$G$6:$CU$253,10,FALSE) -> 10 | L19: =VLOOKUP($C19,'RECAP SECT'!$G$6:$CU$253,11,FALSE) -> 26% | M19: =VLOOKUP($C19,'RECAP SECT'!$G$6:$CU$253,12,FALSE) -> 25% | N19: =VLOOKUP($C19,'RECAP SECT'!$G$6:$CU$253,13,FALSE) -> 7
A20: 110 | B20: MEURTHE ET MOSELLE MEUSE | C20: 26 | D20: NANCY | E20: =VLOOKUP($C20,'RECAP SECT'!$G$6:$CU$253,3,FALSE) -> 55.0 | F20: =VLOOKUP($C20,'RECAP SECT'!$G$6:$CU$253,5,FALSE) -> 13.25 | G20: =VLOOKUP($C20,'RECAP SECT'!$G$6:$CU$253,6,FALSE) -> 48% | H20: =VLOOKUP($C20,'RECAP SECT'!$G$6:$CU$253,7,FALSE) -> 9 | I20: =VLOOKUP($C20,'RECAP SECT'!$G$6:$CU$253,8,FALSE) -> 62% | J20: =VLOOKUP($C20,'RECAP SECT'!$G$6:$CU$253,9,FALSE) -> 16% | K20: =VLOOKUP($C20,'RECAP SECT'!$G$6:$CU$253,10,FALSE) -> 9 | L20: =VLOOKUP($C20,'RECAP SECT'!$G$6:$CU$253,11,FALSE) -> 32% | M20: =VLOOKUP($C20,'RECAP SECT'!$G$6:$CU$253,12,FALSE) -> 31% | N20: =VLOOKUP($C20,'RECAP SECT'!$G$6:$CU$253,13,FALSE) -> 10
A21: 110 | B21: MEURTHE ET MOSELLE MEUSE | C21: 27 | D21: PONT A MOUSSON | E21: =VLOOKUP($C21,'RECAP SECT'!$G$6:$CU$253,3,FALSE) -> 59.5 | F21: =VLOOKUP($C21,'RECAP SECT'!$G$6:$CU$253,5,FALSE) -> 3.5 | G21: =VLOOKUP($C21,'RECAP SECT'!$G$6:$CU$253,6,FALSE) -> 86% | H21: =VLOOKUP($C21,'RECAP SECT'!$G$6:$CU$253,7,FALSE) -> 14 | I21: =VLOOKUP($C21,'RECAP SECT'!$G$6:$CU$253,8,FALSE) -> 54% | J21: =VLOOKUP($C21,'RECAP SECT'!$G$6:$CU$253,9,FALSE) -> 26% | K21: =VLOOKUP($C21,'RECAP SECT'!$G$6:$CU$253,10,FALSE) -> 15 | L21: =VLOOKUP($C21,'RECAP SECT'!$G$6:$CU$253,11,FALSE) -> 56% | M21: =VLOOKUP($C21,'RECAP SECT'!$G$6:$CU$253,12,FALSE) -> 56% | N21: =VLOOKUP($C21,'RECAP SECT'!$G$6:$CU$253,13,FALSE) -> 15
A22: 110 | B22: MEURTHE ET MOSELLE MEUSE | C22: 31 | D22: VERDUN | E22: =VLOOKUP($C22,'RECAP SECT'!$G$6:$CU$253,3,FALSE) -> 48.7 | F22: =VLOOKUP($C22,'RECAP SECT'!$G$6:$CU$253,5,FALSE) -> 20.75 | G22: =VLOOKUP($C22,'RECAP SECT'!$G$6:$CU$253,6,FALSE) -> 18% | H22: =VLOOKUP($C22,'RECAP SECT'!$G$6:$CU$253,7,FALSE) -> 4 | I22: =VLOOKUP($C22,'RECAP SECT'!$G$6:$CU$253,8,FALSE) -> 67% | J22: =VLOOKUP($C22,'RECAP SECT'!$G$6:$CU$253,9,FALSE) -> 9% | K22: =VLOOKUP($C22,'RECAP SECT'!$G$6:$CU$253,10,FALSE) -> 4 | L22: =VLOOKUP($C22,'RECAP SECT'!$G$6:$CU$253,11,FALSE) -> 13% | M22: =VLOOKUP($C22,'RECAP SECT'!$G$6:$CU$253,12,FALSE) -> 13% | N22: =VLOOKUP($C22,'RECAP SECT'!$G$6:$CU$253,13,FALSE) -> 4
A23: 160 | B23: MOSELLE | C23: 45 | D23: METZ | E23: =VLOOKUP($C23,'RECAP SECT'!$G$6:$CU$253,3,FALSE) -> 72.6 | F23: =VLOOKUP($C23,'RECAP SECT'!$G$6:$CU$253,5,FALSE) -> 16.5 | G23: =VLOOKUP($C23,'RECAP SECT'!$G$6:$CU$253,6,FALSE) -> 35% | H23: =VLOOKUP($C23,'RECAP SECT'!$G$6:$CU$253,7,FALSE) -> 7 | I23: =VLOOKUP($C23,'RECAP SECT'!$G$6:$CU$253,8,FALSE) -> 59% | J23: =VLOOKUP($C23,'RECAP SECT'!$G$6:$CU$253,9,FALSE) -> 19% | K23: =VLOOKUP($C23,'RECAP SECT'!$G$6:$CU$253,10,FALSE) -> 14 | L23: =VLOOKUP($C23,'RECAP SECT'!$G$6:$CU$253,11,FALSE) -> 27% | M23: =VLOOKUP($C23,'RECAP SECT'!$G$6:$CU$253,12,FALSE) -> 27% | N23: =VLOOKUP($C23,'RECAP SECT'!$G$6:$CU$253,13,FALSE) -> 8
A24: 160 | B24: MOSELLE | C24: 42 | D24: MOSELLE EST | E24: =VLOOKUP($C24,'RECAP SECT'!$G$6:$CU$253,3,FALSE) -> 57.8 | F24: =VLOOKUP($C24,'RECAP SECT'!$G$6:$CU$253,5,FALSE) -> 18.75 | G24: =VLOOKUP($C24,'RECAP SECT'!$G$6:$CU$253,6,FALSE) -> 26% | H24: =VLOOKUP($C24,'RECAP SECT'!$G$6:$CU$253,7,FALSE) -> 5 | I24: =VLOOKUP($C24,'RECAP SECT'!$G$6:$CU$253,8,FALSE) -> 67% | J24: =VLOOKUP($C24,'RECAP SECT'!$G$6:$CU$253,9,FALSE) -> 10% | K24: =VLOOKUP($C24,'RECAP SECT'!$G$6:$CU$253,10,FALSE) -> 5 | L24: =VLOOKUP($C24,'RECAP SECT'!$G$6:$CU$253,11,FALSE) -> 18% | M24: =VLOOKUP($C24,'RECAP SECT'!$G$6:$CU$253,12,FALSE) -> 17% | N24: =VLOOKUP($C24,'RECAP SECT'!$G$6:$CU$253,13,FALSE) -> 5
A25: 160 | B25: MOSELLE | C25: 44 | D25: MOSELLE NORD | E25: =VLOOKUP($C25,'RECAP SECT'!$G$6:$CU$253,3,FALSE) -> 55.5 | F25: =VLOOKUP($C25,'RECAP SECT'!$G$6:$CU$253,5,FALSE) -> 9.5 | G25: =VLOOKUP($C25,'RECAP SECT'!$G$6:$CU$253,6,FALSE) -> 62% | H25: =VLOOKUP($C25,'RECAP SECT'!$G$6:$CU$253,7,FALSE) -> 12 | I25: =VLOOKUP($C25,'RECAP SECT'!$G$6:$CU$253,8,FALSE) -> 61% | J25: =VLOOKUP($C25,'RECAP SECT'!$G$6:$CU$253,9,FALSE) -> 17% | K25: =VLOOKUP($C25,'RECAP SECT'!$G$6:$CU$253,10,FALSE) -> 12 | L25: =VLOOKUP($C25,'RECAP SECT'!$G$6:$CU$253,11,FALSE) -> 40% | M25: =VLOOKUP($C25,'RECAP SECT'!$G$6:$CU$253,12,FALSE) -> 39% | N25: =VLOOKUP($C25,'RECAP SECT'!$G$6:$CU$253,13,FALSE) -> 13
A26: 80 | B26: VOSGES | C26: 57 | D26: EPINAL | E26: =VLOOKUP($C26,'RECAP SECT'!$G$6:$CU$253,3,FALSE) -> 53.0 | F26: =VLOOKUP($C26,'RECAP SECT'!$G$6:$CU$253,5,FALSE) -> 21 | G26: =VLOOKUP($C26,'RECAP SECT'!$G$6:$CU$253,6,FALSE) -> 17% | H26: =VLOOKUP($C26,'RECAP SECT'!$G$6:$CU$253,7,FALSE) -> 3 | I26: =VLOOKUP($C26,'RECAP SECT'!$G$6:$CU$253,8,FALSE) -> 70% | J26: =VLOOKUP($C26,'RECAP SECT'!$G$6:$CU$253,9,FALSE) -> 5% | K26: =VLOOKUP($C26,'RECAP SECT'!$G$6:$CU$253,10,FALSE) -> 2 | L26: =VLOOKUP($C26,'RECAP SECT'!$G$6:$CU$253,11,FALSE) -> 11% | M26: =VLOOKUP($C26,'RECAP SECT'!$G$6:$CU$253,12,FALSE) -> 11% | N26: =VLOOKUP($C26,'RECAP SECT'!$G$6:$CU$253,13,FALSE) -> 3
A27: 80 | B27: VOSGES | C27: 55 | D27: SAINT DIE | E27: =VLOOKUP($C27,'RECAP SECT'!$G$6:$CU$253,3,FALSE) -> 40.1 | F27: =VLOOKUP($C27,'RECAP SECT'!$G$6:$CU$253,5,FALSE) -> 25.25 | G27: =VLOOKUP($C27,'RECAP SECT'!$G$6:$CU$253,6,FALSE) -> 0% | H27: =VLOOKUP($C27,'RECAP SECT'!$G$6:$CU$253,7,FALSE) -> 1 | I27: =VLOOKUP($C27,'RECAP SECT'!$G$6:$CU$253,8,FALSE) -> 69% | J27: =VLOOKUP($C27,'RECAP SECT'!$G$6:$CU$253,9,FALSE) -> 7% | K27: =VLOOKUP($C27,'RECAP SECT'!$G$6:$CU$253,10,FALSE) -> 3 | L27: =VLOOKUP($C27,'RECAP SECT'!$G$6:$CU$253,11,FALSE) -> 3% | M27: =VLOOKUP($C27,'RECAP SECT'!$G$6:$CU$253,12,FALSE) -> 3% | N27: =VLOOKUP($C27,'RECAP SECT'!$G$6:$CU$253,13,FALSE) -> 2
A28: Total CEGEE Directions Régionales | E28: =SUM(E10:E27) -> 946

Sheet AG_CLASS
B1: Accueil | H1: BAROMETRE BDD - AGENCES
H2: CLASSEMENTS
H3: =ACCUEIL!F7 -> 2022-11-13
H8: CLASSEMENT GENERAL | I8: CRITERE Satisfaction Clients | J8: NPS à froid (SAE) | K8: NPS à chaud (QHD) | L8: CRITERE BANCARISATION | M8: Ventes Nettes produits pondérés | N8: Ventes sur client non détenteur de l’univers | O8: CRITERE EPARGNE | P8: Excédent Epargne hors DAV pondéré | Q8: Ventes sur client non détenteur de l’univers | R8: CRITERE IARD PREVOYANCE | S8: Ventes Nettes produits pondérés | T8: Ventes sur client non détenteur de l’univers | U8: CRITERE CREDITS | V8: Engagements et ventes accessoires pondérés Immo | W8: Engagements et ventes accessoires pondérés Conso | X8: Ventes sur client non détenteur de l’univers
B9: Direction | C9: eds | D9: Territoire | E9: eds | F9: Agence | G9: ="ETP perf "&DATEMAJ!$C$28 -> ETP perf 13-nov | H9: Rang | I9: Rang | J9: Rang | K9: Rang | L9: Rang | M9: Rang | N9: Rang | O9: Rang | P9: Rang | Q9: Rang | R9: Rang | S9: Rang | T9: Rang | U9: Rang | V9: Rang | W9: Rang | X9: Rang
A10: 50 | B10: MOSELLE | C10: 44 | D10: MOSELLE NORD | E10: 557508 | F10: NILVANGE | G10: 1.4 | H10: 1 | I10: 46 | J10: 51 | K10: 40 | L10: 1 | M10: 1 | N10: 1 | O10: 4 | P10: 90 | Q10: 1 | R10: 1 | S10: 1 | T10: 1 | U10: 1 | V10: 1 | W10: 1 | X10: 1
A11: 50 | B11: VOSGES | C11: 57 | D11: EPINAL | E11: 488288 | F11: EPINAL LEOPOLD BOURG | G11: 2.0 | H11: 2 | I11: 3 | J11: 6 | K11: 3 | L11: 17 | M11: 13 | N11: 47 | O11: 5 | P11: 4 | Q11: 34 | R11: 49 | S11: 27 | T11: 136 | U11: 26 | V11: 16 | W11: 97 | X11: 29
A12: 50 | B12: MARNE ARDENNES | C12: 11 | D12: REIMS | E12: 551305 | F12: REIMS HIPPODROME | G12: 5.0 | H12: 3 | I12: 66 | J12: 70 | K12: 76 | L12: 10 | M12: 21 | N12: 8 | O12: 19 | P12: 33 | Q12: 13 | R12: 11 | S12: 15 | T12: 10 | U12: 5 | V12: 6 | W12: 65 | X12: 3
A13: 50 | B13: MARNE ARDENNES | C13: 11 | D13: REIMS | E13: 551340 | F13: BETHENY | G13: 2.2 | H13: 4 | I13: 58 | J13: 48 | K13: 110 | L13: 4 | M13: 4 | N13: 5 | O13: 16 | P13: 35 | Q13: 8 | R13: 59 | S13: 72 | T13: 40 | U13: 6 | V13: 3 | W13: 56 | X13: 8
A14: 50 | B14: MEURTHE ET MOSELLE MEUSE | C14: 27 | D14: PONT A MOUSSON | E14: 554381 | F14: LAXOU ARISTIDE BRIAND | G14: 2.3 | H14: 5 | I14: 150 | J14: 159 | K14: 133 | L14: 2 | M14: 2 | N14: 2 | O14: 28 | P14: 75 | Q14: 6 | R14: 12 | S14: 25 | T14: 6 | U14: 3 | V14: 5 | W14: 21 | X14: 6
A15: 50 | B15: MARNE ARDENNES | C15: 11 | D15: REIMS | E15: 551349 | F15: REIMS SAINT REMI | G15: 2.9 | H15: 6 | I15: 121 | J15: 126 | K15: 93 | L15: 3 | M15: 3 | N15: 6 | O15: 29 | P15: 68 | Q15: 9 | R15: 13 | S15: 17 | T15: 11 | U15: 9 | V15: 12 | W15: 46 | X15: 9
A16: 50 | B16: MARNE ARDENNES | C16: 6 | D16: CHALONS EN CHAMPAGNE | E16: 551330 | F16: MONTMIRAIL | G16: 2.8 | H16: 7 | I16: 10 | J16: 12 | K16: 14 | L16: 12 | M16: 6 | N16: 53 | O16: 47 | P16: 41 | Q16: 95 | R16: 10 | S16: 7 | T16: 20 | U16: 62 | V16: 48 | W16: 170 | X16: 38
A17: 50 | B17: MARNE ARDENNES | C17: 6 | D17: CHALONS EN CHAMPAGNE | E17: 451115 | F17: MOURMELON LE GRAND | G17: 2.8 | H17: 8 | I17: 85 | J17: 123 | K17: 18 | L17: 8 | M17: 8 | N17: 14 | O17: 14 | P17: 44 | Q17: 4 | R17: 17 | S17: 37 | T17: 9 | U17: 18 | V17: 41 | W17: 6 | X17: 36
A18: 50 | B18: BAS RHIN | C18: 5006 | D18: STRASBOURG | E18: 4048 | F18: STRASBOURG KOENIGSHOFFEN | G18: 1.5 | H18: 9 | I18: 164 | J18: 196 | K18: 147 | L18: 5 | M18: 10 | N18: 3 | O18: 6 | P18: 21 | Q18: 3 | R18: 6 | S18: 62 | T18: 2 | U18: 16 | V18: 61 | W18: 14 | X18: 10
A19: 50 | B19: MOSELLE | C19: 45 | D19: METZ | E19: 457443 | F19: METZ REPUBLIQUE | G19: 3.5 | H19: 10 | I19: 36 | J19: 29 | K19: 51 | L19: 81 | M19: 72 | N19: 106 | O19: 3 | P19: 3 | Q19: 73 | R19: 18 | S19: 13 | T19: 45 | U19: 104 | V19: 113 | W19: 93 | X19: 106
A20: 50 | B20: MOSELLE | C20: 44 | D20: MOSELLE NORD | E20: 557660 | F20: UCKANGE | G20: 1.9 | H20: 11 | I20: 217 | J20: 165 | K20: 224 | L20: 13 | M20: 30 | N20: 11 | O20: 50 | P20: 191 | Q20: 2 | R20: 2 | S20: 3 | T20: 3 | U20: 2 | V20: 2 | W20: 72 | X20: 2
A21: 50 | B21: MEURTHE ET MOSELLE MEUSE | C21: 26 | D21: NANCY | E21: 554476 | F21: NANCY ARTEM | G21: 2.8 | H21: 12 | I21: 30 | J21: 41 | K21: 15 | L21: 15 | M21: 28 | N21: 16 | O21: 139 | P21: 142 | Q21: 69 | R21: 81 | S21: 67 | T21: 107 | U21: 7 | V21: 4 | W21: 100 | X21: 7
A22: 50 | B22: MARNE ARDENNES | C22: 2 | D22: CHARLEVILLE MEZIERES | E22: 508820 | F22: VOUZIERS | G22: 2.8 | H22: 13 | I22: 39 | J22: 31 | K22: 71 | L22: 42 | M22: 42 | N22: 58 | O22: 37 | P22: 25 | Q22: 150 | R22: 9 | S22: 5 | T22: 23 | U22: 37 | V22: 94 | W22: 8 | X22: 60
A23: 50 | B23: MOSELLE | C23: 44 | D23: MOSELLE NORD | E23: 557113 | F23: AUDUN LE TICHE | G23: 2.1 | H23: 14 | I23: 119 | J23: 176 | K23: 12 | L23: 9 | M23: 15 | N23: 7 | O23: 27 | P23: 66 | Q23: 7 | R23: 37 | S23: 63 | T23: 18 | U23: 12 | V23: 14 | W23: 13 | X23: 27
A24: 50 | B24: MARNE ARDENNES | C24: 6 | D24: CHALONS EN CHAMPAGNE | E24: 451120 | F24: SARRY | G24: 2.3 | H24: 15 | I24: 8 | J24: 11 | K24: 5 | L24: 21 | M24: 14 | N24: 66 | O24: 144 | P24: 170 | Q24: 39 | R24: 31 | S24: 22 | T24: 75 | U24: 54 | V24: 35 | W24: 95 | X24: 75
A25: 50 | B25: BAS RHIN | C25: 5006 | D25: STRASBOURG | E25: 4037 | F25: MUNDOLSHEIM | G25: 3.8 | H25: 16 | I25: 64 | J25: 60 | K25: 88 | L25: 11 | M25: 18 | N25: 18 | O25: 104 | P25: 146 | Q25: 18 | R25: 8 | S25: 8 | T25: 17 | U25: 30 | V25: 21 | W25: 176 | X25: 16
A26: 50 | B26: MOSELLE | C26: 42 | D26: MOSELLE EST | E26: 457165 | F26: BITCHE | G26: 2.4 | H26: 17 | I26: 13 | J26: 12 | K26: 36 | L26: 16 | M26: 11 | N26: 59 | O26: 110 | P26: 150 | Q26: 22 | R26: 30 | S26: 26 | T26: 58 | U26: 113 | V26: 114 | W26: 52 | X26: 182
A27: 50 | B27: MARNE ARDENNES | C27: 11 | D27: REIMS | E27: 451350 | F27: REIMS CENTRE VILLE | G27: 6.3 | H27: 18 | I27: 196 | J27: 200 | K27: 176 | L27: 6 | M27: 7 | N27: 10 | O27: 116 | P27: 154 | Q27: 24 | R27: 16 | S27: 19 | T27: 19 | U27: 4 | V27: 7 | W27: 41 | X27: 4
A28: 262 | B28: MARNE ARDENNES | C28: 6 | D28: CHALONS EN CHAMPAGNE | E28: 551354 | F28: VERTUS | G28: 2.0 | H28: 19 | I28: 1 | J28: 2 | K28: 1 | L28: 108 | M28: 76 | N28: 167 | O28: 23 | P28: 16 | Q28: 112 | R28: 185 | S28: 188 | T28: 155 | U28: 89 | V28: 151 | W28: 48 | X28: 98
A29: 262 | B29: MOSELLE | C29: 45 | D29: METZ | E29: 457453 | F29: MONTIGNY LES METZ | G29: 7.0 | H29: 20 | I29: 14 | J29: 15 | K29: 21 | L29: 45 | M29: 29 | N29: 99 | O29: 66 | P29: 98 | Q29: 15 | R29: 134 | S29: 111 | T29: 174 | U29: 41 | V29: 30 | W29: 63 | X29: 65
A30: 262 | B30: MARNE ARDENNES | C30: 11 | D30: REIMS | E30: 551365 | F30: DORMANS | G30: 2.5 | H30: 21 | I30: 60 | J30: 70 | K30: 61 | L30: 7 | M30: 5 | N30: 21 | O30: 176 | P30: 213 | Q30: 21 | R30: 35 | S30: 44 | T30: 38 | U30: 27 | V30: 29 | W30: 157 | X30: 13
A31: 262 | B31: MARNE ARDENNES | C31: 11 | D31: REIMS | E31: 451336 | F31: TINQUEUX | G31: 5.0 | H31: 22 | I31: 138 | J31: 119 | K31: 170 | L31: 46 | M31: 39 | N31: 68 | O31: 1 | P31: 1 | Q31: 61 | R31: 106 | S31: 120 | T31: 89 | U31: 56 | V31: 22 | W31: 167 | X31: 56
A32: 262 | B32: MARNE ARDENNES | C32: 2 | D32: CHARLEVILLE MEZIERES | E32: 508839 | F32: GIVET | G32: 3.3 | H32: 23 | I32: 72 | J32: 63 | K32: 101 | L32: 52 | M32: 69 | N32: 50 | O32: 122 | P32: 147 | Q32: 33 | R32: 3 | S32: 2 | T32: 34 | U32: 44 | V32: 68 | W32: 26 | X32: 55
A33: 262 | B33: MOSELLE | C33: 45 | D33: METZ | E33: 457446 | F33: METZ SAINT LOUIS | G33: 5.7 | H33: 24 | I33: 95 | J33: 98 | K33: 80 | L33: 20 | M33: 19 | N33: 35 | O33: 55 | P33: 97 | Q33: 10 | R33: 69 | S33: 64 | T33: 100 | U33: 25 | V33: 13 | W33: 147 | X33: 28
A34: 262 | B34: MEURTHE ET MOSELLE MEUSE | C34: 26 | D34: NANCY | E34: 554601 | F34: SAINT MAX | G34: 3.6 | H34: 25 | I34: 21 | J34: 22 | K34: 33 | L34: 112 | M34: 93 | N34: 136 | O34: 22 | P34: 13 | Q34: 115 | R34: 51 | S34: 41 | T34: 94 | U34: 107 | V34: 90 | W34: 118 | X34: 118
A35: 262 | B35: VOSGES | C35: 57 | D35: EPINAL | E35: 588336 | F35: GOLBEY | G35: 2.8 | H35: 26 | I35: 38 | J35: 34 | K35: 42 | L35: 111 | M35: 113 | N35: 103 | O35: 36 | P35: 24 | Q35: 103 | R35: 29 | S35: 18 | T35: 83 | U35: 75 | V35: 109 | W35: 102 | X35: 47
A36: 262 | B36: MOSELLE | C36: 42 | D36: MOSELLE EST | E36: 457308 | F36: FORBACH CENTRALE | G36: 10.1 | H36: 27 | I36: 108 | J36: 93 | K36: 125 | L36: 24 | M36: 25 | N36: 40 | O36: 94 | P36: 115 | Q36: 40 | R36: 25 | S36: 28 | T36: 32 | U36: 31 | V36: 50 | W36: 16 | X36: 58
A37: 262 | B37: MARNE ARDENNES | C37: 2 | D37: CHARLEVILLE MEZIERES | E37: 508833 | F37: VILLERS SEMEUSE CORA | G37: 3.0 | H37: 28 | I37: 186 | J37: 208 | K37: 163 | L37: 90 | M37: 157 | N37: 32 | O37: 26 | P37: 42 | Q37: 23 | R37: 5 | S37: 6 | T37: 12 | U37: 11 | V37: 20 | W37: 5 | X37: 15
A38: 262 | B38: MEURTHE ET MOSELLE MEUSE | C38: 31 | D38: VERDUN | E38: 555406 | F38: LIGNY EN BARROIS | G38: 2.5 | H38: 29 | I38: 32 | J38: 26 | K38: 58 | L38: 115 | M38: 115 | N38: 110 | O38: 2 | P38: 2 | Q38: 128 | R38: 210 | S38: 203 | T38: 190 | U38: 171 | V38: 210 | W38: 142 | X38: 142
A39: 262 | B39: MARNE ARDENNES | C39: 11 | D39: REIMS | E39: 451361 | F39: PIERRY LECLERC | G39: 1.9 | H39: 30 | I39: 41 | J39: 34 | K39: 55 | L39: 85 | M39: 85 | N39: 87 | O39: 18 | P39: 12 | Q39: 84 | R39: 98 | S39: 73 | T39: 145 | U39: 93 | V39: 53 | W39: 190 | X39: 82
A40: 262 | B40: MARNE ARDENNES | C40: 11 | D40: REIMS | E40: 551367 | F40: AY CHAMPAGNE | G40: 2.6 | H40: 31 | I40: 42 | J40: 32 | K40: 69 | L40: 114 | M40: 145 | N40: 65 | O40: 44 | P40: 40 | Q40: 98 | R40: 86 | S40: 98 | T40: 70 | U40: 39 | V40: 26 | W40: 183 | X40: 23
A41: 262 | B41: MARNE ARDENNES | C41: 11 | D41: REIMS | E41: 451301 | F41: REIMS HOTEL DE VILLE | G41: 6.8 | H41: 32 | I41: 106 | J41: 100 | K41: 105 | L41: 51 | M41: 71 | N41: 46 | O41: 109 | P41: 135 | Q41: 32 | R41: 14 | S41: 11 | T41: 22 | U41: 33 | V41: 15 | W41: 146 | X41: 32
A42: 262 | B42: AUBE HAUTE MARNE | C42: 21 | D42: CHAUMONT | E42: 510590 | F42: CHAUMONT REPUBLIQUE | G42: 2.9 | H42: 33 | I42: 76 | J42: 100 | K42: 23 | L42: 134 | M42: 160 | N42: 79 | O42: 25 | P42: 20 | Q42: 55 | R42: 27 | S42: 23 | T42: 61 | U42: 71 | V42: 116 | W42: 43 | X42: 73
A43: 262 | B43: MEURTHE ET MOSELLE MEUSE | C43: 26 | D43: NANCY | E43: 554356 | F43: JARVILLE LA MALGRANGE | G43: 4.1 | H43: 34 | I43: 26 | J43: 32 | K43: 22 | L43: 30 | M43: 16 | N43: 93 | O43: 194 | P43: 202 | Q43: 83 | R43: 80 | S43: 74 | T43: 90 | U43: 59 | V43: 49 | W43: 145 | X43: 45
A44: 262 | B44: MOSELLE | C44: 42 | D44: MOSELLE EST | E44: 557250 | F44: CREUTZWALD | G44: 2.5 | H44: 35 | I44: 17 | J44: 14 | K44: 48 | L44: 127 | M44: 150 | N44: 88 | O44: 149 | P44: 167 | Q44: 59 | R44: 28 | S44: 16 | T44: 99 | U44: 78 | V44: 85 | W44: 32 | X44: 143
A45: 262 | B45: MOSELLE | C45: 44 | D45: MOSELLE NORD | E45: 557352 | F45: HETTANGE GRANDE | G45: 3.2 | H45: 36 | I45: 130 | J45: 91 | K45: 193 | L45: 25 | M45: 49 | N45: 19 | O45: 108 | P45: 128 | Q45: 47 | R45: 43 | S45: 50 | T45: 37 | U45: 19 | V45: 47 | W45: 18 | X45: 26
A46: 262 | B46: BAS RHIN | C46: 5006 | D46: STRASBOURG | E46: 4038 | F46: OBERHAUSBERGEN | G46: 3.4 | H46: 37 | I46: 53 | J46: 54 | K46: 73 | L46: 54 | M46: 90 | N46: 27 | O46: 11 | P46: 14 | Q46: 31 | R46: 187 | S46: 219 | T46: 60 | U46: 72 | V46: 52 | W46: 132 | X46: 84
A47: 262 | B47: MARNE ARDENNES | C47: 2 | D47: CHARLEVILLE MEZIERES | E47: 408801 | F47: CHARLEVILLE JEAN JAURES | G47: 8.9 | H47: 38 | I47: 81 | J47: 96 | K47: 44 | L47: 71 | M47: 75 | N47: 71 | O47: 73 | P47: 92 | Q47: 28 | R47: 47 | S47: 43 | T47: 87 | U47: 45 | V47: 18 | W47: 189 | X47: 30
A48: 262 | B48: MEURTHE ET MOSELLE MEUSE | C48: 31 | D48: VERDUN | E48: 554413 | F48: LONGWY BAS | G48: 3.4 | H48: 39 | I48: 12 | J48: 9 | K48: 62 | L48: 87 | M48: 81 | N48: 108 | O48: 127 | P48: 116 | Q48: 141 | R48: 93 | S48: 66 | T48: 162 | U48: 101 | V48: 82 | W48: 64 | X48: 163
A49: 262 | B49: MARNE ARDENNES | C49: 11 | D49: REIMS | E49: 451370 | F49: EPERNAY | G49: 9.1 | H49: 40 | I49: 51 | J49: 65 | K49: 43 | L49: 43 | M49: 34 | N49: 82 | O49: 81 | P49: 91 | Q49: 58 | R49: 95 | S49: 96 | T49: 106 | U49: 67 | V49: 73 | W49: 127 | X49: 46
A50: 262 | B50: MOSELLE | C50: 45 | D50: METZ | E50: 557439 | F50: METZ POMPIDOU | G50: 2.6 | H50: 41 | I50: 63 | J50: 58 | K50: 89 | L50: 68 | M50: 112 | N50: 31 | O50: 17 | P50: 17 | Q50: 41 | R50: 145 | S50: 186 | T50: 54 | U50: 81 | V50: 58 | W50: 99 | X50: 108
A51: 262 | B51: MEURTHE ET MOSELLE MEUSE | C51: 26 | D51: NANCY | E51: 554636 | F51: TOMBLAINE | G51: 2.5 | H51: 42 | I51: 15 | J51: 20 | K51: 4 | L51: 125 | M51: 142 | N51: 100 | O51: 62 | P51: 61 | Q51: 66 | R51: 121 | S51: 131 | T51: 97 | U51: 123 | V51: 135 | W51: 108 | X51: 107
A52: 262 | B52: MEURTHE ET MOSELLE MEUSE | C52: 27 | D52: PONT A MOUSSON | E52: 554516 | F52: PAGNY SUR MOSELLE | G52: 2.7 | H52: 43 | I52: 101 | J52: 90 | K52: 119 | L52: 55 | M52: 44 | N52: 102 | O52: 77 | P52: 69 | Q52: 104 | R52: 40 | S52: 48 | T52: 39 | U52: 57 | V52: 55 | W52: 105 | X52: 49
A53: 262 | B53: MOSELLE | C53: 42 | D53: MOSELLE EST | E53: 457583 | F53: SAINT AVOLD | G53: 6.9 | H53: 44 | I53: 50 | J53: 65 | K53: 38 | L53: 35 | M53: 31 | N53: 62 | O53: 119 | P53: 141 | Q53: 38 | R53: 60 | S53: 61 | T53: 69 | U53: 94 | V53: 78 | W53: 120 | X53: 100
A54: 262 | B54: MOSELLE | C54: 45 | D54: METZ | E54: 557432 | F54: MAIZIERES LES METZ | G54: 2.8 | H54: 45 | I54: 176 | J54: 165 | K54: 175 | L54: 26 | M54: 61 | N54: 13 | O54: 86 | P54: 120 | Q54: 25 | R54: 44 | S54: 46 | T54: 53 | U54: 15 | V54: 8 | W54: 155 | X54: 12
A55: 262 | B55: MEURTHE ET MOSELLE MEUSE | C55: 31 | D55: VERDUN | E55: 455678 | F55: VERDUN CENTRALE | G55: 10.5 | H55: 46 | I55: 19 | J55: 16 | K55: 66 | L55: 73 | M55: 74 | N55: 78 | O55: 153 | P55: 163 | Q55: 96 | R55: 158 | S55: 161 | T55: 130 | U55: 42 | V55: 42 | W55: 82 | X55: 41
A56: 262 | B56: MARNE ARDENNES | C56: 6 | D56: CHALONS EN CHAMPAGNE | E56: 551103 | F56: FAGNIERES LECLERC | G56: 2.6 | H56: 47 | I56: 94 | J56: 117 | K56: 27 | L56: 89 | M56: 89 | N56: 94 | O56: 125 | P56: 144 | Q56: 42 | R56: 15 | S56: 10 | T56: 31 | U56: 60 | V56: 80 | W56: 30 | X56: 87
A57: 262 | B57: MOSELLE | C57: 44 | D57: MOSELLE NORD | E57: 557303 | F57: FAMECK | G57: 2.8 | H57: 48 | I57: 40 | J57: 43 | K57: 37 | L57: 91 | M57: 189 | N57: 15 | O57: 32 | P57: 32 | Q57: 65 | R57: 225 | S57: 227 | T57: 158 | U57: 35 | V57: 60 | W57: 20 | X57: 51
A58: 262 | B58: BAS RHIN | C58: 5006 | D58: STRASBOURG | E58: 4047 | F58: STRASBOURG CRONENBOURG | G58: 4.1 | H58: 49 | I58: 105 | J58: 126 | K58: 34 | L58: 23 | M58: 17 | N58: 63 | O58: 39 | P58: 52 | Q58: 45 | R58: 100 | S58: 107 | T58: 104 | U58: 112 | V58: 70 | W58: 172 | X58: 105
A59: 262 | B59: BAS RHIN | C59: 5101 | D59: SELESTAT | E59: 4113 | F59: BARR | G59: 2.9 | H59: 50 | I59: 23 | J59: 43 | K59: 6 | L59: 39 | M59: 22 | N59: 98 | O59: 106 | P59: 125 | Q59: 46 | R59: 137 | S59: 108 | T59: 184 | U59: 154 | V59: 63 | W59: 239 | X59: 86
A60: 262 | B60: MEURTHE ET MOSELLE MEUSE | C60: 26 | D60: NANCY | E60: 454481 | F60: NANCY PLACE DOMBASLE | G60: 7.8 | H60: 51 | I60: 142 | J60: 142 | K60: 148 | L60: 78 | M60: 122 | N60: 37 | O60: 63 | P60: 101 | Q60: 11 | R60: 71 | S60: 91 | T60: 51 | U60: 14 | V60: 10 | W60: 71 | X60: 18
A61: 262 | B61: AUBE HAUTE MARNE | C61: 21 | D61: CHAUMONT | E61: 410541 | F61: LANGRES | G61: 8.0 | H61: 52 | I61: 52 | J61: 52 | K61: 75 | L61: 86 | M61: 59 | N61: 159 | O61: 83 | P61: 83 | Q61: 142 | R61: 45 | S61: 30 | T61: 119 | U61: 109 | V61: 174 | W61: 47 | X61: 128
A62: 262 | B62: MOSELLE | C62: 45 | D62: METZ | E62: 557447 | F62: METZ SAINT MAXIMIN | G62: 2.4 | H62: 53 | I62: 147 | J62: 159 | K62: 128 | L62: 64 | M62: 106 | N62: 33 | O62: 43 | P62: 85 | Q62: 14 | R62: 4 | S62: 4 | T62: 13 | U62: 138 | V62: 149 | W62: 55 | X62: 214
A63: 262 | B63: MARNE ARDENNES | C63: 6 | D63: CHALONS EN CHAMPAGNE | E63: 451101 | F63: CHALONS VIVIERS | G63: 9.3 | H63: 54 | I63: 29 | J63: 38 | K63: 16 | L63: 120 | M63: 107 | N63: 147 | O63: 123 | P63: 127 | Q63: 75 | R63: 75 | S63: 69 | T63: 96 | U63: 87 | V63: 83 | W63: 143 | X63: 69
A64: 262 | B64: MARNE ARDENNES | C64: 11 | D64: REIMS | E64: 551310 | F64: REIMS CHATILLONS | G64: 4.0 | H64: 55 | I64: 135 | J64: 122 | K64: 159 | L64: 27 | M64: 35 | N64: 36 | O64: 107 | P64: 105 | Q64: 120 | R64: 65 | S64: 95 | T64: 35 | U64: 34 | V64: 37 | W64: 123 | X64: 25
A65: 262 | B65: MEURTHE ET MOSELLE MEUSE | C65: 27 | D65: PONT A MOUSSON | E65: 554686 | F65: VEZELISE | G65: 1.9 | H65: 56 | I65: 2 | J65: 1 | K65: 11 | L65: 143 | M65: 133 | N65: 149 | O65: 82 | P65: 64 | Q65: 200 | R65: 170 | S65: 158 | T65: 188 | U65: 232 | V65: 226 | W65: 178 | X65: 239
A66: 262 | B66: MARNE ARDENNES | C66: 6 | D66: CHALONS EN CHAMPAGNE | E66: 551110 | F66: CHALONS ROOSEVELT | G66: 4.4 | H66: 57 | I66: 56 | J66: 55 | K66: 79 | L66: 123 | M66: 103 | N66: 156 | O66: 98 | P66: 94 | Q66: 90 | R66: 20 | S66: 9 | T66: 98 | U66: 118 | V66: 67 | W66: 191 | X66: 103
A67: 262 | B67: MEURTHE ET MOSELLE MEUSE | C67: 27 | D67: PONT A MOUSSON | E67: 554531 | F67: POMPEY | G67: 3.2 | H67: 58 | I67: 209 | J67: 185 | K67: 209 | L67: 29 | M67: 54 | N67: 20 | O67: 58 | P67: 73 | Q67: 27 | R67: 72 | S67: 100 | T67: 44 | U67: 17 | V67: 17 | W67: 22 | X67: 22
A68: 262 | B68: MARNE ARDENNES | C68: 6 | D68: CHALONS EN CHAMPAGNE | E68: 451381 | F68: SEZANNE | G68: 4.7 | H68: 59 | I68: 59 | J68: 49 | K68: 102 | L68: 75 | M68: 73 | N68: 85 | O68: 35 | P68: 26 | Q68: 93 | R68: 190 | S68: 200 | T68: 133 | U68: 69 | V68: 59 | W68: 149 | X68: 48
A69: 262 | B69: MARNE ARDENNES | C69: 11 | D69: REIMS | E69: 551314 | F69: FISMES | G69: 2.6 | H69: 60 | I69: 31 | J69: 43 | K69: 10 | L69: 37 | M69: 41 | N69: 45 | O69: 227 | P69: 233 | Q69: 36 | R69: 127 | S69: 149 | T69: 66 | U69: 48 | V69: 36 | W69: 148 | X69: 37
A70: 262 | B70: MOSELLE | C70: 44 | D70: MOSELLE NORD | E70: 457348 | F70: HAGONDANGE | G70: 8.0 | H70: 61 | I70: 110 | J70: 109 | K70: 104 | L70: 47 | M70: 40 | N70: 69 | O70: 146 | P70: 152 | Q70: 77 | R70: 38 | S70: 34 | T70: 81 | U70: 58 | V70: 44 | W70: 129 | X70: 61
A71: 262 | B71: MEURTHE ET MOSELLE MEUSE | C71: 26 | D71: NANCY | E71: 554116 | F71: BACCARAT | G71: 2.8 | H71: 62 | I71: 6 | J71: 4 | K71: 20 | L71: 138 | M71: 102 | N71: 198 | O71: 136 | P71: 102 | Q71: 227 | R71: 141 | S71: 130 | T71: 142 | U71: 189 | V71: 153 | W71: 162 | X71: 195
A72: 262 | B72: MOSELLE | C72: 45 | D72: METZ | E72: 457574 | F72: ROMBAS | G72: 2.6 | H72: 63 | I72: 55 | J72: 46 | K72: 114 | L72: 102 | M72: 108 | N72: 104 | O72: 121 | P72: 126 | Q72: 71 | R72: 22 | S72: 14 | T72: 84 | U72: 127 | V72: 141 | W72: 70 | X72: 161
A73: 262 | B73: MOSELLE | C73: 45 | D73: METZ | E73: 557434 | F73: MARLY | G73: 3.1 | H73: 64 | I73: 24 | J73: 18 | K73: 87 | L73: 130 | M73: 94 | N73: 182 | O73: 46 | P73: 29 | Q73: 179 | R73: 182 | S73: 162 | T73: 205 | U73: 106 | V73: 71 | W73: 182 | X73: 85
A74: 264 | B74: BAS RHIN | C74: 5006 | D74: STRASBOURG | E74: 4010 | F74: STRASBOURG MEINAU | G74: 3.0 | H74: 65 | I74: 84 | J74: 65 | K74: 135 | L74: 40 | M74: 63 | N74: 25 | O74: 114 | P74: 119 | Q74: 72 | R74: 42 | S74: 75 | T74: 14 | U74: 146 | V74: 187 | W74: 80 | X74: 162
A75: 264 | B75: BAS RHIN | C75: 5006 | D75: STRASBOURG | E75: 4054 | F75: STRASBOURG MONTAGNE VERTE | G75: 2.7 | H75: 66 | I75: 62 | J75: 42 | K75: 144 | L75: 88 | M75: 158 | N75: 26 | O75: 49 | P75: 48 | Q75: 85 | R75: 39 | S75: 57 | T75: 24 | U75: 218 | V75: 237 | W75: 201 | X75: 147
A76: 264 | B76: MOSELLE | C76: 44 | D76: MOSELLE NORD | E76: 457632 | F76: THIONVILLE CENTRALE | G76: 10.1 | H76: 67 | I76: 129 | J76: 132 | K76: 112 | L76: 31 | M76: 26 | N76: 51 | O76: 181 | P76: 205 | Q76: 43 | R76: 26 | S76: 33 | T76: 36 | U76: 49 | V76: 27 | W76: 117 | X76: 52
A77: 264 | B77: MEURTHE ET MOSELLE MEUSE | C77: 31 | D77: VERDUN | E77: 554700 | F77: VILLERUPT | G77: 2.7 | H77: 68 | I77: 57 | J77: 61 | K77: 70 | L77: 61 | M77: 58 | N77: 96 | O77: 45 | P77: 45 | Q77: 76 | R77: 108 | S77: 92 | T77: 156 | U77: 188 | V77: 200 | W77: 62 | X77: 235
A78: 264 | B78: MOSELLE | C78: 44 | D78: MOSELLE NORD | E78: 457350 | F78: HAYANGE | G78: 6.3 | H78: 69 | I78: 126 | J78: 119 | K78: 136 | L78: 53 | M78: 50 | N78: 84 | O78: 128 | P78: 157 | Q78: 35 | R78: 23 | S78: 24 | T78: 41 | U78: 65 | V78: 43 | W78: 151 | X78: 53
A79: 264 | B79: MARNE ARDENNES | C79: 2 | D79: CHARLEVILLE MEZIERES | E79: 508819 | F79: MOUZON | G79: 1.9 | H79: 70 | I79: 131 | J79: 135 | K79: 108 | L79: 146 | M79: 176 | N79: 74 | O79: 30 | P79: 22 | Q79: 92 | R79: 64 | S79: 65 | T79: 77 | U79: 32 | V79: 101 | W79: 10 | X79: 34
A80: 264 | B80: VOSGES | C80: 57 | D80: EPINAL | E80: 488561 | F80: REMIREMONT | G80: 7.2 | H80: 71 | I80: 11 | J80: 10 | K80: 32 | L80: 110 | M80: 70 | N80: 202 | O80: 126 | P80: 107 | Q80: 186 | R80: 142 | S80: 103 | T80: 222 | U80: 194 | V80: 110 | W80: 223 | X80: 140
A81: 264 | B81: VOSGES | C81: 57 | D81: EPINAL | E81: 588396 | F81: LE VAL D AJOL | G81: 2.4 | H81: 72 | I81: 4 | J81: 4 | K81: 8 | L81: 159 | M81: 134 | N81: 196 | O81: 97 | P81: 86 | Q81: 155 | R81: 157 | S81: 121 | T81: 213 | U81: 219 | V81: 163 | W81: 231 | X81: 160
A82: 264 | B82: MOSELLE | C82: 42 | D82: MOSELLE EST | E82: 557305 | F82: FAULQUEMONT | G82: 3.8 | H82: 73 | I82: 233 | J82: 208 | K82: 229 | L82: 19 | M82: 51 | N82: 12 | O82: 164 | P82: 207 | Q82: 16 | R82: 32 | S82: 53 | T82: 16 | U82: 8 | V82: 9 | W82: 61 | X82: 5
A83: 264 | B83: MEURTHE ET MOSELLE MEUSE | C83: 31 | D83: VERDUN | E83: 555679 | F83: VERDUN MAZEL | G83: 3.7 | H83: 74 | I83: 18 | J83: 24 | K83: 17 | L83: 121 | M83: 111 | N83: 137 | O83: 88 | P83: 80 | Q83: 157 | R83: 131 | S83: 106 | T83: 185 | U83: 160 | V83: 145 | W83: 194 | X83: 112
A84: 264 | B84: VOSGES | C84: 55 | D84: SAINT DIE | E84: 488326 | F84: GERARDMER | G84: 3.9 | H84: 75 | I84: 79 | J84: 68 | K84: 111 | L84: 109 | M84: 99 | N84: 118 | O84: 64 | P84: 47 | Q84: 154 | R84: 139 | S84: 140 | T84: 122 | U84: 66 | V84: 76 | W84: 49 | X84: 78
A85: 264 | B85: MOSELLE | C85: 42 | D85: MOSELLE EST | E85: 557523 | F85: PHALSBOURG | G85: 2.5 | H85: 76 | I85: 103 | J85: 109 | K85: 77 | L85: 148 | M85: 154 | N85: 133 | O85: 31 | P85: 30 | Q85: 64 | R85: 56 | S85: 32 | T85: 157 | U85: 97 | V85: 96 | W85: 110 | X85: 89
A86: 264 | B86: MEURTHE ET MOSELLE MEUSE | C86: 27 | D86: PONT A MOUSSON | E86: 554506 | F86: CHALIGNY NEUVES MAISONS | G86: 3.5 | H86: 77 | I86: 165 | J86: 149 | K86: 179 | L86: 34 | M86: 48 | N86: 28 | O86: 192 | P86: 203 | Q86: 68 | R86: 19 | S86: 21 | T86: 28 | U86: 21 | V86: 39 | W86: 44 | X86: 24
A87: 264 | B87: MEURTHE ET MOSELLE MEUSE | C87: 31 | D87: VERDUN | E87: 454414 | F87: LONGWY HAUT | G87: 3.4 | H87: 78 | I87: 93 | J87: 96 | K87: 78 | L87: 82 | M87: 92 | N87: 64 | O87: 103 | P87: 100 | Q87: 131 | R87: 52 | S87: 56 | T87: 46 | U87: 102 | V87: 105 | W87: 81 | X87: 117
A88: 264 | B88: VOSGES | C88: 55 | D88: SAINT DIE | E88: 488246 | F88: CORNIMONT LA BRESSE | G88: 2.7 | H88: 79 | I88: 16 | J88: 17 | K88: 19 | L88: 104 | M88: 105 | N88: 107 | O88: 165 | P88: 138 | Q88: 223 | R88: 113 | S88: 84 | T88: 182 | U88: 157 | V88: 213 | W88: 69 | X88: 185
A89: 264 | B89: MARNE ARDENNES | C89: 11 | D89: REIMS | E89: 551306 | F89: REIMS SAINT MARCEAUX | G89: 3.2 | H89: 80 | I89: 91 | J89: 75 | K89: 127 | L89: 14 | M89: 9 | N89: 49 | O89: 234 | P89: 236 | Q89: 54 | R89: 70 | S89: 78 | T89: 64 | U89: 46 | V89: 54 | W89: 106 | X89: 31
A90: 264 | B90: VOSGES | C90: 55 | D90: SAINT DIE | E90: 588551 | F90: RAMBERVILLERS | G90: 2.6 | H90: 81 | I90: 20 | J90: 18 | K90: 50 | L90: 160 | M90: 193 | N90: 73 | O90: 71 | P90: 53 | Q90: 182 | R90: 226 | S90: 225 | T90: 193 | U90: 52 | V90: 72 | W90: 78 | X90: 35
A91: 264 | B91: MARNE ARDENNES | C91: 2 | D91: CHARLEVILLE MEZIERES | E91: 408822 | F91: CHARLEVILLE MEZIERES | G91: 5.2 | H91: 82 | I91: 191 | J91: 159 | K91: 198 | L91: 100 | M91: 164 | N91: 39 | O91: 21 | P91: 58 | Q91: 5 | R91: 50 | S91: 68 | T91: 26 | U91: 38 | V91: 34 | W91: 179 | X91: 20
A92: 264 | B92: MOSELLE | C92: 45 | D92: METZ | E92: 557444 | F92: SAINT JULIEN LES METZ | G92: 3.6 | H92: 83 | I92: 224 | J92: 172 | K92: 226 | L92: 59 | M92: 98 | N92: 34 | O92: 10 | P92: 15 | Q92: 20 | R92: 61 | S92: 118 | T92: 15 | U92: 50 | V92: 91 | W92: 9 | X92: 77
A93: 264 | B93: MOSELLE | C93: 42 | D93: MOSELLE EST | E93: 557668 | F93: VALMONT | G93: 2.9 | H93: 84 | I93: 43 | J93: 26 | K93: 100 | L93: 201 | M93: 200 | N93: 189 | O93: 33 | P93: 18 | Q93: 148 | R93: 76 | S93: 54 | T93: 137 | U93: 168 | V93: 209 | W93: 74 | X93: 203
A94: 264 | B94: MOSELLE | C94: 42 | D94: MOSELLE EST | E94: 457617 | F94: SARREGUEMINES | G94: 6.5 | H94: 85 | I94: 144 | J94: 153 | K94: 138 | L94: 56 | M94: 67 | N94: 61 | O94: 78 | P94: 96 | Q94: 30 | R94: 73 | S94: 80 | T94: 68 | U94: 43 | V94: 38 | W94: 89 | X94: 44
A95: 264 | B95: MOSELLE | C95: 45 | D95: METZ | E95: 557105 | F95: ARS SUR MOSELLE | G95: 2.8 | H95: 86 | I95: 116 | J95: 68 | K95: 199 | L95: 101 | M95: 147 | N95: 55 | O95: 113 | P95: 124 | Q95: 60 | R95: 90 | S95: 147 | T95: 21 | U95: 23 | V95: 32 | W95: 27 | X95: 39
A96: 30 | B96: MOSELLE | C96: 44 | D96: MOSELLE NORD | E96: 557347 | F96: GUENANGE | G96: 4.6 | H96: 87 | I96: 203 | J96: 196 | K96: 188 | L96: 32 | M96: 20 | N96: 67 | O96: 105 | P96: 112 | Q96: 79 | R96: 46 | S96: 38 | T96: 85 | U96: 29 | V96: 19 | W96: 58 | X96: 40
A97: 30 | B97: MOSELLE | C97: 44 | D97: MOSELLE NORD | E97: 457158 | F97: YUTZ | G97: 4.7 | H97: 88 | I97: 157 | J97: 185 | K97: 131 | L97: 58 | M97: 55 | N97: 90 | O97: 93 | P97: 93 | Q97: 82 | R97: 33 | S97: 35 | T97: 59 | U97: 51 | V97: 62 | W97: 35 | X97: 68
A98: 30 | B98: MOSELLE | C98: 44 | D98: MOSELLE NORD | E98: 457306 | F98: FLORANGE | G98: 4.6 | H98: 89 | I98: 230 | J98: 206 | K98: 222 | L98: 33 | M98: 36 | N98: 43 | O98: 96 | P98: 134 | Q98: 19 | R98: 92 | S98: 119 | T98: 55 | U98: 10 | V98: 11 | W98: 19 | X98: 19
A99: 30 | B99: BAS RHIN | C99: 5006 | D99: STRASBOURG | E99: 4024 | F99: STRASBOURG AUSTERLITZ | G99: 1.4 | H99: 90 | I99: 237 | J99: 185 | K99: 237 | L99: 38 | M99: 121 | N99: 9 | O99: 12 | P99: 19 | Q99: 12 | R99: 36 | S99: 133 | T99: 4 | U99: 73 | V99: 28 | W99: 195 | X99: 76
A100: 30 | B100: MARNE ARDENNES | C100: 2 | D100: CHARLEVILLE MEZIERES | E100: 408840 | F100: RETHEL | G100: 4.2 | H100: 91 | I100: 125 | J100: 124 | K100: 126 | L100: 63 | M100: 60 | N100: 92 | O100: 79 | P100: 72 | Q100: 126 | R100: 78 | S100: 60 | T100: 131 | U100: 74 | V100: 89 | W100: 87 | X100: 63
A101: 30 | B101: MARNE ARDENNES | C101: 6 | D101: CHALONS EN CHAMPAGNE | E101: 551128 | F101: SAINTE MENEHOULD | G101: 2.9 | H101: 92 | I101: 45 | J101: 46 | K101: 65 | L101: 93 | M101: 43 | N101: 220 | O101: 160 | P101: 139 | Q101: 210 | R101: 55 | S101: 42 | T101: 118 | U101: 165 | V101: 173 | W101: 84 | X101: 218
A102: 30 | B102: MARNE ARDENNES | C102: 11 | D102: REIMS | E102: 551369 | F102: DAMERY | G102: 1.6 | H102: 93 | I102: 86 | J102: 63 | K102: 146 | L102: 18 | M102: 33 | N102: 17 | O102: 239 | P102: 239 | Q102: 146 | R102: 41 | S102: 58 | T102: 25 | U102: 22 | V102: 23 | W102: 130 | X102: 17
A103: 30 | B103: BAS RHIN | C103: 5060 | D103: HAGUENAU | E103: 4071 | F103: WISSEMBOURG | G103: 8.2 | H103: 94 | I103: 33 | J103: 37 | K103: 28 | L103: 99 | M103: 97 | N103: 111 | O103: 101 | P103: 99 | Q103: 121 | R103: 135 | S103: 132 | T103: 125 | U103: 211 | V103: 218 | W103: 166 | X103: 204
A104: 30 | B104: BAS RHIN | C104: 5101 | D104: SELESTAT | E104: 4104 | F104: ERSTEIN | G104: 3.9 | H104: 95 | I104: 205 | J104: 191 | K104: 206 | L104: 22 | M104: 12 | N104: 89 | O104: 42 | P104: 36 | Q104: 116 | R104: 87 | S104: 55 | T104: 166 | U104: 77 | V104: 46 | W104: 165 | X104: 74
A105: 30 | B105: VOSGES | C105: 57 | D105: EPINAL | E105: 588716 | F105: XERTIGNY | G105: 2.8 | H105: 96 | I105: 67 | J105: 93 | K105: 25 | L105: 122 | M105: 78 | N105: 205 | O105: 51 | P105: 43 | Q105: 109 | R105: 138 | S105: 85 | T105: 225 | U105: 153 | V105: 178 | W105: 133 | X105: 144
A106: 30 | B106: MOSELLE | C106: 44 | D106: MOSELLE NORD | E106: 457192 | F106: CATTENOM | G106: 1.5 | H106: 97 | I106: 139 | J106: 142 | K106: 137 | L106: 60 | M106: 57 | N106: 95 | O106: 65 | P106: 84 | Q106: 29 | R106: 118 | S106: 125 | T106: 103 | U106: 61 | V106: 56 | W106: 42 | X106: 111
A107: 30 | B107: BAS RHIN | C107: 5006 | D107: STRASBOURG | E107: 4043 | F107: STRASBOURG HALLES | G107: 7.7 | H107: 98 | I107: 151 | J107: 208 | K107: 98 | L107: 44 | M107: 82 | N107: 22 | O107: 173 | P107: 214 | Q107: 17 | R107: 7 | S107: 12 | T107: 8 | U107: 131 | V107: 75 | W107: 235 | X107: 57
A108: 30 | B108: AUBE HAUTE MARNE | C108: 21 | D108: CHAUMONT | E108: 451154 | F108: JOINVILLE | G108: 1.8 | H108: 99 | I108: 73 | J108: 83 | K108: 52 | L108: 69 | M108: 88 | N108: 52 | O108: 223 | P108: 229 | Q108: 78 | R108: 34 | S108: 40 | T108: 42 | U108: 98 | V108: 164 | W108: 91 | X108: 67
A109: 30 | B109: BAS RHIN | C109: 5060 | D109: HAGUENAU | E109: 4092 | F109: HOCHFELDEN | G109: 2.1 | H109: 100 | I109: 89 | J109: 99 | K109: 59 | L109: 163 | M109: 174 | N109: 122 | O109: 52 | P109: 46 | Q109: 97 | R109: 85 | S109: 87 | T109: 78 | U109: 128 | V109: 84 | W109: 140 | X109: 157
A110: 30 | B110: MARNE ARDENNES | C110: 11 | D110: REIMS | E110: 551341 | F110: REIMS JEAN JAURES | G110: 4.1 | H110: 101 | I110: 177 | J110: 149 | K110: 195 | L110: 49 | M110: 80 | N110: 24 | O110: 117 | P110: 130 | Q110: 57 | R110: 82 | S110: 115 | T110: 33 | U110: 28 | V110: 24 | W110: 171 | X110: 14
A111: 30 | B111: VOSGES | C111: 55 | D111: SAINT DIE | E111: 588386 | F111: LE THILLOT | G111: 2.6 | H111: 102 | I111: 5 | J111: 3 | K111: 24 | L111: 164 | M111: 91 | N111: 239 | O111: 159 | P111: 131 | Q111: 236 | R111: 197 | S111: 175 | T111: 220 | U111: 202 | V111: 206 | W111: 173 | X111: 174
A112: 30 | B112: BAS RHIN | C112: 5006 | D112: STRASBOURG | E112: 4019 | F112: STRASBOURG ANVERS | G112: 4.4 | H112: 103 | I112: 174 | J112: 180 | K112: 167 | L112: 48 | M112: 56 | N112: 48 | O112: 38 | P112: 62 | Q112: 26 | R112: 68 | S112: 70 | T112: 74 | U112: 116 | V112: 40 | W112: 224 | X112: 101
A113: 30 | B113: MOSELLE | C113: 42 | D113: MOSELLE EST | E113: 457543 | F113: PUTTELANGE AUX LACS | G113: 2.3 | H113: 104 | I113: 143 | J113: 180 | K113: 96 | L113: 67 | M113: 64 | N113: 91 | O113: 145 | P113: 161 | Q113: 51 | R113: 24 | S113: 31 | T113: 29 | U113: 91 | V113: 64 | W113: 187 | X113: 64
A114: 30 | B114: HAUT RHIN | C114: 5130 | D114: COLMAR | E114: 4143 | F114: MUNSTER | G114: 4.2 | H114: 105 | I114: 127 | J114: 144 | K114: 72 | L114: 70 | M114: 32 | N114: 199 | O114: 61 | P114: 37 | Q114: 203 | R114: 103 | S114: 71 | T114: 175 | U114: 140 | V114: 158 | W114: 79 | X114: 183
A115: 30 | B115: MEURTHE ET MOSELLE MEUSE | C115: 31 | D115: VERDUN | E115: 554412 | F115: LONGUYON | G115: 2.8 | H115: 106 | I115: 87 | J115: 109 | K115: 31 | L115: 84 | M115: 96 | N115: 72 | O115: 111 | P115: 103 | Q115: 135 | R115: 104 | S115: 86 | T115: 141 | U115: 142 | V115: 147 | W115: 144 | X115: 125
A116: 30 | B116: VOSGES | C116: 55 | D116: SAINT DIE | E116: 588666 | F116: VAGNEY | G116: 3.5 | H116: 107 | I116: 28 | J116: 25 | K116: 39 | L116: 177 | M116: 137 | N116: 230 | O116: 53 | P116: 27 | Q116: 208 | R116: 209 | S116: 169 | T116: 238 | U116: 185 | V116: 195 | W116: 139 | X116: 170
A117: 30 | B117: BAS RHIN | C117: 5006 | D117: STRASBOURG | E117: 4006 | F117: STRASBOURG NEUDORF | G117: 7.9 | H117: 108 | I117: 22 | J117: 34 | K117: 13 | L117: 185 | M117: 195 | N117: 144 | O117: 102 | P117: 87 | Q117: 188 | R117: 101 | S117: 105 | T117: 112 | U117: 217 | V117: 175 | W117: 233 | X117: 150
A118: 30 | B118: MEURTHE ET MOSELLE MEUSE | C118: 27 | D118: PONT A MOUSSON | E118: 554357 | F118: JOEUF | G118: 3.0 | H118: 109 | I118: 48 | J118: 38 | K118: 118 | L118: 136 | M118: 169 | N118: 70 | O118: 158 | P118: 162 | Q118: 123 | R118: 155 | S118: 179 | T118: 91 | U118: 68 | V118: 100 | W118: 15 | X118: 135
A119: 30 | B119: MARNE ARDENNES | C119: 2 | D119: CHARLEVILLE MEZIERES | E119: 408862 | F119: REVIN | G119: 3.9 | H119: 110 | I119: 69 | J119: 83 | K119: 41 | L119: 139 | M119: 131 | N119: 145 | O119: 182 | P119: 189 | Q119: 94 | R119: 67 | S119: 59 | T119: 111 | U119: 95 | V119: 88 | W119: 154 | X119: 66
A120: 30 | B120: MEURTHE ET MOSELLE MEUSE | C120: 31 | D120: VERDUN | E120: 455151 | F120: BAR LE DUC | G120: 9.8 | H120: 111 | I120: 49 | J120: 74 | K120: 29 | L120: 118 | M120: 95 | N120: 158 | O120: 162 | P120: 168 | Q120: 136 | R120: 96 | S120: 76 | T120: 132 | U120: 143 | V120: 184 | W120: 73 | X120: 171
A121: 30 | B121: VOSGES | C121: 57 | D121: EPINAL | E121: 588631 | F121: THAON LES VOSGES | G121: 4.6 | H121: 112 | I121: 96 | J121: 83 | K121: 117 | L121: 113 | M121: 86 | N121: 152 | O121: 129 | P121: 117 | Q121: 143 | R121: 122 | S121: 143 | T121: 79 | U121: 90 | V121: 162 | W121: 33 | X121: 121
A122: 30 | B122: MARNE ARDENNES | C122: 2 | D122: CHARLEVILLE MEZIERES | E122: 508815 | F122: CARIGNAN | G122: 2.6 | H122: 113 | I122: 78 | J122: 55 | K122: 129 | L122: 92 | M122: 84 | N122: 105 | O122: 152 | P122: 159 | Q122: 100 | R122: 126 | S122: 90 | T122: 191 | U122: 111 | V122: 128 | W122: 86 | X122: 109
A123: 30 | B123: MEURTHE ET MOSELLE MEUSE | C123: 27 | D123: PONT A MOUSSON | E123: 554416 | F123: LUDRES | G123: 3.6 | H123: 114 | I123: 74 | J123: 83 | K123: 56 | L123: 145 | M123: 123 | N123: 168 | O123: 72 | P123: 55 | Q123: 175 | R123: 136 | S123: 88 | T123: 214 | U123: 169 | V123: 98 | W123: 214 | X123: 126
A124: 30 | B124: BAS RHIN | C124: 5060 | D124: HAGUENAU | E124: 4057 | F124: BISCHWILLER | G124: 6.8 | H124: 115 | I124: 71 | J124: 77 | K124: 67 | L124: 57 | M124: 24 | N124: 187 | O124: 180 | P124: 171 | Q124: 185 | R124: 109 | S124: 97 | T124: 140 | U124: 180 | V124: 228 | W124: 51 | X124: 223
A125: 30 | B125: VOSGES | C125: 55 | D125: SAINT DIE | E125: 588186 | F125: BRUYERES | G125: 3.5 | H125: 116 | I125: 25 | J125: 21 | K125: 57 | L125: 135 | M125: 144 | N125: 116 | O125: 220 | P125: 223 | Q125: 111 | R125: 151 | S125: 192 | T125: 56 | U125: 86 | V125: 104 | W125: 126 | X125: 62
A126: 30 | B126: BAS RHIN | C126: 5006 | D126: STRASBOURG | E126: 4027 | F126: SCHILTIGHEIM CENTRE | G126: 4.0 | H126: 117 | I126: 204 | J126: 208 | K126: 184 | L126: 41 | M126: 45 | N126: 54 | O126: 56 | P126: 51 | Q126: 86 | R126: 105 | S126: 142 | T126: 50 | U126: 84 | V126: 77 | W126: 112 | X126: 83
A127: 30 | B127: VOSGES | C127: 57 | D127: EPINAL | E127: 488286 | F127: EPINAL ARISTIDE BRIAND | G127: 8.1 | H127: 118 | I127: 178 | J127: 208 | K127: 157 | L127: 36 | M127: 53 | N127: 30 | O127: 70 | P127: 74 | Q127: 48 | R127: 112 | S127: 144 | T127: 65 | U127: 121 | V127: 97 | W127: 203 | X127: 50
A128: 30 | B128: AUBE HAUTE MARNE | C128: 14 | D128: TROYES | E128: 510570 | F128: NOGENT SUR SEINE | G128: 3.9 | H128: 119 | I128: 37 | J128: 29 | K128: 53 | L128: 126 | M128: 119 | N128: 128 | O128: 168 | P128: 172 | Q128: 113 | R128: 173 | S128: 154 | T128: 198 | U128: 147 | V128: 106 | W128: 174 | X128: 134
A129: 30 | B129: BAS RHIN | C129: 5060 | D129: HAGUENAU | E129: 4041 | F129: HOERDT | G129: 1.7 | H129: 120 | I129: 61 | J129: 61 | K129: 82 | L129: 158 | M129: 132 | N129: 193 | O129: 54 | P129: 38 | Q129: 166 | R129: 154 | S129: 117 | T129: 218 | U129: 216 | V129: 124 | W129: 209 | X129: 220
A130: 30 | B130: VOSGES | C130: 55 | D130: SAINT DIE | E130: 588316 | F130: FRAIZE | G130: 3.6 | H130: 121 | I130: 92 | J130: 107 | K130: 45 | L130: 157 | M130: 128 | N130: 195 | O130: 130 | P130: 121 | Q130: 110 | R130: 79 | S130: 49 | T130: 173 | U130: 126 | V130: 146 | W130: 111 | X130: 114
A131: 30 | B131: MEURTHE ET MOSELLE MEUSE | C131: 26 | D131: NANCY | E131: 554486 | F131: NANCY POINT CENTRAL | G131: 3.1 | H131: 122 | I131: 122 | J131: 82 | K131: 182 | L131: 178 | M131: 209 | N131: 83 | O131: 15 | P131: 10 | Q131: 70 | R131: 163 | S131: 178 | T131: 120 | U131: 133 | V131: 108 | W131: 96 | X131: 189
A132: 30 | B132: VOSGES | C132: 57 | D132: EPINAL | E132: 488281 | F132: ELOYES | G132: 3.4 | H132: 123 | I132: 65 | J132: 58 | K132: 95 | L132: 175 | M132: 156 | N132: 213 | O132: 67 | P132: 49 | Q132: 156 | R132: 213 | S132: 198 | T132: 215 | U132: 100 | V132: 166 | W132: 40 | X132: 127
A133: 30 | B133: MEURTHE ET MOSELLE MEUSE | C133: 31 | D133: VERDUN | E133: 455566 | F133: REVIGNY SUR ORNAIN | G133: 2.7 | H133: 124 | I133: 83 | J133: 88 | K133: 97 | L133: 150 | M133: 117 | N133: 201 | O133: 95 | P133: 71 | Q133: 201 | R133: 114 | S133: 93 | T133: 161 | U133: 158 | V133: 236 | W133: 37 | X133: 217
A134: 30 | B134: MOSELLE | C134: 45 | D134: METZ | E134: 557612 | F134: SAINTE MARIE AUX CHENES | G134: 3.7 | H134: 125 | I134: 35 | J134: 55 | K134: 2 | L134: 215 | M134: 194 | N134: 232 | O134: 87 | P134: 57 | Q134: 238 | R134: 125 | S134: 79 | T134: 202 | U134: 215 | V134: 208 | W134: 213 | X134: 146
A135: 110 | B135: BAS RHIN | C135: 5101 | D135: SELESTAT | E135: 4121 | F135: SCHIRMECK | G135: 2.8 | H135: 126 | I135: 54 | J135: 93 | K135: 9 | L135: 66 | M135: 52 | N135: 125 | O135: 189 | P135: 196 | Q135: 91 | R135: 193 | S135: 181 | T135: 199 | U135: 117 | V135: 118 | W135: 94 | X135: 123
A136: 110 | B136: MEURTHE ET MOSELLE MEUSE | C136: 26 | D136: NANCY | E136: 454426 | F136: LUNEVILLE CARNOT | G136: 8.4 | H136: 127 | I136: 179 | J136: 144 | K136: 204 | L136: 103 | M136: 125 | N136: 75 | O136: 68 | P136: 56 | Q136: 105 | R136: 147 | S136: 171 | T136: 82 | U136: 36 | V136: 57 | W136: 36 | X136: 42
A137: 110 | B137: MARNE ARDENNES | C137: 2 | D137: CHARLEVILLE MEZIERES | E137: 508802 | F137: CHARLEVILLE NEVERS | G137: 2.8 | H137: 128 | I137: 34 | J137: 38 | K137: 26 | L137: 205 | M137: 190 | N137: 224 | O137: 212 | P137: 212 | Q137: 172 | R137: 66 | S137: 45 | T137: 144 | U137: 122 | V137: 74 | W137: 83 | X137: 205
A138: 110 | B138: MEURTHE ET MOSELLE MEUSE | C138: 27 | D138: PONT A MOUSSON | E138: 554376 | F138: LAXOU BOUFFLERS | G138: 2.5 | H138: 129 | I138: 236 | J138: 208 | K138: 236 | L138: 28 | M138: 100 | N138: 4 | O138: 170 | P138: 184 | Q138: 89 | R138: 117 | S138: 217 | T138: 7 | U138: 13 | V138: 31 | W138: 23 | X138: 11
A139: 110 | B139: MOSELLE | C139: 44 | D139: MOSELLE NORD | E139: 557307 | F139: FONTOY | G139: 1.9 | H139: 130 | I139: 68 | J139: 70 | K139: 84 | L139: 186 | M139: 184 | N139: 179 | O139: 120 | P139: 104 | Q139: 165 | R139: 191 | S139: 196 | T139: 148 | U139: 63 | V139: 79 | W139: 11 | X139: 139
A140: 110 | B140: BAS RHIN | C140: 5101 | D140: SELESTAT | E140: 4126 | F140: MUTZIG | G140: 2.7 | H140: 131 | I140: 152 | J140: 208 | K140: 99 | L140: 50 | M140: 27 | N140: 140 | O140: 57 | P140: 60 | Q140: 56 | R140: 161 | S140: 151 | T140: 139 | U140: 144 | V140: 95 | W140: 227 | X140: 71
A141: 110 | B141: VOSGES | C141: 57 | D141: EPINAL | E141: 588206 | F141: CHARMES | G141: 2.9 | H141: 132 | I141: 100 | J141: 119 | K141: 35 | L141: 142 | M141: 141 | N141: 138 | O141: 91 | P141: 67 | Q141: 217 | R141: 123 | S141: 127 | T141: 109 | U141: 173 | V141: 235 | W141: 116 | X141: 137
A142: 110 | B142: AUBE HAUTE MARNE | C142: 21 | D142: CHAUMONT | E142: 451156 | F142: SAINT DIZIER CENTRE | G142: 8.6 | H142: 133 | I142: 134 | J142: 116 | K142: 161 | L142: 128 | M142: 146 | N142: 97 | O142: 148 | P142: 143 | Q142: 108 | R142: 57 | S142: 52 | T142: 73 | U142: 105 | V142: 142 | W142: 107 | X142: 81
A143: 110 | B143: MOSELLE | C143: 42 | D143: MOSELLE EST | E143: 457435 | F143: MERLEBACH | G143: 2.7 | H143: 134 | I143: 98 | J143: 105 | K143: 74 | L143: 153 | M143: 208 | N143: 42 | O143: 188 | P143: 206 | Q143: 52 | R143: 129 | S143: 183 | T143: 27 | U143: 64 | V143: 176 | W143: 7 | X143: 92
A144: 110 | B144: AUBE HAUTE MARNE | C144: 21 | D144: CHAUMONT | E144: 410566 | F144: CHAUMONT HOTEL DE VILLE | G144: 10.4 | H144: 135 | I144: 82 | J144: 77 | K144: 103 | L144: 179 | M144: 173 | N144: 171 | O144: 85 | P144: 78 | Q144: 170 | R144: 140 | S144: 110 | T144: 195 | U144: 172 | V144: 172 | W144: 134 | X144: 194
A145: 110 | B145: VOSGES | C145: 55 | D145: SAINT DIE | E145: 588461 | F145: MOYENMOUTIER | G145: 4.3 | H145: 136 | I145: 80 | J145: 80 | K145: 86 | L145: 97 | M145: 47 | N145: 223 | O145: 143 | P145: 113 | Q145: 214 | R145: 149 | S145: 134 | T145: 167 | U145: 212 | V145: 238 | W145: 115 | X145: 221
A146: 110 | B146: BAS RHIN | C146: 5006 | D146: STRASBOURG | E146: 4020 | F146: STRASBOURG ROBERTSAU | G146: 5.3 | H146: 137 | I146: 123 | J146: 133 | K146: 94 | L146: 183 | M146: 179 | N146: 180 | O146: 8 | P146: 6 | Q146: 106 | R146: 205 | S146: 180 | T146: 229 | U146: 198 | V146: 183 | W146: 160 | X146: 202
A147: 110 | B147: MEURTHE ET MOSELLE MEUSE | C147: 26 | D147: NANCY | E147: 554491 | F147: NANCY SAINT SEBASTIEN | G147: 3.5 | H147: 138 | I147: 117 | J147: 102 | K147: 145 | L147: 206 | M147: 221 | N147: 139 | O147: 13 | P147: 8 | Q147: 199 | R147: 198 | S147: 199 | T147: 164 | U147: 163 | V147: 132 | W147: 153 | X147: 179
A148: 110 | B148: VOSGES | C148: 57 | D148: EPINAL | E148: 588201 | F148: CHANTRAINE | G148: 3.7 | H148: 139 | I148: 88 | J148: 91 | K148: 90 | L148: 107 | M148: 79 | N148: 155 | O148: 90 | P148: 81 | Q148: 152 | R148: 217 | S148: 194 | T148: 233 | U148: 191 | V148: 122 | W148: 210 | X148: 148
A149: 110 | B149: BAS RHIN | C149: 5006 | D149: STRASBOURG | E149: 4023 | F149: STRASBOURG VOSGES | G149: 2.9 | H149: 140 | I149: 115 | J149: 103 | K149: 134 | L149: 119 | M149: 124 | N149: 113 | O149: 34 | P149: 34 | Q149: 63 | R149: 207 | S149: 193 | T149: 200 | U149: 224 | V149: 130 | W149: 240 | X149: 131
A150: 110 | B150: BAS RHIN | C150: 5101 | D150: SELESTAT | E150: 4127 | F150: ROSHEIM | G150: 1.7 | H150: 141 | I150: 111 | J150: 107 | K150: 115 | L150: 200 | M150: 202 | N150: 183 | O150: 40 | P150: 31 | Q150: 133 | R150: 153 | S150: 136 | T150: 178 | U150: 181 | V150: 120 | W150: 230 | X150: 93
A151: 110 | B151: VOSGES | C151: 57 | D151: EPINAL | E151: 488706 | F151: VITTEL | G151: 3.1 | H151: 142 | I151: 114 | J151: 126 | K151: 68 | L151: 172 | M151: 155 | N151: 208 | O151: 115 | P151: 89 | Q151: 204 | R151: 130 | S151: 122 | T151: 129 | U151: 135 | V151: 133 | W151: 164 | X151: 90
A152: 110 | B152: MEURTHE ET MOSELLE MEUSE | C152: 27 | D152: PONT A MOUSSON | E152: 554496 | F152: NANCY TROIS MAISONS | G152: 2.4 | H152: 143 | I152: 154 | J152: 194 | K152: 120 | L152: 116 | M152: 116 | N152: 112 | O152: 163 | P152: 155 | Q152: 187 | R152: 83 | S152: 77 | T152: 86 | U152: 79 | V152: 126 | W152: 45 | X152: 79
A153: 110 | B153: BAS RHIN | C153: 5060 | D153: HAGUENAU | E153: 4030 | F153: BRUMATH | G153: 3.8 | H153: 144 | I153: 214 | J153: 208 | K153: 208 | L153: 65 | M153: 38 | N153: 162 | O153: 7 | P153: 5 | Q153: 80 | R153: 218 | S153: 214 | T153: 210 | U153: 201 | V153: 139 | W153: 184 | X153: 206
A154: 110 | B154: MEURTHE ET MOSELLE MEUSE | C154: 26 | D154: NANCY | E154: 554266 | F154: DOMBASLE SUR MEURTHE | G154: 3.4 | H154: 145 | I154: 180 | J154: 206 | K154: 160 | L154: 210 | M154: 211 | N154: 191 | O154: 20 | P154: 9 | Q154: 132 | R154: 115 | S154: 137 | T154: 76 | U154: 110 | V154: 170 | W154: 31 | X154: 176
A155: 110 | B155: MEURTHE ET MOSELLE MEUSE | C155: 27 | D155: PONT A MOUSSON | E155: 454651 | F155: TOUL | G155: 9.4 | H155: 146 | I155: 207 | J155: 165 | K155: 214 | L155: 184 | M155: 198 | N155: 120 | O155: 69 | P155: 63 | Q155: 81 | R155: 97 | S155: 124 | T155: 57 | U155: 53 | V155: 45 | W155: 75 | X155: 72
A156: 110 | B156: MEURTHE ET MOSELLE MEUSE | C156: 26 | D156: NANCY | E156: 554296 | F156: ESSEY LES NANCY | G156: 3.7 | H156: 147 | I156: 47 | J156: 53 | K156: 46 | L156: 147 | M156: 143 | N156: 142 | O156: 166 | P156: 145 | Q156: 206 | R156: 219 | S156: 216 | T156: 212 | U156: 166 | V156: 150 | W156: 211 | X156: 88
A157: 110 | B157: MEURTHE ET MOSELLE MEUSE | C157: 27 | D157: PONT A MOUSSON | E157: 454355 | F157: JARNY | G157: 4.2 | H157: 148 | I157: 102 | J157: 115 | K157: 64 | L157: 166 | M157: 161 | N157: 157 | O157: 92 | P157: 79 | Q157: 180 | R157: 160 | S157: 157 | T157: 135 | U157: 220 | V157: 192 | W157: 206 | X157: 201
A158: 110 | B158: MOSELLE | C158: 45 | D158: METZ | E158: 557459 | F158: MOULINS LES METZ | G158: 2.5 | H158: 149 | I158: 77 | J158: 49 | K158: 139 | L158: 182 | M158: 165 | N158: 207 | O158: 183 | P158: 182 | Q158: 151 | R158: 144 | S158: 114 | T158: 201 | U158: 156 | V158: 169 | W158: 137 | X158: 153
A159: 110 | B159: MEURTHE ET MOSELLE MEUSE | C159: 26 | D159: NANCY | E159: 554166 | F159: BLAINVILLE | G159: 2.9 | H159: 150 | I159: 173 | J159: 208 | K159: 155 | L159: 105 | M159: 87 | N159: 135 | O159: 154 | P159: 136 | Q159: 190 | R159: 58 | S159: 51 | T159: 88 | U159: 139 | V159: 127 | W159: 158 | X159: 120
A160: 110 | B160: BAS RHIN | C160: 5006 | D160: STRASBOURG | E160: 4029 | F160: SCHILTIGHEIM KLEBER | G160: 0.6 | H160: 151 | I160: 149 | J160: 141 | K160: 165 | L160: 235 | M160: 234 | N160: 153 | O160: 48 | P160: 39 | Q160: 124 | R160: 102 | S160: 215 | T160: 5 | U160: 92 | V160: 156 | W160: 53 | X160: 91
A161: 110 | B161: MARNE ARDENNES | C161: 2 | D161: CHARLEVILLE MEZIERES | E161: 408806 | F161: SEDAN | G161: 7.4 | H161: 152 | I161: 112 | J161: 130 | K161: 47 | L161: 155 | M161: 136 | N161: 169 | O161: 147 | P161: 149 | Q161: 87 | R161: 201 | S161: 176 | T161: 227 | U161: 108 | V161: 102 | W161: 136 | X161: 97
A162: 110 | B162: MEURTHE ET MOSELLE MEUSE | C162: 31 | D162: VERDUN | E162: 555624 | F162: STENAY | G162: 3.1 | H162: 153 | I162: 171 | J162: 208 | K162: 153 | L162: 76 | M162: 139 | N162: 23 | O162: 203 | P162: 210 | Q162: 102 | R162: 216 | S162: 226 | T162: 93 | U162: 20 | V162: 103 | W162: 2 | X162: 54
A163: 110 | B163: MARNE ARDENNES | C163: 2 | D163: CHARLEVILLE MEZIERES | E163: 508860 | F163: ROCROI | G163: 2.3 | H163: 154 | I163: 208 | J163: 204 | K163: 202 | L163: 62 | M163: 68 | N163: 76 | O163: 155 | P163: 165 | Q163: 101 | R163: 124 | S163: 126 | T163: 110 | U163: 83 | V163: 65 | W163: 152 | X163: 70
A164: 110 | B164: BAS RHIN | C164: 5060 | D164: HAGUENAU | E164: 4031 | F164: TRUCHTERSHEIM | G164: 2.4 | H164: 155 | I164: 75 | J164: 75 | K164: 85 | L164: 77 | M164: 23 | N164: 229 | O164: 133 | P164: 95 | Q164: 233 | R164: 221 | S164: 211 | T164: 232 | U164: 240 | V164: 222 | W164: 237 | X164: 240
A165: 110 | B165: AUBE HAUTE MARNE | C165: 14 | D165: TROYES | E165: 510513 | F165: SAINT PARRES AUX TERTRES | G165: 2.8 | H165: 156 | I165: 234 | J165: 208 | K165: 234 | L165: 74 | M165: 101 | N165: 44 | O165: 124 | P165: 151 | Q165: 37 | R165: 21 | S165: 20 | T165: 49 | U165: 193 | V165: 241 | W165: 150 | X165: 110
A166: 110 | B166: MEURTHE ET MOSELLE MEUSE | C166: 27 | D166: PONT A MOUSSON | E166: 454535 | F166: PONT A MOUSSON CENTRALE | G166: 5.8 | H166: 157 | I166: 231 | J166: 194 | K166: 227 | L166: 80 | M166: 120 | N166: 41 | O166: 200 | P166: 193 | Q166: 183 | R166: 84 | S166: 99 | T166: 63 | U166: 40 | V166: 25 | W166: 159 | X166: 33
A167: 110 | B167: BAS RHIN | C167: 5006 | D167: STRASBOURG | E167: 4028 | F167: BISCHHEIM | G167: 3.1 | H167: 158 | I167: 169 | J167: 208 | K167: 152 | L167: 169 | M167: 181 | N167: 130 | O167: 74 | P167: 77 | Q167: 67 | R167: 74 | S167: 83 | T167: 67 | U167: 192 | V167: 161 | W167: 185 | X167: 166
A168: 110 | B168: MARNE ARDENNES | C168: 11 | D168: REIMS | E168: 551309 | F168: REIMS EUROPE | G168: 2.4 | H168: 159 | I168: 136 | J168: 83 | K168: 213 | L168: 132 | M168: 175 | N168: 57 | O168: 206 | P168: 217 | Q168: 88 | R168: 89 | S168: 123 | T168: 43 | U168: 124 | V168: 69 | W168: 225 | X168: 59
A169: 110 | B169: MOSELLE | C169: 42 | D169: MOSELLE EST | E169: 457614 | F169: SARREBOURG | G169: 7.1 | H169: 160 | I169: 141 | J169: 140 | K169: 150 | L169: 162 | M169: 151 | N169: 185 | O169: 131 | P169: 123 | Q169: 118 | R169: 107 | S169: 82 | T169: 170 | U169: 150 | V169: 155 | W169: 90 | X169: 197
A170: 110 | B170: BAS RHIN | C170: 5101 | D170: SELESTAT | E170: 4007 | F170: ILLKIRCH CENTRE | G170: 6.3 | H170: 161 | I170: 184 | J170: 192 | K170: 173 | L170: 151 | M170: 138 | N170: 161 | O170: 156 | P170: 153 | Q170: 153 | R170: 48 | S170: 36 | T170: 108 | U170: 125 | V170: 107 | W170: 113 | X170: 138
A171: 110 | B171: BAS RHIN | C171: 5060 | D171: HAGUENAU | E171: 4067 | F171: PFAFFENHOFFEN | G171: 1.9 | H171: 162 | I171: 145 | J171: 172 | K171: 116 | L171: 79 | M171: 62 | N171: 114 | O171: 112 | P171: 106 | Q171: 134 | R171: 194 | S171: 190 | T171: 180 | U171: 184 | V171: 152 | W171: 221 | X171: 95
A172: 110 | B172: MOSELLE | C172: 45 | D172: METZ | E172: 557441 | F172: METZ PLAPPEVILLE | G172: 2.6 | H172: 163 | I172: 160 | J172: 133 | K172: 197 | L172: 197 | M172: 207 | N172: 151 | O172: 24 | P172: 11 | Q172: 184 | R172: 188 | S172: 184 | T172: 177 | U172: 137 | V172: 190 | W172: 50 | X172: 180
A173: 110 | B173: MEURTHE ET MOSELLE MEUSE | C173: 27 | D173: PONT A MOUSSON | E173: 454696 | F173: VILLERS GENERAL LECLERC | G173: 3.9 | H173: 164 | I173: 163 | J173: 196 | K173: 143 | L173: 188 | M173: 203 | N173: 128 | O173: 9 | P173: 7 | Q173: 130 | R173: 169 | S173: 172 | T173: 147 | U173: 230 | V173: 204 | W173: 226 | X173: 198
A174: 110 | B174: BAS RHIN | C174: 5101 | D174: SELESTAT | E174: 4008 | F174: FEGERSHEIM | G174: 2.4 | H174: 165 | I174: 133 | J174: 137 | K174: 109 | L174: 96 | M174: 46 | N174: 219 | O174: 99 | P174: 70 | Q174: 220 | R174: 196 | S174: 174 | T174: 217 | U174: 228 | V174: 214 | W174: 204 | X174: 215
A175: 110 | B175: MOSELLE | C175: 45 | D175: METZ | E175: 557440 | F175: METZ MOZART | G175: 2.8 | H175: 166 | I175: 153 | J175: 208 | K175: 107 | L175: 149 | M175: 114 | N175: 200 | O175: 76 | P175: 54 | Q175: 194 | R175: 143 | S175: 109 | T175: 206 | U175: 200 | V175: 123 | W175: 218 | X175: 152
A176: 110 | B176: MOSELLE | C176: 45 | D176: METZ | E176: 557559 | F176: REMILLY | G176: 3.2 | H176: 167 | I176: 168 | J176: 157 | K176: 180 | L176: 129 | M176: 118 | N176: 134 | O176: 89 | P176: 82 | Q176: 149 | R176: 208 | S176: 213 | T176: 145 | U176: 82 | V176: 125 | W176: 38 | X176: 99
A177: 160 | B177: MOSELLE | C177: 42 | D177: MOSELLE EST | E177: 557210 | F177: CHATEAU SALINS | G177: 1.9 | H177: 168 | I177: 175 | J177: 208 | K177: 156 | L177: 83 | M177: 65 | N177: 126 | O177: 208 | P177: 201 | Q177: 197 | R177: 53 | S177: 39 | T177: 105 | U177: 164 | V177: 219 | W177: 60 | X177: 211
A178: 160 | B178: BAS RHIN | C178: 5060 | D178: HAGUENAU | E178: 4082 | F178: BOUXWILLER | G178: 2.4 | H178: 169 | I178: 27 | J178: 23 | K178: 49 | L178: 192 | M178: 183 | N178: 204 | O178: 238 | P178: 238 | Q178: 159 | R178: 110 | S178: 116 | T178: 114 | U178: 152 | V178: 117 | W178: 161 | X178: 149
A179: 160 | B179: BAS RHIN | C179: 5006 | D179: STRASBOURG | E179: 4039 | F179: REICHSTETT | G179: 1.5 | H179: 170 | I179: 146 | J179: 164 | K179: 124 | L179: 176 | M179: 172 | N179: 164 | O179: 100 | P179: 88 | Q179: 137 | R179: 132 | S179: 139 | T179: 115 | U179: 177 | V179: 81 | W179: 220 | X179: 151
A180: 160 | B180: BAS RHIN | C180: 5101 | D180: SELESTAT | E180: 4109 | F180: MARCKOLSHEIM | G180: 2.3 | H180: 171 | I180: 120 | J180: 139 | K180: 60 | L180: 156 | M180: 140 | N180: 170 | O180: 174 | P180: 176 | Q180: 129 | R180: 180 | S180: 210 | T180: 92 | U180: 136 | V180: 196 | W180: 92 | X180: 116
A181: 160 | B181: AUBE HAUTE MARNE | C181: 14 | D181: TROYES | E181: 410550 | F181: BAR SUR AUBE | G181: 5.3 | H181: 172 | I181: 104 | J181: 105 | K181: 92 | L181: 174 | M181: 167 | N181: 178 | O181: 178 | P181: 160 | Q181: 209 | R181: 172 | S181: 163 | T181: 181 | U181: 161 | V181: 220 | W181: 67 | X181: 192
A182: 160 | B182: AUBE HAUTE MARNE | C182: 14 | D182: TROYES | E182: 510523 | F182: LA CHAPELLE ST LUC | G182: 4.5 | H182: 173 | I182: 226 | J182: 185 | K182: 225 | L182: 133 | M182: 177 | N182: 56 | O182: 137 | P182: 156 | Q182: 44 | R182: 63 | S182: 94 | T182: 30 | U182: 114 | V182: 134 | W182: 114 | X182: 96
A183: 160 | B183: MOSELLE | C183: 42 | D183: MOSELLE EST | E183: 557503 | F183: NEUNKIRCH | G183: 3.0 | H183: 174 | I183: 7 | J183: 8 | K183: 7 | L183: 222 | M183: 199 | N183: 234 | O183: 231 | P183: 227 | Q183: 231 | R183: 233 | S183: 233 | T183: 236 | U183: 209 | V183: 211 | W183: 141 | X183: 227
A184: 160 | B184: MARNE ARDENNES | C184: 6 | D184: CHALONS EN CHAMPAGNE | E184: 451166 | F184: VITRY LE FRANCOIS | G184: 3.7 | H184: 175 | I184: 215 | J184: 208 | K184: 210 | L184: 72 | M184: 83 | N184: 60 | O184: 232 | P184: 234 | Q184: 49 | R184: 133 | S184: 145 | T184: 102 | U184: 24 | V184: 51 | W184: 39 | X184: 21
A185: 160 | B185: HAUT RHIN | C185: 5169 | D185: MULHOUSE | E185: 4170 | F185: MULHOUSE REUNION | G185: 7.8 | H185: 176 | I185: 148 | J185: 124 | K185: 191 | L185: 154 | M185: 163 | N185: 119 | O185: 202 | P185: 199 | Q185: 145 | R185: 99 | S185: 129 | T185: 48 | U185: 119 | V185: 93 | W185: 121 | X185: 130
A186: 160 | B186: BAS RHIN | C186: 5060 | D186: HAGUENAU | E186: 4085 | F186: INGWILLER | G186: 3.5 | H186: 177 | I186: 132 | J186: 114 | K186: 162 | L186: 137 | M186: 130 | N186: 141 | O186: 204 | P186: 200 | Q186: 163 | R186: 152 | S186: 164 | T186: 117 | U186: 141 | V186: 168 | W186: 66 | X186: 196
A187: 160 | B187: BAS RHIN | C187: 5060 | D187: HAGUENAU | E187: 4060 | F187: HAGUENAU HOUBLON | G187: 8.6 | H187: 178 | I187: 189 | J187: 165 | K187: 185 | L187: 168 | M187: 159 | N187: 165 | O187: 80 | P187: 65 | Q187: 181 | R187: 128 | S187: 112 | T187: 153 | U187: 187 | V187: 198 | W187: 135 | X187: 186
A188: 160 | B188: HAUT RHIN | C188: 5130 | D188: COLMAR | E188: 4157 | F188: NEUF BRISACH | G188: 2.5 | H188: 179 | I188: 201 | J188: 204 | K188: 183 | L188: 152 | M188: 185 | N188: 77 | O188: 175 | P188: 194 | Q188: 50 | R188: 88 | S188: 104 | T188: 72 | U188: 99 | V188: 177 | W188: 54 | X188: 94
A189: 160 | B189: BAS RHIN | C189: 5060 | D189: HAGUENAU | E189: 4066 | F189: NIEDERBRONN LES BAINS | G189: 5.7 | H189: 180 | I189: 118 | J189: 129 | K189: 83 | L189: 199 | M189: 201 | N189: 176 | O189: 132 | P189: 110 | Q189: 193 | R189: 199 | S189: 177 | T189: 219 | U189: 170 | V189: 223 | W189: 109 | X189: 154
A190: 160 | B190: BAS RHIN | C190: 5101 | D190: SELESTAT | E190: 4101 | F190: SELESTAT CENTRE | G190: 7.9 | H190: 181 | I190: 182 | J190: 180 | K190: 174 | L190: 117 | M190: 77 | N190: 194 | O190: 167 | P190: 140 | Q190: 222 | R190: 116 | S190: 113 | T190: 128 | U190: 174 | V190: 216 | W190: 88 | X190: 190
A191: 160 | B191: HAUT RHIN | C191: 5169 | D191: MULHOUSE | E191: 4180 | F191: RIEDISHEIM | G191: 3.3 | H191: 182 | I191: 90 | J191: 70 | K191: 140 | L191: 171 | M191: 152 | N191: 211 | O191: 216 | P191: 209 | Q191: 211 | R191: 146 | S191: 128 | T191: 171 | U191: 222 | V191: 112 | W191: 234 | X191: 216
A192: 160 | B192: BAS RHIN | C192: 5101 | D192: SELESTAT | E192: 4107 | F192: VILLE | G192: 2.3 | H192: 183 | I192: 206 | J192: 208 | K192: 192 | L192: 94 | M192: 37 | N192: 233 | O192: 59 | P192: 23 | Q192: 228 | R192: 192 | S192: 166 | T192: 221 | U192: 231 | V192: 230 | W192: 188 | X192: 231
A193: 160 | B193: MEURTHE ET MOSELLE MEUSE | C193: 27 | D193: PONT A MOUSSON | E193: 554196 | F193: CHAMPIGNEULLES | G193: 2.6 | H193: 184 | I193: 161 | J193: 208 | K193: 121 | L193: 193 | M193: 166 | N193: 227 | O193: 151 | P193: 133 | Q193: 212 | R193: 62 | S193: 47 | T193: 127 | U193: 203 | V193: 111 | W193: 219 | X193: 177
A194: 160 | B194: HAUT RHIN | C194: 5169 | D194: MULHOUSE | E194: 4178 | F194: SAINT LOUIS | G194: 6.6 | H194: 185 | I194: 181 | J194: 155 | K194: 190 | L194: 140 | M194: 149 | N194: 121 | O194: 60 | P194: 50 | Q194: 117 | R194: 179 | S194: 182 | T194: 160 | U194: 227 | V194: 159 | W194: 229 | X194: 213
A195: 160 | B195: MOSELLE | C195: 45 | D195: METZ | E195: 557712 | F195: WOIPPY | G195: 4.3 | H195: 186 | I195: 218 | J195: 149 | K195: 230 | L195: 124 | M195: 126 | N195: 117 | O195: 157 | P195: 181 | Q195: 53 | R195: 94 | S195: 102 | T195: 101 | U195: 130 | V195: 115 | W195: 128 | X195: 133
A196: 160 | B196: MARNE ARDENNES | C196: 11 | D196: REIMS | E196: 451308 | F196: REIMS SAINT THOMAS | G196: 5.6 | H196: 187 | I196: 238 | J196: 196 | K196: 238 | L196: 95 | M196: 109 | N196: 80 | O196: 217 | P196: 222 | Q196: 99 | R196: 77 | S196: 81 | T196: 71 | U196: 47 | V196: 33 | W196: 125 | X196: 43
A197: 160 | B197: AUBE HAUTE MARNE | C197: 14 | D197: TROYES | E197: 410510 | F197: TROYES GAMBETTA | G197: 8.6 | H197: 188 | I197: 202 | J197: 185 | K197: 200 | L197: 141 | M197: 148 | N197: 123 | O197: 185 | P197: 179 | Q197: 178 | R197: 91 | S197: 89 | T197: 113 | U197: 129 | V197: 92 | W197: 177 | X197: 104
A198: 160 | B198: MOSELLE | C198: 45 | D198: METZ | E198: 557436 | F198: METZ CATHEDRALE | G198: 4.1 | H198: 189 | I198: 223 | J198: 208 | K198: 218 | L198: 131 | M198: 110 | N198: 154 | O198: 84 | P198: 76 | Q198: 171 | R198: 148 | S198: 141 | T198: 152 | U198: 167 | V198: 191 | W198: 124 | X198: 167
A199: 160 | B199: VOSGES | C199: 55 | D199: SAINT DIE | E199: 488556 | F199: RAON L ETAPE | G199: 2.2 | H199: 190 | I199: 97 | J199: 80 | K199: 130 | L199: 208 | M199: 228 | N199: 101 | O199: 236 | P199: 235 | Q199: 122 | R199: 175 | S199: 197 | T199: 116 | U199: 55 | V199: 199 | W199: 4 | X199: 79
A200: 160 | B200: HAUT RHIN | C200: 5130 | D200: COLMAR | E200: 4132 | F200: COLMAR MARAICHERS | G200: 3.3 | H200: 191 | I200: 140 | J200: 135 | K200: 158 | L200: 144 | M200: 135 | N200: 148 | O200: 177 | P200: 177 | Q200: 127 | R200: 200 | S200: 187 | T200: 203 | U200: 183 | V200: 189 | W200: 103 | X200: 210
A201: 160 | B201: VOSGES | C201: 57 | D201: EPINAL | E201: 488256 | F201: DARNEY | G201: 1.5 | H201: 192 | I201: 44 | J201: 28 | K201: 122 | L201: 231 | M201: 227 | N201: 175 | O201: 235 | P201: 231 | Q201: 226 | R201: 150 | S201: 160 | T201: 123 | U201: 197 | V201: 221 | W201: 85 | X201: 222
A202: 160 | B202: MOSELLE | C202: 45 | D202: METZ | E202: 557445 | F202: METZ SAINT LIVIER | G202: 2.5 | H202: 193 | I202: 107 | J202: 89 | K202: 141 | L202: 195 | M202: 178 | N202: 218 | O202: 172 | P202: 169 | Q202: 161 | R202: 224 | S202: 212 | T202: 237 | U202: 176 | V202: 87 | W202: 200 | X202: 184
A203: 160 | B203: MOSELLE | C203: 44 | D203: MOSELLE NORD | E203: 457180 | F203: BOUSSE | G203: 2.5 | H203: 194 | I203: 9 | J203: 7 | K203: 30 | L203: 228 | M203: 182 | N203: 241 | O203: 210 | P203: 183 | Q203: 241 | R203: 236 | S203: 228 | T203: 241 | U203: 241 | V203: 234 | W203: 241 | X203: 241
A204: 160 | B204: VOSGES | C204: 57 | D204: EPINAL | E204: 588501 | F204: NEUFCHATEAU | G204: 4.7 | H204: 195 | I204: 109 | J204: 109 | K204: 91 | L204: 170 | M204: 162 | N204: 166 | O204: 219 | P204: 219 | Q204: 168 | R204: 204 | S204: 201 | T204: 183 | U204: 190 | V204: 181 | W204: 193 | X204: 136
... 47 more rows

Sheet AG_FICHE
A1: Accueil
A2: BAROMETRE GRAND PUBLIC
A4: UNITE: | B4: Agence | E4: ETP perf : | F4: =VLOOKUP(A5,'RECAP AG'!$G$6:$CY$248,3,FALSE) -> 5.30
A5: =VLOOKUP(B5,LISTES!$C$6:$D$246,2,FALSE) -> 4189 | B5: ALTKIRCH
C6: Coefficient du critère | E6: Résultats | I6: Ecart au 1ier | K6: =IF(OR(A5=4017,A5=4022),"Rang estimé","Rang") -> Rang
E7: du 1ier | G7: de l'Agence
A9: RANG GRAND PUBLIC | K9: =VLOOKUP($A$5,'RECAP AG'!$G$6:$CY$248,96,FALSE) -> 241
A11: SATISFACTION CLIENTS | C11: 20% | K11: =VLOOKUP($A$5,'RECAP AG'!$G$6:$CY$248,13,FALSE) -> 241
B12: NPS à froid (SAE) | C12: 10% | E12: =+'RECAP AG'!K4 -> 58 | G12: =VLOOKUP($A$5,'RECAP AG'!$G$6:$CY$248,5,FALSE) -> 0.0 | I12: =VLOOKUP($A$5,'RECAP AG'!$G$6:$CY$248,6,FALSE) -> 100% | K12: =VLOOKUP($A$5,'RECAP AG'!$G$6:$CY$248,7,FALSE) -> 208
B13: NPS à chaud (QHD) | C13: 10% | E13: =+'RECAP AG'!N4 -> 88% | G13: =VLOOKUP($A$5,'RECAP AG'!$G$6:$CY$248,8,FALSE) -> 10% | I13: =VLOOKUP($A$5,'RECAP AG'!$G$6:$CY$248,9,FALSE) -> 89% | K13: =VLOOKUP($A$5,'RECAP AG'!$G$6:$CY$248,10,FALSE) -> 241
A15: BANCARISATION | C15: 20% | K15: =VLOOKUP($A$5,'RECAP AG'!$G$6:$CY$248,28,FALSE) -> 240
B16: Ventes Nettes produits pondérés | C16: 12% | E16: ='RECAP AG'!X4 -> 114.3 | G16: =VLOOKUP($A$5,'RECAP AG'!$G$6:$CY$248,19,FALSE) -> -17.6 | I16: =VLOOKUP($A$5,'RECAP AG'!$G$6:$CY$248,20,FALSE) -> 115% | K16: =VLOOKUP($A$5,'RECAP AG'!$G$6:$CY$248,21,FALSE) -> 237
B17: Ventes sur client non détenteur de l’univers | C17: 8% | E17: ='RECAP AG'!AB4 -> 166.7 | G17: =VLOOKUP($A$5,'RECAP AG'!$G$6:$CY$248,23,FALSE) -> 36.6 | I17: =VLOOKUP($A$5,'RECAP AG'!$G$6:$CY$248,24,FALSE) -> 78% | K17: =VLOOKUP($A$5,'RECAP AG'!$G$6:$CY$248,25,FALSE) -> 237
A19: EPARGNE | C19: 20% | K19: =VLOOKUP($A$5,'RECAP AG'!$G$6:$CY$248,43,FALSE) -> 224
B20: Excédent Epargne hors DAV pondéré | C20: 12% | E20: ='RECAP AG'!AM4 -> 2237.1 | G20: =VLOOKUP($A$5,'RECAP AG'!$G$6:$CY$248,34,FALSE) -> -305.5 | I20: =VLOOKUP($A$5,'RECAP AG'!$G$6:$CY$248,35,FALSE) -> 93% | K20: =VLOOKUP($A$5,'RECAP AG'!$G$6:$CY$248,36,FALSE) -> 220
B21: Ventes sur client non détenteur de l’univers | C21: 8% | E21: ='RECAP AG'!AQ4 -> 309.9 | G21: =VLOOKUP($A$5,'RECAP AG'!$G$6:$CY$248,38,FALSE) -> 42.5 | I21: =VLOOKUP($A$5,'RECAP AG'!$G$6:$CY$248,39,FALSE) -> 86% | K21: =VLOOKUP($A$5,'RECAP AG'!$G$6:$CY$248,40,FALSE) -> 224
A23: IARD PREVOYANCE | C23: 20% | K23: =VLOOKUP($A$5,'RECAP AG'!$G$6:$CY$248,77,FALSE) -> 238
B24: Ventes Nettes produits pondérés | C24: 12% | E24: ='RECAP AG'!BU4 -> 668.1 | G24: =VLOOKUP($A$5,'RECAP AG'!$G$6:$CY$248,68,FALSE) -> -123.4 | I24: =VLOOKUP($A$5,'RECAP AG'!$G$6:$CY$248,69,FALSE) -> 113% | K24: =VLOOKUP($A$5,'RECAP AG'!$G$6:$CY$248,70,FALSE) -> 238
B25: Ventes sur client non détenteur de l’univers | C25: 8% | E25: ='RECAP AG'!BY4 -> 168.1 | G25: =VLOOKUP($A$5,'RECAP AG'!$G$6:$CY$248,72,FALSE) -> 26.0 | I25: =VLOOKUP($A$5,'RECAP AG'!$G$6:$CY$248,73,FALSE) -> 85% | K25: =VLOOKUP($A$5,'RECAP AG'!$G$6:$CY$248,74,FALSE) -> 228
A27: CREDITS | C27: 20% | K27: =VLOOKUP($A$5,'RECAP AG'!$G$6:$CY$248,62,FALSE) -> 237
B28: Engagements et ventes accessoires pondérés Immo | C28: 6% | E28: ='RECAP AG'!BB4 -> 1439.6 | G28: =VLOOKUP($A$5,'RECAP AG'!$G$6:$CY$248,49,FALSE) -> 112.4 | I28: =VLOOKUP($A$5,'RECAP AG'!$G$6:$CY$248,50,FALSE) -> 92% | K28: =VLOOKUP($A$5,'RECAP AG'!$G$6:$CY$248,51,FALSE) -> 233
B29: Engagements et ventes accessoires pondérés Conso | C29: 6% | E29: ='RECAP AG'!BF4 -> 119.1 | G29: =VLOOKUP($A$5,'RECAP AG'!$G$6:$CY$248,53,FALSE) -> 41.6 | I29: =VLOOKUP($A$5,'RECAP AG'!$G$6:$CY$248,54,FALSE) -> 65% | K29: =VLOOKUP($A$5,'RECAP AG'!$G$6:$CY$248,55,FALSE) -> 199
B30: Ventes sur client non détenteur de l’univers | C30: 8% | E30: ='RECAP AG'!BJ4 -> 96.5 | G30: =VLOOKUP($A$5,'RECAP AG'!$G$6:$CY$248,57,FALSE) -> 12.6 | I30: =VLOOKUP($A$5,'RECAP AG'!$G$6:$CY$248,58,FALSE) -> 87% | K30: =VLOOKUP($A$5,'RECAP AG'!$G$6:$CY$248,59,FALSE) -> 237

Sheet AG_TOTAL
B1: Accueil | H1: BAROMETRE BDD - AGENCES
H2: TOTAL GENERAL
H3: =ACCUEIL!F7 -> 2022-11-13
H7: TOTAL GENERAL | K7: Total Satisfaction Clients | N7: Total Bancarisation | Q7: Total Epargne | T7: Total IARD Prévoyance | W7: Total Crédits
I8: coef | J8: =M8+P8+S8+V8+Y8 -> 100% | L8: coef | M8: =AG_SATISFACTION!P8 -> 20% | O8: coef | P8: =AG_BANCA!R8 -> 20% | R8: coef | S8: =AG_EPARGNE!R8 -> 20% | U8: coef | V8: =AG_IARD!R8 -> 20% | X8: coef | Y8: =AG_CREDIT!V8 -> 20%
B9: Direction | C9: eds | D9: Territoire | E9: eds | F9: Agence | G9: ="ETP perf "&DATEMAJ!$C$28 -> ETP perf 13-nov | H9: Moyenne ecart au 1er | I9: % Ecart au 1er | J9: Rang CEGEE | K9: Moyenne ecart au 1er | L9: % Ecart au 1er | M9: Rang CEGEE | N9: Moyenne ecart au 1er | O9: % Ecart au 1er | P9: Rang CEGEE | Q9: Moyenne ecart au 1er | R9: % Ecart au 1er | S9: Rang CEGEE | T9: Moyenne ecart au 1er | U9: % Ecart au 1er | V9: Rang CEGEE | W9: Moyenne ecart au 1er | X9: % Ecart au 1er | Y9: Rang CEGEE
A10: 50 | B10: MOSELLE | C10: 44 | D10: MOSELLE NORD | E10: 557508 | F10: NILVANGE | G10: 1.4 | H10: 9% | I10: 0% | J10: 1 | K10: 35% | L10: 34% | M10: 46 | N10: 0% | O10: 0% | P10: 1 | Q10: 39% | R10: 10% | S10: 4 | T10: 0% | U10: 0% | V10: 1 | W10: 0% | X10: 0% | Y10: 1
A11: 50 | B11: VOSGES | C11: 57 | D11: EPINAL | E11: 488288 | F11: EPINAL LEOPOLD BOURG | G11: 2.0 | H11: 39% | I11: 30% | J11: 2 | K11: 7% | L11: 7% | M11: 3 | N11: 54% | O11: 54% | P11: 17 | Q11: 42% | R11: 12% | S11: 5 | T11: 67% | U11: 67% | V11: 49 | W11: 53% | X11: 53% | Y11: 26
A12: 50 | B12: MARNE ARDENNES | C12: 11 | D12: REIMS | E12: 551305 | F12: REIMS HIPPODROME | G12: 5.0 | H12: 41% | I12: 32% | J12: 3 | K12: 40% | L12: 39% | M12: 66 | N12: 48% | O12: 48% | P12: 10 | Q12: 56% | R12: 26% | S12: 19 | T12: 55% | U12: 55% | V12: 11 | W12: 37% | X12: 37% | Y12: 5
A13: 50 | B13: MARNE ARDENNES | C13: 11 | D13: REIMS | E13: 551340 | F13: BETHENY | G13: 2.2 | H13: 41% | I13: 33% | J13: 4 | K13: 38% | L13: 38% | M13: 58 | N13: 38% | O13: 38% | P13: 4 | Q13: 55% | R13: 25% | S13: 16 | T13: 68% | U13: 68% | V13: 59 | W13: 37% | X13: 37% | Y13: 6
A14: 50 | B14: MEURTHE ET MOSELLE MEUSE | C14: 27 | D14: PONT A MOUSSON | E14: 554381 | F14: LAXOU ARISTIDE BRIAND | G14: 2.3 | H14: 42% | I14: 33% | J14: 5 | K14: 62% | L14: 61% | M14: 150 | N14: 30% | O14: 30% | P14: 2 | Q14: 60% | R14: 30% | S14: 28 | T14: 55% | U14: 55% | V14: 12 | W14: 34% | X14: 34% | Y14: 3
A15: 50 | B15: MARNE ARDENNES | C15: 11 | D15: REIMS | E15: 551349 | F15: REIMS SAINT REMI | G15: 2.9 | H15: 43% | I15: 34% | J15: 6 | K15: 52% | L15: 52% | M15: 121 | N15: 35% | O15: 35% | P15: 3 | Q15: 60% | R15: 30% | S15: 29 | T15: 56% | U15: 56% | V15: 13 | W15: 42% | X15: 42% | Y15: 9
A16: 50 | B16: MARNE ARDENNES | C16: 6 | D16: CHALONS EN CHAMPAGNE | E16: 551330 | F16: MONTMIRAIL | G16: 2.8 | H16: 43% | I16: 34% | J16: 7 | K16: 16% | L16: 15% | M16: 10 | N16: 51% | O16: 51% | P16: 12 | Q16: 63% | R16: 33% | S16: 47 | T16: 54% | U16: 54% | V16: 10 | W16: 61% | X16: 61% | Y16: 62
A17: 50 | B17: MARNE ARDENNES | C17: 6 | D17: CHALONS EN CHAMPAGNE | E17: 451115 | F17: MOURMELON LE GRAND | G17: 2.8 | H17: 44% | I17: 36% | J17: 8 | K17: 44% | L17: 44% | M17: 85 | N17: 45% | O17: 45% | P17: 8 | Q17: 55% | R17: 25% | S17: 14 | T17: 59% | U17: 59% | V17: 17 | W17: 50% | X17: 50% | Y17: 18
A18: 50 | B18: BAS RHIN | C18: 5006 | D18: STRASBOURG | E18: 4048 | F18: STRASBOURG KOENIGSHOFFEN | G18: 1.5 | H18: 45% | I18: 36% | J18: 9 | K18: 65% | L18: 64% | M18: 164 | N18: 41% | O18: 41% | P18: 5 | Q18: 48% | R18: 18% | S18: 6 | T18: 53% | U18: 53% | V18: 6 | W18: 48% | X18: 48% | Y18: 16
A19: 50 | B19: MOSELLE | C19: 45 | D19: METZ | E19: 457443 | F19: METZ REPUBLIQUE | G19: 3.5 | H19: 46% | I19: 37% | J19: 10 | K19: 30% | L19: 29% | M19: 36 | N19: 69% | O19: 69% | P19: 81 | Q19: 37% | R19: 7% | S19: 3 | T19: 59% | U19: 59% | V19: 18 | W19: 67% | X19: 67% | Y19: 104
A20: 50 | B20: MOSELLE | C20: 44 | D20: MOSELLE NORD | E20: 557660 | F20: UCKANGE | G20: 1.9 | H20: 47% | I20: 38% | J20: 11 | K20: 75% | L20: 74% | M20: 217 | N20: 51% | O20: 51% | P20: 13 | Q20: 64% | R20: 34% | S20: 50 | T20: 41% | U20: 41% | V20: 2 | W20: 34% | X20: 34% | Y20: 2
A21: 50 | B21: MEURTHE ET MOSELLE MEUSE | C21: 26 | D21: NANCY | E21: 554476 | F21: NANCY ARTEM | G21: 2.8 | H21: 47% | I21: 38% | J21: 12 | K21: 27% | L21: 27% | M21: 30 | N21: 53% | O21: 53% | P21: 15 | Q21: 76% | R21: 46% | S21: 139 | T21: 71% | U21: 71% | V21: 81 | W21: 38% | X21: 38% | Y21: 7
A22: 50 | B22: MARNE ARDENNES | C22: 2 | D22: CHARLEVILLE MEZIERES | E22: 508820 | F22: VOUZIERS | G22: 2.8 | H22: 47% | I22: 38% | J22: 13 | K22: 31% | L22: 30% | M22: 39 | N22: 61% | O22: 61% | P22: 42 | Q22: 62% | R22: 32% | S22: 37 | T22: 54% | U22: 54% | V22: 9 | W22: 57% | X22: 57% | Y22: 37
A23: 50 | B23: MOSELLE | C23: 44 | D23: MOSELLE NORD | E23: 557113 | F23: AUDUN LE TICHE | G23: 2.1 | H23: 47% | I23: 39% | J23: 14 | K23: 52% | L23: 51% | M23: 119 | N23: 45% | O23: 45% | P23: 9 | Q23: 59% | R23: 30% | S23: 27 | T23: 65% | U23: 65% | V23: 37 | W23: 46% | X23: 46% | Y23: 12
A24: 50 | B24: MARNE ARDENNES | C24: 6 | D24: CHALONS EN CHAMPAGNE | E24: 451120 | F24: SARRY | G24: 2.3 | H24: 48% | I24: 39% | J24: 15 | K24: 13% | L24: 13% | M24: 8 | N24: 56% | O24: 56% | P24: 21 | Q24: 76% | R24: 46% | S24: 144 | T24: 63% | U24: 63% | V24: 31 | W24: 60% | X24: 60% | Y24: 54
A25: 50 | B25: BAS RHIN | C25: 5006 | D25: STRASBOURG | E25: 4037 | F25: MUNDOLSHEIM | G25: 3.8 | H25: 48% | I25: 39% | J25: 16 | K25: 39% | L25: 39% | M25: 64 | N25: 51% | O25: 51% | P25: 11 | Q25: 72% | R25: 43% | S25: 104 | T25: 54% | U25: 54% | V25: 8 | W25: 55% | X25: 55% | Y25: 30
A26: 50 | B26: MOSELLE | C26: 42 | D26: MOSELLE EST | E26: 457165 | F26: BITCHE | G26: 2.4 | H26: 49% | I26: 41% | J26: 17 | K26: 19% | L26: 18% | M26: 13 | N26: 54% | O26: 54% | P26: 16 | Q26: 73% | R26: 43% | S26: 110 | T26: 63% | U26: 63% | V26: 30 | W26: 68% | X26: 68% | Y26: 113
A27: 50 | B27: MARNE ARDENNES | C27: 11 | D27: REIMS | E27: 451350 | F27: REIMS CENTRE VILLE | G27: 6.3 | H27: 50% | I27: 41% | J27: 18 | K27: 69% | L27: 69% | M27: 196 | N27: 42% | O27: 42% | P27: 6 | Q27: 73% | R27: 43% | S27: 116 | T27: 58% | U27: 58% | V27: 16 | W27: 36% | X27: 36% | Y27: 4
A28: 262 | B28: MARNE ARDENNES | C28: 6 | D28: CHALONS EN CHAMPAGNE | E28: 551354 | F28: VERTUS | G28: 2.0 | H28: 50% | I28: 41% | J28: 19 | K28: 0% | L28: 0% | M28: 1 | N28: 72% | O28: 72% | P28: 108 | Q28: 57% | R28: 28% | S28: 23 | T28: 83% | U28: 83% | V28: 185 | W28: 66% | X28: 66% | Y28: 89
A29: 262 | B29: MOSELLE | C29: 45 | D29: METZ | E29: 457453 | F29: MONTIGNY LES METZ | G29: 7.0 | H29: 50% | I29: 41% | J29: 20 | K29: 19% | L29: 19% | M29: 14 | N29: 62% | O29: 62% | P29: 45 | Q29: 65% | R29: 36% | S29: 66 | T29: 77% | U29: 77% | V29: 134 | W29: 58% | X29: 58% | Y29: 41
A30: 262 | B30: MARNE ARDENNES | C30: 11 | D30: REIMS | E30: 551365 | F30: DORMANS | G30: 2.5 | H30: 50% | I30: 42% | J30: 21 | K30: 39% | L30: 38% | M30: 60 | N30: 44% | O30: 44% | P30: 7 | Q30: 81% | R30: 51% | S30: 176 | T30: 65% | U30: 65% | V30: 35 | W30: 54% | X30: 54% | Y30: 27
A31: 262 | B31: MARNE ARDENNES | C31: 11 | D31: REIMS | E31: 451336 | F31: TINQUEUX | G31: 5.0 | H31: 51% | I31: 42% | J31: 22 | K31: 58% | L31: 57% | M31: 138 | N31: 62% | O31: 62% | P31: 46 | Q31: 30% | R31: 0% | S31: 1 | T31: 75% | U31: 75% | V31: 106 | W31: 61% | X31: 61% | Y31: 56
A32: 262 | B32: MARNE ARDENNES | C32: 2 | D32: CHARLEVILLE MEZIERES | E32: 508839 | F32: GIVET | G32: 3.3 | H32: 51% | I32: 43% | J32: 23 | K32: 41% | L32: 40% | M32: 72 | N32: 64% | O32: 64% | P32: 52 | Q32: 74% | R32: 44% | S32: 122 | T32: 50% | U32: 50% | V32: 3 | W32: 58% | X32: 58% | Y32: 44
A33: 262 | B33: MOSELLE | C33: 45 | D33: METZ | E33: 457446 | F33: METZ SAINT LOUIS | G33: 5.7 | H33: 51% | I33: 43% | J33: 24 | K33: 45% | L33: 45% | M33: 95 | N33: 54% | O33: 54% | P33: 20 | Q33: 64% | R33: 34% | S33: 55 | T33: 70% | U33: 70% | V33: 69 | W33: 53% | X33: 53% | Y33: 25
A34: 262 | B34: MEURTHE ET MOSELLE MEUSE | C34: 26 | D34: NANCY | E34: 554601 | F34: SAINT MAX | G34: 3.6 | H34: 52% | I34: 43% | J34: 25 | K34: 25% | L34: 25% | M34: 21 | N34: 73% | O34: 73% | P34: 112 | Q34: 57% | R34: 27% | S34: 22 | T34: 67% | U34: 67% | V34: 51 | W34: 68% | X34: 68% | Y34: 107
A35: 262 | B35: VOSGES | C35: 57 | D35: EPINAL | E35: 588336 | F35: GOLBEY | G35: 2.8 | H35: 52% | I35: 43% | J35: 26 | K35: 30% | L35: 30% | M35: 38 | N35: 73% | O35: 73% | P35: 111 | Q35: 61% | R35: 31% | S35: 36 | T35: 63% | U35: 63% | V35: 29 | W35: 64% | X35: 64% | Y35: 75
A36: 262 | B36: MOSELLE | C36: 42 | D36: MOSELLE EST | E36: 457308 | F36: FORBACH CENTRALE | G36: 10.1 | H36: 52% | I36: 44% | J36: 27 | K36: 48% | L36: 48% | M36: 108 | N36: 57% | O36: 57% | P36: 24 | Q36: 70% | R36: 41% | S36: 94 | T36: 62% | U36: 62% | V36: 25 | W36: 55% | X36: 55% | Y36: 31
A37: 262 | B37: MARNE ARDENNES | C37: 2 | D37: CHARLEVILLE MEZIERES | E37: 508833 | F37: VILLERS SEMEUSE CORA | G37: 3.0 | H37: 53% | I37: 44% | J37: 28 | K37: 68% | L37: 68% | M37: 186 | N37: 70% | O37: 70% | P37: 90 | Q37: 59% | R37: 29% | S37: 26 | T37: 52% | U37: 52% | V37: 5 | W37: 44% | X37: 44% | Y37: 11
A38: 262 | B38: MEURTHE ET MOSELLE MEUSE | C38: 31 | D38: VERDUN | E38: 555406 | F38: LIGNY EN BARROIS | G38: 2.5 | H38: 53% | I38: 44% | J38: 29 | K38: 29% | L38: 28% | M38: 32 | N38: 73% | O38: 73% | P38: 115 | Q38: 34% | R38: 4% | S38: 2 | T38: 86% | U38: 86% | V38: 210 | W38: 73% | X38: 73% | Y38: 171
A39: 262 | B39: MARNE ARDENNES | C39: 11 | D39: REIMS | E39: 451361 | F39: PIERRY LECLERC | G39: 1.9 | H39: 53% | I39: 44% | J39: 30 | K39: 31% | L39: 31% | M39: 41 | N39: 69% | O39: 69% | P39: 85 | Q39: 55% | R39: 25% | S39: 18 | T39: 73% | U39: 73% | V39: 98 | W39: 66% | X39: 66% | Y39: 93
A40: 262 | B40: MARNE ARDENNES | C40: 11 | D40: REIMS | E40: 551367 | F40: AY CHAMPAGNE | G40: 2.6 | H40: 53% | I40: 44% | J40: 31 | K40: 31% | L40: 31% | M40: 42 | N40: 73% | O40: 73% | P40: 114 | Q40: 63% | R40: 33% | S40: 44 | T40: 72% | U40: 72% | V40: 86 | W40: 57% | X40: 57% | Y40: 39
A41: 262 | B41: MARNE ARDENNES | C41: 11 | D41: REIMS | E41: 451301 | F41: REIMS HOTEL DE VILLE | G41: 6.8 | H41: 53% | I41: 45% | J41: 32 | K41: 48% | L41: 48% | M41: 106 | N41: 64% | O41: 64% | P41: 51 | Q41: 73% | R41: 43% | S41: 109 | T41: 57% | U41: 57% | V41: 14 | W41: 56% | X41: 56% | Y41: 33
A42: 262 | B42: AUBE HAUTE MARNE | C42: 21 | D42: CHAUMONT | E42: 510590 | F42: CHAUMONT REPUBLIQUE | G42: 2.9 | H42: 54% | I42: 45% | J42: 33 | K42: 41% | L42: 41% | M42: 76 | N42: 75% | O42: 75% | P42: 134 | Q42: 58% | R42: 28% | S42: 25 | T42: 62% | U42: 62% | V42: 27 | W42: 63% | X42: 63% | Y42: 71
A43: 262 | B43: MEURTHE ET MOSELLE MEUSE | C43: 26 | D43: NANCY | E43: 554356 | F43: JARVILLE LA MALGRANGE | G43: 4.1 | H43: 54% | I43: 45% | J43: 34 | K43: 27% | L43: 27% | M43: 26 | N43: 58% | O43: 58% | P43: 30 | Q43: 83% | R43: 53% | S43: 194 | T43: 71% | U43: 71% | V43: 80 | W43: 61% | X43: 61% | Y43: 59
A44: 262 | B44: MOSELLE | C44: 42 | D44: MOSELLE EST | E44: 557250 | F44: CREUTZWALD | G44: 2.5 | H44: 54% | I44: 45% | J44: 35 | K44: 22% | L44: 22% | M44: 17 | N44: 75% | O44: 75% | P44: 127 | Q44: 77% | R44: 47% | S44: 149 | T44: 63% | U44: 63% | V44: 28 | W44: 64% | X44: 64% | Y44: 78
A45: 262 | B45: MOSELLE | C45: 44 | D45: MOSELLE NORD | E45: 557352 | F45: HETTANGE GRANDE | G45: 3.2 | H45: 54% | I45: 45% | J45: 36 | K45: 55% | L45: 54% | M45: 130 | N45: 57% | O45: 57% | P45: 25 | Q45: 73% | R45: 43% | S45: 108 | T45: 66% | U45: 66% | V45: 43 | W45: 51% | X45: 51% | Y45: 19
A46: 262 | B46: BAS RHIN | C46: 5006 | D46: STRASBOURG | E46: 4038 | F46: OBERHAUSBERGEN | G46: 3.4 | H46: 54% | I46: 45% | J46: 37 | K46: 37% | L46: 37% | M46: 53 | N46: 64% | O46: 64% | P46: 54 | Q46: 53% | R46: 23% | S46: 11 | T46: 83% | U46: 83% | V46: 187 | W46: 63% | X46: 63% | Y46: 72
A47: 262 | B47: MARNE ARDENNES | C47: 2 | D47: CHARLEVILLE MEZIERES | E47: 408801 | F47: CHARLEVILLE JEAN JAURES | G47: 8.9 | H47: 54% | I47: 46% | J47: 38 | K47: 43% | L47: 42% | M47: 81 | N47: 67% | O47: 67% | P47: 71 | Q47: 67% | R47: 37% | S47: 73 | T47: 67% | U47: 67% | V47: 47 | W47: 58% | X47: 58% | Y47: 45
A48: 262 | B48: MEURTHE ET MOSELLE MEUSE | C48: 31 | D48: VERDUN | E48: 554413 | F48: LONGWY BAS | G48: 3.4 | H48: 55% | I48: 46% | J48: 39 | K48: 18% | L48: 18% | M48: 12 | N48: 70% | O48: 70% | P48: 87 | Q48: 74% | R48: 45% | S48: 127 | T48: 73% | U48: 73% | V48: 93 | W48: 67% | X48: 67% | Y48: 101
A49: 262 | B49: MARNE ARDENNES | C49: 11 | D49: REIMS | E49: 451370 | F49: EPERNAY | G49: 9.1 | H49: 55% | I49: 46% | J49: 40 | K49: 37% | L49: 37% | M49: 51 | N49: 61% | O49: 61% | P49: 43 | Q49: 69% | R49: 39% | S49: 81 | T49: 73% | U49: 73% | V49: 95 | W49: 63% | X49: 63% | Y49: 67
A50: 262 | B50: MOSELLE | C50: 45 | D50: METZ | E50: 557439 | F50: METZ POMPIDOU | G50: 2.6 | H50: 55% | I50: 46% | J50: 41 | K50: 39% | L50: 38% | M50: 63 | N50: 67% | O50: 67% | P50: 68 | Q50: 55% | R50: 25% | S50: 17 | T50: 79% | U50: 79% | V50: 145 | W50: 64% | X50: 64% | Y50: 81
A51: 262 | B51: MEURTHE ET MOSELLE MEUSE | C51: 26 | D51: NANCY | E51: 554636 | F51: TOMBLAINE | G51: 2.5 | H51: 55% | I51: 46% | J51: 42 | K51: 20% | L51: 19% | M51: 15 | N51: 74% | O51: 74% | P51: 125 | Q51: 65% | R51: 35% | S51: 62 | T51: 76% | U51: 76% | V51: 121 | W51: 69% | X51: 69% | Y51: 123
A52: 262 | B52: MEURTHE ET MOSELLE MEUSE | C52: 27 | D52: PONT A MOUSSON | E52: 554516 | F52: PAGNY SUR MOSELLE | G52: 2.7 | H52: 55% | I52: 46% | J52: 43 | K52: 47% | L52: 46% | M52: 101 | N52: 65% | O52: 65% | P52: 55 | Q52: 68% | R52: 38% | S52: 77 | T52: 65% | U52: 65% | V52: 40 | W52: 61% | X52: 61% | Y52: 57
A53: 262 | B53: MOSELLE | C53: 42 | D53: MOSELLE EST | E53: 457583 | F53: SAINT AVOLD | G53: 6.9 | H53: 55% | I53: 46% | J53: 44 | K53: 37% | L53: 36% | M53: 50 | N53: 60% | O53: 60% | P53: 35 | Q53: 74% | R53: 44% | S53: 119 | T53: 69% | U53: 69% | V53: 60 | W53: 66% | X53: 66% | Y53: 94
A54: 262 | B54: MOSELLE | C54: 45 | D54: METZ | E54: 557432 | F54: MAIZIERES LES METZ | G54: 2.8 | H54: 55% | I54: 47% | J54: 45 | K54: 67% | L54: 66% | M54: 176 | N54: 57% | O54: 57% | P54: 26 | Q54: 70% | R54: 40% | S54: 86 | T54: 66% | U54: 66% | V54: 44 | W54: 47% | X54: 47% | Y54: 15
A55: 262 | B55: MEURTHE ET MOSELLE MEUSE | C55: 31 | D55: VERDUN | E55: 455678 | F55: VERDUN CENTRALE | G55: 10.5 | H55: 55% | I55: 47% | J55: 46 | K55: 24% | L55: 23% | M55: 19 | N55: 67% | O55: 67% | P55: 73 | Q55: 78% | R55: 49% | S55: 153 | T55: 80% | U55: 80% | V55: 158 | W55: 58% | X55: 58% | Y55: 42
A56: 262 | B56: MARNE ARDENNES | C56: 6 | D56: CHALONS EN CHAMPAGNE | E56: 551103 | F56: FAGNIERES LECLERC | G56: 2.6 | H56: 55% | I56: 47% | J56: 47 | K56: 45% | L56: 45% | M56: 94 | N56: 70% | O56: 70% | P56: 89 | Q56: 74% | R56: 44% | S56: 125 | T56: 57% | U56: 57% | V56: 15 | W56: 61% | X56: 61% | Y56: 60
A57: 262 | B57: MOSELLE | C57: 44 | D57: MOSELLE NORD | E57: 557303 | F57: FAMECK | G57: 2.8 | H57: 56% | I57: 47% | J57: 48 | K57: 31% | L57: 31% | M57: 40 | N57: 70% | O57: 70% | P57: 91 | Q57: 61% | R57: 31% | S57: 32 | T57: 90% | U57: 90% | V57: 225 | W57: 56% | X57: 56% | Y57: 35
A58: 262 | B58: BAS RHIN | C58: 5006 | D58: STRASBOURG | E58: 4047 | F58: STRASBOURG CRONENBOURG | G58: 4.1 | H58: 56% | I58: 47% | J58: 49 | K58: 48% | L58: 47% | M58: 105 | N58: 57% | O58: 57% | P58: 23 | Q58: 62% | R58: 33% | S58: 39 | T58: 74% | U58: 74% | V58: 100 | W58: 68% | X58: 68% | Y58: 112
A59: 262 | B59: BAS RHIN | C59: 5101 | D59: SELESTAT | E59: 4113 | F59: BARR | G59: 2.9 | H59: 56% | I59: 47% | J59: 50 | K59: 27% | L59: 26% | M59: 23 | N59: 61% | O59: 61% | P59: 39 | Q59: 73% | R59: 43% | S59: 106 | T59: 77% | U59: 77% | V59: 137 | W59: 72% | X59: 72% | Y59: 154
A60: 262 | B60: MEURTHE ET MOSELLE MEUSE | C60: 26 | D60: NANCY | E60: 454481 | F60: NANCY PLACE DOMBASLE | G60: 7.8 | H60: 56% | I60: 47% | J60: 51 | K60: 60% | L60: 59% | M60: 142 | N60: 68% | O60: 68% | P60: 78 | Q60: 65% | R60: 35% | S60: 63 | T60: 70% | U60: 70% | V60: 71 | W60: 46% | X60: 46% | Y60: 14
A61: 262 | B61: AUBE HAUTE MARNE | C61: 21 | D61: CHAUMONT | E61: 410541 | F61: LANGRES | G61: 8.0 | H61: 56% | I61: 47% | J61: 52 | K61: 37% | L61: 37% | M61: 52 | N61: 70% | O61: 70% | P61: 86 | Q61: 70% | R61: 40% | S61: 83 | T61: 66% | U61: 66% | V61: 45 | W61: 68% | X61: 68% | Y61: 109
A62: 262 | B62: MOSELLE | C62: 45 | D62: METZ | E62: 557447 | F62: METZ SAINT MAXIMIN | G62: 2.4 | H62: 56% | I62: 47% | J62: 53 | K62: 61% | L62: 61% | M62: 147 | N62: 66% | O62: 66% | P62: 64 | Q62: 63% | R62: 33% | S62: 43 | T62: 51% | U62: 51% | V62: 4 | W62: 71% | X62: 71% | Y62: 138
A63: 262 | B63: MARNE ARDENNES | C63: 6 | D63: CHALONS EN CHAMPAGNE | E63: 451101 | F63: CHALONS VIVIERS | G63: 9.3 | H63: 56% | I63: 48% | J63: 54 | K63: 27% | L63: 27% | M63: 29 | N63: 74% | O63: 74% | P63: 120 | Q63: 74% | R63: 44% | S63: 123 | T63: 71% | U63: 71% | V63: 75 | W63: 66% | X63: 66% | Y63: 87
A64: 262 | B64: MARNE ARDENNES | C64: 11 | D64: REIMS | E64: 551310 | F64: REIMS CHATILLONS | G64: 4.0 | H64: 56% | I64: 48% | J64: 55 | K64: 56% | L64: 56% | M64: 135 | N64: 58% | O64: 58% | P64: 27 | Q64: 73% | R64: 43% | S64: 107 | T64: 70% | U64: 70% | V64: 65 | W64: 56% | X64: 56% | Y64: 34
A65: 262 | B65: MEURTHE ET MOSELLE MEUSE | C65: 27 | D65: PONT A MOUSSON | E65: 554686 | F65: VEZELISE | G65: 1.9 | H65: 56% | I65: 48% | J65: 56 | K65: 4% | L65: 4% | M65: 2 | N65: 76% | O65: 76% | P65: 143 | Q65: 69% | R65: 40% | S65: 82 | T65: 82% | U65: 82% | V65: 170 | W65: 80% | X65: 80% | Y65: 232
A66: 262 | B66: MARNE ARDENNES | C66: 6 | D66: CHALONS EN CHAMPAGNE | E66: 551110 | F66: CHALONS ROOSEVELT | G66: 4.4 | H66: 56% | I66: 48% | J66: 57 | K66: 38% | L66: 38% | M66: 56 | N66: 74% | O66: 74% | P66: 123 | Q66: 71% | R66: 41% | S66: 98 | T66: 60% | U66: 60% | V66: 20 | W66: 69% | X66: 69% | Y66: 118
A67: 262 | B67: MEURTHE ET MOSELLE MEUSE | C67: 27 | D67: PONT A MOUSSON | E67: 554531 | F67: POMPEY | G67: 3.2 | H67: 57% | I67: 48% | J67: 58 | K67: 73% | L67: 72% | M67: 209 | N67: 58% | O67: 58% | P67: 29 | Q67: 64% | R67: 34% | S67: 58 | T67: 71% | U67: 71% | V67: 72 | W67: 48% | X67: 48% | Y67: 17
A68: 262 | B68: MARNE ARDENNES | C68: 6 | D68: CHALONS EN CHAMPAGNE | E68: 451381 | F68: SEZANNE | G68: 4.7 | H68: 57% | I68: 48% | J68: 59 | K68: 38% | L68: 38% | M68: 59 | N68: 68% | O68: 68% | P68: 75 | Q68: 61% | R68: 31% | S68: 35 | T68: 84% | U68: 84% | V68: 190 | W68: 63% | X68: 63% | Y68: 69
A69: 262 | B69: MARNE ARDENNES | C69: 11 | D69: REIMS | E69: 551314 | F69: FISMES | G69: 2.6 | H69: 57% | I69: 48% | J69: 60 | K69: 27% | L69: 27% | M69: 31 | N69: 60% | O69: 60% | P69: 37 | Q69: 91% | R69: 61% | S69: 227 | T69: 76% | U69: 76% | V69: 127 | W69: 59% | X69: 59% | Y69: 48
A70: 262 | B70: MOSELLE | C70: 44 | D70: MOSELLE NORD | E70: 457348 | F70: HAGONDANGE | G70: 8.0 | H70: 57% | I70: 48% | J70: 61 | K70: 49% | L70: 49% | M70: 110 | N70: 62% | O70: 62% | P70: 47 | Q70: 77% | R70: 47% | S70: 146 | T70: 65% | U70: 65% | V70: 38 | W70: 61% | X70: 61% | Y70: 58
A71: 262 | B71: MEURTHE ET MOSELLE MEUSE | C71: 26 | D71: NANCY | E71: 554116 | F71: BACCARAT | G71: 2.8 | H71: 57% | I71: 48% | J71: 62 | K71: 11% | L71: 11% | M71: 6 | N71: 76% | O71: 76% | P71: 138 | Q71: 75% | R71: 45% | S71: 136 | T71: 78% | U71: 78% | V71: 141 | W71: 74% | X71: 74% | Y71: 189
A72: 262 | B72: MOSELLE | C72: 45 | D72: METZ | E72: 457574 | F72: ROMBAS | G72: 2.6 | H72: 57% | I72: 48% | J72: 63 | K72: 38% | L72: 38% | M72: 55 | N72: 72% | O72: 72% | P72: 102 | Q72: 74% | R72: 44% | S72: 121 | T72: 62% | U72: 62% | V72: 22 | W72: 70% | X72: 70% | Y72: 127
A73: 262 | B73: MOSELLE | C73: 45 | D73: METZ | E73: 557434 | F73: MARLY | G73: 3.1 | H73: 57% | I73: 48% | J73: 64 | K73: 27% | L73: 26% | M73: 24 | N73: 75% | O73: 75% | P73: 130 | Q73: 63% | R73: 33% | S73: 46 | T73: 83% | U73: 83% | V73: 182 | W73: 68% | X73: 68% | Y73: 106
A74: 264 | B74: BAS RHIN | C74: 5006 | D74: STRASBOURG | E74: 4010 | F74: STRASBOURG MEINAU | G74: 3.0 | H74: 57% | I74: 48% | J74: 65 | K74: 44% | L74: 44% | M74: 84 | N74: 61% | O74: 61% | P74: 40 | Q74: 73% | R74: 43% | S74: 114 | T74: 65% | U74: 65% | V74: 42 | W74: 71% | X74: 71% | Y74: 146
A75: 264 | B75: BAS RHIN | C75: 5006 | D75: STRASBOURG | E75: 4054 | F75: STRASBOURG MONTAGNE VERTE | G75: 2.7 | H75: 57% | I75: 48% | J75: 66 | K75: 39% | L75: 38% | M75: 62 | N75: 70% | O75: 70% | P75: 88 | Q75: 63% | R75: 34% | S75: 49 | T75: 65% | U75: 65% | V75: 39 | W75: 78% | X75: 78% | Y75: 218
A76: 264 | B76: MOSELLE | C76: 44 | D76: MOSELLE NORD | E76: 457632 | F76: THIONVILLE CENTRALE | G76: 10.1 | H76: 57% | I76: 48% | J76: 67 | K76: 55% | L76: 54% | M76: 129 | N76: 58% | O76: 58% | P76: 31 | Q76: 81% | R76: 52% | S76: 181 | T76: 62% | U76: 62% | V76: 26 | W76: 59% | X76: 59% | Y76: 49
A77: 264 | B77: MEURTHE ET MOSELLE MEUSE | C77: 31 | D77: VERDUN | E77: 554700 | F77: VILLERUPT | G77: 2.7 | H77: 57% | I77: 48% | J77: 68 | K77: 38% | L77: 38% | M77: 57 | N77: 66% | O77: 66% | P77: 61 | Q77: 63% | R77: 33% | S77: 45 | T77: 75% | U77: 75% | V77: 108 | W77: 74% | X77: 74% | Y77: 188
A78: 264 | B78: MOSELLE | C78: 44 | D78: MOSELLE NORD | E78: 457350 | F78: HAYANGE | G78: 6.3 | H78: 57% | I78: 48% | J78: 69 | K78: 54% | L78: 54% | M78: 126 | N78: 64% | O78: 64% | P78: 53 | Q78: 75% | R78: 45% | S78: 128 | T78: 62% | U78: 62% | V78: 23 | W78: 62% | X78: 62% | Y78: 65
A79: 264 | B79: MARNE ARDENNES | C79: 2 | D79: CHARLEVILLE MEZIERES | E79: 508819 | F79: MOUZON | G79: 1.9 | H79: 57% | I79: 48% | J79: 70 | K79: 55% | L79: 55% | M79: 131 | N79: 77% | O79: 77% | P79: 146 | Q79: 60% | R79: 30% | S79: 30 | T79: 69% | U79: 69% | V79: 64 | W79: 55% | X79: 55% | Y79: 32
A80: 264 | B80: VOSGES | C80: 57 | D80: EPINAL | E80: 488561 | F80: REMIREMONT | G80: 7.2 | H80: 57% | I80: 49% | J80: 71 | K80: 17% | L80: 16% | M80: 11 | N80: 73% | O80: 73% | P80: 110 | Q80: 74% | R80: 44% | S80: 126 | T80: 78% | U80: 78% | V80: 142 | W80: 75% | X80: 75% | Y80: 194
A81: 264 | B81: VOSGES | C81: 57 | D81: EPINAL | E81: 588396 | F81: LE VAL D AJOL | G81: 2.4 | H81: 57% | I81: 49% | J81: 72 | K81: 9% | L81: 9% | M81: 4 | N81: 79% | O81: 79% | P81: 159 | Q81: 71% | R81: 41% | S81: 97 | T81: 80% | U81: 80% | V81: 157 | W81: 78% | X81: 78% | Y81: 219
A82: 264 | B82: MOSELLE | C82: 42 | D82: MOSELLE EST | E82: 557305 | F82: FAULQUEMONT | G82: 3.8 | H82: 57% | I82: 49% | J82: 73 | K82: 79% | L82: 79% | M82: 233 | N82: 54% | O82: 54% | P82: 19 | Q82: 80% | R82: 50% | S82: 164 | T82: 63% | U82: 63% | V82: 32 | W82: 40% | X82: 40% | Y82: 8
A83: 264 | B83: MEURTHE ET MOSELLE MEUSE | C83: 31 | D83: VERDUN | E83: 555679 | F83: VERDUN MAZEL | G83: 3.7 | H83: 57% | I83: 49% | J83: 74 | K83: 23% | L83: 23% | M83: 18 | N83: 74% | O83: 74% | P83: 121 | Q83: 70% | R83: 40% | S83: 88 | T83: 77% | U83: 77% | V83: 131 | W83: 73% | X83: 73% | Y83: 160
A84: 264 | B84: VOSGES | C84: 55 | D84: SAINT DIE | E84: 488326 | F84: GERARDMER | G84: 3.9 | H84: 58% | I84: 49% | J84: 75 | K84: 42% | L84: 42% | M84: 79 | N84: 72% | O84: 72% | P84: 109 | Q84: 65% | R84: 35% | S84: 64 | T84: 77% | U84: 77% | V84: 139 | W84: 62% | X84: 62% | Y84: 66
A85: 264 | B85: MOSELLE | C85: 42 | D85: MOSELLE EST | E85: 557523 | F85: PHALSBOURG | G85: 2.5 | H85: 58% | I85: 49% | J85: 76 | K85: 47% | L85: 47% | M85: 103 | N85: 77% | O85: 77% | P85: 148 | Q85: 60% | R85: 31% | S85: 31 | T85: 68% | U85: 68% | V85: 56 | W85: 67% | X85: 67% | Y85: 97
A86: 264 | B86: MEURTHE ET MOSELLE MEUSE | C86: 27 | D86: PONT A MOUSSON | E86: 554506 | F86: CHALIGNY NEUVES MAISONS | G86: 3.5 | H86: 58% | I86: 49% | J86: 77 | K86: 65% | L86: 65% | M86: 165 | N86: 59% | O86: 59% | P86: 34 | Q86: 83% | R86: 53% | S86: 192 | T86: 60% | U86: 60% | V86: 19 | W86: 53% | X86: 53% | Y86: 21
A87: 264 | B87: MEURTHE ET MOSELLE MEUSE | C87: 31 | D87: VERDUN | E87: 454414 | F87: LONGWY HAUT | G87: 3.4 | H87: 58% | I87: 49% | J87: 78 | K87: 45% | L87: 45% | M87: 93 | N87: 69% | O87: 69% | P87: 82 | Q87: 72% | R87: 42% | S87: 103 | T87: 67% | U87: 67% | V87: 52 | W87: 67% | X87: 67% | Y87: 102
A88: 264 | B88: VOSGES | C88: 55 | D88: SAINT DIE | E88: 488246 | F88: CORNIMONT LA BRESSE | G88: 2.7 | H88: 58% | I88: 49% | J88: 79 | K88: 20% | L88: 20% | M88: 16 | N88: 72% | O88: 72% | P88: 104 | Q88: 80% | R88: 50% | S88: 165 | T88: 75% | U88: 75% | V88: 113 | W88: 72% | X88: 72% | Y88: 157
A89: 264 | B89: MARNE ARDENNES | C89: 11 | D89: REIMS | E89: 551306 | F89: REIMS SAINT MARCEAUX | G89: 3.2 | H89: 58% | I89: 49% | J89: 80 | K89: 45% | L89: 44% | M89: 91 | N89: 51% | O89: 51% | P89: 14 | Q89: 96% | R89: 66% | S89: 234 | T89: 70% | U89: 70% | V89: 70 | W89: 59% | X89: 59% | Y89: 46
A90: 264 | B90: VOSGES | C90: 55 | D90: SAINT DIE | E90: 588551 | F90: RAMBERVILLERS | G90: 2.6 | H90: 58% | I90: 49% | J90: 81 | K90: 25% | L90: 24% | M90: 20 | N90: 79% | O90: 79% | P90: 160 | Q90: 67% | R90: 37% | S90: 71 | T90: 91% | U90: 91% | V90: 226 | W90: 59% | X90: 59% | Y90: 52
A91: 264 | B91: MARNE ARDENNES | C91: 2 | D91: CHARLEVILLE MEZIERES | E91: 408822 | F91: CHARLEVILLE MEZIERES | G91: 5.2 | H91: 58% | I91: 49% | J91: 82 | K91: 69% | L91: 68% | M91: 191 | N91: 72% | O91: 72% | P91: 100 | Q91: 57% | R91: 27% | S91: 21 | T91: 67% | U91: 67% | V91: 50 | W91: 57% | X91: 57% | Y91: 38
A92: 264 | B92: MOSELLE | C92: 45 | D92: METZ | E92: 557444 | F92: SAINT JULIEN LES METZ | G92: 3.6 | H92: 58% | I92: 49% | J92: 83 | K92: 76% | L92: 75% | M92: 224 | N92: 66% | O92: 66% | P92: 59 | Q92: 52% | R92: 22% | S92: 10 | T92: 69% | U92: 69% | V92: 61 | W92: 59% | X92: 59% | Y92: 50
A93: 264 | B93: MOSELLE | C93: 42 | D93: MOSELLE EST | E93: 557668 | F93: VALMONT | G93: 2.9 | H93: 58% | I93: 49% | J93: 84 | K93: 31% | L93: 31% | M93: 43 | N93: 85% | O93: 85% | P93: 201 | Q93: 61% | R93: 31% | S93: 33 | T93: 71% | U93: 71% | V93: 76 | W93: 73% | X93: 73% | Y93: 168
A94: 264 | B94: MOSELLE | C94: 42 | D94: MOSELLE EST | E94: 457617 | F94: SARREGUEMINES | G94: 6.5 | H94: 58% | I94: 50% | J94: 85 | K94: 61% | L94: 60% | M94: 144 | N94: 65% | O94: 65% | P94: 56 | Q94: 68% | R94: 38% | S94: 78 | T94: 71% | U94: 71% | V94: 73 | W94: 58% | X94: 58% | Y94: 43
A95: 264 | B95: MOSELLE | C95: 45 | D95: METZ | E95: 557105 | F95: ARS SUR MOSELLE | G95: 2.8 | H95: 58% | I95: 50% | J95: 86 | K95: 51% | L95: 51% | M95: 116 | N95: 72% | O95: 72% | P95: 101 | Q95: 73% | R95: 43% | S95: 113 | T95: 73% | U95: 73% | V95: 90 | W95: 53% | X95: 53% | Y95: 23
A96: 30 | B96: MOSELLE | C96: 44 | D96: MOSELLE NORD | E96: 557347 | F96: GUENANGE | G96: 4.6 | H96: 58% | I96: 50% | J96: 87 | K96: 71% | L96: 70% | M96: 203 | N96: 58% | O96: 58% | P96: 32 | Q96: 72% | R96: 43% | S96: 105 | T96: 66% | U96: 66% | V96: 46 | W96: 55% | X96: 55% | Y96: 29
A97: 30 | B97: MOSELLE | C97: 44 | D97: MOSELLE NORD | E97: 457158 | F97: YUTZ | G97: 4.7 | H97: 58% | I97: 50% | J97: 88 | K97: 63% | L97: 63% | M97: 157 | N97: 66% | O97: 66% | P97: 58 | Q97: 70% | R97: 40% | S97: 93 | T97: 64% | U97: 64% | V97: 33 | W97: 59% | X97: 59% | Y97: 51
A98: 30 | B98: MOSELLE | C98: 44 | D98: MOSELLE NORD | E98: 457306 | F98: FLORANGE | G98: 4.6 | H98: 58% | I98: 50% | J98: 89 | K98: 77% | L98: 77% | M98: 230 | N98: 59% | O98: 59% | P98: 33 | Q98: 70% | R98: 41% | S98: 96 | T98: 73% | U98: 73% | V98: 92 | W98: 43% | X98: 43% | Y98: 10
A99: 30 | B99: BAS RHIN | C99: 5006 | D99: STRASBOURG | E99: 4024 | F99: STRASBOURG AUSTERLITZ | G99: 1.4 | H99: 59% | I99: 50% | J99: 90 | K99: 82% | L99: 81% | M99: 237 | N99: 60% | O99: 60% | P99: 38 | Q99: 53% | R99: 23% | S99: 12 | T99: 65% | U99: 65% | V99: 36 | W99: 63% | X99: 63% | Y99: 73
A100: 30 | B100: MARNE ARDENNES | C100: 2 | D100: CHARLEVILLE MEZIERES | E100: 408840 | F100: RETHEL | G100: 4.2 | H100: 59% | I100: 50% | J100: 91 | K100: 54% | L100: 54% | M100: 125 | N100: 66% | O100: 66% | P100: 63 | Q100: 69% | R100: 39% | S100: 79 | T100: 71% | U100: 71% | V100: 78 | W100: 64% | X100: 64% | Y100: 74
A101: 30 | B101: MARNE ARDENNES | C101: 6 | D101: CHALONS EN CHAMPAGNE | E101: 551128 | F101: SAINTE MENEHOULD | G101: 2.9 | H101: 59% | I101: 50% | J101: 92 | K101: 35% | L101: 34% | M101: 45 | N101: 70% | O101: 70% | P101: 93 | Q101: 80% | R101: 50% | S101: 160 | T101: 67% | U101: 67% | V101: 55 | W101: 73% | X101: 73% | Y101: 165
A102: 30 | B102: MARNE ARDENNES | C102: 11 | D102: REIMS | E102: 551369 | F102: DAMERY | G102: 1.6 | H102: 59% | I102: 50% | J102: 93 | K102: 44% | L102: 44% | M102: 86 | N102: 54% | O102: 54% | P102: 18 | Q102: 109% | R102: 79% | S102: 239 | T102: 65% | U102: 65% | V102: 41 | W102: 53% | X102: 53% | Y102: 22
A103: 30 | B103: BAS RHIN | C103: 5060 | D103: HAGUENAU | E103: 4071 | F103: WISSEMBOURG | G103: 8.2 | H103: 59% | I103: 51% | J103: 94 | K103: 29% | L103: 28% | M103: 33 | N103: 71% | O103: 71% | P103: 99 | Q103: 72% | R103: 42% | S103: 101 | T103: 77% | U103: 77% | V103: 135 | W103: 77% | X103: 77% | Y103: 211
A104: 30 | B104: BAS RHIN | C104: 5101 | D104: SELESTAT | E104: 4104 | F104: ERSTEIN | G104: 3.9 | H104: 59% | I104: 51% | J104: 95 | K104: 72% | L104: 71% | M104: 205 | N104: 57% | O104: 57% | P104: 22 | Q104: 63% | R104: 33% | S104: 42 | T104: 72% | U104: 72% | V104: 87 | W104: 64% | X104: 64% | Y104: 77
A105: 30 | B105: VOSGES | C105: 57 | D105: EPINAL | E105: 588716 | F105: XERTIGNY | G105: 2.8 | H105: 59% | I105: 51% | J105: 96 | K105: 40% | L105: 40% | M105: 67 | N105: 74% | O105: 74% | P105: 122 | Q105: 64% | R105: 34% | S105: 51 | T105: 77% | U105: 77% | V105: 138 | W105: 72% | X105: 72% | Y105: 153
A106: 30 | B106: MOSELLE | C106: 44 | D106: MOSELLE NORD | E106: 457192 | F106: CATTENOM | G106: 1.5 | H106: 59% | I106: 51% | J106: 97 | K106: 59% | L106: 58% | M106: 139 | N106: 66% | O106: 66% | P106: 60 | Q106: 65% | R106: 35% | S106: 65 | T106: 76% | U106: 76% | V106: 118 | W106: 61% | X106: 61% | Y106: 61
A107: 30 | B107: BAS RHIN | C107: 5006 | D107: STRASBOURG | E107: 4043 | F107: STRASBOURG HALLES | G107: 7.7 | H107: 59% | I107: 51% | J107: 98 | K107: 62% | L107: 61% | M107: 151 | N107: 62% | O107: 62% | P107: 44 | Q107: 80% | R107: 51% | S107: 173 | T107: 54% | U107: 54% | V107: 7 | W107: 70% | X107: 70% | Y107: 131
A108: 30 | B108: AUBE HAUTE MARNE | C108: 21 | D108: CHAUMONT | E108: 451154 | F108: JOINVILLE | G108: 1.8 | H108: 60% | I108: 51% | J108: 99 | K108: 41% | L108: 40% | M108: 73 | N108: 67% | O108: 67% | P108: 69 | Q108: 90% | R108: 60% | S108: 223 | T108: 64% | U108: 64% | V108: 34 | W108: 67% | X108: 67% | Y108: 98
A109: 30 | B109: BAS RHIN | C109: 5060 | D109: HAGUENAU | E109: 4092 | F109: HOCHFELDEN | G109: 2.1 | H109: 60% | I109: 51% | J109: 100 | K109: 44% | L109: 44% | M109: 89 | N109: 79% | O109: 79% | P109: 163 | Q109: 64% | R109: 34% | S109: 52 | T109: 72% | U109: 72% | V109: 85 | W109: 70% | X109: 70% | Y109: 128
A110: 30 | B110: MARNE ARDENNES | C110: 11 | D110: REIMS | E110: 551341 | F110: REIMS JEAN JAURES | G110: 4.1 | H110: 60% | I110: 51% | J110: 101 | K110: 67% | L110: 66% | M110: 177 | N110: 63% | O110: 63% | P110: 49 | Q110: 73% | R110: 44% | S110: 117 | T110: 71% | U110: 71% | V110: 82 | W110: 54% | X110: 54% | Y110: 28
A111: 30 | B111: VOSGES | C111: 55 | D111: SAINT DIE | E111: 588386 | F111: LE THILLOT | G111: 2.6 | H111: 60% | I111: 51% | J111: 102 | K111: 11% | L111: 10% | M111: 5 | N111: 79% | O111: 79% | P111: 164 | Q111: 79% | R111: 49% | S111: 159 | T111: 85% | U111: 85% | V111: 197 | W111: 76% | X111: 76% | Y111: 202
A112: 30 | B112: BAS RHIN | C112: 5006 | D112: STRASBOURG | E112: 4019 | F112: STRASBOURG ANVERS | G112: 4.4 | H112: 60% | I112: 51% | J112: 103 | K112: 66% | L112: 66% | M112: 174 | N112: 62% | O112: 62% | P112: 48 | Q112: 62% | R112: 32% | S112: 38 | T112: 70% | U112: 70% | V112: 68 | W112: 68% | X112: 68% | Y112: 116
A113: 30 | B113: MOSELLE | C113: 42 | D113: MOSELLE EST | E113: 457543 | F113: PUTTELANGE AUX LACS | G113: 2.3 | H113: 60% | I113: 51% | J113: 104 | K113: 60% | L113: 59% | M113: 143 | N113: 67% | O113: 67% | P113: 67 | Q113: 76% | R113: 47% | S113: 145 | T113: 62% | U113: 62% | V113: 24 | W113: 66% | X113: 66% | Y113: 91
A114: 30 | B114: HAUT RHIN | C114: 5130 | D114: COLMAR | E114: 4143 | F114: MUNSTER | G114: 4.2 | H114: 60% | I114: 51% | J114: 105 | K114: 54% | L114: 54% | M114: 127 | N114: 67% | O114: 67% | P114: 70 | Q114: 65% | R114: 35% | S114: 61 | T114: 74% | U114: 74% | V114: 103 | W114: 71% | X114: 71% | Y114: 140
A115: 30 | B115: MEURTHE ET MOSELLE MEUSE | C115: 31 | D115: VERDUN | E115: 554412 | F115: LONGUYON | G115: 2.8 | H115: 60% | I115: 52% | J115: 106 | K115: 44% | L115: 44% | M115: 87 | N115: 69% | O115: 69% | P115: 84 | Q115: 73% | R115: 43% | S115: 111 | T115: 74% | U115: 74% | V115: 104 | W115: 71% | X115: 71% | Y115: 142
A116: 30 | B116: VOSGES | C116: 55 | D116: SAINT DIE | E116: 588666 | F116: VAGNEY | G116: 3.5 | H116: 60% | I116: 52% | J116: 107 | K116: 27% | L116: 27% | M116: 28 | N116: 81% | O116: 81% | P116: 177 | Q116: 64% | R116: 34% | S116: 53 | T116: 86% | U116: 86% | V116: 209 | W116: 74% | X116: 74% | Y116: 185
A117: 30 | B117: BAS RHIN | C117: 5006 | D117: STRASBOURG | E117: 4006 | F117: STRASBOURG NEUDORF | G117: 7.9 | H117: 61% | I117: 52% | J117: 108 | K117: 26% | L117: 26% | M117: 22 | N117: 82% | O117: 82% | P117: 185 | Q117: 72% | R117: 42% | S117: 102 | T117: 74% | U117: 74% | V117: 101 | W117: 78% | X117: 78% | Y117: 217
A118: 30 | B118: MEURTHE ET MOSELLE MEUSE | C118: 27 | D118: PONT A MOUSSON | E118: 554357 | F118: JOEUF | G118: 3.0 | H118: 61% | I118: 52% | J118: 109 | K118: 36% | L118: 36% | M118: 48 | N118: 76% | O118: 76% | P118: 136 | Q118: 79% | R118: 49% | S118: 158 | T118: 80% | U118: 80% | V118: 155 | W118: 63% | X118: 63% | Y118: 68
A119: 30 | B119: MARNE ARDENNES | C119: 2 | D119: CHARLEVILLE MEZIERES | E119: 408862 | F119: REVIN | G119: 3.9 | H119: 61% | I119: 52% | J119: 110 | K119: 40% | L119: 40% | M119: 69 | N119: 76% | O119: 76% | P119: 139 | Q119: 82% | R119: 52% | S119: 182 | T119: 70% | U119: 70% | V119: 67 | W119: 66% | X119: 66% | Y119: 95
A120: 30 | B120: MEURTHE ET MOSELLE MEUSE | C120: 31 | D120: VERDUN | E120: 455151 | F120: BAR LE DUC | G120: 9.8 | H120: 61% | I120: 52% | J120: 111 | K120: 37% | L120: 36% | M120: 49 | N120: 74% | O120: 74% | P120: 118 | Q120: 80% | R120: 50% | S120: 162 | T120: 73% | U120: 73% | V120: 96 | W120: 71% | X120: 71% | Y120: 143
A121: 30 | B121: VOSGES | C121: 57 | D121: EPINAL | E121: 588631 | F121: THAON LES VOSGES | G121: 4.6 | H121: 61% | I121: 52% | J121: 112 | K121: 45% | L121: 45% | M121: 96 | N121: 73% | O121: 73% | P121: 113 | Q121: 75% | R121: 45% | S121: 129 | T121: 76% | U121: 76% | V121: 122 | W121: 66% | X121: 66% | Y121: 90
A122: 30 | B122: MARNE ARDENNES | C122: 2 | D122: CHARLEVILLE MEZIERES | E122: 508815 | F122: CARIGNAN | G122: 2.6 | H122: 61% | I122: 52% | J122: 113 | K122: 42% | L122: 42% | M122: 78 | N122: 70% | O122: 70% | P122: 92 | Q122: 78% | R122: 48% | S122: 152 | T122: 76% | U122: 76% | V122: 126 | W122: 68% | X122: 68% | Y122: 111
A123: 30 | B123: MEURTHE ET MOSELLE MEUSE | C123: 27 | D123: PONT A MOUSSON | E123: 554416 | F123: LUDRES | G123: 3.6 | H123: 61% | I123: 52% | J123: 114 | K123: 41% | L123: 41% | M123: 74 | N123: 77% | O123: 77% | P123: 145 | Q123: 67% | R123: 37% | S123: 72 | T123: 77% | U123: 77% | V123: 136 | W123: 73% | X123: 73% | Y123: 169
A124: 30 | B124: BAS RHIN | C124: 5060 | D124: HAGUENAU | E124: 4057 | F124: BISCHWILLER | G124: 6.8 | H124: 61% | I124: 52% | J124: 115 | K124: 40% | L124: 40% | M124: 71 | N124: 65% | O124: 65% | P124: 57 | Q124: 81% | R124: 52% | S124: 180 | T124: 75% | U124: 75% | V124: 109 | W124: 74% | X124: 74% | Y124: 180
A125: 30 | B125: VOSGES | C125: 55 | D125: SAINT DIE | E125: 588186 | F125: BRUYERES | G125: 3.5 | H125: 61% | I125: 52% | J125: 116 | K125: 27% | L125: 26% | M125: 25 | N125: 76% | O125: 76% | P125: 135 | Q125: 89% | R125: 59% | S125: 220 | T125: 79% | U125: 79% | V125: 151 | W125: 66% | X125: 66% | Y125: 86
A126: 30 | B126: BAS RHIN | C126: 5006 | D126: STRASBOURG | E126: 4027 | F126: SCHILTIGHEIM CENTRE | G126: 4.0 | H126: 61% | I126: 52% | J126: 117 | K126: 71% | L126: 71% | M126: 204 | N126: 61% | O126: 61% | P126: 41 | Q126: 64% | R126: 34% | S126: 56 | T126: 75% | U126: 75% | V126: 105 | W126: 65% | X126: 65% | Y126: 84
A127: 30 | B127: VOSGES | C127: 57 | D127: EPINAL | E127: 488286 | F127: EPINAL ARISTIDE BRIAND | G127: 8.1 | H127: 61% | I127: 52% | J127: 118 | K127: 67% | L127: 66% | M127: 178 | N127: 60% | O127: 60% | P127: 36 | Q127: 66% | R127: 36% | S127: 70 | T127: 75% | U127: 75% | V127: 112 | W127: 69% | X127: 69% | Y127: 121
A128: 30 | B128: AUBE HAUTE MARNE | C128: 14 | D128: TROYES | E128: 510570 | F128: NOGENT SUR SEINE | G128: 3.9 | H128: 62% | I128: 53% | J128: 119 | K128: 30% | L128: 29% | M128: 37 | N128: 74% | O128: 74% | P128: 126 | Q128: 80% | R128: 50% | S128: 168 | T128: 82% | U128: 82% | V128: 173 | W128: 72% | X128: 72% | Y128: 147
A129: 30 | B129: BAS RHIN | C129: 5060 | D129: HAGUENAU | E129: 4041 | F129: HOERDT | G129: 1.7 | H129: 62% | I129: 53% | J129: 120 | K129: 39% | L129: 38% | M129: 61 | N129: 78% | O129: 78% | P129: 158 | Q129: 64% | R129: 34% | S129: 54 | T129: 80% | U129: 80% | V129: 154 | W129: 78% | X129: 78% | Y129: 216
A130: 30 | B130: VOSGES | C130: 55 | D130: SAINT DIE | E130: 588316 | F130: FRAIZE | G130: 3.6 | H130: 62% | I130: 53% | J130: 121 | K130: 45% | L130: 44% | M130: 92 | N130: 78% | O130: 78% | P130: 157 | Q130: 75% | R130: 45% | S130: 130 | T130: 71% | U130: 71% | V130: 79 | W130: 70% | X130: 70% | Y130: 126
A131: 30 | B131: MEURTHE ET MOSELLE MEUSE | C131: 26 | D131: NANCY | E131: 554486 | F131: NANCY POINT CENTRAL | G131: 3.1 | H131: 62% | I131: 53% | J131: 122 | K131: 53% | L131: 52% | M131: 122 | N131: 81% | O131: 81% | P131: 178 | Q131: 55% | R131: 25% | S131: 15 | T131: 81% | U131: 81% | V131: 163 | W131: 70% | X131: 70% | Y131: 133
A132: 30 | B132: VOSGES | C132: 57 | D132: EPINAL | E132: 488281 | F132: ELOYES | G132: 3.4 | H132: 62% | I132: 53% | J132: 123 | K132: 39% | L132: 39% | M132: 65 | N132: 81% | O132: 81% | P132: 175 | Q132: 66% | R132: 36% | S132: 67 | T132: 87% | U132: 87% | V132: 213 | W132: 67% | X132: 67% | Y132: 100
A133: 30 | B133: MEURTHE ET MOSELLE MEUSE | C133: 31 | D133: VERDUN | E133: 455566 | F133: REVIGNY SUR ORNAIN | G133: 2.7 | H133: 62% | I133: 53% | J133: 124 | K133: 44% | L133: 43% | M133: 83 | N133: 77% | O133: 77% | P133: 150 | Q133: 70% | R133: 41% | S133: 95 | T133: 75% | U133: 75% | V133: 114 | W133: 73% | X133: 73% | Y133: 158
A134: 30 | B134: MOSELLE | C134: 45 | D134: METZ | E134: 557612 | F134: SAINTE MARIE AUX CHENES | G134: 3.7 | H134: 62% | I134: 53% | J134: 125 | K134: 29% | L134: 28% | M134: 35 | N134: 87% | O134: 87% | P134: 215 | Q134: 70% | R134: 40% | S134: 87 | T134: 76% | U134: 76% | V134: 125 | W134: 78% | X134: 78% | Y134: 215
A135: 110 | B135: BAS RHIN | C135: 5101 | D135: SELESTAT | E135: 4121 | F135: SCHIRMECK | G135: 2.8 | H135: 62% | I135: 53% | J135: 126 | K135: 38% | L135: 37% | M135: 54 | N135: 67% | O135: 67% | P135: 66 | Q135: 83% | R135: 53% | S135: 189 | T135: 84% | U135: 84% | V135: 193 | W135: 69% | X135: 69% | Y135: 117
A136: 110 | B136: MEURTHE ET MOSELLE MEUSE | C136: 26 | D136: NANCY | E136: 454426 | F136: LUNEVILLE CARNOT | G136: 8.4 | H136: 62% | I136: 53% | J136: 127 | K136: 67% | L136: 67% | M136: 179 | N136: 72% | O136: 72% | P136: 103 | Q136: 66% | R136: 36% | S136: 68 | T136: 79% | U136: 79% | V136: 147 | W136: 57% | X136: 57% | Y136: 36
A137: 110 | B137: MARNE ARDENNES | C137: 2 | D137: CHARLEVILLE MEZIERES | E137: 508802 | F137: CHARLEVILLE NEVERS | G137: 2.8 | H137: 62% | I137: 53% | J137: 128 | K137: 29% | L137: 28% | M137: 34 | N137: 86% | O137: 86% | P137: 205 | Q137: 87% | R137: 57% | S137: 212 | T137: 70% | U137: 70% | V137: 66 | W137: 69% | X137: 69% | Y137: 122
A138: 110 | B138: MEURTHE ET MOSELLE MEUSE | C138: 27 | D138: PONT A MOUSSON | E138: 554376 | F138: LAXOU BOUFFLERS | G138: 2.5 | H138: 62% | I138: 53% | J138: 129 | K138: 81% | L138: 81% | M138: 236 | N138: 58% | O138: 58% | P138: 28 | Q138: 80% | R138: 50% | S138: 170 | T138: 76% | U138: 76% | V138: 117 | W138: 46% | X138: 46% | Y138: 13
A139: 110 | B139: MOSELLE | C139: 44 | D139: MOSELLE NORD | E139: 557307 | F139: FONTOY | G139: 1.9 | H139: 62% | I139: 53% | J139: 130 | K139: 40% | L139: 40% | M139: 68 | N139: 83% | O139: 83% | P139: 186 | Q139: 74% | R139: 44% | S139: 120 | T139: 84% | U139: 84% | V139: 191 | W139: 61% | X139: 61% | Y139: 63
A140: 110 | B140: BAS RHIN | C140: 5101 | D140: SELESTAT | E140: 4126 | F140: MUTZIG | G140: 2.7 | H140: 62% | I140: 53% | J140: 131 | K140: 62% | L140: 62% | M140: 152 | N140: 64% | O140: 64% | P140: 50 | Q140: 64% | R140: 34% | S140: 57 | T140: 80% | U140: 80% | V140: 161 | W140: 71% | X140: 71% | Y140: 144
A141: 110 | B141: VOSGES | C141: 57 | D141: EPINAL | E141: 588206 | F141: CHARMES | G141: 2.9 | H141: 62% | I141: 54% | J141: 132 | K141: 47% | L141: 46% | M141: 100 | N141: 76% | O141: 76% | P141: 142 | Q141: 70% | R141: 40% | S141: 91 | T141: 76% | U141: 76% | V141: 123 | W141: 74% | X141: 74% | Y141: 173
A142: 110 | B142: AUBE HAUTE MARNE | C142: 21 | D142: CHAUMONT | E142: 451156 | F142: SAINT DIZIER CENTRE | G142: 8.6 | H142: 62% | I142: 54% | J142: 133 | K142: 55% | L142: 55% | M142: 134 | N142: 75% | O142: 75% | P142: 128 | Q142: 77% | R142: 47% | S142: 148 | T142: 68% | U142: 68% | V142: 57 | W142: 68% | X142: 68% | Y142: 105
A143: 110 | B143: MOSELLE | C143: 42 | D143: MOSELLE EST | E143: 457435 | F143: MERLEBACH | G143: 2.7 | H143: 63% | I143: 54% | J143: 134 | K143: 46% | L143: 46% | M143: 98 | N143: 78% | O143: 78% | P143: 153 | Q143: 83% | R143: 53% | S143: 188 | T143: 77% | U143: 77% | V143: 129 | W143: 62% | X143: 62% | Y143: 64
A144: 110 | B144: AUBE HAUTE MARNE | C144: 21 | D144: CHAUMONT | E144: 410566 | F144: CHAUMONT HOTEL DE VILLE | G144: 10.4 | H144: 63% | I144: 54% | J144: 135 | K144: 43% | L144: 43% | M144: 82 | N144: 81% | O144: 81% | P144: 179 | Q144: 70% | R144: 40% | S144: 85 | T144: 78% | U144: 78% | V144: 140 | W144: 74% | X144: 74% | Y144: 172
A145: 110 | B145: VOSGES | C145: 55 | D145: SAINT DIE | E145: 588461 | F145: MOYENMOUTIER | G145: 4.3 | H145: 63% | I145: 54% | J145: 136 | K145: 42% | L145: 42% | M145: 80 | N145: 71% | O145: 71% | P145: 97 | Q145: 76% | R145: 46% | S145: 143 | T145: 79% | U145: 79% | V145: 149 | W145: 77% | X145: 77% | Y145: 212
A146: 110 | B146: BAS RHIN | C146: 5006 | D146: STRASBOURG | E146: 4020 | F146: STRASBOURG ROBERTSAU | G146: 5.3 | H146: 63% | I146: 54% | J146: 137 | K146: 54% | L146: 53% | M146: 123 | N146: 82% | O146: 82% | P146: 183 | Q146: 50% | R146: 20% | S146: 8 | T146: 85% | U146: 85% | V146: 205 | W146: 75% | X146: 75% | Y146: 198
A147: 110 | B147: MEURTHE ET MOSELLE MEUSE | C147: 26 | D147: NANCY | E147: 554491 | F147: NANCY SAINT SEBASTIEN | G147: 3.5 | H147: 64% | I147: 55% | J147: 138 | K147: 51% | L147: 51% | M147: 117 | N147: 86% | O147: 86% | P147: 206 | Q147: 54% | R147: 24% | S147: 13 | T147: 85% | U147: 85% | V147: 198 | W147: 73% | X147: 73% | Y147: 163
A148: 110 | B148: VOSGES | C148: 57 | D148: EPINAL | E148: 588201 | F148: CHANTRAINE | G148: 3.7 | H148: 64% | I148: 55% | J148: 139 | K148: 44% | L148: 44% | M148: 88 | N148: 72% | O148: 72% | P148: 107 | Q148: 70% | R148: 40% | S148: 90 | T148: 88% | U148: 88% | V148: 217 | W148: 75% | X148: 75% | Y148: 191
A149: 110 | B149: BAS RHIN | C149: 5006 | D149: STRASBOURG | E149: 4023 | F149: STRASBOURG VOSGES | G149: 2.9 | H149: 64% | I149: 55% | J149: 140 | K149: 51% | L149: 51% | M149: 115 | N149: 74% | O149: 74% | P149: 119 | Q149: 61% | R149: 31% | S149: 34 | T149: 86% | U149: 86% | V149: 207 | W149: 79% | X149: 79% | Y149: 224
A150: 110 | B150: BAS RHIN | C150: 5101 | D150: SELESTAT | E150: 4127 | F150: ROSHEIM | G150: 1.7 | H150: 64% | I150: 55% | J150: 141 | K150: 50% | L150: 49% | M150: 111 | N150: 85% | O150: 85% | P150: 200 | Q150: 63% | R150: 33% | S150: 40 | T150: 79% | U150: 79% | V150: 153 | W150: 74% | X150: 74% | Y150: 181
A151: 110 | B151: VOSGES | C151: 57 | D151: EPINAL | E151: 488706 | F151: VITTEL | G151: 3.1 | H151: 64% | I151: 55% | J151: 142 | K151: 50% | L151: 50% | M151: 114 | N151: 81% | O151: 81% | P151: 172 | Q151: 73% | R151: 43% | S151: 115 | T151: 77% | U151: 77% | V151: 130 | W151: 70% | X151: 70% | Y151: 135
A152: 110 | B152: MEURTHE ET MOSELLE MEUSE | C152: 27 | D152: PONT A MOUSSON | E152: 554496 | F152: NANCY TROIS MAISONS | G152: 2.4 | H152: 64% | I152: 55% | J152: 143 | K152: 63% | L152: 62% | M152: 154 | N152: 73% | O152: 73% | P152: 116 | Q152: 80% | R152: 50% | S152: 163 | T152: 71% | U152: 71% | V152: 83 | W152: 64% | X152: 64% | Y152: 79
A153: 110 | B153: BAS RHIN | C153: 5060 | D153: HAGUENAU | E153: 4030 | F153: BRUMATH | G153: 3.8 | H153: 65% | I153: 56% | J153: 144 | K153: 74% | L153: 74% | M153: 214 | N153: 67% | O153: 67% | P153: 65 | Q153: 48% | R153: 18% | S153: 7 | T153: 88% | U153: 88% | V153: 218 | W153: 76% | X153: 76% | Y153: 201
A154: 110 | B154: MEURTHE ET MOSELLE MEUSE | C154: 26 | D154: NANCY | E154: 554266 | F154: DOMBASLE SUR MEURTHE | G154: 3.4 | H154: 65% | I154: 56% | J154: 145 | K154: 67% | L154: 67% | M154: 180 | N154: 86% | O154: 86% | P154: 210 | Q154: 56% | R154: 27% | S154: 20 | T154: 75% | U154: 75% | V154: 115 | W154: 68% | X154: 68% | Y154: 110
A155: 110 | B155: MEURTHE ET MOSELLE MEUSE | C155: 27 | D155: PONT A MOUSSON | E155: 454651 | F155: TOUL | G155: 9.4 | H155: 65% | I155: 56% | J155: 146 | K155: 72% | L155: 72% | M155: 207 | N155: 82% | O155: 82% | P155: 184 | Q155: 66% | R155: 36% | S155: 69 | T155: 73% | U155: 73% | V155: 97 | W155: 60% | X155: 60% | Y155: 53
A156: 110 | B156: MEURTHE ET MOSELLE MEUSE | C156: 26 | D156: NANCY | E156: 554296 | F156: ESSEY LES NANCY | G156: 3.7 | H156: 65% | I156: 56% | J156: 147 | K156: 35% | L156: 35% | M156: 47 | N156: 77% | O156: 77% | P156: 147 | Q156: 80% | R156: 50% | S156: 166 | T156: 89% | U156: 89% | V156: 219 | W156: 73% | X156: 73% | Y156: 166
A157: 110 | B157: MEURTHE ET MOSELLE MEUSE | C157: 27 | D157: PONT A MOUSSON | E157: 454355 | F157: JARNY | G157: 4.2 | H157: 65% | I157: 56% | J157: 148 | K157: 47% | L157: 47% | M157: 102 | N157: 79% | O157: 79% | P157: 166 | Q157: 70% | R157: 40% | S157: 92 | T157: 80% | U157: 80% | V157: 160 | W157: 78% | X157: 78% | Y157: 220
A158: 110 | B158: MOSELLE | C158: 45 | D158: METZ | E158: 557459 | F158: MOULINS LES METZ | G158: 2.5 | H158: 65% | I158: 56% | J158: 149 | K158: 41% | L158: 41% | M158: 77 | N158: 82% | O158: 82% | P158: 182 | Q158: 82% | R158: 52% | S158: 183 | T158: 79% | U158: 79% | V158: 144 | W158: 72% | X158: 72% | Y158: 156
A159: 110 | B159: MEURTHE ET MOSELLE MEUSE | C159: 26 | D159: NANCY | E159: 554166 | F159: BLAINVILLE | G159: 2.9 | H159: 65% | I159: 56% | J159: 150 | K159: 66% | L159: 66% | M159: 173 | N159: 72% | O159: 72% | P159: 105 | Q159: 78% | R159: 49% | S159: 154 | T159: 68% | U159: 68% | V159: 58 | W159: 71% | X159: 71% | Y159: 139
A160: 110 | B160: BAS RHIN | C160: 5006 | D160: STRASBOURG | E160: 4029 | F160: SCHILTIGHEIM KLEBER | G160: 0.6 | H160: 65% | I160: 56% | J160: 151 | K160: 61% | L160: 61% | M160: 149 | N160: 92% | O160: 92% | P160: 235 | Q160: 63% | R160: 34% | S160: 48 | T160: 74% | U160: 74% | V160: 102 | W160: 66% | X160: 66% | Y160: 92
A161: 110 | B161: MARNE ARDENNES | C161: 2 | D161: CHARLEVILLE MEZIERES | E161: 408806 | F161: SEDAN | G161: 7.4 | H161: 65% | I161: 57% | J161: 152 | K161: 50% | L161: 50% | M161: 112 | N161: 78% | O161: 78% | P161: 155 | Q161: 77% | R161: 47% | S161: 147 | T161: 85% | U161: 85% | V161: 201 | W161: 68% | X161: 68% | Y161: 108
A162: 110 | B162: MEURTHE ET MOSELLE MEUSE | C162: 31 | D162: VERDUN | E162: 555624 | F162: STENAY | G162: 3.1 | H162: 66% | I162: 57% | J162: 153 | K162: 66% | L162: 66% | M162: 171 | N162: 68% | O162: 68% | P162: 76 | Q162: 85% | R162: 55% | S162: 203 | T162: 87% | U162: 87% | V162: 216 | W162: 52% | X162: 52% | Y162: 20
A163: 110 | B163: MARNE ARDENNES | C163: 2 | D163: CHARLEVILLE MEZIERES | E163: 508860 | F163: ROCROI | G163: 2.3 | H163: 66% | I163: 57% | J163: 154 | K163: 72% | L163: 72% | M163: 208 | N163: 66% | O163: 66% | P163: 62 | Q163: 79% | R163: 49% | S163: 155 | T163: 76% | U163: 76% | V163: 124 | W163: 65% | X163: 65% | Y163: 83
A164: 110 | B164: BAS RHIN | C164: 5060 | D164: HAGUENAU | E164: 4031 | F164: TRUCHTERSHEIM | G164: 2.4 | H164: 66% | I164: 57% | J164: 155 | K164: 41% | L164: 41% | M164: 75 | N164: 68% | O164: 68% | P164: 77 | Q164: 75% | R164: 45% | S164: 133 | T164: 89% | U164: 89% | V164: 221 | W164: 85% | X164: 85% | Y164: 240
A165: 110 | B165: AUBE HAUTE MARNE | C165: 14 | D165: TROYES | E165: 510513 | F165: SAINT PARRES AUX TERTRES | G165: 2.8 | H165: 66% | I165: 57% | J165: 156 | K165: 81% | L165: 80% | M165: 234 | N165: 67% | O165: 67% | P165: 74 | Q165: 74% | R165: 44% | S165: 124 | T165: 61% | U165: 61% | V165: 21 | W165: 75% | X165: 75% | Y165: 193
A166: 110 | B166: MEURTHE ET MOSELLE MEUSE | C166: 27 | D166: PONT A MOUSSON | E166: 454535 | F166: PONT A MOUSSON CENTRALE | G166: 5.8 | H166: 66% | I166: 57% | J166: 157 | K166: 77% | L166: 77% | M166: 231 | N166: 68% | O166: 68% | P166: 80 | Q166: 84% | R166: 54% | S166: 200 | T166: 71% | U166: 71% | V166: 84 | W166: 58% | X166: 58% | Y166: 40
A167: 110 | B167: BAS RHIN | C167: 5006 | D167: STRASBOURG | E167: 4028 | F167: BISCHHEIM | G167: 3.1 | H167: 66% | I167: 57% | J167: 158 | K167: 66% | L167: 66% | M167: 169 | N167: 80% | O167: 80% | P167: 169 | Q167: 67% | R167: 37% | S167: 74 | T167: 71% | U167: 71% | V167: 74 | W167: 75% | X167: 75% | Y167: 192
A168: 110 | B168: MARNE ARDENNES | C168: 11 | D168: REIMS | E168: 551309 | F168: REIMS EUROPE | G168: 2.4 | H168: 66% | I168: 57% | J168: 159 | K168: 57% | L168: 57% | M168: 136 | N168: 75% | O168: 75% | P168: 132 | Q168: 86% | R168: 56% | S168: 206 | T168: 73% | U168: 73% | V168: 89 | W168: 69% | X168: 69% | Y168: 124
A169: 110 | B169: MOSELLE | C169: 42 | D169: MOSELLE EST | E169: 457614 | F169: SARREBOURG | G169: 7.1 | H169: 66% | I169: 57% | J169: 160 | K169: 59% | L169: 59% | M169: 141 | N169: 79% | O169: 79% | P169: 162 | Q169: 75% | R169: 45% | S169: 131 | T169: 75% | U169: 75% | V169: 107 | W169: 72% | X169: 72% | Y169: 150
A170: 110 | B170: BAS RHIN | C170: 5101 | D170: SELESTAT | E170: 4007 | F170: ILLKIRCH CENTRE | G170: 6.3 | H170: 66% | I170: 57% | J170: 161 | K170: 68% | L170: 68% | M170: 184 | N170: 77% | O170: 77% | P170: 151 | Q170: 79% | R170: 49% | S170: 156 | T170: 67% | U170: 67% | V170: 48 | W170: 69% | X170: 69% | Y170: 125
A171: 110 | B171: BAS RHIN | C171: 5060 | D171: HAGUENAU | E171: 4067 | F171: PFAFFENHOFFEN | G171: 1.9 | H171: 66% | I171: 57% | J171: 162 | K171: 61% | L171: 60% | M171: 145 | N171: 68% | O171: 68% | P171: 79 | Q171: 73% | R171: 43% | S171: 112 | T171: 84% | U171: 84% | V171: 194 | W171: 74% | X171: 74% | Y171: 184
A172: 110 | B172: MOSELLE | C172: 45 | D172: METZ | E172: 557441 | F172: METZ PLAPPEVILLE | G172: 2.6 | H172: 66% | I172: 57% | J172: 163 | K172: 64% | L172: 64% | M172: 160 | N172: 85% | O172: 85% | P172: 197 | Q172: 58% | R172: 28% | S172: 24 | T172: 84% | U172: 84% | V172: 188 | W172: 70% | X172: 70% | Y172: 137
A173: 110 | B173: MEURTHE ET MOSELLE MEUSE | C173: 27 | D173: PONT A MOUSSON | E173: 454696 | F173: VILLERS GENERAL LECLERC | G173: 3.9 | H173: 66% | I173: 57% | J173: 164 | K173: 65% | L173: 64% | M173: 163 | N173: 83% | O173: 83% | P173: 188 | Q173: 51% | R173: 21% | S173: 9 | T173: 82% | U173: 82% | V173: 169 | W173: 80% | X173: 80% | Y173: 230
A174: 110 | B174: BAS RHIN | C174: 5101 | D174: SELESTAT | E174: 4008 | F174: FEGERSHEIM | G174: 2.4 | H174: 66% | I174: 57% | J174: 165 | K174: 55% | L174: 55% | M174: 133 | N174: 71% | O174: 71% | P174: 96 | Q174: 71% | R174: 41% | S174: 99 | T174: 85% | U174: 85% | V174: 196 | W174: 80% | X174: 80% | Y174: 228
A175: 110 | B175: MOSELLE | C175: 45 | D175: METZ | E175: 557440 | F175: METZ MOZART | G175: 2.8 | H175: 66% | I175: 57% | J175: 166 | K175: 63% | L175: 62% | M175: 153 | N175: 77% | O175: 77% | P175: 149 | Q175: 67% | R175: 38% | S175: 76 | T175: 78% | U175: 78% | V175: 143 | W175: 76% | X175: 76% | Y175: 200
A176: 110 | B176: MOSELLE | C176: 45 | D176: METZ | E176: 557559 | F176: REMILLY | G176: 3.2 | H176: 66% | I176: 57% | J176: 167 | K176: 66% | L176: 66% | M176: 168 | N176: 75% | O176: 75% | P176: 129 | Q176: 70% | R176: 40% | S176: 89 | T176: 86% | U176: 86% | V176: 208 | W176: 65% | X176: 65% | Y176: 82
A177: 160 | B177: MOSELLE | C177: 42 | D177: MOSELLE EST | E177: 557210 | F177: CHATEAU SALINS | G177: 1.9 | H177: 66% | I177: 57% | J177: 168 | K177: 67% | L177: 66% | M177: 175 | N177: 69% | O177: 69% | P177: 83 | Q177: 86% | R177: 56% | S177: 208 | T177: 67% | U177: 67% | V177: 53 | W177: 73% | X177: 73% | Y177: 164
A178: 160 | B178: BAS RHIN | C178: 5060 | D178: HAGUENAU | E178: 4082 | F178: BOUXWILLER | G178: 2.4 | H178: 66% | I178: 58% | J178: 169 | K178: 27% | L178: 27% | M178: 27 | N178: 84% | O178: 84% | P178: 192 | Q178: 105% | R178: 75% | S178: 238 | T178: 75% | U178: 75% | V178: 110 | W178: 72% | X178: 72% | Y178: 152
A179: 160 | B179: BAS RHIN | C179: 5006 | D179: STRASBOURG | E179: 4039 | F179: REICHSTETT | G179: 1.5 | H179: 67% | I179: 58% | J179: 170 | K179: 61% | L179: 60% | M179: 146 | N179: 81% | O179: 81% | P179: 176 | Q179: 71% | R179: 41% | S179: 100 | T179: 77% | U179: 77% | V179: 132 | W179: 74% | X179: 74% | Y179: 177
A180: 160 | B180: BAS RHIN | C180: 5101 | D180: SELESTAT | E180: 4109 | F180: MARCKOLSHEIM | G180: 2.3 | H180: 67% | I180: 58% | J180: 171 | K180: 52% | L180: 51% | M180: 120 | N180: 78% | O180: 78% | P180: 156 | Q180: 81% | R180: 51% | S180: 174 | T180: 83% | U180: 83% | V180: 180 | W180: 70% | X180: 70% | Y180: 136
A181: 160 | B181: AUBE HAUTE MARNE | C181: 14 | D181: TROYES | E181: 410550 | F181: BAR SUR AUBE | G181: 5.3 | H181: 67% | I181: 58% | J181: 172 | K181: 48% | L181: 47% | M181: 104 | N181: 81% | O181: 81% | P181: 174 | Q181: 81% | R181: 51% | S181: 178 | T181: 82% | U181: 82% | V181: 172 | W181: 73% | X181: 73% | Y181: 161
A182: 160 | B182: AUBE HAUTE MARNE | C182: 14 | D182: TROYES | E182: 510523 | F182: LA CHAPELLE ST LUC | G182: 4.5 | H182: 67% | I182: 58% | J182: 173 | K182: 76% | L182: 76% | M182: 226 | N182: 75% | O182: 75% | P182: 133 | Q182: 75% | R182: 45% | S182: 137 | T182: 69% | U182: 69% | V182: 63 | W182: 68% | X182: 68% | Y182: 114
A183: 160 | B183: MOSELLE | C183: 42 | D183: MOSELLE EST | E183: 557503 | F183: NEUNKIRCH | G183: 3.0 | H183: 67% | I183: 58% | J183: 174 | K183: 11% | L183: 11% | M183: 7 | N183: 88% | O183: 88% | P183: 222 | Q183: 93% | R183: 63% | S183: 231 | T183: 96% | U183: 96% | V183: 233 | W183: 77% | X183: 77% | Y183: 209
A184: 160 | B184: MARNE ARDENNES | C184: 6 | D184: CHALONS EN CHAMPAGNE | E184: 451166 | F184: VITRY LE FRANCOIS | G184: 3.7 | H184: 67% | I184: 58% | J184: 175 | K184: 74% | L184: 74% | M184: 215 | N184: 67% | O184: 67% | P184: 72 | Q184: 94% | R184: 64% | S184: 232 | T184: 77% | U184: 77% | V184: 133 | W184: 53% | X184: 53% | Y184: 24
A185: 160 | B185: HAUT RHIN | C185: 5169 | D185: MULHOUSE | E185: 4170 | F185: MULHOUSE REUNION | G185: 7.8 | H185: 67% | I185: 58% | J185: 176 | K185: 61% | L185: 61% | M185: 148 | N185: 78% | O185: 78% | P185: 154 | Q185: 85% | R185: 55% | S185: 202 | T185: 74% | U185: 74% | V185: 99 | W185: 69% | X185: 69% | Y185: 119
A186: 160 | B186: BAS RHIN | C186: 5060 | D186: HAGUENAU | E186: 4085 | F186: INGWILLER | G186: 3.5 | H186: 67% | I186: 59% | J186: 177 | K186: 55% | L186: 55% | M186: 132 | N186: 76% | O186: 76% | P186: 137 | Q186: 85% | R186: 55% | S186: 204 | T186: 79% | U186: 79% | V186: 152 | W186: 71% | X186: 71% | Y186: 141
A187: 160 | B187: BAS RHIN | C187: 5060 | D187: HAGUENAU | E187: 4060 | F187: HAGUENAU HOUBLON | G187: 8.6 | H187: 67% | I187: 59% | J187: 178 | K187: 68% | L187: 68% | M187: 189 | N187: 80% | O187: 80% | P187: 168 | Q187: 69% | R187: 39% | S187: 80 | T187: 76% | U187: 76% | V187: 128 | W187: 74% | X187: 74% | Y187: 187
A188: 160 | B188: HAUT RHIN | C188: 5130 | D188: COLMAR | E188: 4157 | F188: NEUF BRISACH | G188: 2.5 | H188: 67% | I188: 59% | J188: 179 | K188: 70% | L188: 70% | M188: 201 | N188: 78% | O188: 78% | P188: 152 | Q188: 81% | R188: 51% | S188: 175 | T188: 72% | U188: 72% | V188: 88 | W188: 67% | X188: 67% | Y188: 99
A189: 160 | B189: BAS RHIN | C189: 5060 | D189: HAGUENAU | E189: 4066 | F189: NIEDERBRONN LES BAINS | G189: 5.7 | H189: 68% | I189: 59% | J189: 180 | K189: 51% | L189: 51% | M189: 118 | N189: 85% | O189: 85% | P189: 199 | Q189: 75% | R189: 45% | S189: 132 | T189: 85% | U189: 85% | V189: 199 | W189: 73% | X189: 73% | Y189: 170
A190: 160 | B190: BAS RHIN | C190: 5101 | D190: SELESTAT | E190: 4101 | F190: SELESTAT CENTRE | G190: 7.9 | H190: 68% | I190: 59% | J190: 181 | K190: 68% | L190: 67% | M190: 182 | N190: 74% | O190: 74% | P190: 117 | Q190: 80% | R190: 50% | S190: 167 | T190: 76% | U190: 76% | V190: 116 | W190: 74% | X190: 74% | Y190: 174
A191: 160 | B191: HAUT RHIN | C191: 5169 | D191: MULHOUSE | E191: 4180 | F191: RIEDISHEIM | G191: 3.3 | H191: 68% | I191: 59% | J191: 182 | K191: 45% | L191: 44% | M191: 90 | N191: 80% | O191: 80% | P191: 171 | Q191: 88% | R191: 58% | S191: 216 | T191: 79% | U191: 79% | V191: 146 | W191: 79% | X191: 79% | Y191: 222
A192: 160 | B192: BAS RHIN | C192: 5101 | D192: SELESTAT | E192: 4107 | F192: VILLE | G192: 2.3 | H192: 68% | I192: 59% | J192: 183 | K192: 72% | L192: 71% | M192: 206 | N192: 70% | O192: 70% | P192: 94 | Q192: 64% | R192: 34% | S192: 59 | T192: 84% | U192: 84% | V192: 192 | W192: 80% | X192: 80% | Y192: 231
A193: 160 | B193: MEURTHE ET MOSELLE MEUSE | C193: 27 | D193: PONT A MOUSSON | E193: 554196 | F193: CHAMPIGNEULLES | G193: 2.6 | H193: 68% | I193: 59% | J193: 184 | K193: 64% | L193: 64% | M193: 161 | N193: 84% | O193: 84% | P193: 193 | Q193: 78% | R193: 48% | S193: 151 | T193: 69% | U193: 69% | V193: 62 | W193: 76% | X193: 76% | Y193: 203
A194: 160 | B194: HAUT RHIN | C194: 5169 | D194: MULHOUSE | E194: 4178 | F194: SAINT LOUIS | G194: 6.6 | H194: 68% | I194: 59% | J194: 185 | K194: 67% | L194: 67% | M194: 181 | N194: 76% | O194: 76% | P194: 140 | Q194: 65% | R194: 35% | S194: 60 | T194: 83% | U194: 83% | V194: 179 | W194: 79% | X194: 79% | Y194: 227
A195: 160 | B195: MOSELLE | C195: 45 | D195: METZ | E195: 557712 | F195: WOIPPY | G195: 4.3 | H195: 68% | I195: 59% | J195: 186 | K195: 75% | L195: 74% | M195: 218 | N195: 74% | O195: 74% | P195: 124 | Q195: 79% | R195: 49% | S195: 157 | T195: 73% | U195: 73% | V195: 94 | W195: 70% | X195: 70% | Y195: 130
A196: 160 | B196: MARNE ARDENNES | C196: 11 | D196: REIMS | E196: 451308 | F196: REIMS SAINT THOMAS | G196: 5.6 | H196: 68% | I196: 59% | J196: 187 | K196: 83% | L196: 82% | M196: 238 | N196: 71% | O196: 71% | P196: 95 | Q196: 88% | R196: 58% | S196: 217 | T196: 71% | U196: 71% | V196: 77 | W196: 59% | X196: 59% | Y196: 47
A197: 160 | B197: AUBE HAUTE MARNE | C197: 14 | D197: TROYES | E197: 410510 | F197: TROYES GAMBETTA | G197: 8.6 | H197: 68% | I197: 60% | J197: 188 | K197: 71% | L197: 70% | M197: 202 | N197: 76% | O197: 76% | P197: 141 | Q197: 82% | R197: 52% | S197: 185 | T197: 73% | U197: 73% | V197: 91 | W197: 70% | X197: 70% | Y197: 129
A198: 160 | B198: MOSELLE | C198: 45 | D198: METZ | E198: 557436 | F198: METZ CATHEDRALE | G198: 4.1 | H198: 68% | I198: 60% | J198: 189 | K198: 76% | L198: 75% | M198: 223 | N198: 75% | O198: 75% | P198: 131 | Q198: 70% | R198: 40% | S198: 84 | T198: 79% | U198: 79% | V198: 148 | W198: 73% | X198: 73% | Y198: 167
A199: 160 | B199: VOSGES | C199: 55 | D199: SAINT DIE | E199: 488556 | F199: RAON L ETAPE | G199: 2.2 | H199: 68% | I199: 60% | J199: 190 | K199: 46% | L199: 46% | M199: 97 | N199: 86% | O199: 86% | P199: 208 | Q199: 97% | R199: 68% | S199: 236 | T199: 82% | U199: 82% | V199: 175 | W199: 61% | X199: 61% | Y199: 55
A200: 160 | B200: HAUT RHIN | C200: 5130 | D200: COLMAR | E200: 4132 | F200: COLMAR MARAICHERS | G200: 3.3 | H200: 69% | I200: 60% | J200: 191 | K200: 59% | L200: 59% | M200: 140 | N200: 76% | O200: 76% | P200: 144 | Q200: 81% | R200: 51% | S200: 177 | T200: 85% | U200: 85% | V200: 200 | W200: 74% | X200: 74% | Y200: 183
A201: 160 | B201: VOSGES | C201: 57 | D201: EPINAL | E201: 488256 | F201: DARNEY | G201: 1.5 | H201: 69% | I201: 60% | J201: 192 | K201: 34% | L201: 34% | M201: 44 | N201: 90% | O201: 90% | P201: 231 | Q201: 97% | R201: 67% | S201: 235 | T201: 79% | U201: 79% | V201: 150 | W201: 75% | X201: 75% | Y201: 197
A202: 160 | B202: MOSELLE | C202: 45 | D202: METZ | E202: 557445 | F202: METZ SAINT LIVIER | G202: 2.5 | H202: 69% | I202: 60% | J202: 193 | K202: 48% | L202: 48% | M202: 107 | N202: 84% | O202: 84% | P202: 195 | Q202: 80% | R202: 51% | S202: 172 | T202: 90% | U202: 90% | V202: 224 | W202: 74% | X202: 74% | Y202: 176
A203: 160 | B203: MOSELLE | C203: 44 | D203: MOSELLE NORD | E203: 457180 | F203: BOUSSE | G203: 2.5 | H203: 69% | I203: 61% | J203: 194 | K203: 14% | L203: 13% | M203: 9 | N203: 89% | O203: 89% | P203: 228 | Q203: 86% | R203: 56% | S203: 210 | T203: 97% | U203: 97% | V203: 236 | W203: 90% | X203: 90% | Y203: 241
... 48 more rows

Sheet AG_BANCA
B1: Accueil | H1: BAROMETRE BDD - AGENCES
H2: BANCARISATION
H3: =ACCUEIL!F7 -> 2022-11-13
H7: Ventes Nettes produits pondérés | L7: Ventes sur client non détenteur de l’univers | P7: Total Bancarisation
H8: =DATEMAJ!C8 -> au 13/11 | J8: coef | K8: ='RECAP DIRCOM'!AA4 -> 12% | L8: =DATEMAJ!C9 -> au 13/11 | N8: coef | O8: ='RECAP DIRCOM'!AE4 -> 8% | Q8: coef | R8: ='RECAP DIRCOM'!$AH$4 -> 20%
B9: Direction | C9: eds | D9: Territoire | E9: eds | F9: Agence | G9: ="ETP perf "&DATEMAJ!$C$28 -> ETP perf 13-nov | H9: VN | I9: VN / ETP | J9: % Ecart au 1er | K9: Rang | L9: VB | M9: VB / ETP | N9: % Ecart au 1er | O9: Rang | P9: Moyenne ecart au 1er | Q9: % Ecart au 1er | R9: Rang CEGEE
A10: 50 | B10: AUBE HAUTE MARNE | C10: 21 | D10: CHAUMONT | E10: 410541 | F10: LANGRES | G10: =VLOOKUP($E10,'RECAP AG'!$G$6:$CU$247,3,FALSE) -> 8.0 | H10: =VLOOKUP($E10,'RECAP AG'!$G$6:$CU$247,18,FALSE) -> 248.0 | I10: =VLOOKUP($E10,'RECAP AG'!$G$6:$CU$247,19,FALSE) -> 31.04 | J10: =VLOOKUP($E10,'RECAP AG'!$G$6:$CU$247,20,FALSE) -> 73% | K10: =VLOOKUP($E10,'RECAP AG'!$G$6:$CU$247,21,FALSE) -> 59 | L10: =VLOOKUP($E10,'RECAP AG'!$G$6:$CU$247,22,FALSE) -> 466 | M10: =VLOOKUP($E10,'RECAP AG'!$G$6:$CU$247,23,FALSE) -> 58.32 | N10: =VLOOKUP($E10,'RECAP AG'!$G$6:$CU$247,24,FALSE) -> 65% | O10: =VLOOKUP($E10,'RECAP AG'!$G$6:$CU$247,25,FALSE) -> 159 | P10: =VLOOKUP($E10,'RECAP AG'!$G$6:$CU$247,26,FALSE) -> 70% | Q10: =VLOOKUP($E10,'RECAP AG'!$G$6:$CU$247,27,FALSE) -> 70% | R10: =VLOOKUP($E10,'RECAP AG'!$G$6:$CU$247,28,FALSE) -> 86
A11: 50 | B11: AUBE HAUTE MARNE | C11: 21 | D11: CHAUMONT | E11: 410566 | F11: CHAUMONT HOTEL DE VILLE | G11: =VLOOKUP($E11,'RECAP AG'!$G$6:$CU$247,3,FALSE) -> 10.4 | H11: =VLOOKUP($E11,'RECAP AG'!$G$6:$CU$247,18,FALSE) -> 102.8 | I11: =VLOOKUP($E11,'RECAP AG'!$G$6:$CU$247,19,FALSE) -> 9.91 | J11: =VLOOKUP($E11,'RECAP AG'!$G$6:$CU$247,20,FALSE) -> 91% | K11: =VLOOKUP($E11,'RECAP AG'!$G$6:$CU$247,21,FALSE) -> 173 | L11: =VLOOKUP($E11,'RECAP AG'!$G$6:$CU$247,22,FALSE) -> 583 | M11: =VLOOKUP($E11,'RECAP AG'!$G$6:$CU$247,23,FALSE) -> 56.22 | N11: =VLOOKUP($E11,'RECAP AG'!$G$6:$CU$247,24,FALSE) -> 66% | O11: =VLOOKUP($E11,'RECAP AG'!$G$6:$CU$247,25,FALSE) -> 171 | P11: =VLOOKUP($E11,'RECAP AG'!$G$6:$CU$247,26,FALSE) -> 81% | Q11: =VLOOKUP($E11,'RECAP AG'!$G$6:$CU$247,27,FALSE) -> 81% | R11: =VLOOKUP($E11,'RECAP AG'!$G$6:$CU$247,28,FALSE) -> 179
A12: 50 | B12: AUBE HAUTE MARNE | C12: 21 | D12: CHAUMONT | E12: 510590 | F12: CHAUMONT REPUBLIQUE | G12: =VLOOKUP($E12,'RECAP AG'!$G$6:$CU$247,3,FALSE) -> 2.9 | H12: =VLOOKUP($E12,'RECAP AG'!$G$6:$CU$247,18,FALSE) -> 35.2 | I12: =VLOOKUP($E12,'RECAP AG'!$G$6:$CU$247,19,FALSE) -> 12.31 | J12: =VLOOKUP($E12,'RECAP AG'!$G$6:$CU$247,20,FALSE) -> 89% | K12: =VLOOKUP($E12,'RECAP AG'!$G$6:$CU$247,21,FALSE) -> 160 | L12: =VLOOKUP($E12,'RECAP AG'!$G$6:$CU$247,22,FALSE) -> 217 | M12: =VLOOKUP($E12,'RECAP AG'!$G$6:$CU$247,23,FALSE) -> 75.87 | N12: =VLOOKUP($E12,'RECAP AG'!$G$6:$CU$247,24,FALSE) -> 54% | O12: =VLOOKUP($E12,'RECAP AG'!$G$6:$CU$247,25,FALSE) -> 79 | P12: =VLOOKUP($E12,'RECAP AG'!$G$6:$CU$247,26,FALSE) -> 75% | Q12: =VLOOKUP($E12,'RECAP AG'!$G$6:$CU$247,27,FALSE) -> 75% | R12: =VLOOKUP($E12,'RECAP AG'!$G$6:$CU$247,28,FALSE) -> 134
A13: 50 | B13: AUBE HAUTE MARNE | C13: 21 | D13: CHAUMONT | E13: 451154 | F13: JOINVILLE | G13: =VLOOKUP($E13,'RECAP AG'!$G$6:$CU$247,3,FALSE) -> 1.8 | H13: =VLOOKUP($E13,'RECAP AG'!$G$6:$CU$247,18,FALSE) -> 43.6 | I13: =VLOOKUP($E13,'RECAP AG'!$G$6:$CU$247,19,FALSE) -> 24.09 | J13: =VLOOKUP($E13,'RECAP AG'!$G$6:$CU$247,20,FALSE) -> 79% | K13: =VLOOKUP($E13,'RECAP AG'!$G$6:$CU$247,21,FALSE) -> 88 | L13: =VLOOKUP($E13,'RECAP AG'!$G$6:$CU$247,22,FALSE) -> 154 | M13: =VLOOKUP($E13,'RECAP AG'!$G$6:$CU$247,23,FALSE) -> 85.08 | N13: =VLOOKUP($E13,'RECAP AG'!$G$6:$CU$247,24,FALSE) -> 49% | O13: =VLOOKUP($E13,'RECAP AG'!$G$6:$CU$247,25,FALSE) -> 52 | P13: =VLOOKUP($E13,'RECAP AG'!$G$6:$CU$247,26,FALSE) -> 67% | Q13: =VLOOKUP($E13,'RECAP AG'!$G$6:$CU$247,27,FALSE) -> 67% | R13: =VLOOKUP($E13,'RECAP AG'!$G$6:$CU$247,28,FALSE) -> 69
A14: 50 | B14: AUBE HAUTE MARNE | C14: 21 | D14: CHAUMONT | E14: 451156 | F14: SAINT DIZIER CENTRE | G14: =VLOOKUP($E14,'RECAP AG'!$G$6:$CU$247,3,FALSE) -> 8.6 | H14: =VLOOKUP($E14,'RECAP AG'!$G$6:$CU$247,18,FALSE) -> 132.6 | I14: =VLOOKUP($E14,'RECAP AG'!$G$6:$CU$247,19,FALSE) -> 15.40 | J14: =VLOOKUP($E14,'RECAP AG'!$G$6:$CU$247,20,FALSE) -> 87% | K14: =VLOOKUP($E14,'RECAP AG'!$G$6:$CU$247,21,FALSE) -> 146 | L14: =VLOOKUP($E14,'RECAP AG'!$G$6:$CU$247,22,FALSE) -> 624 | M14: =VLOOKUP($E14,'RECAP AG'!$G$6:$CU$247,23,FALSE) -> 72.47 | N14: =VLOOKUP($E14,'RECAP AG'!$G$6:$CU$247,24,FALSE) -> 57% | O14: =VLOOKUP($E14,'RECAP AG'!$G$6:$CU$247,25,FALSE) -> 97 | P14: =VLOOKUP($E14,'RECAP AG'!$G$6:$CU$247,26,FALSE) -> 75% | Q14: =VLOOKUP($E14,'RECAP AG'!$G$6:$CU$247,27,FALSE) -> 75% | R14: =VLOOKUP($E14,'RECAP AG'!$G$6:$CU$247,28,FALSE) -> 128
A15: 50 | B15: AUBE HAUTE MARNE | C15: 21 | D15: CHAUMONT | E15: 451151 | F15: WASSY | G15: =VLOOKUP($E15,'RECAP AG'!$G$6:$CU$247,3,FALSE) -> 1.9 | H15: =VLOOKUP($E15,'RECAP AG'!$G$6:$CU$247,18,FALSE) -> 19.5 | I15: =VLOOKUP($E15,'RECAP AG'!$G$6:$CU$247,19,FALSE) -> 10.16 | J15: =VLOOKUP($E15,'RECAP AG'!$G$6:$CU$247,20,FALSE) -> 91% | K15: =VLOOKUP($E15,'RECAP AG'!$G$6:$CU$247,21,FALSE) -> 171 | L15: =VLOOKUP($E15,'RECAP AG'!$G$6:$CU$247,22,FALSE) -> 105 | M15: =VLOOKUP($E15,'RECAP AG'!$G$6:$CU$247,23,FALSE) -> 54.69 | N15: =VLOOKUP($E15,'RECAP AG'!$G$6:$CU$247,24,FALSE) -> 67% | O15: =VLOOKUP($E15,'RECAP AG'!$G$6:$CU$247,25,FALSE) -> 184 | P15: =VLOOKUP($E15,'RECAP AG'!$G$6:$CU$247,26,FALSE) -> 82% | Q15: =VLOOKUP($E15,'RECAP AG'!$G$6:$CU$247,27,FALSE) -> 82% | R15: =VLOOKUP($E15,'RECAP AG'!$G$6:$CU$247,28,FALSE) -> 180
A16: 50 | B16: AUBE HAUTE MARNE | C16: 14 | D16: TROYES | E16: 510523 | F16: LA CHAPELLE ST LUC | G16: =VLOOKUP($E16,'RECAP AG'!$G$6:$CU$247,3,FALSE) -> 4.5 | H16: =VLOOKUP($E16,'RECAP AG'!$G$6:$CU$247,18,FALSE) -> 41.4 | I16: =VLOOKUP($E16,'RECAP AG'!$G$6:$CU$247,19,FALSE) -> 9.24 | J16: =VLOOKUP($E16,'RECAP AG'!$G$6:$CU$247,20,FALSE) -> 92% | K16: =VLOOKUP($E16,'RECAP AG'!$G$6:$CU$247,21,FALSE) -> 177 | L16: =VLOOKUP($E16,'RECAP AG'!$G$6:$CU$247,22,FALSE) -> 372 | M16: =VLOOKUP($E16,'RECAP AG'!$G$6:$CU$247,23,FALSE) -> 83.04 | N16: =VLOOKUP($E16,'RECAP AG'!$G$6:$CU$247,24,FALSE) -> 50% | O16: =VLOOKUP($E16,'RECAP AG'!$G$6:$CU$247,25,FALSE) -> 56 | P16: =VLOOKUP($E16,'RECAP AG'!$G$6:$CU$247,26,FALSE) -> 75% | Q16: =VLOOKUP($E16,'RECAP AG'!$G$6:$CU$247,27,FALSE) -> 75% | R16: =VLOOKUP($E16,'RECAP AG'!$G$6:$CU$247,28,FALSE) -> 133
A17: 50 | B17: AUBE HAUTE MARNE | C17: 14 | D17: TROYES | E17: 510530 | F17: ARCIS SUR AUBE | G17: =VLOOKUP($E17,'RECAP AG'!$G$6:$CU$247,3,FALSE) -> 3.6 | H17: =VLOOKUP($E17,'RECAP AG'!$G$6:$CU$247,18,FALSE) -> 54.2 | I17: =VLOOKUP($E17,'RECAP AG'!$G$6:$CU$247,19,FALSE) -> 14.89 | J17: =VLOOKUP($E17,'RECAP AG'!$G$6:$CU$247,20,FALSE) -> 87% | K17: =VLOOKUP($E17,'RECAP AG'!$G$6:$CU$247,21,FALSE) -> 153 | L17: =VLOOKUP($E17,'RECAP AG'!$G$6:$CU$247,22,FALSE) -> 204 | M17: =VLOOKUP($E17,'RECAP AG'!$G$6:$CU$247,23,FALSE) -> 56.04 | N17: =VLOOKUP($E17,'RECAP AG'!$G$6:$CU$247,24,FALSE) -> 66% | O17: =VLOOKUP($E17,'RECAP AG'!$G$6:$CU$247,25,FALSE) -> 172 | P17: =VLOOKUP($E17,'RECAP AG'!$G$6:$CU$247,26,FALSE) -> 79% | Q17: =VLOOKUP($E17,'RECAP AG'!$G$6:$CU$247,27,FALSE) -> 79% | R17: =VLOOKUP($E17,'RECAP AG'!$G$6:$CU$247,28,FALSE) -> 161
A18: 50 | B18: AUBE HAUTE MARNE | C18: 14 | D18: TROYES | E18: 410550 | F18: BAR SUR AUBE | G18: =VLOOKUP($E18,'RECAP AG'!$G$6:$CU$247,3,FALSE) -> 5.3 | H18: =VLOOKUP($E18,'RECAP AG'!$G$6:$CU$247,18,FALSE) -> 59.0 | I18: =VLOOKUP($E18,'RECAP AG'!$G$6:$CU$247,19,FALSE) -> 11.15 | J18: =VLOOKUP($E18,'RECAP AG'!$G$6:$CU$247,20,FALSE) -> 90% | K18: =VLOOKUP($E18,'RECAP AG'!$G$6:$CU$247,21,FALSE) -> 167 | L18: =VLOOKUP($E18,'RECAP AG'!$G$6:$CU$247,22,FALSE) -> 293 | M18: =VLOOKUP($E18,'RECAP AG'!$G$6:$CU$247,23,FALSE) -> 55.39 | N18: =VLOOKUP($E18,'RECAP AG'!$G$6:$CU$247,24,FALSE) -> 67% | O18: =VLOOKUP($E18,'RECAP AG'!$G$6:$CU$247,25,FALSE) -> 178 | P18: =VLOOKUP($E18,'RECAP AG'!$G$6:$CU$247,26,FALSE) -> 81% | Q18: =VLOOKUP($E18,'RECAP AG'!$G$6:$CU$247,27,FALSE) -> 81% | R18: =VLOOKUP($E18,'RECAP AG'!$G$6:$CU$247,28,FALSE) -> 174
A19: 50 | B19: AUBE HAUTE MARNE | C19: 14 | D19: TROYES | E19: 510556 | F19: BAR SUR SEINE | G19: =VLOOKUP($E19,'RECAP AG'!$G$6:$CU$247,3,FALSE) -> 2.7 | H19: =VLOOKUP($E19,'RECAP AG'!$G$6:$CU$247,18,FALSE) -> 15.5 | I19: =VLOOKUP($E19,'RECAP AG'!$G$6:$CU$247,19,FALSE) -> 5.76 | J19: =VLOOKUP($E19,'RECAP AG'!$G$6:$CU$247,20,FALSE) -> 95% | K19: =VLOOKUP($E19,'RECAP AG'!$G$6:$CU$247,21,FALSE) -> 192 | L19: =VLOOKUP($E19,'RECAP AG'!$G$6:$CU$247,22,FALSE) -> 119 | M19: =VLOOKUP($E19,'RECAP AG'!$G$6:$CU$247,23,FALSE) -> 44.24 | N19: =VLOOKUP($E19,'RECAP AG'!$G$6:$CU$247,24,FALSE) -> 73% | O19: =VLOOKUP($E19,'RECAP AG'!$G$6:$CU$247,25,FALSE) -> 225 | P19: =VLOOKUP($E19,'RECAP AG'!$G$6:$CU$247,26,FALSE) -> 86% | Q19: =VLOOKUP($E19,'RECAP AG'!$G$6:$CU$247,27,FALSE) -> 86% | R19: =VLOOKUP($E19,'RECAP AG'!$G$6:$CU$247,28,FALSE) -> 209
A20: 50 | B20: AUBE HAUTE MARNE | C20: 14 | D20: TROYES | E20: 510570 | F20: NOGENT SUR SEINE | G20: =VLOOKUP($E20,'RECAP AG'!$G$6:$CU$247,3,FALSE) -> 3.9 | H20: =VLOOKUP($E20,'RECAP AG'!$G$6:$CU$247,18,FALSE) -> 75.9 | I20: =VLOOKUP($E20,'RECAP AG'!$G$6:$CU$247,19,FALSE) -> 19.26 | J20: =VLOOKUP($E20,'RECAP AG'!$G$6:$CU$247,20,FALSE) -> 83% | K20: =VLOOKUP($E20,'RECAP AG'!$G$6:$CU$247,21,FALSE) -> 119 | L20: =VLOOKUP($E20,'RECAP AG'!$G$6:$CU$247,22,FALSE) -> 253 | M20: =VLOOKUP($E20,'RECAP AG'!$G$6:$CU$247,23,FALSE) -> 64.21 | N20: =VLOOKUP($E20,'RECAP AG'!$G$6:$CU$247,24,FALSE) -> 61% | O20: =VLOOKUP($E20,'RECAP AG'!$G$6:$CU$247,25,FALSE) -> 128 | P20: =VLOOKUP($E20,'RECAP AG'!$G$6:$CU$247,26,FALSE) -> 74% | Q20: =VLOOKUP($E20,'RECAP AG'!$G$6:$CU$247,27,FALSE) -> 74% | R20: =VLOOKUP($E20,'RECAP AG'!$G$6:$CU$247,28,FALSE) -> 126
A21: 50 | B21: AUBE HAUTE MARNE | C21: 14 | D21: TROYES | E21: 410571 | F21: ROMILLY SUR SEINE | G21: =VLOOKUP($E21,'RECAP AG'!$G$6:$CU$247,3,FALSE) -> 4.4 | H21: =VLOOKUP($E21,'RECAP AG'!$G$6:$CU$247,18,FALSE) -> -5.6 | I21: =VLOOKUP($E21,'RECAP AG'!$G$6:$CU$247,19,FALSE) -> -1.27 | J21: =VLOOKUP($E21,'RECAP AG'!$G$6:$CU$247,20,FALSE) -> 101% | K21: =VLOOKUP($E21,'RECAP AG'!$G$6:$CU$247,21,FALSE) -> 218 | L21: =VLOOKUP($E21,'RECAP AG'!$G$6:$CU$247,22,FALSE) -> 282 | M21: =VLOOKUP($E21,'RECAP AG'!$G$6:$CU$247,23,FALSE) -> 63.95 | N21: =VLOOKUP($E21,'RECAP AG'!$G$6:$CU$247,24,FALSE) -> 62% | O21: =VLOOKUP($E21,'RECAP AG'!$G$6:$CU$247,25,FALSE) -> 131 | P21: =VLOOKUP($E21,'RECAP AG'!$G$6:$CU$247,26,FALSE) -> 85% | Q21: =VLOOKUP($E21,'RECAP AG'!$G$6:$CU$247,27,FALSE) -> 85% | R21: =VLOOKUP($E21,'RECAP AG'!$G$6:$CU$247,28,FALSE) -> 203
A22: 50 | B22: AUBE HAUTE MARNE | C22: 14 | D22: TROYES | E22: 510520 | F22: SAINT ANDRE LES VERGERS | G22: =VLOOKUP($E22,'RECAP AG'!$G$6:$CU$247,3,FALSE) -> 3.1 | H22: =VLOOKUP($E22,'RECAP AG'!$G$6:$CU$247,18,FALSE) -> -23.1 | I22: =VLOOKUP($E22,'RECAP AG'!$G$6:$CU$247,19,FALSE) -> -7.36 | J22: =VLOOKUP($E22,'RECAP AG'!$G$6:$CU$247,20,FALSE) -> 106% | K22: =VLOOKUP($E22,'RECAP AG'!$G$6:$CU$247,21,FALSE) -> 231 | L22: =VLOOKUP($E22,'RECAP AG'!$G$6:$CU$247,22,FALSE) -> 231 | M22: =VLOOKUP($E22,'RECAP AG'!$G$6:$CU$247,23,FALSE) -> 73.57 | N22: =VLOOKUP($E22,'RECAP AG'!$G$6:$CU$247,24,FALSE) -> 56% | O22: =VLOOKUP($E22,'RECAP AG'!$G$6:$CU$247,25,FALSE) -> 86 | P22: =VLOOKUP($E22,'RECAP AG'!$G$6:$CU$247,26,FALSE) -> 86% | Q22: =VLOOKUP($E22,'RECAP AG'!$G$6:$CU$247,27,FALSE) -> 86% | R22: =VLOOKUP($E22,'RECAP AG'!$G$6:$CU$247,28,FALSE) -> 207
A23: 50 | B23: AUBE HAUTE MARNE | C23: 14 | D23: TROYES | E23: 410524 | F23: SAINT JULIEN LES VILLAS | G23: =VLOOKUP($E23,'RECAP AG'!$G$6:$CU$247,3,FALSE) -> 5.1 | H23: =VLOOKUP($E23,'RECAP AG'!$G$6:$CU$247,18,FALSE) -> 45.8 | I23: =VLOOKUP($E23,'RECAP AG'!$G$6:$CU$247,19,FALSE) -> 8.95 | J23: =VLOOKUP($E23,'RECAP AG'!$G$6:$CU$247,20,FALSE) -> 92% | K23: =VLOOKUP($E23,'RECAP AG'!$G$6:$CU$247,21,FALSE) -> 180 | L23: =VLOOKUP($E23,'RECAP AG'!$G$6:$CU$247,22,FALSE) -> 315 | M23: =VLOOKUP($E23,'RECAP AG'!$G$6:$CU$247,23,FALSE) -> 61.52 | N23: =VLOOKUP($E23,'RECAP AG'!$G$6:$CU$247,24,FALSE) -> 63% | O23: =VLOOKUP($E23,'RECAP AG'!$G$6:$CU$247,25,FALSE) -> 146 | P23: =VLOOKUP($E23,'RECAP AG'!$G$6:$CU$247,26,FALSE) -> 81% | Q23: =VLOOKUP($E23,'RECAP AG'!$G$6:$CU$247,27,FALSE) -> 81% | R23: =VLOOKUP($E23,'RECAP AG'!$G$6:$CU$247,28,FALSE) -> 173
A24: 50 | B24: AUBE HAUTE MARNE | C24: 14 | D24: TROYES | E24: 410521 | F24: SAINTE SAVINE | G24: =VLOOKUP($E24,'RECAP AG'!$G$6:$CU$247,3,FALSE) -> 4.2 | H24: =VLOOKUP($E24,'RECAP AG'!$G$6:$CU$247,18,FALSE) -> 2.9 | I24: =VLOOKUP($E24,'RECAP AG'!$G$6:$CU$247,19,FALSE) -> 0.69 | J24: =VLOOKUP($E24,'RECAP AG'!$G$6:$CU$247,20,FALSE) -> 99% | K24: =VLOOKUP($E24,'RECAP AG'!$G$6:$CU$247,21,FALSE) -> 214 | L24: =VLOOKUP($E24,'RECAP AG'!$G$6:$CU$247,22,FALSE) -> 242 | M24: =VLOOKUP($E24,'RECAP AG'!$G$6:$CU$247,23,FALSE) -> 57.89 | N24: =VLOOKUP($E24,'RECAP AG'!$G$6:$CU$247,24,FALSE) -> 65% | O24: =VLOOKUP($E24,'RECAP AG'!$G$6:$CU$247,25,FALSE) -> 160 | P24: =VLOOKUP($E24,'RECAP AG'!$G$6:$CU$247,26,FALSE) -> 86% | Q24: =VLOOKUP($E24,'RECAP AG'!$G$6:$CU$247,27,FALSE) -> 86% | R24: =VLOOKUP($E24,'RECAP AG'!$G$6:$CU$247,28,FALSE) -> 204
A25: 50 | B25: AUBE HAUTE MARNE | C25: 14 | D25: TROYES | E25: 510513 | F25: SAINT PARRES AUX TERTRES | G25: =VLOOKUP($E25,'RECAP AG'!$G$6:$CU$247,3,FALSE) -> 2.8 | H25: =VLOOKUP($E25,'RECAP AG'!$G$6:$CU$247,18,FALSE) -> 60.5 | I25: =VLOOKUP($E25,'RECAP AG'!$G$6:$CU$247,19,FALSE) -> 21.84 | J25: =VLOOKUP($E25,'RECAP AG'!$G$6:$CU$247,20,FALSE) -> 81% | K25: =VLOOKUP($E25,'RECAP AG'!$G$6:$CU$247,21,FALSE) -> 101 | L25: =VLOOKUP($E25,'RECAP AG'!$G$6:$CU$247,22,FALSE) -> 243 | M25: =VLOOKUP($E25,'RECAP AG'!$G$6:$CU$247,23,FALSE) -> 87.73 | N25: =VLOOKUP($E25,'RECAP AG'!$G$6:$CU$247,24,FALSE) -> 47% | O25: =VLOOKUP($E25,'RECAP AG'!$G$6:$CU$247,25,FALSE) -> 44 | P25: =VLOOKUP($E25,'RECAP AG'!$G$6:$CU$247,26,FALSE) -> 67% | Q25: =VLOOKUP($E25,'RECAP AG'!$G$6:$CU$247,27,FALSE) -> 67% | R25: =VLOOKUP($E25,'RECAP AG'!$G$6:$CU$247,28,FALSE) -> 74
A26: 50 | B26: AUBE HAUTE MARNE | C26: 14 | D26: TROYES | E26: 410510 | F26: TROYES GAMBETTA | G26: =VLOOKUP($E26,'RECAP AG'!$G$6:$CU$247,3,FALSE) -> 8.6 | H26: =VLOOKUP($E26,'RECAP AG'!$G$6:$CU$247,18,FALSE) -> 131.6 | I26: =VLOOKUP($E26,'RECAP AG'!$G$6:$CU$247,19,FALSE) -> 15.28 | J26: =VLOOKUP($E26,'RECAP AG'!$G$6:$CU$247,20,FALSE) -> 87% | K26: =VLOOKUP($E26,'RECAP AG'!$G$6:$CU$247,21,FALSE) -> 148 | L26: =VLOOKUP($E26,'RECAP AG'!$G$6:$CU$247,22,FALSE) -> 563 | M26: =VLOOKUP($E26,'RECAP AG'!$G$6:$CU$247,23,FALSE) -> 65.39 | N26: =VLOOKUP($E26,'RECAP AG'!$G$6:$CU$247,24,FALSE) -> 61% | O26: =VLOOKUP($E26,'RECAP AG'!$G$6:$CU$247,25,FALSE) -> 123 | P26: =VLOOKUP($E26,'RECAP AG'!$G$6:$CU$247,26,FALSE) -> 76% | Q26: =VLOOKUP($E26,'RECAP AG'!$G$6:$CU$247,27,FALSE) -> 76% | R26: =VLOOKUP($E26,'RECAP AG'!$G$6:$CU$247,28,FALSE) -> 141
A27: 50 | B27: AUBE HAUTE MARNE | C27: 14 | D27: TROYES | E27: 410512 | F27: TROYES ZOLA | G27: =VLOOKUP($E27,'RECAP AG'!$G$6:$CU$247,3,FALSE) -> 5.6 | H27: =VLOOKUP($E27,'RECAP AG'!$G$6:$CU$247,18,FALSE) -> -19.8 | I27: =VLOOKUP($E27,'RECAP AG'!$G$6:$CU$247,19,FALSE) -> -3.54 | J27: =VLOOKUP($E27,'RECAP AG'!$G$6:$CU$247,20,FALSE) -> 103% | K27: =VLOOKUP($E27,'RECAP AG'!$G$6:$CU$247,21,FALSE) -> 223 | L27: =VLOOKUP($E27,'RECAP AG'!$G$6:$CU$247,22,FALSE) -> 338 | M27: =VLOOKUP($E27,'RECAP AG'!$G$6:$CU$247,23,FALSE) -> 60.47 | N27: =VLOOKUP($E27,'RECAP AG'!$G$6:$CU$247,24,FALSE) -> 64% | O27: =VLOOKUP($E27,'RECAP AG'!$G$6:$CU$247,25,FALSE) -> 150 | P27: =VLOOKUP($E27,'RECAP AG'!$G$6:$CU$247,26,FALSE) -> 87% | Q27: =VLOOKUP($E27,'RECAP AG'!$G$6:$CU$247,27,FALSE) -> 87% | R27: =VLOOKUP($E27,'RECAP AG'!$G$6:$CU$247,28,FALSE) -> 214
A28: 262 | B28: BAS RHIN | C28: 5060 | D28: HAGUENAU | E28: 4057 | F28: BISCHWILLER | G28: =VLOOKUP($E28,'RECAP AG'!$G$6:$CU$247,3,FALSE) -> 6.8 | H28: =VLOOKUP($E28,'RECAP AG'!$G$6:$CU$247,18,FALSE) -> 279.8 | I28: =VLOOKUP($E28,'RECAP AG'!$G$6:$CU$247,19,FALSE) -> 41.45 | J28: =VLOOKUP($E28,'RECAP AG'!$G$6:$CU$247,20,FALSE) -> 64% | K28: =VLOOKUP($E28,'RECAP AG'!$G$6:$CU$247,21,FALSE) -> 24 | L28: =VLOOKUP($E28,'RECAP AG'!$G$6:$CU$247,22,FALSE) -> 368 | M28: =VLOOKUP($E28,'RECAP AG'!$G$6:$CU$247,23,FALSE) -> 54.52 | N28: =VLOOKUP($E28,'RECAP AG'!$G$6:$CU$247,24,FALSE) -> 67% | O28: =VLOOKUP($E28,'RECAP AG'!$G$6:$CU$247,25,FALSE) -> 187 | P28: =VLOOKUP($E28,'RECAP AG'!$G$6:$CU$247,26,FALSE) -> 65% | Q28: =VLOOKUP($E28,'RECAP AG'!$G$6:$CU$247,27,FALSE) -> 65% | R28: =VLOOKUP($E28,'RECAP AG'!$G$6:$CU$247,28,FALSE) -> 57
A29: 262 | B29: BAS RHIN | C29: 5060 | D29: HAGUENAU | E29: 4082 | F29: BOUXWILLER | G29: =VLOOKUP($E29,'RECAP AG'!$G$6:$CU$247,3,FALSE) -> 2.4 | H29: =VLOOKUP($E29,'RECAP AG'!$G$6:$CU$247,18,FALSE) -> 20.2 | I29: =VLOOKUP($E29,'RECAP AG'!$G$6:$CU$247,19,FALSE) -> 8.28 | J29: =VLOOKUP($E29,'RECAP AG'!$G$6:$CU$247,20,FALSE) -> 93% | K29: =VLOOKUP($E29,'RECAP AG'!$G$6:$CU$247,21,FALSE) -> 183 | L29: =VLOOKUP($E29,'RECAP AG'!$G$6:$CU$247,22,FALSE) -> 123 | M29: =VLOOKUP($E29,'RECAP AG'!$G$6:$CU$247,23,FALSE) -> 50.41 | N29: =VLOOKUP($E29,'RECAP AG'!$G$6:$CU$247,24,FALSE) -> 70% | O29: =VLOOKUP($E29,'RECAP AG'!$G$6:$CU$247,25,FALSE) -> 204 | P29: =VLOOKUP($E29,'RECAP AG'!$G$6:$CU$247,26,FALSE) -> 84% | Q29: =VLOOKUP($E29,'RECAP AG'!$G$6:$CU$247,27,FALSE) -> 84% | R29: =VLOOKUP($E29,'RECAP AG'!$G$6:$CU$247,28,FALSE) -> 192
A30: 262 | B30: BAS RHIN | C30: 5060 | D30: HAGUENAU | E30: 4030 | F30: BRUMATH | G30: =VLOOKUP($E30,'RECAP AG'!$G$6:$CU$247,3,FALSE) -> 3.8 | H30: =VLOOKUP($E30,'RECAP AG'!$G$6:$CU$247,18,FALSE) -> 143.6 | I30: =VLOOKUP($E30,'RECAP AG'!$G$6:$CU$247,19,FALSE) -> 37.49 | J30: =VLOOKUP($E30,'RECAP AG'!$G$6:$CU$247,20,FALSE) -> 67% | K30: =VLOOKUP($E30,'RECAP AG'!$G$6:$CU$247,21,FALSE) -> 38 | L30: =VLOOKUP($E30,'RECAP AG'!$G$6:$CU$247,22,FALSE) -> 220 | M30: =VLOOKUP($E30,'RECAP AG'!$G$6:$CU$247,23,FALSE) -> 57.44 | N30: =VLOOKUP($E30,'RECAP AG'!$G$6:$CU$247,24,FALSE) -> 66% | O30: =VLOOKUP($E30,'RECAP AG'!$G$6:$CU$247,25,FALSE) -> 162 | P30: =VLOOKUP($E30,'RECAP AG'!$G$6:$CU$247,26,FALSE) -> 67% | Q30: =VLOOKUP($E30,'RECAP AG'!$G$6:$CU$247,27,FALSE) -> 67% | R30: =VLOOKUP($E30,'RECAP AG'!$G$6:$CU$247,28,FALSE) -> 65
A31: 262 | B31: BAS RHIN | C31: 5060 | D31: HAGUENAU | E31: 4060 | F31: HAGUENAU HOUBLON | G31: =VLOOKUP($E31,'RECAP AG'!$G$6:$CU$247,3,FALSE) -> 8.6 | H31: =VLOOKUP($E31,'RECAP AG'!$G$6:$CU$247,18,FALSE) -> 111.4 | I31: =VLOOKUP($E31,'RECAP AG'!$G$6:$CU$247,19,FALSE) -> 13.01 | J31: =VLOOKUP($E31,'RECAP AG'!$G$6:$CU$247,20,FALSE) -> 89% | K31: =VLOOKUP($E31,'RECAP AG'!$G$6:$CU$247,21,FALSE) -> 159 | L31: =VLOOKUP($E31,'RECAP AG'!$G$6:$CU$247,22,FALSE) -> 485 | M31: =VLOOKUP($E31,'RECAP AG'!$G$6:$CU$247,23,FALSE) -> 56.66 | N31: =VLOOKUP($E31,'RECAP AG'!$G$6:$CU$247,24,FALSE) -> 66% | O31: =VLOOKUP($E31,'RECAP AG'!$G$6:$CU$247,25,FALSE) -> 165 | P31: =VLOOKUP($E31,'RECAP AG'!$G$6:$CU$247,26,FALSE) -> 80% | Q31: =VLOOKUP($E31,'RECAP AG'!$G$6:$CU$247,27,FALSE) -> 80% | R31: =VLOOKUP($E31,'RECAP AG'!$G$6:$CU$247,28,FALSE) -> 168
A32: 262 | B32: BAS RHIN | C32: 5060 | D32: HAGUENAU | E32: 4092 | F32: HOCHFELDEN | G32: =VLOOKUP($E32,'RECAP AG'!$G$6:$CU$247,3,FALSE) -> 2.1 | H32: =VLOOKUP($E32,'RECAP AG'!$G$6:$CU$247,18,FALSE) -> 20.7 | I32: =VLOOKUP($E32,'RECAP AG'!$G$6:$CU$247,19,FALSE) -> 9.90 | J32: =VLOOKUP($E32,'RECAP AG'!$G$6:$CU$247,20,FALSE) -> 91% | K32: =VLOOKUP($E32,'RECAP AG'!$G$6:$CU$247,21,FALSE) -> 174 | L32: =VLOOKUP($E32,'RECAP AG'!$G$6:$CU$247,22,FALSE) -> 137 | M32: =VLOOKUP($E32,'RECAP AG'!$G$6:$CU$247,23,FALSE) -> 65.55 | N32: =VLOOKUP($E32,'RECAP AG'!$G$6:$CU$247,24,FALSE) -> 61% | O32: =VLOOKUP($E32,'RECAP AG'!$G$6:$CU$247,25,FALSE) -> 122 | P32: =VLOOKUP($E32,'RECAP AG'!$G$6:$CU$247,26,FALSE) -> 79% | Q32: =VLOOKUP($E32,'RECAP AG'!$G$6:$CU$247,27,FALSE) -> 79% | R32: =VLOOKUP($E32,'RECAP AG'!$G$6:$CU$247,28,FALSE) -> 163
A33: 262 | B33: BAS RHIN | C33: 5060 | D33: HAGUENAU | E33: 4041 | F33: HOERDT | G33: =VLOOKUP($E33,'RECAP AG'!$G$6:$CU$247,3,FALSE) -> 1.7 | H33: =VLOOKUP($E33,'RECAP AG'!$G$6:$CU$247,18,FALSE) -> 28.8 | I33: =VLOOKUP($E33,'RECAP AG'!$G$6:$CU$247,19,FALSE) -> 17.25 | J33: =VLOOKUP($E33,'RECAP AG'!$G$6:$CU$247,20,FALSE) -> 85% | K33: =VLOOKUP($E33,'RECAP AG'!$G$6:$CU$247,21,FALSE) -> 132 | L33: =VLOOKUP($E33,'RECAP AG'!$G$6:$CU$247,22,FALSE) -> 89 | M33: =VLOOKUP($E33,'RECAP AG'!$G$6:$CU$247,23,FALSE) -> 53.29 | N33: =VLOOKUP($E33,'RECAP AG'!$G$6:$CU$247,24,FALSE) -> 68% | O33: =VLOOKUP($E33,'RECAP AG'!$G$6:$CU$247,25,FALSE) -> 193 | P33: =VLOOKUP($E33,'RECAP AG'!$G$6:$CU$247,26,FALSE) -> 78% | Q33: =VLOOKUP($E33,'RECAP AG'!$G$6:$CU$247,27,FALSE) -> 78% | R33: =VLOOKUP($E33,'RECAP AG'!$G$6:$CU$247,28,FALSE) -> 158
A34: 262 | B34: BAS RHIN | C34: 5060 | D34: HAGUENAU | E34: 4085 | F34: INGWILLER | G34: =VLOOKUP($E34,'RECAP AG'!$G$6:$CU$247,3,FALSE) -> 3.5 | H34: =VLOOKUP($E34,'RECAP AG'!$G$6:$CU$247,18,FALSE) -> 61.6 | I34: =VLOOKUP($E34,'RECAP AG'!$G$6:$CU$247,19,FALSE) -> 17.45 | J34: =VLOOKUP($E34,'RECAP AG'!$G$6:$CU$247,20,FALSE) -> 85% | K34: =VLOOKUP($E34,'RECAP AG'!$G$6:$CU$247,21,FALSE) -> 130 | L34: =VLOOKUP($E34,'RECAP AG'!$G$6:$CU$247,22,FALSE) -> 219 | M34: =VLOOKUP($E34,'RECAP AG'!$G$6:$CU$247,23,FALSE) -> 62.04 | N34: =VLOOKUP($E34,'RECAP AG'!$G$6:$CU$247,24,FALSE) -> 63% | O34: =VLOOKUP($E34,'RECAP AG'!$G$6:$CU$247,25,FALSE) -> 141 | P34: =VLOOKUP($E34,'RECAP AG'!$G$6:$CU$247,26,FALSE) -> 76% | Q34: =VLOOKUP($E34,'RECAP AG'!$G$6:$CU$247,27,FALSE) -> 76% | R34: =VLOOKUP($E34,'RECAP AG'!$G$6:$CU$247,28,FALSE) -> 137
A35: 262 | B35: BAS RHIN | C35: 5060 | D35: HAGUENAU | E35: 4066 | F35: NIEDERBRONN LES BAINS | G35: =VLOOKUP($E35,'RECAP AG'!$G$6:$CU$247,3,FALSE) -> 5.7 | H35: =VLOOKUP($E35,'RECAP AG'!$G$6:$CU$247,18,FALSE) -> 19.8 | I35: =VLOOKUP($E35,'RECAP AG'!$G$6:$CU$247,19,FALSE) -> 3.48 | J35: =VLOOKUP($E35,'RECAP AG'!$G$6:$CU$247,20,FALSE) -> 97% | K35: =VLOOKUP($E35,'RECAP AG'!$G$6:$CU$247,21,FALSE) -> 201 | L35: =VLOOKUP($E35,'RECAP AG'!$G$6:$CU$247,22,FALSE) -> 317 | M35: =VLOOKUP($E35,'RECAP AG'!$G$6:$CU$247,23,FALSE) -> 55.71 | N35: =VLOOKUP($E35,'RECAP AG'!$G$6:$CU$247,24,FALSE) -> 67% | O35: =VLOOKUP($E35,'RECAP AG'!$G$6:$CU$247,25,FALSE) -> 176 | P35: =VLOOKUP($E35,'RECAP AG'!$G$6:$CU$247,26,FALSE) -> 85% | Q35: =VLOOKUP($E35,'RECAP AG'!$G$6:$CU$247,27,FALSE) -> 85% | R35: =VLOOKUP($E35,'RECAP AG'!$G$6:$CU$247,28,FALSE) -> 199
A36: 262 | B36: BAS RHIN | C36: 5060 | D36: HAGUENAU | E36: 4067 | F36: PFAFFENHOFFEN | G36: =VLOOKUP($E36,'RECAP AG'!$G$6:$CU$247,3,FALSE) -> 1.9 | H36: =VLOOKUP($E36,'RECAP AG'!$G$6:$CU$247,18,FALSE) -> 56.0 | I36: =VLOOKUP($E36,'RECAP AG'!$G$6:$CU$247,19,FALSE) -> 29.95 | J36: =VLOOKUP($E36,'RECAP AG'!$G$6:$CU$247,20,FALSE) -> 74% | K36: =VLOOKUP($E36,'RECAP AG'!$G$6:$CU$247,21,FALSE) -> 62 | L36: =VLOOKUP($E36,'RECAP AG'!$G$6:$CU$247,22,FALSE) -> 127 | M36: =VLOOKUP($E36,'RECAP AG'!$G$6:$CU$247,23,FALSE) -> 67.91 | N36: =VLOOKUP($E36,'RECAP AG'!$G$6:$CU$247,24,FALSE) -> 59% | O36: =VLOOKUP($E36,'RECAP AG'!$G$6:$CU$247,25,FALSE) -> 114 | P36: =VLOOKUP($E36,'RECAP AG'!$G$6:$CU$247,26,FALSE) -> 68% | Q36: =VLOOKUP($E36,'RECAP AG'!$G$6:$CU$247,27,FALSE) -> 68% | R36: =VLOOKUP($E36,'RECAP AG'!$G$6:$CU$247,28,FALSE) -> 79
A37: 262 | B37: BAS RHIN | C37: 5060 | D37: HAGUENAU | E37: 4095 | F37: SARRE UNION | G37: =VLOOKUP($E37,'RECAP AG'!$G$6:$CU$247,3,FALSE) -> 3.0 | H37: =VLOOKUP($E37,'RECAP AG'!$G$6:$CU$247,18,FALSE) -> 31.0 | I37: =VLOOKUP($E37,'RECAP AG'!$G$6:$CU$247,19,FALSE) -> 10.40 | J37: =VLOOKUP($E37,'RECAP AG'!$G$6:$CU$247,20,FALSE) -> 91% | K37: =VLOOKUP($E37,'RECAP AG'!$G$6:$CU$247,21,FALSE) -> 170 | L37: =VLOOKUP($E37,'RECAP AG'!$G$6:$CU$247,22,FALSE) -> 144 | M37: =VLOOKUP($E37,'RECAP AG'!$G$6:$CU$247,23,FALSE) -> 48.32 | N37: =VLOOKUP($E37,'RECAP AG'!$G$6:$CU$247,24,FALSE) -> 71% | O37: =VLOOKUP($E37,'RECAP AG'!$G$6:$CU$247,25,FALSE) -> 212 | P37: =VLOOKUP($E37,'RECAP AG'!$G$6:$CU$247,26,FALSE) -> 83% | Q37: =VLOOKUP($E37,'RECAP AG'!$G$6:$CU$247,27,FALSE) -> 83% | R37: =VLOOKUP($E37,'RECAP AG'!$G$6:$CU$247,28,FALSE) -> 187
A38: 262 | B38: BAS RHIN | C38: 5060 | D38: HAGUENAU | E38: 4087 | F38: SAVERNE | G38: =VLOOKUP($E38,'RECAP AG'!$G$6:$CU$247,3,FALSE) -> 5.6 | H38: =VLOOKUP($E38,'RECAP AG'!$G$6:$CU$247,18,FALSE) -> 164.9 | I38: =VLOOKUP($E38,'RECAP AG'!$G$6:$CU$247,19,FALSE) -> 29.61 | J38: =VLOOKUP($E38,'RECAP AG'!$G$6:$CU$247,20,FALSE) -> 74% | K38: =VLOOKUP($E38,'RECAP AG'!$G$6:$CU$247,21,FALSE) -> 66 | L38: =VLOOKUP($E38,'RECAP AG'!$G$6:$CU$247,22,FALSE) -> 312 | M38: =VLOOKUP($E38,'RECAP AG'!$G$6:$CU$247,23,FALSE) -> 56.01 | N38: =VLOOKUP($E38,'RECAP AG'!$G$6:$CU$247,24,FALSE) -> 66% | O38: =VLOOKUP($E38,'RECAP AG'!$G$6:$CU$247,25,FALSE) -> 173 | P38: =VLOOKUP($E38,'RECAP AG'!$G$6:$CU$247,26,FALSE) -> 71% | Q38: =VLOOKUP($E38,'RECAP AG'!$G$6:$CU$247,27,FALSE) -> 71% | R38: =VLOOKUP($E38,'RECAP AG'!$G$6:$CU$247,28,FALSE) -> 98
A39: 262 | B39: BAS RHIN | C39: 5060 | D39: HAGUENAU | E39: 4031 | F39: TRUCHTERSHEIM | G39: =VLOOKUP($E39,'RECAP AG'!$G$6:$CU$247,3,FALSE) -> 2.4 | H39: =VLOOKUP($E39,'RECAP AG'!$G$6:$CU$247,18,FALSE) -> 99.4 | I39: =VLOOKUP($E39,'RECAP AG'!$G$6:$CU$247,19,FALSE) -> 41.59 | J39: =VLOOKUP($E39,'RECAP AG'!$G$6:$CU$247,20,FALSE) -> 64% | K39: =VLOOKUP($E39,'RECAP AG'!$G$6:$CU$247,21,FALSE) -> 23 | L39: =VLOOKUP($E39,'RECAP AG'!$G$6:$CU$247,22,FALSE) -> 102 | M39: =VLOOKUP($E39,'RECAP AG'!$G$6:$CU$247,23,FALSE) -> 42.68 | N39: =VLOOKUP($E39,'RECAP AG'!$G$6:$CU$247,24,FALSE) -> 74% | O39: =VLOOKUP($E39,'RECAP AG'!$G$6:$CU$247,25,FALSE) -> 229 | P39: =VLOOKUP($E39,'RECAP AG'!$G$6:$CU$247,26,FALSE) -> 68% | Q39: =VLOOKUP($E39,'RECAP AG'!$G$6:$CU$247,27,FALSE) -> 68% | R39: =VLOOKUP($E39,'RECAP AG'!$G$6:$CU$247,28,FALSE) -> 77
A40: 262 | B40: BAS RHIN | C40: 5060 | D40: HAGUENAU | E40: 4071 | F40: WISSEMBOURG | G40: =VLOOKUP($E40,'RECAP AG'!$G$6:$CU$247,3,FALSE) -> 8.2 | H40: =VLOOKUP($E40,'RECAP AG'!$G$6:$CU$247,18,FALSE) -> 187.7 | I40: =VLOOKUP($E40,'RECAP AG'!$G$6:$CU$247,19,FALSE) -> 22.95 | J40: =VLOOKUP($E40,'RECAP AG'!$G$6:$CU$247,20,FALSE) -> 80% | K40: =VLOOKUP($E40,'RECAP AG'!$G$6:$CU$247,21,FALSE) -> 97 | L40: =VLOOKUP($E40,'RECAP AG'!$G$6:$CU$247,22,FALSE) -> 563 | M40: =VLOOKUP($E40,'RECAP AG'!$G$6:$CU$247,23,FALSE) -> 68.83 | N40: =VLOOKUP($E40,'RECAP AG'!$G$6:$CU$247,24,FALSE) -> 59% | O40: =VLOOKUP($E40,'RECAP AG'!$G$6:$CU$247,25,FALSE) -> 111 | P40: =VLOOKUP($E40,'RECAP AG'!$G$6:$CU$247,26,FALSE) -> 71% | Q40: =VLOOKUP($E40,'RECAP AG'!$G$6:$CU$247,27,FALSE) -> 71% | R40: =VLOOKUP($E40,'RECAP AG'!$G$6:$CU$247,28,FALSE) -> 99
A41: 262 | B41: BAS RHIN | C41: 5101 | D41: SELESTAT | E41: 4113 | F41: BARR | G41: =VLOOKUP($E41,'RECAP AG'!$G$6:$CU$247,3,FALSE) -> 2.9 | H41: =VLOOKUP($E41,'RECAP AG'!$G$6:$CU$247,18,FALSE) -> 119.8 | I41: =VLOOKUP($E41,'RECAP AG'!$G$6:$CU$247,19,FALSE) -> 41.60 | J41: =VLOOKUP($E41,'RECAP AG'!$G$6:$CU$247,20,FALSE) -> 64% | K41: =VLOOKUP($E41,'RECAP AG'!$G$6:$CU$247,21,FALSE) -> 22 | L41: =VLOOKUP($E41,'RECAP AG'!$G$6:$CU$247,22,FALSE) -> 207 | M41: =VLOOKUP($E41,'RECAP AG'!$G$6:$CU$247,23,FALSE) -> 71.88 | N41: =VLOOKUP($E41,'RECAP AG'!$G$6:$CU$247,24,FALSE) -> 57% | O41: =VLOOKUP($E41,'RECAP AG'!$G$6:$CU$247,25,FALSE) -> 98 | P41: =VLOOKUP($E41,'RECAP AG'!$G$6:$CU$247,26,FALSE) -> 61% | Q41: =VLOOKUP($E41,'RECAP AG'!$G$6:$CU$247,27,FALSE) -> 61% | R41: =VLOOKUP($E41,'RECAP AG'!$G$6:$CU$247,28,FALSE) -> 39
A42: 262 | B42: BAS RHIN | C42: 5101 | D42: SELESTAT | E42: 4111 | F42: BENFELD | G42: =VLOOKUP($E42,'RECAP AG'!$G$6:$CU$247,3,FALSE) -> 3.1 | H42: =VLOOKUP($E42,'RECAP AG'!$G$6:$CU$247,18,FALSE) -> 4.0 | I42: =VLOOKUP($E42,'RECAP AG'!$G$6:$CU$247,19,FALSE) -> 1.28 | J42: =VLOOKUP($E42,'RECAP AG'!$G$6:$CU$247,20,FALSE) -> 99% | K42: =VLOOKUP($E42,'RECAP AG'!$G$6:$CU$247,21,FALSE) -> 212 | L42: =VLOOKUP($E42,'RECAP AG'!$G$6:$CU$247,22,FALSE) -> 135 | M42: =VLOOKUP($E42,'RECAP AG'!$G$6:$CU$247,23,FALSE) -> 43.27 | N42: =VLOOKUP($E42,'RECAP AG'!$G$6:$CU$247,24,FALSE) -> 74% | O42: =VLOOKUP($E42,'RECAP AG'!$G$6:$CU$247,25,FALSE) -> 228 | P42: =VLOOKUP($E42,'RECAP AG'!$G$6:$CU$247,26,FALSE) -> 89% | Q42: =VLOOKUP($E42,'RECAP AG'!$G$6:$CU$247,27,FALSE) -> 89% | R42: =VLOOKUP($E42,'RECAP AG'!$G$6:$CU$247,28,FALSE) -> 223
A43: 262 | B43: BAS RHIN | C43: 5101 | D43: SELESTAT | E43: 4104 | F43: ERSTEIN | G43: =VLOOKUP($E43,'RECAP AG'!$G$6:$CU$247,3,FALSE) -> 3.9 | H43: =VLOOKUP($E43,'RECAP AG'!$G$6:$CU$247,18,FALSE) -> 193.9 | I43: =VLOOKUP($E43,'RECAP AG'!$G$6:$CU$247,19,FALSE) -> 49.21 | J43: =VLOOKUP($E43,'RECAP AG'!$G$6:$CU$247,20,FALSE) -> 57% | K43: =VLOOKUP($E43,'RECAP AG'!$G$6:$CU$247,21,FALSE) -> 12 | L43: =VLOOKUP($E43,'RECAP AG'!$G$6:$CU$247,22,FALSE) -> 289 | M43: =VLOOKUP($E43,'RECAP AG'!$G$6:$CU$247,23,FALSE) -> 73.35 | N43: =VLOOKUP($E43,'RECAP AG'!$G$6:$CU$247,24,FALSE) -> 56% | O43: =VLOOKUP($E43,'RECAP AG'!$G$6:$CU$247,25,FALSE) -> 89 | P43: =VLOOKUP($E43,'RECAP AG'!$G$6:$CU$247,26,FALSE) -> 57% | Q43: =VLOOKUP($E43,'RECAP AG'!$G$6:$CU$247,27,FALSE) -> 57% | R43: =VLOOKUP($E43,'RECAP AG'!$G$6:$CU$247,28,FALSE) -> 22
A44: 262 | B44: BAS RHIN | C44: 5101 | D44: SELESTAT | E44: 4008 | F44: FEGERSHEIM | G44: =VLOOKUP($E44,'RECAP AG'!$G$6:$CU$247,3,FALSE) -> 2.4 | H44: =VLOOKUP($E44,'RECAP AG'!$G$6:$CU$247,18,FALSE) -> 82.3 | I44: =VLOOKUP($E44,'RECAP AG'!$G$6:$CU$247,19,FALSE) -> 34.58 | J44: =VLOOKUP($E44,'RECAP AG'!$G$6:$CU$247,20,FALSE) -> 70% | K44: =VLOOKUP($E44,'RECAP AG'!$G$6:$CU$247,21,FALSE) -> 46 | L44: =VLOOKUP($E44,'RECAP AG'!$G$6:$CU$247,22,FALSE) -> 110 | M44: =VLOOKUP($E44,'RECAP AG'!$G$6:$CU$247,23,FALSE) -> 46.22 | N44: =VLOOKUP($E44,'RECAP AG'!$G$6:$CU$247,24,FALSE) -> 72% | O44: =VLOOKUP($E44,'RECAP AG'!$G$6:$CU$247,25,FALSE) -> 219 | P44: =VLOOKUP($E44,'RECAP AG'!$G$6:$CU$247,26,FALSE) -> 71% | Q44: =VLOOKUP($E44,'RECAP AG'!$G$6:$CU$247,27,FALSE) -> 71% | R44: =VLOOKUP($E44,'RECAP AG'!$G$6:$CU$247,28,FALSE) -> 96
A45: 262 | B45: BAS RHIN | C45: 5101 | D45: SELESTAT | E45: 4007 | F45: ILLKIRCH CENTRE | G45: =VLOOKUP($E45,'RECAP AG'!$G$6:$CU$247,3,FALSE) -> 6.3 | H45: =VLOOKUP($E45,'RECAP AG'!$G$6:$CU$247,18,FALSE) -> 104.8 | I45: =VLOOKUP($E45,'RECAP AG'!$G$6:$CU$247,19,FALSE) -> 16.66 | J45: =VLOOKUP($E45,'RECAP AG'!$G$6:$CU$247,20,FALSE) -> 85% | K45: =VLOOKUP($E45,'RECAP AG'!$G$6:$CU$247,21,FALSE) -> 138 | L45: =VLOOKUP($E45,'RECAP AG'!$G$6:$CU$247,22,FALSE) -> 362 | M45: =VLOOKUP($E45,'RECAP AG'!$G$6:$CU$247,23,FALSE) -> 57.55 | N45: =VLOOKUP($E45,'RECAP AG'!$G$6:$CU$247,24,FALSE) -> 65% | O45: =VLOOKUP($E45,'RECAP AG'!$G$6:$CU$247,25,FALSE) -> 161 | P45: =VLOOKUP($E45,'RECAP AG'!$G$6:$CU$247,26,FALSE) -> 77% | Q45: =VLOOKUP($E45,'RECAP AG'!$G$6:$CU$247,27,FALSE) -> 77% | R45: =VLOOKUP($E45,'RECAP AG'!$G$6:$CU$247,28,FALSE) -> 151
A46: 262 | B46: BAS RHIN | C46: 5101 | D46: SELESTAT | E46: 4015 | F46: LINGOLSHEIM | G46: =VLOOKUP($E46,'RECAP AG'!$G$6:$CU$247,3,FALSE) -> 2.6 | H46: =VLOOKUP($E46,'RECAP AG'!$G$6:$CU$247,18,FALSE) -> -37.1 | I46: =VLOOKUP($E46,'RECAP AG'!$G$6:$CU$247,19,FALSE) -> -14.27 | J46: =VLOOKUP($E46,'RECAP AG'!$G$6:$CU$247,20,FALSE) -> 112% | K46: =VLOOKUP($E46,'RECAP AG'!$G$6:$CU$247,21,FALSE) -> 236 | L46: =VLOOKUP($E46,'RECAP AG'!$G$6:$CU$247,22,FALSE) -> 175 | M46: =VLOOKUP($E46,'RECAP AG'!$G$6:$CU$247,23,FALSE) -> 67.31 | N46: =VLOOKUP($E46,'RECAP AG'!$G$6:$CU$247,24,FALSE) -> 60% | O46: =VLOOKUP($E46,'RECAP AG'!$G$6:$CU$247,25,FALSE) -> 115 | P46: =VLOOKUP($E46,'RECAP AG'!$G$6:$CU$247,26,FALSE) -> 91% | Q46: =VLOOKUP($E46,'RECAP AG'!$G$6:$CU$247,27,FALSE) -> 91% | R46: =VLOOKUP($E46,'RECAP AG'!$G$6:$CU$247,28,FALSE) -> 234
A47: 262 | B47: BAS RHIN | C47: 5101 | D47: SELESTAT | E47: 4109 | F47: MARCKOLSHEIM | G47: =VLOOKUP($E47,'RECAP AG'!$G$6:$CU$247,3,FALSE) -> 2.3 | H47: =VLOOKUP($E47,'RECAP AG'!$G$6:$CU$247,18,FALSE) -> 37.8 | I47: =VLOOKUP($E47,'RECAP AG'!$G$6:$CU$247,19,FALSE) -> 16.51 | J47: =VLOOKUP($E47,'RECAP AG'!$G$6:$CU$247,20,FALSE) -> 86% | K47: =VLOOKUP($E47,'RECAP AG'!$G$6:$CU$247,21,FALSE) -> 140 | L47: =VLOOKUP($E47,'RECAP AG'!$G$6:$CU$247,22,FALSE) -> 129 | M47: =VLOOKUP($E47,'RECAP AG'!$G$6:$CU$247,23,FALSE) -> 56.33 | N47: =VLOOKUP($E47,'RECAP AG'!$G$6:$CU$247,24,FALSE) -> 66% | O47: =VLOOKUP($E47,'RECAP AG'!$G$6:$CU$247,25,FALSE) -> 170 | P47: =VLOOKUP($E47,'RECAP AG'!$G$6:$CU$247,26,FALSE) -> 78% | Q47: =VLOOKUP($E47,'RECAP AG'!$G$6:$CU$247,27,FALSE) -> 78% | R47: =VLOOKUP($E47,'RECAP AG'!$G$6:$CU$247,28,FALSE) -> 156
A48: 262 | B48: BAS RHIN | C48: 5101 | D48: SELESTAT | E48: 4120 | F48: WASSELONNE | G48: =VLOOKUP($E48,'RECAP AG'!$G$6:$CU$247,3,FALSE) -> 2.7 | H48: =VLOOKUP($E48,'RECAP AG'!$G$6:$CU$247,18,FALSE) -> -15.5 | I48: =VLOOKUP($E48,'RECAP AG'!$G$6:$CU$247,19,FALSE) -> -5.72 | J48: =VLOOKUP($E48,'RECAP AG'!$G$6:$CU$247,20,FALSE) -> 105% | K48: =VLOOKUP($E48,'RECAP AG'!$G$6:$CU$247,21,FALSE) -> 226 | L48: =VLOOKUP($E48,'RECAP AG'!$G$6:$CU$247,22,FALSE) -> 173 | M48: =VLOOKUP($E48,'RECAP AG'!$G$6:$CU$247,23,FALSE) -> 63.84 | N48: =VLOOKUP($E48,'RECAP AG'!$G$6:$CU$247,24,FALSE) -> 62% | O48: =VLOOKUP($E48,'RECAP AG'!$G$6:$CU$247,25,FALSE) -> 132 | P48: =VLOOKUP($E48,'RECAP AG'!$G$6:$CU$247,26,FALSE) -> 88% | Q48: =VLOOKUP($E48,'RECAP AG'!$G$6:$CU$247,27,FALSE) -> 88% | R48: =VLOOKUP($E48,'RECAP AG'!$G$6:$CU$247,28,FALSE) -> 218
A49: 262 | B49: BAS RHIN | C49: 5101 | D49: SELESTAT | E49: 4116 | F49: MOLSHEIM | G49: =VLOOKUP($E49,'RECAP AG'!$G$6:$CU$247,3,FALSE) -> 3.8 | H49: =VLOOKUP($E49,'RECAP AG'!$G$6:$CU$247,18,FALSE) -> -0.4 | I49: =VLOOKUP($E49,'RECAP AG'!$G$6:$CU$247,19,FALSE) -> -0.11 | J49: =VLOOKUP($E49,'RECAP AG'!$G$6:$CU$247,20,FALSE) -> 100% | K49: =VLOOKUP($E49,'RECAP AG'!$G$6:$CU$247,21,FALSE) -> 215 | L49: =VLOOKUP($E49,'RECAP AG'!$G$6:$CU$247,22,FALSE) -> 166 | M49: =VLOOKUP($E49,'RECAP AG'!$G$6:$CU$247,23,FALSE) -> 43.68 | N49: =VLOOKUP($E49,'RECAP AG'!$G$6:$CU$247,24,FALSE) -> 74% | O49: =VLOOKUP($E49,'RECAP AG'!$G$6:$CU$247,25,FALSE) -> 226 | P49: =VLOOKUP($E49,'RECAP AG'!$G$6:$CU$247,26,FALSE) -> 90% | Q49: =VLOOKUP($E49,'RECAP AG'!$G$6:$CU$247,27,FALSE) -> 90% | R49: =VLOOKUP($E49,'RECAP AG'!$G$6:$CU$247,28,FALSE) -> 229
